Workbook

Sheet P1
N1: les points & (la diff + la valeur absolue de la plus petif dif (pour n'avoir que des nombres positifs mais en gardant -56 < 56
A2: CHAMPIONNAT DES CLUBS | N2: puisqu'ils sont remplacés par 0 et 112) & les pour & (256 - les contre) 256 car 36*7=252 et en y soustrayant les contre on inverse pour obtenir un grand nombre pour un contre faible
N3: ainsi le plus grand nombre obtenu indique le 1er etc, on peut en un seul calcul déterminer le rang et supprimer l'usine à gaz des tableaux supplémentaires
A4: POULE 1 | H4: Traitement 2 exaequo
A5: EQUIPES | C5: POINTS | D5: Pour | E5: Contre | F5: Diff | G5: Rang | H5: Place | I5: Adv | J5: Rang adv | K5: 1 si gagnant | L5: Rang corrigé | M5: Rang d'après M
A6: AA | B6: 1A | C6: =SUMIF($A$18:$A$69,A6,$E$18:$E$69)+SUMIF($C$18:$C$69,A6,$F$18:$F$69) -> 18 | D6: =SUMIF($A$18:$A$69,$A6,$B$18:$B$69)+SUMIF($C$18:$C$69,$A6,$D$18:$D$69) -> 160 | E6: =SUMIF($C$18:$C$69,$A6,$B$18:$B$69)+SUMIF($A$18:$A$69,$A6,$D$18:$D$69) -> 92 | F6: =D6-E6 -> 68 | G6: =IF(K6="",M6,IF(L6<>"",L6,IF(K6=1,MIN(J6,M6),MAX(J6,M6)))) -> 1 | H6: =C6&"-"&COUNTIF(C$6:C6,C6)&"/"&COUNTIF($C$6:$C$13,C6) -> 18-1/2 | I6: =IF(RIGHT(H6,3)="1/2",INDEX($A$6:$A$13,MATCH(SUBSTITUTE(H6,"1/2","2/2"),$H$6:$H$13,0)),IF(RIGHT(H6,3)="2/2",INDEX($A$6:$A$13,MATCH(SUBSTITUTE(H6,"2/2","1/2"),$H$6:$H$13,0)),"")) -> AB | J6: =IF(I6="","",INDEX($M$6:$M$13,MATCH(I6,$A$6:$A$13,0))) -> 2 | K6: =IF(I6="","",COUNTIF($N$18:$N$69,A6&I6)) -> 0 | L6: =IF(AND(I6<>"",COUNTIF($N$34:$N$69,A6&I6)+COUNTIF($N$34:$N$69,I6&A6)=0),M6,IF(J6=M6,IF(K6=1,M6,M6+1),"")) -> 1 | M6: =RANK(N6,N6:N13) -> 1 | N6: =VALUE($C6&TEXT($F6+ABS(MIN($F$6:$F$13)),"000")&TEXT($D6,"000")&TEXT(252-$E6,"000")) -> 18144160160
A7: AB | B7: 1B | C7: =SUMIF($A$18:$A$69,A7,$E$18:$E$69)+SUMIF($C$18:$C$69,A7,$F$18:$F$69) -> 18 | D7: =SUMIF($A$18:$A$69,$A7,$B$18:$B$69)+SUMIF($C$18:$C$69,$A7,$D$18:$D$69) -> 134 | E7: =SUMIF($C$18:$C$69,$A7,$B$18:$B$69)+SUMIF($A$18:$A$69,$A7,$D$18:$D$69) -> 118 | F7: 16 | G7: =IF(K7="",M7,IF(L7<>"",L7,IF(K7=1,MIN(J7,M7),MAX(J7,M7)))) -> 2 | H7: =C7&"-"&COUNTIF(C$6:C7,C7)&"/"&COUNTIF($C$6:$C$13,C7) -> 18-2/2 | I7: =IF(RIGHT(H7,3)="1/2",INDEX($A$6:$A$13,MATCH(SUBSTITUTE(H7,"1/2","2/2"),$H$6:$H$13,0)),IF(RIGHT(H7,3)="2/2",INDEX($A$6:$A$13,MATCH(SUBSTITUTE(H7,"2/2","1/2"),$H$6:$H$13,0)),"")) -> AA | J7: 1 | K7: =IF(I7="","",COUNTIF($N$18:$N$69,A7&I7)) -> 0 | L7: =IF(AND(I7<>"",COUNTIF($N$34:$N$69,A7&I7)+COUNTIF($N$34:$N$69,I7&A7)=0),M7,IF(J7=M7,IF(K7=1,M7,M7+1),"")) -> 2 | M7: =RANK(N7,$N$6:$N$13,0) -> 2 | N7: =VALUE($C7&TEXT($F7+ABS(MIN($F$6:$F$13)),"000")&TEXT($D7,"000")&TEXT(252-$E7,"000")) -> 18092134134
A8: AC | B8: 1C | C8: =SUMIF($A$18:$A$69,A8,$E$18:$E$69)+SUMIF($C$18:$C$69,A8,$F$18:$F$69) -> 12 | D8: 88 | E8: 164 | F8: -76 | G8: 5 | H8: =C8&"-"&COUNTIF(C$6:C8,C8)&"/"&COUNTIF($C$6:$C$13,C8) -> 12-1/1 | M8: 5 | N8: 12000088088
A9: AD | B9: 1D | C9: 14 | D9: 136 | E9: 116 | F9: 20 | G9: 4 | H9: =C9&"-"&COUNTIF(C$6:C9,C9)&"/"&COUNTIF($C$6:$C$13,C9) -> 14-1/1 | M9: 4 | N9: 14096136136
A10: AE | B10: 1E | C10: 17 | D10: 144 | E10: 108 | F10: 36 | G10: 3 | H10: =C10&"-"&COUNTIF(C$6:C10,C10)&"/"&COUNTIF($C$6:$C$13,C10) -> 17-1/1 | M10: 3 | N10: 17112144144
A11: AF | B11: 1F | C11: 11 | D11: 126 | E11: 126 | F11: 0 | G11: 6 | H11: =C11&"-"&COUNTIF(C$6:C11,C11)&"/"&COUNTIF($C$6:$C$13,C11) -> 11-1/3 | M11: 6 | N11: 11076126126
A12: AG | B12: 1G | C12: 11 | D12: 94 | E12: 158 | F12: =D12-E12 -> -64 | G12: 8 | H12: =C12&"-"&COUNTIF(C$6:C12,C12)&"/"&COUNTIF($C$6:$C$13,C12) -> 11-2/3 | M12: 8 | N12: 11012094094
A13: AH | B13: 1H | C13: 11 | D13: =SUMIF($A$18:$A$69,$A13,$B$18:$B$69)+SUMIF($C$18:$C$69,$A13,$D$18:$D$69) -> 126 | E13: 126 | F13: =D13-E13 -> 0 | G13: 6 | H13: =C13&"-"&COUNTIF(C$6:C13,C13)&"/"&COUNTIF($C$6:$C$13,C13) -> 11-3/3 | M13: 6 | N13: 11076126126
A15: 1er MATCH le | B15: à | C15: =A6 -> AA
G16: SI forfait éq recevante
A17: Equipes | B17: score | C17: Equipes | D17: score | E17: Points | F17: Points
A18: =$A$6 -> AA | B18: 18 | C18: =$A$7 -> AB | D18: =IF(G18=19,19,IF(ISBLANK(B18),"",IF(B18=19,0,36-B18))) -> 18 | E18: =IF(G18=19,0,IF(ISBLANK(B18),"",IF(B18<18,1,IF(B18=18,2,IF(B18>18,3))))) -> 2 | F18: =IF(G18=19,3,IF(ISBLANK(B18),"",IF(B18=19,0,IF(D18<18,1,IF(D18=18,2,IF(D18>=20,3)))))) -> 2 | N18: =IF(B18>D18,A18&C18,IF(D18>B18,C18&A18,"/")) -> /
A19: =$A$8 -> AC | B19: 18 | C19: =$A$9 -> AD | D19: =IF(G19=19,19,IF(ISBLANK(B19),"",IF(B19=19,0,36-B19))) -> 18 | E19: =IF(G19=19,0,IF(ISBLANK(B19),"",IF(B19<18,1,IF(B19=18,2,IF(B19>18,3))))) -> 2 | F19: =IF(G19=19,3,IF(ISBLANK(B19),"",IF(B19=19,0,IF(D19<18,1,IF(D19=18,2,IF(D19>=20,3)))))) -> 2 | N19: =IF(B19>D19,A19&C19,IF(D19>B19,C19&A19,"/")) -> /
A20: =$A$10 -> AE | B20: 28 | C20: =$A$11 -> AF | D20: =IF(G20=19,19,IF(ISBLANK(B20),"",IF(B20=19,0,36-B20))) -> 8 | E20: =IF(G20=19,0,IF(ISBLANK(B20),"",IF(B20<18,1,IF(B20=18,2,IF(B20>18,3))))) -> 3 | F20: =IF(G20=19,3,IF(ISBLANK(B20),"",IF(B20=19,0,IF(D20<18,1,IF(D20=18,2,IF(D20>=20,3)))))) -> 1 | N20: =IF(B20>D20,A20&C20,IF(D20>B20,C20&A20,"/")) -> AEAF
A21: =$A$12 -> AG | B21: 10 | C21: =$A$13 -> AH | D21: =IF(G21=19,19,IF(ISBLANK(B21),"",IF(B21=19,0,36-B21))) -> 26 | E21: =IF(G21=19,0,IF(ISBLANK(B21),"",IF(B21<18,1,IF(B21=18,2,IF(B21>18,3))))) -> 1 | F21: =IF(G21=19,3,IF(ISBLANK(B21),"",IF(B21=19,0,IF(D21<18,1,IF(D21=18,2,IF(D21>=20,3)))))) -> 3 | N21: =IF(B21>D21,A21&C21,IF(D21>B21,C21&A21,"/")) -> AHAG
A23: 2 éme MATCH le | B23: à | C23: =A7 -> AB
G24: SI forfait éq recevante
A25: Equipes | B25: score | C25: Equipes | D25: score | E25: Points | F25: Points
A26: =$A$6 -> AA | B26: 28 | C26: =$A$8 -> AC | D26: =IF(G26=19,19,IF(ISBLANK(B26),"",IF(B26=19,0,36-B26))) -> 8 | E26: =IF(G26=19,0,IF(ISBLANK(B26),"",IF(B26<18,1,IF(B26=18,2,IF(B26>18,3))))) -> 3 | F26: =IF(G26=19,3,IF(ISBLANK(B26),"",IF(B26=19,0,IF(D26<18,1,IF(D26=18,2,IF(D26>=20,3)))))) -> 1 | N26: =IF(B26>D26,A26&C26,IF(D26>B26,C26&A26,"/")) -> AAAC
A27: =$A$7 -> AB | B27: 20 | C27: =$A$13 -> AH | D27: =IF(G27=19,19,IF(ISBLANK(B27),"",IF(B27=19,0,36-B27))) -> 16 | E27: =IF(G27=19,0,IF(ISBLANK(B27),"",IF(B27<18,1,IF(B27=18,2,IF(B27>18,3))))) -> 3 | F27: =IF(G27=19,3,IF(ISBLANK(B27),"",IF(B27=19,0,IF(D27<18,1,IF(D27=18,2,IF(D27>=20,3)))))) -> 1 | N27: =IF(B27>D27,A27&C27,IF(D27>B27,C27&A27,"/")) -> ABAH
A28: =$A$9 -> AD | B28: 24 | C28: =$A$11 -> AF | D28: =IF(G28=19,19,IF(ISBLANK(B28),"",IF(B28=19,0,36-B28))) -> 12 | E28: =IF(G28=19,0,IF(ISBLANK(B28),"",IF(B28<18,1,IF(B28=18,2,IF(B28>18,3))))) -> 3 | F28: =IF(G28=19,3,IF(ISBLANK(B28),"",IF(B28=19,0,IF(D28<18,1,IF(D28=18,2,IF(D28>=20,3)))))) -> 1 | N28: =IF(B28>D28,A28&C28,IF(D28>B28,C28&A28,"/")) -> ADAF
A29: =$A$10 -> AE | B29: 24 | C29: =$A$12 -> AG | D29: =IF(G29=19,19,IF(ISBLANK(B29),"",IF(B29=19,0,36-B29))) -> 12 | E29: =IF(G29=19,0,IF(ISBLANK(B29),"",IF(B29<18,1,IF(B29=18,2,IF(B29>18,3))))) -> 3 | F29: =IF(G29=19,3,IF(ISBLANK(B29),"",IF(B29=19,0,IF(D29<18,1,IF(D29=18,2,IF(D29>=20,3)))))) -> 1 | N29: =IF(B29>D29,A29&C29,IF(D29>B29,C29&A29,"/")) -> AEAG
A31: 3 éme MATCH le | B31: à | C31: =A8 -> AC
G32: SI forfait éq recevante
A33: Equipes | B33: score | C33: Equipes | D33: score | E33: Points | F33: Points
A34: =$A$6 -> AA | B34: 22 | C34: =$A$13 -> AH | D34: =IF(G34=19,19,IF(ISBLANK(B34),"",IF(B34=19,0,36-B34))) -> 14 | E34: =IF(G34=19,0,IF(ISBLANK(B34),"",IF(B34<18,1,IF(B34=18,2,IF(B34>18,3))))) -> 3 | F34: =IF(G34=19,3,IF(ISBLANK(B34),"",IF(B34=19,0,IF(D34<18,1,IF(D34=18,2,IF(D34>=20,3)))))) -> 1 | N34: =IF(B34>D34,A34&C34,IF(D34>B34,C34&A34,"/")) -> AAAH
A35: =$A$7 -> AB | B35: 22 | C35: =$A$10 -> AE | D35: =IF(G35=19,19,IF(ISBLANK(B35),"",IF(B35=19,0,36-B35))) -> 14 | E35: =IF(G35=19,0,IF(ISBLANK(B35),"",IF(B35<18,1,IF(B35=18,2,IF(B35>18,3))))) -> 3 | F35: =IF(G35=19,3,IF(ISBLANK(B35),"",IF(B35=19,0,IF(D35<18,1,IF(D35=18,2,IF(D35>=20,3)))))) -> 1 | N35: =IF(B35>D35,A35&C35,IF(D35>B35,C35&A35,"/")) -> ABAE
A36: =$A$8 -> AC | B36: 20 | C36: =$A$11 -> AF | D36: =IF(G36=19,19,IF(ISBLANK(B36),"",IF(B36=19,0,36-B36))) -> 16 | E36: =IF(G36=19,0,IF(ISBLANK(B36),"",IF(B36<18,1,IF(B36=18,2,IF(B36>18,3))))) -> 3 | F36: =IF(G36=19,3,IF(ISBLANK(B36),"",IF(B36=19,0,IF(D36<18,1,IF(D36=18,2,IF(D36>=20,3)))))) -> 1 | N36: =IF(B36>D36,A36&C36,IF(D36>B36,C36&A36,"/")) -> ACAF
A37: =$A$9 -> AD | B37: 30 | C37: =$A$12 -> AG | D37: =IF(G37=19,19,IF(ISBLANK(B37),"",IF(B37=19,0,36-B37))) -> 6 | E37: =IF(G37=19,0,IF(ISBLANK(B37),"",IF(B37<18,1,IF(B37=18,2,IF(B37>18,3))))) -> 3 | F37: =IF(G37=19,3,IF(ISBLANK(B37),"",IF(B37=19,0,IF(D37<18,1,IF(D37=18,2,IF(D37>=20,3)))))) -> 1 | N37: =IF(B37>D37,A37&C37,IF(D37>B37,C37&A37,"/")) -> ADAG
A39: 4 éme MATCH le | B39: à | C39: =A9 -> AD
G40: SI forfait éq recevante
A41: Equipes | B41: score | C41: Equipes | D41: score | E41: Points | F41: Points
A42: =A6 -> AA | B42: 22 | C42: =$A$9 -> AD | D42: =IF(G42=19,19,IF(ISBLANK(B42),"",IF(B42=19,0,36-B42))) -> 14 | E42: =IF(G42=19,0,IF(ISBLANK(B42),"",IF(B42<18,1,IF(B42=18,2,IF(B42>18,3))))) -> 3 | F42: =IF(G42=19,3,IF(ISBLANK(B42),"",IF(B42=19,0,IF(D42<18,1,IF(D42=18,2,IF(D42>=20,3)))))) -> 1 | N42: =IF(B42>D42,A42&C42,IF(D42>B42,C42&A42,"/")) -> AAAD
A43: =$A$11 -> AF | B43: 16 | C43: =$A$12 -> AG | D43: =IF(G43=19,19,IF(ISBLANK(B43),"",IF(B43=19,0,36-B43))) -> 20 | E43: =IF(G43=19,0,IF(ISBLANK(B43),"",IF(B43<18,1,IF(B43=18,2,IF(B43>18,3))))) -> 1 | F43: =IF(G43=19,3,IF(ISBLANK(B43),"",IF(B43=19,0,IF(D43<18,1,IF(D43=18,2,IF(D43>=20,3)))))) -> 3 | N43: =IF(B43>D43,A43&C43,IF(D43>B43,C43&A43,"/")) -> AGAF
A44: =A7 -> AB | B44: 24 | C44: =$A$8 -> AC | D44: =IF(G44=19,19,IF(ISBLANK(B44),"",IF(B44=19,0,36-B44))) -> 12 | E44: =IF(G44=19,0,IF(ISBLANK(B44),"",IF(B44<18,1,IF(B44=18,2,IF(B44>18,3))))) -> 3 | F44: =IF(G44=19,3,IF(ISBLANK(B44),"",IF(B44=19,0,IF(D44<18,1,IF(D44=18,2,IF(D44>=20,3)))))) -> 1 | N44: =IF(B44>D44,A44&C44,IF(D44>B44,C44&A44,"/")) -> ABAC
A45: =A10 -> AE | B45: 6 | C45: =$A$13 -> AH | D45: =IF(G45=19,19,IF(ISBLANK(B45),"",IF(B45=19,0,36-B45))) -> 30 | E45: =IF(G45=19,0,IF(ISBLANK(B45),"",IF(B45<18,1,IF(B45=18,2,IF(B45>18,3))))) -> 1 | F45: =IF(G45=19,3,IF(ISBLANK(B45),"",IF(B45=19,0,IF(D45<18,1,IF(D45=18,2,IF(D45>=20,3)))))) -> 3 | N45: =IF(B45>D45,A45&C45,IF(D45>B45,C45&A45,"/")) -> AHAE
A47: 5 éme MATCH le | B47: à | C47: =A10 -> AE
G48: SI forfait éq recevante
A49: Equipes | B49: score | C49: Equipes | D49: score | E49: Points | F49: Points
A50: =A6 -> AA | B50: 20 | C50: =$A$11 -> AF | D50: =IF(G50=19,19,IF(ISBLANK(B50),"",IF(B50=19,0,36-B50))) -> 16 | E50: =IF(G50=19,0,IF(ISBLANK(B50),"",IF(B50<18,1,IF(B50=18,2,IF(B50>18,3))))) -> 3 | F50: =IF(G50=19,3,IF(ISBLANK(B50),"",IF(B50=19,0,IF(D50<18,1,IF(D50=18,2,IF(D50>=20,3)))))) -> 1 | N50: =IF(B50>D50,A50&C50,IF(D50>B50,C50&A50,"/")) -> AAAF
A51: =$A$9 -> AD | B51: 22 | C51: =A13 -> AH | D51: =IF(G51=19,19,IF(ISBLANK(B51),"",IF(B51=19,0,36-B51))) -> 14 | E51: =IF(G51=19,0,IF(ISBLANK(B51),"",IF(B51<18,1,IF(B51=18,2,IF(B51>18,3))))) -> 3 | F51: =IF(G51=19,3,IF(ISBLANK(B51),"",IF(B51=19,0,IF(D51<18,1,IF(D51=18,2,IF(D51>=20,3)))))) -> 1 | N51: =IF(B51>D51,A51&C51,IF(D51>B51,C51&A51,"/")) -> ADAH
A52: =A7 -> AB | B52: 24 | C52: =$A$12 -> AG | D52: =IF(G52=19,19,IF(ISBLANK(B52),"",IF(B52=19,0,36-B52))) -> 12 | E52: =IF(G52=19,0,IF(ISBLANK(B52),"",IF(B52<18,1,IF(B52=18,2,IF(B52>18,3))))) -> 3 | F52: =IF(G52=19,3,IF(ISBLANK(B52),"",IF(B52=19,0,IF(D52<18,1,IF(D52=18,2,IF(D52>=20,3)))))) -> 1 | N52: =IF(B52>D52,A52&C52,IF(D52>B52,C52&A52,"/")) -> ABAG
A53: =A8 -> AC | B53: 4 | C53: =$A$10 -> AE | D53: =IF(G53=19,19,IF(ISBLANK(B53),"",IF(B53=19,0,36-B53))) -> 32 | E53: =IF(G53=19,0,IF(ISBLANK(B53),"",IF(B53<18,1,IF(B53=18,2,IF(B53>18,3))))) -> 1 | F53: =IF(G53=19,3,IF(ISBLANK(B53),"",IF(B53=19,0,IF(D53<18,1,IF(D53=18,2,IF(D53>=20,3)))))) -> 3 | N53: =IF(B53>D53,A53&C53,IF(D53>B53,C53&A53,"/")) -> AEAC
A55: 6 éme MATCH le | B55: à | C55: AF
G56: SI forfait éq recevante
A57: Equipes | B57: score | C57: Equipes | D57: score | E57: Points | F57: Points
A58: =A7 -> AB | B58: 24 | C58: =A9 -> AD | D58: =IF(G58=19,19,IF(ISBLANK(B58),"",IF(B58=19,0,36-B58))) -> 12 | E58: =IF(G58=19,0,IF(ISBLANK(B58),"",IF(B58<18,1,IF(B58=18,2,IF(B58>18,3))))) -> 3 | F58: =IF(G58=19,3,IF(ISBLANK(B58),"",IF(B58=19,0,IF(D58<18,1,IF(D58=18,2,IF(D58>=20,3)))))) -> 1 | N58: =IF(B58>D58,A58&C58,IF(D58>B58,C58&A58,"/")) -> ABAD
A59: =A10 -> AE | B59: 20 | C59: =A6 -> AA | D59: =IF(G59=19,19,IF(ISBLANK(B59),"",IF(B59=19,0,36-B59))) -> 16 | E59: =IF(G59=19,0,IF(ISBLANK(B59),"",IF(B59<18,1,IF(B59=18,2,IF(B59>18,3))))) -> 3 | F59: =IF(G59=19,3,IF(ISBLANK(B59),"",IF(B59=19,0,IF(D59<18,1,IF(D59=18,2,IF(D59>=20,3)))))) -> 1 | N59: =IF(B59>D59,A59&C59,IF(D59>B59,C59&A59,"/")) -> AEAA
A60: =A12 -> AG | B60: 32 | C60: =A8 -> AC | D60: =IF(G60=19,19,IF(ISBLANK(B60),"",IF(B60=19,0,36-B60))) -> 4 | E60: =IF(G60=19,0,IF(ISBLANK(B60),"",IF(B60<18,1,IF(B60=18,2,IF(B60>18,3))))) -> 3 | F60: =IF(G60=19,3,IF(ISBLANK(B60),"",IF(B60=19,0,IF(D60<18,1,IF(D60=18,2,IF(D60>=20,3)))))) -> 1 | N60: =IF(B60>D60,A60&C60,IF(D60>B60,C60&A60,"/")) -> AGAC
A61: =A11 -> AF | B61: 24 | C61: =A13 -> AH | D61: =IF(G61=19,19,IF(ISBLANK(B61),"",IF(B61=19,0,36-B61))) -> 12 | E61: =IF(G61=19,0,IF(ISBLANK(B61),"",IF(B61<18,1,IF(B61=18,2,IF(B61>18,3))))) -> 3 | F61: =IF(G61=19,3,IF(ISBLANK(B61),"",IF(B61=19,0,IF(D61<18,1,IF(D61=18,2,IF(D61>=20,3)))))) -> 1 | N61: =IF(B61>D61,A61&C61,IF(D61>B61,C61&A61,"/")) -> AFAH
A63: 7 éme MATCH le 12 juin | B63: à | C63: AG
G64: SI forfait éq recevante
A65: Equipes | B65: score | C65: Equipes | D65: score | E65: Points | F65: Points
A66: =A6 -> AA | B66: 34 | C66: =A12 -> AG | D66: =IF(G66=19,19,IF(ISBLANK(B66),"",IF(B66=19,0,36-B66))) -> 2 | E66: =IF(G66=19,0,IF(ISBLANK(B66),"",IF(B66<18,1,IF(B66=18,2,IF(B66>18,3))))) -> 3 | F66: =IF(G66=19,3,IF(ISBLANK(B66),"",IF(B66=19,0,IF(D66<18,1,IF(D66=18,2,IF(D66>=20,3)))))) -> 1 | N66: =IF(B66>D66,A66&C66,IF(D66>B66,C66&A66,"/")) -> AAAG
A67: =A7 -> AB | B67: 2 | C67: =A11 -> AF | D67: =IF(G67=19,19,IF(ISBLANK(B67),"",IF(B67=19,0,36-B67))) -> 34 | E67: =IF(G67=19,0,IF(ISBLANK(B67),"",IF(B67<18,1,IF(B67=18,2,IF(B67>18,3))))) -> 1 | F67: =IF(G67=19,3,IF(ISBLANK(B67),"",IF(B67=19,0,IF(D67<18,1,IF(D67=18,2,IF(D67>=20,3)))))) -> 3 | N67: =IF(B67>D67,A67&C67,IF(D67>B67,C67&A67,"/")) -> AFAB
A68: =A10 -> AE | B68: 20 | C68: =A9 -> AD | D68: =IF(G68=19,19,IF(ISBLANK(B68),"",IF(B68=19,0,36-B68))) -> 16 | E68: =IF(G68=19,0,IF(ISBLANK(B68),"",IF(B68<18,1,IF(B68=18,2,IF(B68>18,3))))) -> 3 | F68: =IF(G68=19,3,IF(ISBLANK(B68),"",IF(B68=19,0,IF(D68<18,1,IF(D68=18,2,IF(D68>=20,3)))))) -> 1 | N68: =IF(B68>D68,A68&C68,IF(D68>B68,C68&A68,"/")) -> AEAD
A69: =A8 -> AC | B69: 22 | C69: =A13 -> AH | D69: =IF(G69=19,19,IF(ISBLANK(B69),"",IF(B69=19,0,36-B69))) -> 14 | E69: =IF(G69=19,0,IF(ISBLANK(B69),"",IF(B69<18,1,IF(B69=18,2,IF(B69>18,3))))) -> 3 | F69: =IF(G69=19,3,IF(ISBLANK(B69),"",IF(B69=19,0,IF(D69<18,1,IF(D69=18,2,IF(D69>=20,3)))))) -> 1 | N69: =IF(B69>D69,A69&C69,IF(D69>B69,C69&A69,"/")) -> ACAH

Sheet P2
A2: CHAMPIONNAT DES CLUBS
A4: POULE 2 | I4: Récapitulatif différence match entre 2 équipes
A5: EQUIPES | C5: POINTS | D5: Pour | E5: Contre | F5: Diff | J5: =A6 -> AH | K5: =A7 -> AI | L5: =A8 -> AJ | M5: =A9 -> AK | N5: =A10 -> AL | O5: =A11 -> AM
A6: AH | B6: 2A | C6: =SUM(E16,E23,E30,E37,F45) -> 13 | D6: =I16+I23+I30+I37+J45 -> 96 | E6: =J16+J23+J30+J37+I45 -> 67 | F6: =D6-E6 -> 29 | I6: =A6 -> AH | K6: =IF(ISBLANK(B16),0,IFERROR(INDEX($B$15:$B$46,MATCH($I6&K$5,$K$15:$K$46,0))-INDEX($D$15:$D$46,MATCH($I6&K$5,$K$15:$K$46,0)),0-INDEX($J$6:$O$11,MATCH(K$5,$I$6:$I$11,0),MATCH($I6,$J$5:$O$5,0)))) -> -12 | L6: =IF(ISBLANK(B23),0,IFERROR(INDEX($B$15:$B$46,MATCH($I6&L$5,$K$15:$K$46,0))-INDEX($D$15:$D$46,MATCH($I6&L$5,$K$15:$K$46,0)),0-INDEX($J$6:$O$11,MATCH(L$5,$I$6:$I$11,0),MATCH($I6,$J$5:$O$5,0)))) -> 4 | M6: =IF(ISBLANK(B37),0,IFERROR(INDEX($B$15:$B$46,MATCH($I6&M$5,$K$15:$K$46,0))-INDEX($D$15:$D$46,MATCH($I6&M$5,$K$15:$K$46,0)),0-INDEX($J$6:$O$11,MATCH(M$5,$I$6:$I$11,0),MATCH($I6,$J$5:$O$5,0)))) -> 14 | N6: =IF(ISBLANK(B45),0,IFERROR(INDEX($B$15:$B$46,MATCH($I6&N$5,$K$15:$K$46,0))-INDEX($D$15:$D$46,MATCH($I6&N$5,$K$15:$K$46,0)),0-INDEX($J$6:$O$11,MATCH(N$5,$I$6:$I$11,0),MATCH($I6,$J$5:$O$5,0)))) -> 4 | O6: =IF(ISBLANK(B30),0,IFERROR(INDEX($B$15:$B$46,MATCH($I6&O$5,$K$15:$K$46,0))-INDEX($D$15:$D$46,MATCH($I6&O$5,$K$15:$K$46,0)),0-INDEX($J$6:$O$11,MATCH(O$5,$I$6:$I$11,0),MATCH($I6,$J$5:$O$5,0)))) -> 19
A7: AI | B7: 2B | C7: =SUM(F16,E24,F32,E38,E46) -> 15 | D7: =J16+I24+J32+I38+I46 -> 112 | E7: =I16+J24+I32+J38+J46 -> 68 | F7: 44 | I7: AI | J7: =IF(ISBLANK(B16),0,IFERROR(INDEX($B$15:$B$46,MATCH($I7&J$5,$K$15:$K$46,0))-INDEX($D$15:$D$46,MATCH($I7&J$5,$K$15:$K$46,0)),0-INDEX($J$6:$O$11,MATCH(J$5,$I$6:$I$11,0),MATCH($I7,$J$5:$O$5,0)))) -> 12 | L7: =IF(ISBLANK(B32),0,IFERROR(INDEX($B$15:$B$46,MATCH($I7&L$5,$K$15:$K$46,0))-INDEX($D$15:$D$46,MATCH($I7&L$5,$K$15:$K$46,0)),0-INDEX($J$6:$O$11,MATCH(L$5,$I$6:$I$11,0),MATCH($I7,$J$5:$O$5,0)))) -> 10 | M7: =IF(ISBLANK(B46),0,IFERROR(INDEX($B$15:$B$46,MATCH($I7&M$5,$K$15:$K$46,0))-INDEX($D$15:$D$46,MATCH($I7&M$5,$K$15:$K$46,0)),0-INDEX($J$6:$O$11,MATCH(M$5,$I$6:$I$11,0),MATCH($I7,$J$5:$O$5,0)))) -> 10 | N7: =IF(ISBLANK(B24),0,IFERROR(INDEX($B$15:$B$46,MATCH($I7&N$5,$K$15:$K$46,0))-INDEX($D$15:$D$46,MATCH($I7&N$5,$K$15:$K$46,0)),0-INDEX($J$6:$O$11,MATCH(N$5,$I$6:$I$11,0),MATCH($I7,$J$5:$O$5,0)))) -> 8 | O7: =IF(ISBLANK(B38),0,IFERROR(INDEX($B$15:$B$46,MATCH($I7&O$5,$K$15:$K$46,0))-INDEX($D$15:$D$46,MATCH($I7&O$5,$K$15:$K$46,0)),0-INDEX($J$6:$O$11,MATCH(O$5,$I$6:$I$11,0),MATCH($I7,$J$5:$O$5,0)))) -> 4
A8: AJ | B8: 2C | C8: =SUM(E17,F23,E32,E39,E44) -> 9 | D8: =I17+J23+I32+I39+I44 -> 88 | E8: =J17+I23+J32+J39+J44 -> 92 | F8: -4 | I8: AJ | J8: =IF(ISBLANK(B23),0,IFERROR(INDEX($B$15:$B$46,MATCH($I8&J$5,$K$15:$K$46,0))-INDEX($D$15:$D$46,MATCH($I8&J$5,$K$15:$K$46,0)),0-INDEX($J$6:$O$11,MATCH(J$5,$I$6:$I$11,0),MATCH($I8,$J$5:$O$5,0)))) -> -4 | K8: =IF(ISBLANK(B32),0,IFERROR(INDEX($B$15:$B$46,MATCH($I8&K$5,$K$15:$K$46,0))-INDEX($D$15:$D$46,MATCH($I8&K$5,$K$15:$K$46,0)),0-INDEX($J$6:$O$11,MATCH(K$5,$I$6:$I$11,0),MATCH($I8,$J$5:$O$5,0)))) -> -10 | M8: =IF(ISBLANK(B17),0,IFERROR(INDEX($B$15:$B$46,MATCH($I8&M$5,$K$15:$K$46,0))-INDEX($D$15:$D$46,MATCH($I8&M$5,$K$15:$K$46,0)),0-INDEX($J$6:$O$11,MATCH(M$5,$I$6:$I$11,0),MATCH($I8,$J$5:$O$5,0)))) -> 4 | N8: =IF(ISBLANK(B39),0,IFERROR(INDEX($B$15:$B$46,MATCH($I8&N$5,$K$15:$K$46,0))-INDEX($D$15:$D$46,MATCH($I8&N$5,$K$15:$K$46,0)),0-INDEX($J$6:$O$11,MATCH(N$5,$I$6:$I$11,0),MATCH($I8,$J$5:$O$5,0)))) -> 12 | O8: =IF(ISBLANK(B44),0,IFERROR(INDEX($B$15:$B$46,MATCH($I8&O$5,$K$15:$K$46,0))-INDEX($D$15:$D$46,MATCH($I8&O$5,$K$15:$K$46,0)),0-INDEX($J$6:$O$11,MATCH(O$5,$I$6:$I$11,0),MATCH($I8,$J$5:$O$5,0)))) -> -6
A9: AK | B9: 2D | C9: =SUM(F17,E25,F31,F37,F46) -> 5 | D9: =J17+I25+J31+J37+J46 -> 68 | E9: =I17+J25+I31+I37+I46 -> 112 | F9: -44 | I9: AK | J9: =IF(ISBLANK(B37),0,IFERROR(INDEX($B$15:$B$46,MATCH($I9&J$5,$K$15:$K$46,0))-INDEX($D$15:$D$46,MATCH($I9&J$5,$K$15:$K$46,0)),0-INDEX($J$6:$O$11,MATCH(J$5,$I$6:$I$11,0),MATCH($I9,$J$5:$O$5,0)))) -> -14 | K9: =IF(ISBLANK(B46),0,IFERROR(INDEX($B$15:$B$46,MATCH($I9&K$5,$K$15:$K$46,0))-INDEX($D$15:$D$46,MATCH($I9&K$5,$K$15:$K$46,0)),0-INDEX($J$6:$O$11,MATCH(K$5,$I$6:$I$11,0),MATCH($I9,$J$5:$O$5,0)))) -> -10 | L9: =IF(ISBLANK(B17),0,IFERROR(INDEX($B$15:$B$46,MATCH($I9&L$5,$K$15:$K$46,0))-INDEX($D$15:$D$46,MATCH($I9&L$5,$K$15:$K$46,0)),0-INDEX($J$6:$O$11,MATCH(L$5,$I$6:$I$11,0),MATCH($I9,$J$5:$O$5,0)))) -> -4 | N9: =IF(ISBLANK(B31),0,IFERROR(INDEX($B$15:$B$46,MATCH($I9&N$5,$K$15:$K$46,0))-INDEX($D$15:$D$46,MATCH($I9&N$5,$K$15:$K$46,0)),0-INDEX($J$6:$O$11,MATCH(N$5,$I$6:$I$11,0),MATCH($I9,$J$5:$O$5,0)))) -> -4 | O9: =IF(ISBLANK(B25),0,IFERROR(INDEX($B$15:$B$46,MATCH($I9&O$5,$K$15:$K$46,0))-INDEX($D$15:$D$46,MATCH($I9&O$5,$K$15:$K$46,0)),0-INDEX($J$6:$O$11,MATCH(O$5,$I$6:$I$11,0),MATCH($I9,$J$5:$O$5,0)))) -> -12
A10: AL | B10: 2E | C10: =SUM(E18,F24,E31,F39,E45) -> 8 | D10: =I18+J24+I31+J39+I45 -> 80 | E10: =J18+I24+J31+I39+J45 -> 100 | F10: -20 | I10: AL | J10: =IF(ISBLANK(B45),0,IFERROR(INDEX($B$15:$B$46,MATCH($I10&J$5,$K$15:$K$46,0))-INDEX($D$15:$D$46,MATCH($I10&J$5,$K$15:$K$46,0)),0-INDEX($J$6:$O$11,MATCH(J$5,$I$6:$I$11,0),MATCH($I10,$J$5:$O$5,0)))) -> -4 | K10: =IF(ISBLANK(B24),0,IFERROR(INDEX($B$15:$B$46,MATCH($I10&K$5,$K$15:$K$46,0))-INDEX($D$15:$D$46,MATCH($I10&K$5,$K$15:$K$46,0)),0-INDEX($J$6:$O$11,MATCH(K$5,$I$6:$I$11,0),MATCH($I10,$J$5:$O$5,0)))) -> -8 | L10: =IF(ISBLANK(B39),0,IFERROR(INDEX($B$15:$B$46,MATCH($I10&L$5,$K$15:$K$46,0))-INDEX($D$15:$D$46,MATCH($I10&L$5,$K$15:$K$46,0)),0-INDEX($J$6:$O$11,MATCH(L$5,$I$6:$I$11,0),MATCH($I10,$J$5:$O$5,0)))) -> -12 | M10: =IF(ISBLANK(B31),0,IFERROR(INDEX($B$15:$B$46,MATCH($I10&M$5,$K$15:$K$46,0))-INDEX($D$15:$D$46,MATCH($I10&M$5,$K$15:$K$46,0)),0-INDEX($J$6:$O$11,MATCH(M$5,$I$6:$I$11,0),MATCH($I10,$J$5:$O$5,0)))) -> 4 | O10: =IF(ISBLANK(B18),0,IFERROR(INDEX($B$15:$B$46,MATCH($I10&O$5,$K$15:$K$46,0))-INDEX($D$15:$D$46,MATCH($I10&O$5,$K$15:$K$46,0)),0-INDEX($J$6:$O$11,MATCH(O$5,$I$6:$I$11,0),MATCH($I10,$J$5:$O$5,0)))) -> 0
A11: AM | B11: 2F | C11: =SUM(F18,F25,F30,F38,F44) -> 9 | D11: =J18+J25+J30+J38+J44 -> 79 | E11: =I18+I25+I30+I38+I44 -> 84 | F11: -5 | I11: AM | J11: =IF(ISBLANK(B30),0,IFERROR(INDEX($B$15:$B$46,MATCH($I11&J$5,$K$15:$K$46,0))-INDEX($D$15:$D$46,MATCH($I11&J$5,$K$15:$K$46,0)),0-INDEX($J$6:$O$11,MATCH(J$5,$I$6:$I$11,0),MATCH($I11,$J$5:$O$5,0)))) -> -19 | K11: =IF(ISBLANK(B38),0,IFERROR(INDEX($B$15:$B$46,MATCH($I11&K$5,$K$15:$K$46,0))-INDEX($D$15:$D$46,MATCH($I11&K$5,$K$15:$K$46,0)),0-INDEX($J$6:$O$11,MATCH(K$5,$I$6:$I$11,0),MATCH($I11,$J$5:$O$5,0)))) -> -4 | L11: =IF(ISBLANK(B44),0,IFERROR(INDEX($B$15:$B$46,MATCH($I11&L$5,$K$15:$K$46,0))-INDEX($D$15:$D$46,MATCH($I11&L$5,$K$15:$K$46,0)),0-INDEX($J$6:$O$11,MATCH(L$5,$I$6:$I$11,0),MATCH($I11,$J$5:$O$5,0)))) -> 6 | M11: =IF(ISBLANK(B25),0,IFERROR(INDEX($B$15:$B$46,MATCH($I11&M$5,$K$15:$K$46,0))-INDEX($D$15:$D$46,MATCH($I11&M$5,$K$15:$K$46,0)),0-INDEX($J$6:$O$11,MATCH(M$5,$I$6:$I$11,0),MATCH($I11,$J$5:$O$5,0)))) -> 12 | N11: =IF(ISBLANK(B18),0,IFERROR(INDEX($B$15:$B$46,MATCH($I11&N$5,$K$15:$K$46,0))-INDEX($D$15:$D$46,MATCH($I11&N$5,$K$15:$K$46,0)),0-INDEX($J$6:$O$11,MATCH(N$5,$I$6:$I$11,0),MATCH($I11,$J$5:$O$5,0)))) -> 0
I12: Les concaténations en rouge permettent de remplir par formules le récapitulatif au dessus
A13: 1er MATCH le 15 mai | B13: à | C13: =A6 -> AH | I13: Ce récap servira à départager les ex aequos
G14: SI forfait éq recevante
A15: Equipes | B15: score | C15: Equipes | D15: score
A16: =$A$6 -> AH | B16: 12 | C16: =$A$7 -> AI | D16: =IF(G16=19,19,IF(ISBLANK(B16),"",IF(B16=19,0,36-B16))) -> 24 | E16: =IF(G16=19,0,IF(ISBLANK(B16),"",IF(B16<18,1,IF(B16=18,2,IF(B16>18,3))))) -> 1 | F16: =IF(G16=19,3,IF(ISBLANK(B16),"",IF(B16=19,0,IF(D16<18,1,IF(D16=18,2,IF(D16>=20,3)))))) -> 3 | I16: =IF(ISBLANK(B16),0,B16) -> 12 | J16: =IF(ISBLANK(B16),0,D16) -> 24 | K16: =A16&C16 -> AHAI | M16: =IF(E16=3,A16&C16,C16&A16) -> AIAH
A17: =$A$8 -> AJ | B17: 20 | C17: =$A$9 -> AK | D17: =IF(G17=19,19,IF(ISBLANK(B17),"",IF(B17=19,0,36-B17))) -> 16 | E17: =IF(G17=19,0,IF(ISBLANK(B17),"",IF(B17<18,1,IF(B17=18,2,IF(B17>18,3))))) -> 3 | F17: =IF(G17=19,3,IF(ISBLANK(B17),"",IF(B17=19,0,IF(D17<18,1,IF(D17=18,2,IF(D17>=20,3)))))) -> 1 | I17: =IF(ISBLANK(B17),0,B17) -> 20 | J17: =IF(ISBLANK(B17),0,D17) -> 16 | K17: =A17&C17 -> AJAK | M17: =IF(E17=3,A17&C17,C17&A17) -> AJAK
A18: =$A$10 -> AL | B18: 18 | C18: =$A$11 -> AM | D18: =IF(G18=19,19,IF(ISBLANK(B18),"",IF(B18=19,0,36-B18))) -> 18 | E18: =IF(G18=19,0,IF(ISBLANK(B18),"",IF(B18<18,1,IF(B18=18,2,IF(B18>18,3))))) -> 2 | F18: =IF(G18=19,3,IF(ISBLANK(B18),"",IF(B18=19,0,IF(D18<18,1,IF(D18=18,2,IF(D18>=20,3)))))) -> 2 | I18: =IF(ISBLANK(B18),0,B18) -> 18 | J18: =IF(ISBLANK(B18),0,D18) -> 18 | K18: =A18&C18 -> ALAM | M18: AMAL
A20: 2 éme MATCH le 22 mai | B20: à | C20: =A7 -> AI
G21: SI forfait éq recevante
A22: Equipes | B22: score | C22: Equipes | D22: score
A23: =$A$6 -> AH | B23: 20 | C23: =$A$8 -> AJ | D23: =IF(G23=19,19,IF(ISBLANK(B23),"",IF(B23=19,0,36-B23))) -> 16 | E23: =IF(G23=19,0,IF(ISBLANK(B23),"",IF(B23<18,1,IF(B23=18,2,IF(B23>18,3))))) -> 3 | F23: =IF(G23=19,3,IF(ISBLANK(B23),"",IF(B23=19,0,IF(D23<18,1,IF(D23=18,2,IF(D23>=20,3)))))) -> 1 | I23: =IF(ISBLANK(B23),0,B23) -> 20 | J23: =IF(ISBLANK(B23),0,D23) -> 16 | K23: =A23&C23 -> AHAJ | M23: AHAJ
A24: =$A$7 -> AI | B24: 22 | C24: =$A$10 -> AL | D24: =IF(G24=19,19,IF(ISBLANK(B24),"",IF(B24=19,0,36-B24))) -> 14 | E24: =IF(G24=19,0,IF(ISBLANK(B24),"",IF(B24<18,1,IF(B24=18,2,IF(B24>18,3))))) -> 3 | F24: =IF(G24=19,3,IF(ISBLANK(B24),"",IF(B24=19,0,IF(D24<18,1,IF(D24=18,2,IF(D24>=20,3)))))) -> 1 | I24: =IF(ISBLANK(B24),0,B24) -> 22 | J24: =IF(ISBLANK(B24),0,D24) -> 14 | K24: =A24&C24 -> AIAL | M24: AIAL
A25: =$A$9 -> AK | B25: 12 | C25: =$A$11 -> AM | D25: =IF(G25=19,19,IF(ISBLANK(B25),"",IF(B25=19,0,36-B25))) -> 24 | E25: =IF(G25=19,0,IF(ISBLANK(B25),"",IF(B25<18,1,IF(B25=18,2,IF(B25>18,3))))) -> 1 | F25: =IF(G25=19,3,IF(ISBLANK(B25),"",IF(B25=19,0,IF(D25<18,1,IF(D25=18,2,IF(D25>=20,3)))))) -> 3 | I25: =IF(ISBLANK(B25),0,B25) -> 12 | J25: =IF(ISBLANK(B25),0,D25) -> 24 | K25: =A25&C25 -> AKAM | M25: AMAK
A27: 3 éme MATCH le 29 mai | B27: à | C27: =A8 -> AJ
G28: SI forfait éq recevante
A29: Equipes | B29: score | C29: Equipes | D29: score
A30: =$A$6 -> AH | B30: 19 | C30: =$A$11 -> AM | D30: =IF(G30=19,19,IF(ISBLANK(B30),"",IF(B30=19,0,36-B30))) -> 0 | E30: =IF(G30=19,0,IF(ISBLANK(B30),"",IF(B30<18,1,IF(B30=18,2,IF(B30>18,3))))) -> 3 | F30: =IF(G30=19,3,IF(ISBLANK(B30),"",IF(B30=19,0,IF(D30<18,1,IF(D30=18,2,IF(D30>=20,3)))))) -> 0 | I30: =IF(ISBLANK(B30),0,B30) -> 19 | J30: =IF(ISBLANK(B30),0,D30) -> 0 | K30: =A30&C30 -> AHAM | M30: AHAM
A31: =$A$10 -> AL | B31: 20 | C31: =$A$9 -> AK | D31: =IF(G31=19,19,IF(ISBLANK(B31),"",IF(B31=19,0,36-B31))) -> 16 | E31: =IF(G31=19,0,IF(ISBLANK(B31),"",IF(B31<18,1,IF(B31=18,2,IF(B31>18,3))))) -> 3 | F31: =IF(G31=19,3,IF(ISBLANK(B31),"",IF(B31=19,0,IF(D31<18,1,IF(D31=18,2,IF(D31>=20,3)))))) -> 1 | I31: =IF(ISBLANK(B31),0,B31) -> 20 | J31: =IF(ISBLANK(B31),0,D31) -> 16 | K31: =A31&C31 -> ALAK | M31: ALAK
A32: =$A$8 -> AJ | B32: 13 | C32: =$A$7 -> AI | D32: =IF(G32=19,19,IF(ISBLANK(B32),"",IF(B32=19,0,36-B32))) -> 23 | E32: =IF(G32=19,0,IF(ISBLANK(B32),"",IF(B32<18,1,IF(B32=18,2,IF(B32>18,3))))) -> 1 | F32: =IF(G32=19,3,IF(ISBLANK(B32),"",IF(B32=19,0,IF(D32<18,1,IF(D32=18,2,IF(D32>=20,3)))))) -> 3 | I32: =IF(ISBLANK(B32),0,B32) -> 13 | J32: =IF(ISBLANK(B32),0,D32) -> 23 | K32: =A32&C32 -> AJAI | M32: AIAJ
A34: 4 éme MATCH le 5 juin | B34: à | C34: =A9 -> AK
G35: SI forfait éq recevante
A36: Equipes | B36: score | C36: Equipes | D36: score
A37: =A6 -> AH | B37: 25 | C37: =$A$9 -> AK | D37: =IF(G37=19,19,IF(ISBLANK(B37),"",IF(B37=19,0,36-B37))) -> 11 | E37: =IF(G37=19,0,IF(ISBLANK(B37),"",IF(B37<18,1,IF(B37=18,2,IF(B37>18,3))))) -> 3 | F37: =IF(G37=19,3,IF(ISBLANK(B37),"",IF(B37=19,0,IF(D37<18,1,IF(D37=18,2,IF(D37>=20,3)))))) -> 1 | I37: =IF(ISBLANK(B37),0,B37) -> 25 | J37: =IF(ISBLANK(B37),0,D37) -> 11 | K37: =A37&C37 -> AHAK | M37: AHAK
A38: =$A$7 -> AI | B38: 20 | C38: =$A$11 -> AM | D38: =IF(G38=19,19,IF(ISBLANK(B38),"",IF(B38=19,0,36-B38))) -> 16 | E38: =IF(G38=19,0,IF(ISBLANK(B38),"",IF(B38<18,1,IF(B38=18,2,IF(B38>18,3))))) -> 3 | F38: =IF(G38=19,3,IF(ISBLANK(B38),"",IF(B38=19,0,IF(D38<18,1,IF(D38=18,2,IF(D38>=20,3)))))) -> 1 | I38: =IF(ISBLANK(B38),0,B38) -> 20 | J38: =IF(ISBLANK(B38),0,D38) -> 16 | K38: =A38&C38 -> AIAM | M38: AIAM
A39: =A8 -> AJ | B39: 24 | C39: =$A$10 -> AL | D39: =IF(G39=19,19,IF(ISBLANK(B39),"",IF(B39=19,0,36-B39))) -> 12 | E39: =IF(G39=19,0,IF(ISBLANK(B39),"",IF(B39<18,1,IF(B39=18,2,IF(B39>18,3))))) -> 3 | F39: =IF(G39=19,3,IF(ISBLANK(B39),"",IF(B39=19,0,IF(D39<18,1,IF(D39=18,2,IF(D39>=20,3)))))) -> 1 | I39: =IF(ISBLANK(B39),0,B39) -> 24 | J39: =IF(ISBLANK(B39),0,D39) -> 12 | K39: =A39&C39 -> AJAL | M39: AJAL
A41: 5 éme MATCH le 12 juin | B41: à | C41: =A10 -> AL
G42: SI forfait éq recevante
A43: Equipes | B43: score | C43: Equipes | D43: score
A44: =A8 -> AJ | B44: 15 | C44: =$A$11 -> AM | D44: =IF(G44=19,19,IF(ISBLANK(B44),"",IF(B44=19,0,36-B44))) -> 21 | E44: =IF(G44=19,0,IF(ISBLANK(B44),"",IF(B44<18,1,IF(B44=18,2,IF(B44>18,3))))) -> 1 | F44: =IF(G44=19,3,IF(ISBLANK(B44),"",IF(B44=19,0,IF(D44<18,1,IF(D44=18,2,IF(D44>=20,3)))))) -> 3 | I44: =IF(ISBLANK(B44),0,B44) -> 15 | J44: =IF(ISBLANK(B44),0,D44) -> 21 | K44: =A44&C44 -> AJAM | M44: AMAJ
A45: =$A$10 -> AL | B45: 16 | C45: =A6 -> AH | D45: =IF(G45=19,19,IF(ISBLANK(B45),"",IF(B45=19,0,36-B45))) -> 20 | E45: =IF(G45=19,0,IF(ISBLANK(B45),"",IF(B45<18,1,IF(B45=18,2,IF(B45>18,3))))) -> 1 | F45: =IF(G45=19,3,IF(ISBLANK(B45),"",IF(B45=19,0,IF(D45<18,1,IF(D45=18,2,IF(D45>=20,3)))))) -> 3 | I45: =IF(ISBLANK(B45),0,B45) -> 16 | J45: =IF(ISBLANK(B45),0,D45) -> 20 | K45: =A45&C45 -> ALAH | M45: AHAL
A46: =A7 -> AI | B46: 23 | C46: =$A$9 -> AK | D46: =IF(G46=19,19,IF(ISBLANK(B46),"",IF(B46=19,0,36-B46))) -> 13 | E46: =IF(G46=19,0,IF(ISBLANK(B46),"",IF(B46<18,1,IF(B46=18,2,IF(B46>18,3))))) -> 3 | F46: =IF(G46=19,3,IF(ISBLANK(B46),"",IF(B46=19,0,IF(D46<18,1,IF(D46=18,2,IF(D46>=20,3)))))) -> 1 | I46: =IF(ISBLANK(B46),0,B46) -> 23 | J46: =IF(ISBLANK(B46),0,D46) -> 13 | K46: =A46&C46 -> AIAK | M46: AIAK
A48: CLASSEMENT
A49: EQUIPES | C49: POINTS | D49: Pour | E49: Contre | F49: Diff | G49: CLASST
A50: AH | B50: 2A | C50: 0 | D50: 0 | E50: 0 | F50: 0 | G50: =B59 -> 5 | H50: =IF(AND(G50=1,COUNTIF(rang1,1)>1),COUNTIF(G$50:G50,1),IF(AND(G50=2,COUNTIF(rang1,2)>1),COUNTIF(G$50:G50,2)+3,"")) -> 
A51: AI | B51: 2B | C51: 0 | D51: 0 | E51: 0 | F51: 0 | G51: 1 | H51: =IF(AND(G51=1,COUNTIF(rang1,1)>1),COUNTIF(G$50:G51,1),IF(AND(G51=2,COUNTIF(rang1,2)>1),COUNTIF(G$50:G51,2)+3,"")) -> 
A52: AJ | B52: 2C | C52: 0 | D52: 0 | E52: 0 | F52: 0 | G52: 2 | H52: =IF(AND(G52=1,COUNTIF(rang1,1)>1),COUNTIF(G$50:G52,1),IF(AND(G52=2,COUNTIF(rang1,2)>1),COUNTIF(G$50:G52,2)+3,"")) -> 
A53: AK | B53: 2D | C53: 0 | D53: 0 | E53: 0 | F53: 0 | G53: 4 | H53: =IF(AND(G53=1,COUNTIF(rang1,1)>1),COUNTIF(G$50:G53,1),IF(AND(G53=2,COUNTIF(rang1,2)>1),COUNTIF(G$50:G53,2)+3,"")) -> 
A54: AL | B54: 2E | C54: 0 | D54: 0 | E54: 0 | F54: 0 | G54: 3 | H54: =IF(AND(G54=1,COUNTIF(rang1,1)>1),COUNTIF(G$50:G54,1),IF(AND(G54=2,COUNTIF(rang1,2)>1),COUNTIF(G$50:G54,2)+3,"")) -> 
A55: AM | B55: 2F | C55: 0 | D55: 0 | E55: 0 | F55: 0 | G55: 6 | H55: =IF(AND(G55=1,COUNTIF(rang1,1)>1),COUNTIF(G$50:G55,1),IF(AND(G55=2,COUNTIF(rang1,2)>1),COUNTIF(G$50:G55,2)+3,"")) -> 
B57: CLASSEMENT FINAL et DEPARTAGE EX AEQUOS | M57: CLASSEMENT
B58: Rang | C58: Equipes | D58: Pts | E58: diff pts avec exaequo | F58: cumul | G58: departage goalaverage si même cumul | H58: RP | L58: RP | M58: Rang | N58: Equipe | O58: Pts
B59: =RANK(G59,$G$59:$G$64) -> 5 | C59: =INDEX($A$50:$A$55,MATCH(H59,$L$59:$L$64,0)) -> AH | D59: =VLOOKUP(C59,$A$50:$C$55,3,0) -> 0 | E59: =IF(D59=D60,INDEX($J$6:$O$11,MATCH(C59,$I$6:$I$11,0),MATCH(C60,$J$5:$O$5,0)),IF(D59=D58,INDEX($J$6:$O$11,MATCH(C59,$I$6:$I$11,0),MATCH(C58,$J$5:$O$5,0)),0)) -> -12 | F59: =D59+E59/100 -> -0.12 | G59: =IF(AND(F59<>F58,F59<>F60),F59,F59+VLOOKUP(C59,$A$50:$F$55,6,0)/100) -> -0.12 | H59: 1 | L59: =RANK(C50,$C$50:$C$55)+COUNTIF($C$50:C50,C50)-1 -> 1 | M59: =B59 -> 5 | N59: AH | O59: =VLOOKUP(N59,$C$59:$D$64,2,0) -> 0
B60: 1 | C60: AI | D60: 0 | E60: =IF(D60=D61,INDEX($J$6:$O$11,MATCH(C60,$I$6:$I$11,0),MATCH(C61,$J$5:$O$5,0)),IF(D60=D59,INDEX($J$6:$O$11,MATCH(C60,$I$6:$I$11,0),MATCH(C59,$J$5:$O$5,0)),0)) -> 10 | F60: 0.1 | G60: =IF(AND(F60<>F59,F60<>F61),F60,F60+VLOOKUP(C60,$A$50:$F$55,6,0)/100) -> 0.1 | H60: 2 | L60: =RANK(C51,$C$50:$C$55)+COUNTIF($C$50:C51,C51)-1 -> 2 | M60: 1 | N60: AI | O60: 0
B61: 2 | C61: AJ | D61: 0 | E61: =IF(D61=D62,INDEX($J$6:$O$11,MATCH(C61,$I$6:$I$11,0),MATCH(C62,$J$5:$O$5,0)),IF(D61=D60,INDEX($J$6:$O$11,MATCH(C61,$I$6:$I$11,0),MATCH(C60,$J$5:$O$5,0)),0)) -> 4 | F61: 0.04 | G61: =IF(AND(F61<>F60,F61<>F62),F61,F61+VLOOKUP(C61,$A$50:$F$55,6,0)/100) -> 0.04 | H61: 3 | L61: =RANK(C52,$C$50:$C$55)+COUNTIF($C$50:C52,C52)-1 -> 3 | M61: 2 | N61: AJ | O61: 0
B62: 4 | C62: AK | D62: 0 | E62: =IF(D62=D63,INDEX($J$6:$O$11,MATCH(C62,$I$6:$I$11,0),MATCH(C63,$J$5:$O$5,0)),IF(D62=D61,INDEX($J$6:$O$11,MATCH(C62,$I$6:$I$11,0),MATCH(C61,$J$5:$O$5,0)),0)) -> -4 | F62: -0.04 | G62: =IF(AND(F62<>F61,F62<>F63),F62,F62+VLOOKUP(C62,$A$50:$F$55,6,0)/100) -> -0.04 | H62: 4 | L62: =RANK(C53,$C$50:$C$55)+COUNTIF($C$50:C53,C53)-1 -> 4 | M62: 4 | N62: AK | O62: 0
B63: 3 | C63: AL | D63: 0 | E63: =IF(D63=D64,INDEX($J$6:$O$11,MATCH(C63,$I$6:$I$11,0),MATCH(C64,$J$5:$O$5,0)),IF(D63=D62,INDEX($J$6:$O$11,MATCH(C63,$I$6:$I$11,0),MATCH(C62,$J$5:$O$5,0)),0)) -> 0 | F63: 0 | G63: =IF(AND(F63<>F62,F63<>F64),F63,F63+VLOOKUP(C63,$A$50:$F$55,6,0)/100) -> 0 | H63: 5 | L63: =RANK(C54,$C$50:$C$55)+COUNTIF($C$50:C54,C54)-1 -> 5 | M63: 3 | N63: AL | O63: 0
B64: 6 | C64: AM | D64: 0 | E64: =IF(D64=D59,INDEX($J$6:$O$11,MATCH(C64,$I$6:$I$11,0),MATCH(C59,$J$5:$O$5,0)),IF(D64=D63,INDEX($J$6:$O$11,MATCH(C64,$I$6:$I$11,0),MATCH(C63,$J$5:$O$5,0)),0)) -> -19 | F64: -0.19 | G64: =IF(AND(F64<>F63,F64<>F59),F64,F64+VLOOKUP(C64,$A$50:$F$55,6,0)/100) -> -0.19 | H64: 6 | L64: =RANK(C55,$C$50:$C$55)+COUNTIF($C$50:C55,C55)-1 -> 6 | M64: 6 | N64: AM | O64: 0

Sheet P3
A2: CHAMPIONNAT DES CLUBS
A4: POULE 3 | I4: Récapitulatif différence match entre 2 équipes
A5: EQUIPES | C5: POINTS | D5: Pour | E5: Contre | F5: Diff | J5: =A6 -> AN | K5: =A7 -> AO | L5: =A8 -> AP | M5: =A9 -> AQ | N5: =A10 -> AR | O5: =A11 -> AS
A6: AN | B6: 3A | C6: =SUM(E16,E23,E30,E37,F45) -> 0 | D6: =I16+I23+I30+I37+J45 -> 0 | E6: =J16+J23+J30+J37+I45 -> 0 | F6: =D6-E6 -> 0 | I6: =A6 -> AN | K6: =IF(ISBLANK(B16),0,IFERROR(INDEX($B$15:$B$46,MATCH($I6&K$5,$K$15:$K$46,0))-INDEX($D$15:$D$46,MATCH($I6&K$5,$K$15:$K$46,0)),0-INDEX($J$6:$O$11,MATCH(K$5,$I$6:$I$11,0),MATCH($I6,$J$5:$O$5,0)))) -> 0 | L6: =IF(ISBLANK(B23),0,IFERROR(INDEX($B$15:$B$46,MATCH($I6&L$5,$K$15:$K$46,0))-INDEX($D$15:$D$46,MATCH($I6&L$5,$K$15:$K$46,0)),0-INDEX($J$6:$O$11,MATCH(L$5,$I$6:$I$11,0),MATCH($I6,$J$5:$O$5,0)))) -> 0 | M6: =IF(ISBLANK(B37),0,IFERROR(INDEX($B$15:$B$46,MATCH($I6&M$5,$K$15:$K$46,0))-INDEX($D$15:$D$46,MATCH($I6&M$5,$K$15:$K$46,0)),0-INDEX($J$6:$O$11,MATCH(M$5,$I$6:$I$11,0),MATCH($I6,$J$5:$O$5,0)))) -> 0 | N6: =IF(ISBLANK(B45),0,IFERROR(INDEX($B$15:$B$46,MATCH($I6&N$5,$K$15:$K$46,0))-INDEX($D$15:$D$46,MATCH($I6&N$5,$K$15:$K$46,0)),0-INDEX($J$6:$O$11,MATCH(N$5,$I$6:$I$11,0),MATCH($I6,$J$5:$O$5,0)))) -> 0 | O6: =IF(ISBLANK(B30),0,IFERROR(INDEX($B$15:$B$46,MATCH($I6&O$5,$K$15:$K$46,0))-INDEX($D$15:$D$46,MATCH($I6&O$5,$K$15:$K$46,0)),0-INDEX($J$6:$O$11,MATCH(O$5,$I$6:$I$11,0),MATCH($I6,$J$5:$O$5,0)))) -> 0
A7: AO | B7: 3B | C7: =SUM(F16,E24,F32,E38,E46) -> 0 | D7: =J16+I24+J32+I38+I46 -> 0 | E7: =I16+J24+I32+J38+J46 -> 0 | F7: 0 | I7: AO | J7: =IF(ISBLANK(B16),0,IFERROR(INDEX($B$15:$B$46,MATCH($I7&J$5,$K$15:$K$46,0))-INDEX($D$15:$D$46,MATCH($I7&J$5,$K$15:$K$46,0)),0-INDEX($J$6:$O$11,MATCH(J$5,$I$6:$I$11,0),MATCH($I7,$J$5:$O$5,0)))) -> 0 | L7: =IF(ISBLANK(B32),0,IFERROR(INDEX($B$15:$B$46,MATCH($I7&L$5,$K$15:$K$46,0))-INDEX($D$15:$D$46,MATCH($I7&L$5,$K$15:$K$46,0)),0-INDEX($J$6:$O$11,MATCH(L$5,$I$6:$I$11,0),MATCH($I7,$J$5:$O$5,0)))) -> 0 | M7: =IF(ISBLANK(B46),0,IFERROR(INDEX($B$15:$B$46,MATCH($I7&M$5,$K$15:$K$46,0))-INDEX($D$15:$D$46,MATCH($I7&M$5,$K$15:$K$46,0)),0-INDEX($J$6:$O$11,MATCH(M$5,$I$6:$I$11,0),MATCH($I7,$J$5:$O$5,0)))) -> 0 | N7: =IF(ISBLANK(B24),0,IFERROR(INDEX($B$15:$B$46,MATCH($I7&N$5,$K$15:$K$46,0))-INDEX($D$15:$D$46,MATCH($I7&N$5,$K$15:$K$46,0)),0-INDEX($J$6:$O$11,MATCH(N$5,$I$6:$I$11,0),MATCH($I7,$J$5:$O$5,0)))) -> 0 | O7: =IF(ISBLANK(B38),0,IFERROR(INDEX($B$15:$B$46,MATCH($I7&O$5,$K$15:$K$46,0))-INDEX($D$15:$D$46,MATCH($I7&O$5,$K$15:$K$46,0)),0-INDEX($J$6:$O$11,MATCH(O$5,$I$6:$I$11,0),MATCH($I7,$J$5:$O$5,0)))) -> 0
A8: AP | B8: 3C | C8: =SUM(E17,F23,E32,E39,E44) -> 0 | D8: =I17+J23+I32+I39+I44 -> 0 | E8: =J17+I23+J32+J39+J44 -> 0 | F8: 0 | I8: AP | J8: =IF(ISBLANK(B23),0,IFERROR(INDEX($B$15:$B$46,MATCH($I8&J$5,$K$15:$K$46,0))-INDEX($D$15:$D$46,MATCH($I8&J$5,$K$15:$K$46,0)),0-INDEX($J$6:$O$11,MATCH(J$5,$I$6:$I$11,0),MATCH($I8,$J$5:$O$5,0)))) -> 0 | K8: =IF(ISBLANK(B32),0,IFERROR(INDEX($B$15:$B$46,MATCH($I8&K$5,$K$15:$K$46,0))-INDEX($D$15:$D$46,MATCH($I8&K$5,$K$15:$K$46,0)),0-INDEX($J$6:$O$11,MATCH(K$5,$I$6:$I$11,0),MATCH($I8,$J$5:$O$5,0)))) -> 0 | M8: =IF(ISBLANK(B17),0,IFERROR(INDEX($B$15:$B$46,MATCH($I8&M$5,$K$15:$K$46,0))-INDEX($D$15:$D$46,MATCH($I8&M$5,$K$15:$K$46,0)),0-INDEX($J$6:$O$11,MATCH(M$5,$I$6:$I$11,0),MATCH($I8,$J$5:$O$5,0)))) -> 0 | N8: =IF(ISBLANK(B39),0,IFERROR(INDEX($B$15:$B$46,MATCH($I8&N$5,$K$15:$K$46,0))-INDEX($D$15:$D$46,MATCH($I8&N$5,$K$15:$K$46,0)),0-INDEX($J$6:$O$11,MATCH(N$5,$I$6:$I$11,0),MATCH($I8,$J$5:$O$5,0)))) -> 0 | O8: =IF(ISBLANK(B44),0,IFERROR(INDEX($B$15:$B$46,MATCH($I8&O$5,$K$15:$K$46,0))-INDEX($D$15:$D$46,MATCH($I8&O$5,$K$15:$K$46,0)),0-INDEX($J$6:$O$11,MATCH(O$5,$I$6:$I$11,0),MATCH($I8,$J$5:$O$5,0)))) -> 0
A9: AQ | B9: 3D | C9: =SUM(F17,E25,F31,F37,F46) -> 0 | D9: =J17+I25+J31+J37+J46 -> 0 | E9: =I17+J25+I31+I37+I46 -> 0 | F9: 0 | I9: AQ | J9: =IF(ISBLANK(B37),0,IFERROR(INDEX($B$15:$B$46,MATCH($I9&J$5,$K$15:$K$46,0))-INDEX($D$15:$D$46,MATCH($I9&J$5,$K$15:$K$46,0)),0-INDEX($J$6:$O$11,MATCH(J$5,$I$6:$I$11,0),MATCH($I9,$J$5:$O$5,0)))) -> 0 | K9: =IF(ISBLANK(B46),0,IFERROR(INDEX($B$15:$B$46,MATCH($I9&K$5,$K$15:$K$46,0))-INDEX($D$15:$D$46,MATCH($I9&K$5,$K$15:$K$46,0)),0-INDEX($J$6:$O$11,MATCH(K$5,$I$6:$I$11,0),MATCH($I9,$J$5:$O$5,0)))) -> 0 | L9: =IF(ISBLANK(B17),0,IFERROR(INDEX($B$15:$B$46,MATCH($I9&L$5,$K$15:$K$46,0))-INDEX($D$15:$D$46,MATCH($I9&L$5,$K$15:$K$46,0)),0-INDEX($J$6:$O$11,MATCH(L$5,$I$6:$I$11,0),MATCH($I9,$J$5:$O$5,0)))) -> 0 | N9: =IF(ISBLANK(B31),0,IFERROR(INDEX($B$15:$B$46,MATCH($I9&N$5,$K$15:$K$46,0))-INDEX($D$15:$D$46,MATCH($I9&N$5,$K$15:$K$46,0)),0-INDEX($J$6:$O$11,MATCH(N$5,$I$6:$I$11,0),MATCH($I9,$J$5:$O$5,0)))) -> 0 | O9: =IF(ISBLANK(B25),0,IFERROR(INDEX($B$15:$B$46,MATCH($I9&O$5,$K$15:$K$46,0))-INDEX($D$15:$D$46,MATCH($I9&O$5,$K$15:$K$46,0)),0-INDEX($J$6:$O$11,MATCH(O$5,$I$6:$I$11,0),MATCH($I9,$J$5:$O$5,0)))) -> 0
A10: AR | B10: 3E | C10: =SUM(E18,F24,E31,F39,E45) -> 0 | D10: =I18+J24+I31+J39+I45 -> 0 | E10: =J18+I24+J31+I39+J45 -> 0 | F10: 0 | I10: AR | J10: =IF(ISBLANK(B45),0,IFERROR(INDEX($B$15:$B$46,MATCH($I10&J$5,$K$15:$K$46,0))-INDEX($D$15:$D$46,MATCH($I10&J$5,$K$15:$K$46,0)),0-INDEX($J$6:$O$11,MATCH(J$5,$I$6:$I$11,0),MATCH($I10,$J$5:$O$5,0)))) -> 0 | K10: =IF(ISBLANK(B24),0,IFERROR(INDEX($B$15:$B$46,MATCH($I10&K$5,$K$15:$K$46,0))-INDEX($D$15:$D$46,MATCH($I10&K$5,$K$15:$K$46,0)),0-INDEX($J$6:$O$11,MATCH(K$5,$I$6:$I$11,0),MATCH($I10,$J$5:$O$5,0)))) -> 0 | L10: =IF(ISBLANK(B39),0,IFERROR(INDEX($B$15:$B$46,MATCH($I10&L$5,$K$15:$K$46,0))-INDEX($D$15:$D$46,MATCH($I10&L$5,$K$15:$K$46,0)),0-INDEX($J$6:$O$11,MATCH(L$5,$I$6:$I$11,0),MATCH($I10,$J$5:$O$5,0)))) -> 0 | M10: =IF(ISBLANK(B31),0,IFERROR(INDEX($B$15:$B$46,MATCH($I10&M$5,$K$15:$K$46,0))-INDEX($D$15:$D$46,MATCH($I10&M$5,$K$15:$K$46,0)),0-INDEX($J$6:$O$11,MATCH(M$5,$I$6:$I$11,0),MATCH($I10,$J$5:$O$5,0)))) -> 0 | O10: =IF(ISBLANK(B18),0,IFERROR(INDEX($B$15:$B$46,MATCH($I10&O$5,$K$15:$K$46,0))-INDEX($D$15:$D$46,MATCH($I10&O$5,$K$15:$K$46,0)),0-INDEX($J$6:$O$11,MATCH(O$5,$I$6:$I$11,0),MATCH($I10,$J$5:$O$5,0)))) -> 0
A11: AS | B11: 3F | C11: =SUM(F18,F25,F30,F38,F44) -> 0 | D11: =J18+J25+J30+J38+J44 -> 0 | E11: =I18+I25+I30+I38+I44 -> 0 | F11: 0 | I11: AS | J11: =IF(ISBLANK(B30),0,IFERROR(INDEX($B$15:$B$46,MATCH($I11&J$5,$K$15:$K$46,0))-INDEX($D$15:$D$46,MATCH($I11&J$5,$K$15:$K$46,0)),0-INDEX($J$6:$O$11,MATCH(J$5,$I$6:$I$11,0),MATCH($I11,$J$5:$O$5,0)))) -> 0 | K11: =IF(ISBLANK(B38),0,IFERROR(INDEX($B$15:$B$46,MATCH($I11&K$5,$K$15:$K$46,0))-INDEX($D$15:$D$46,MATCH($I11&K$5,$K$15:$K$46,0)),0-INDEX($J$6:$O$11,MATCH(K$5,$I$6:$I$11,0),MATCH($I11,$J$5:$O$5,0)))) -> 0 | L11: =IF(ISBLANK(B44),0,IFERROR(INDEX($B$15:$B$46,MATCH($I11&L$5,$K$15:$K$46,0))-INDEX($D$15:$D$46,MATCH($I11&L$5,$K$15:$K$46,0)),0-INDEX($J$6:$O$11,MATCH(L$5,$I$6:$I$11,0),MATCH($I11,$J$5:$O$5,0)))) -> 0 | M11: =IF(ISBLANK(B25),0,IFERROR(INDEX($B$15:$B$46,MATCH($I11&M$5,$K$15:$K$46,0))-INDEX($D$15:$D$46,MATCH($I11&M$5,$K$15:$K$46,0)),0-INDEX($J$6:$O$11,MATCH(M$5,$I$6:$I$11,0),MATCH($I11,$J$5:$O$5,0)))) -> 0 | N11: =IF(ISBLANK(B18),0,IFERROR(INDEX($B$15:$B$46,MATCH($I11&N$5,$K$15:$K$46,0))-INDEX($D$15:$D$46,MATCH($I11&N$5,$K$15:$K$46,0)),0-INDEX($J$6:$O$11,MATCH(N$5,$I$6:$I$11,0),MATCH($I11,$J$5:$O$5,0)))) -> 0
I12: Les concaténations en rouge permettent de remplir par formules le récapitulatif au dessus
A13: 1er MATCH le 15 mai | B13: à | C13: =A6 -> AN | I13: Ce récap servira à départager les ex aequos
G14: SI forfait éq recevante
A15: Equipes | B15: score | C15: Equipes | D15: score
A16: =$A$6 -> AN | C16: =$A$7 -> AO | D16: =IF(G16=19,19,IF(ISBLANK(B16),"",IF(B16=19,0,36-B16))) ->  | E16: =IF(G16=19,0,IF(ISBLANK(B16),"",IF(B16<18,1,IF(B16=18,2,IF(B16>18,3))))) ->  | F16: =IF(G16=19,3,IF(ISBLANK(B16),"",IF(B16=19,0,IF(D16<18,1,IF(D16=18,2,IF(D16>=20,3)))))) ->  | I16: =IF(ISBLANK(B16),0,B16) -> 0 | J16: =IF(ISBLANK(B16),0,D16) -> 0 | K16: =A16&C16 -> ANAO
A17: =$A$8 -> AP | C17: =$A$9 -> AQ | D17: =IF(G17=19,19,IF(ISBLANK(B17),"",IF(B17=19,0,36-B17))) ->  | E17: =IF(G17=19,0,IF(ISBLANK(B17),"",IF(B17<18,1,IF(B17=18,2,IF(B17>18,3))))) ->  | F17: =IF(G17=19,3,IF(ISBLANK(B17),"",IF(B17=19,0,IF(D17<18,1,IF(D17=18,2,IF(D17>=20,3)))))) ->  | I17: =IF(ISBLANK(B17),0,B17) -> 0 | J17: =IF(ISBLANK(B17),0,D17) -> 0 | K17: =A17&C17 -> APAQ
A18: =$A$10 -> AR | C18: =$A$11 -> AS | D18: =IF(G18=19,19,IF(ISBLANK(B18),"",IF(B18=19,0,36-B18))) ->  | E18: =IF(G18=19,0,IF(ISBLANK(B18),"",IF(B18<18,1,IF(B18=18,2,IF(B18>18,3))))) ->  | F18: =IF(G18=19,3,IF(ISBLANK(B18),"",IF(B18=19,0,IF(D18<18,1,IF(D18=18,2,IF(D18>=20,3)))))) ->  | I18: =IF(ISBLANK(B18),0,B18) -> 0 | J18: =IF(ISBLANK(B18),0,D18) -> 0 | K18: =A18&C18 -> ARAS
A20: 2 éme MATCH le 22 mai | B20: à | C20: =A7 -> AO
G21: SI forfait éq recevante
A22: Equipes | B22: score | C22: Equipes | D22: score
A23: =$A$6 -> AN | C23: =$A$8 -> AP | D23: =IF(G23=19,19,IF(ISBLANK(B23),"",IF(B23=19,0,36-B23))) ->  | E23: =IF(G23=19,0,IF(ISBLANK(B23),"",IF(B23<18,1,IF(B23=18,2,IF(B23>18,3))))) ->  | F23: =IF(G23=19,3,IF(ISBLANK(B23),"",IF(B23=19,0,IF(D23<18,1,IF(D23=18,2,IF(D23>=20,3)))))) ->  | I23: =IF(ISBLANK(B23),0,B23) -> 0 | J23: =IF(ISBLANK(B23),0,D23) -> 0 | K23: =A23&C23 -> ANAP
A24: =$A$7 -> AO | C24: =$A$10 -> AR | D24: =IF(G24=19,19,IF(ISBLANK(B24),"",IF(B24=19,0,36-B24))) ->  | E24: =IF(G24=19,0,IF(ISBLANK(B24),"",IF(B24<18,1,IF(B24=18,2,IF(B24>18,3))))) ->  | F24: =IF(G24=19,3,IF(ISBLANK(B24),"",IF(B24=19,0,IF(D24<18,1,IF(D24=18,2,IF(D24>=20,3)))))) ->  | I24: =IF(ISBLANK(B24),0,B24) -> 0 | J24: =IF(ISBLANK(B24),0,D24) -> 0 | K24: =A24&C24 -> AOAR
A25: =$A$9 -> AQ | C25: =$A$11 -> AS | D25: =IF(G25=19,19,IF(ISBLANK(B25),"",IF(B25=19,0,36-B25))) ->  | E25: =IF(G25=19,0,IF(ISBLANK(B25),"",IF(B25<18,1,IF(B25=18,2,IF(B25>18,3))))) ->  | F25: =IF(G25=19,3,IF(ISBLANK(B25),"",IF(B25=19,0,IF(D25<18,1,IF(D25=18,2,IF(D25>=20,3)))))) ->  | I25: =IF(ISBLANK(B25),0,B25) -> 0 | J25: =IF(ISBLANK(B25),0,D25) -> 0 | K25: =A25&C25 -> AQAS
A27: 3 éme MATCH le 29 mai | B27: à | C27: =A8 -> AP
G28: SI forfait éq recevante
A29: Equipes | B29: score | C29: Equipes | D29: score
A30: =$A$6 -> AN | C30: =$A$11 -> AS | D30: =IF(G30=19,19,IF(ISBLANK(B30),"",IF(B30=19,0,36-B30))) ->  | E30: =IF(G30=19,0,IF(ISBLANK(B30),"",IF(B30<18,1,IF(B30=18,2,IF(B30>18,3))))) ->  | F30: =IF(G30=19,3,IF(ISBLANK(B30),"",IF(B30=19,0,IF(D30<18,1,IF(D30=18,2,IF(D30>=20,3)))))) ->  | I30: =IF(ISBLANK(B30),0,B30) -> 0 | J30: =IF(ISBLANK(B30),0,D30) -> 0 | K30: =A30&C30 -> ANAS
A31: =$A$10 -> AR | C31: =$A$9 -> AQ | D31: =IF(G31=19,19,IF(ISBLANK(B31),"",IF(B31=19,0,36-B31))) ->  | E31: =IF(G31=19,0,IF(ISBLANK(B31),"",IF(B31<18,1,IF(B31=18,2,IF(B31>18,3))))) ->  | F31: =IF(G31=19,3,IF(ISBLANK(B31),"",IF(B31=19,0,IF(D31<18,1,IF(D31=18,2,IF(D31>=20,3)))))) ->  | I31: =IF(ISBLANK(B31),0,B31) -> 0 | J31: =IF(ISBLANK(B31),0,D31) -> 0 | K31: =A31&C31 -> ARAQ
A32: =$A$8 -> AP | C32: =$A$7 -> AO | D32: =IF(G32=19,19,IF(ISBLANK(B32),"",IF(B32=19,0,36-B32))) ->  | E32: =IF(G32=19,0,IF(ISBLANK(B32),"",IF(B32<18,1,IF(B32=18,2,IF(B32>18,3))))) ->  | F32: =IF(G32=19,3,IF(ISBLANK(B32),"",IF(B32=19,0,IF(D32<18,1,IF(D32=18,2,IF(D32>=20,3)))))) ->  | I32: =IF(ISBLANK(B32),0,B32) -> 0 | J32: =IF(ISBLANK(B32),0,D32) -> 0 | K32: =A32&C32 -> APAO
A34: 4 éme MATCH le 5 juin | B34: à | C34: =A9 -> AQ
G35: SI forfait éq recevante
A36: Equipes | B36: score | C36: Equipes | D36: score
A37: =A6 -> AN | C37: =$A$9 -> AQ | D37: =IF(G37=19,19,IF(ISBLANK(B37),"",IF(B37=19,0,36-B37))) ->  | E37: =IF(G37=19,0,IF(ISBLANK(B37),"",IF(B37<18,1,IF(B37=18,2,IF(B37>18,3))))) ->  | F37: =IF(G37=19,3,IF(ISBLANK(B37),"",IF(B37=19,0,IF(D37<18,1,IF(D37=18,2,IF(D37>=20,3)))))) ->  | I37: =IF(ISBLANK(B37),0,B37) -> 0 | J37: =IF(ISBLANK(B37),0,D37) -> 0 | K37: =A37&C37 -> ANAQ
A38: =$A$7 -> AO | C38: =$A$11 -> AS | D38: =IF(G38=19,19,IF(ISBLANK(B38),"",IF(B38=19,0,36-B38))) ->  | E38: =IF(G38=19,0,IF(ISBLANK(B38),"",IF(B38<18,1,IF(B38=18,2,IF(B38>18,3))))) ->  | F38: =IF(G38=19,3,IF(ISBLANK(B38),"",IF(B38=19,0,IF(D38<18,1,IF(D38=18,2,IF(D38>=20,3)))))) ->  | I38: =IF(ISBLANK(B38),0,B38) -> 0 | J38: =IF(ISBLANK(B38),0,D38) -> 0 | K38: =A38&C38 -> AOAS
A39: =A8 -> AP | C39: =$A$10 -> AR | D39: =IF(G39=19,19,IF(ISBLANK(B39),"",IF(B39=19,0,36-B39))) ->  | E39: =IF(G39=19,0,IF(ISBLANK(B39),"",IF(B39<18,1,IF(B39=18,2,IF(B39>18,3))))) ->  | F39: =IF(G39=19,3,IF(ISBLANK(B39),"",IF(B39=19,0,IF(D39<18,1,IF(D39=18,2,IF(D39>=20,3)))))) ->  | I39: =IF(ISBLANK(B39),0,B39) -> 0 | J39: =IF(ISBLANK(B39),0,D39) -> 0 | K39: =A39&C39 -> APAR
A41: 5 éme MATCH le 12 juin | B41: à | C41: =A10 -> AR
G42: SI forfait éq recevante
A43: Equipes | B43: score | C43: Equipes | D43: score
A44: =A8 -> AP | C44: =$A$11 -> AS | D44: =IF(G44=19,19,IF(ISBLANK(B44),"",IF(B44=19,0,36-B44))) ->  | E44: =IF(G44=19,0,IF(ISBLANK(B44),"",IF(B44<18,1,IF(B44=18,2,IF(B44>18,3))))) ->  | F44: =IF(G44=19,3,IF(ISBLANK(B44),"",IF(B44=19,0,IF(D44<18,1,IF(D44=18,2,IF(D44>=20,3)))))) ->  | I44: =IF(ISBLANK(B44),0,B44) -> 0 | J44: =IF(ISBLANK(B44),0,D44) -> 0 | K44: =A44&C44 -> APAS
A45: =$A$10 -> AR | C45: =A6 -> AN | D45: =IF(G45=19,19,IF(ISBLANK(B45),"",IF(B45=19,0,36-B45))) ->  | E45: =IF(G45=19,0,IF(ISBLANK(B45),"",IF(B45<18,1,IF(B45=18,2,IF(B45>18,3))))) ->  | F45: =IF(G45=19,3,IF(ISBLANK(B45),"",IF(B45=19,0,IF(D45<18,1,IF(D45=18,2,IF(D45>=20,3)))))) ->  | I45: =IF(ISBLANK(B45),0,B45) -> 0 | J45: =IF(ISBLANK(B45),0,D45) -> 0 | K45: =A45&C45 -> ARAN
A46: =A7 -> AO | C46: =$A$9 -> AQ | D46: =IF(G46=19,19,IF(ISBLANK(B46),"",IF(B46=19,0,36-B46))) ->  | E46: =IF(G46=19,0,IF(ISBLANK(B46),"",IF(B46<18,1,IF(B46=18,2,IF(B46>18,3))))) ->  | F46: =IF(G46=19,3,IF(ISBLANK(B46),"",IF(B46=19,0,IF(D46<18,1,IF(D46=18,2,IF(D46>=20,3)))))) ->  | I46: =IF(ISBLANK(B46),0,B46) -> 0 | J46: =IF(ISBLANK(B46),0,D46) -> 0 | K46: =A46&C46 -> AOAQ
A48: CLASSEMENT
A49: EQUIPES | C49: POINTS | D49: Pour | E49: Contre | F49: Diff | G49: CLASST
A50: AN | B50: 3A | C50: 0 | D50: 0 | E50: 0 | F50: 0 | G50: =B59 -> 1 | H50: =IF(AND(G50=1,COUNTIF(rang1,1)>1),COUNTIF(G$50:G50,1),IF(AND(G50=2,COUNTIF(rang1,2)>1),COUNTIF(G$50:G50,2)+3,"")) -> 1
A51: AO | B51: 3B | C51: 0 | D51: 0 | E51: 0 | F51: 0 | G51: 1 | H51: =IF(AND(G51=1,COUNTIF(rang1,1)>1),COUNTIF(G$50:G51,1),IF(AND(G51=2,COUNTIF(rang1,2)>1),COUNTIF(G$50:G51,2)+3,"")) -> 2
A52: AP | B52: 3C | C52: 0 | D52: 0 | E52: 0 | F52: 0 | G52: 1 | H52: =IF(AND(G52=1,COUNTIF(rang1,1)>1),COUNTIF(G$50:G52,1),IF(AND(G52=2,COUNTIF(rang1,2)>1),COUNTIF(G$50:G52,2)+3,"")) -> 3
A53: AQ | B53: 3D | C53: 0 | D53: 0 | E53: 0 | F53: 0 | G53: 1 | H53: =IF(AND(G53=1,COUNTIF(rang1,1)>1),COUNTIF(G$50:G53,1),IF(AND(G53=2,COUNTIF(rang1,2)>1),COUNTIF(G$50:G53,2)+3,"")) -> 4
A54: AR | B54: 3E | C54: 0 | D54: 0 | E54: 0 | F54: 0 | G54: 1 | H54: =IF(AND(G54=1,COUNTIF(rang1,1)>1),COUNTIF(G$50:G54,1),IF(AND(G54=2,COUNTIF(rang1,2)>1),COUNTIF(G$50:G54,2)+3,"")) -> 5
A55: AS | B55: 3F | C55: 0 | D55: 0 | E55: 0 | F55: 0 | G55: 1 | H55: =IF(AND(G55=1,COUNTIF(rang1,1)>1),COUNTIF(G$50:G55,1),IF(AND(G55=2,COUNTIF(rang1,2)>1),COUNTIF(G$50:G55,2)+3,"")) -> 6
B57: CLASSEMENT FINAL et DEPARTAGE EX AEQUOS | M57: CLASSEMENT
B58: Rang | C58: Equipes | D58: Pts | E58: diff pts avec exaequo | F58: cumul | G58: departage goalaverage si même cumul | H58: RP | L58: RP | M58: Rang | N58: Equipe | O58: Pts
B59: =RANK(G59,$G$59:$G$64) -> 1 | C59: =INDEX($A$50:$A$55,MATCH(H59,$L$59:$L$64,0)) -> AN | D59: =VLOOKUP(C59,$A$50:$C$55,3,0) -> 0 | E59: =IF(D59=D60,INDEX($J$6:$O$11,MATCH(C59,$I$6:$I$11,0),MATCH(C60,$J$5:$O$5,0)),IF(D59=D58,INDEX($J$6:$O$11,MATCH(C59,$I$6:$I$11,0),MATCH(C58,$J$5:$O$5,0)),0)) -> 0 | F59: =D59+E59/100 -> 0 | G59: =IF(AND(F59<>F58,F59<>F60),F59,F59+VLOOKUP(C59,$A$50:$F$55,6,0)/100) -> 0 | H59: 1 | L59: =RANK(C50,$C$50:$C$55)+COUNTIF($C$50:C50,C50)-1 -> 1 | M59: =B59 -> 1 | N59: AN | O59: =VLOOKUP(N59,$C$59:$D$64,2,0) -> 0
B60: 1 | C60: AO | D60: 0 | E60: =IF(D60=D61,INDEX($J$6:$O$11,MATCH(C60,$I$6:$I$11,0),MATCH(C61,$J$5:$O$5,0)),IF(D60=D59,INDEX($J$6:$O$11,MATCH(C60,$I$6:$I$11,0),MATCH(C59,$J$5:$O$5,0)),0)) -> 0 | F60: 0 | G60: =IF(AND(F60<>F59,F60<>F61),F60,F60+VLOOKUP(C60,$A$50:$F$55,6,0)/100) -> 0 | H60: 2 | L60: =RANK(C51,$C$50:$C$55)+COUNTIF($C$50:C51,C51)-1 -> 2 | M60: 1 | N60: AO | O60: 0
B61: 1 | C61: AP | D61: 0 | E61: =IF(D61=D62,INDEX($J$6:$O$11,MATCH(C61,$I$6:$I$11,0),MATCH(C62,$J$5:$O$5,0)),IF(D61=D60,INDEX($J$6:$O$11,MATCH(C61,$I$6:$I$11,0),MATCH(C60,$J$5:$O$5,0)),0)) -> 0 | F61: 0 | G61: =IF(AND(F61<>F60,F61<>F62),F61,F61+VLOOKUP(C61,$A$50:$F$55,6,0)/100) -> 0 | H61: 3 | L61: =RANK(C52,$C$50:$C$55)+COUNTIF($C$50:C52,C52)-1 -> 3 | M61: 1 | N61: AP | O61: 0
B62: 1 | C62: AQ | D62: 0 | E62: =IF(D62=D63,INDEX($J$6:$O$11,MATCH(C62,$I$6:$I$11,0),MATCH(C63,$J$5:$O$5,0)),IF(D62=D61,INDEX($J$6:$O$11,MATCH(C62,$I$6:$I$11,0),MATCH(C61,$J$5:$O$5,0)),0)) -> 0 | F62: 0 | G62: =IF(AND(F62<>F61,F62<>F63),F62,F62+VLOOKUP(C62,$A$50:$F$55,6,0)/100) -> 0 | H62: 4 | L62: =RANK(C53,$C$50:$C$55)+COUNTIF($C$50:C53,C53)-1 -> 4 | M62: 1 | N62: AQ | O62: 0
B63: 1 | C63: AR | D63: 0 | E63: =IF(D63=D64,INDEX($J$6:$O$11,MATCH(C63,$I$6:$I$11,0),MATCH(C64,$J$5:$O$5,0)),IF(D63=D62,INDEX($J$6:$O$11,MATCH(C63,$I$6:$I$11,0),MATCH(C62,$J$5:$O$5,0)),0)) -> 0 | F63: 0 | G63: =IF(AND(F63<>F62,F63<>F64),F63,F63+VLOOKUP(C63,$A$50:$F$55,6,0)/100) -> 0 | H63: 5 | L63: =RANK(C54,$C$50:$C$55)+COUNTIF($C$50:C54,C54)-1 -> 5 | M63: 1 | N63: AR | O63: 0
B64: 1 | C64: AS | D64: 0 | E64: =IF(D64=D59,INDEX($J$6:$O$11,MATCH(C64,$I$6:$I$11,0),MATCH(C59,$J$5:$O$5,0)),IF(D64=D63,INDEX($J$6:$O$11,MATCH(C64,$I$6:$I$11,0),MATCH(C63,$J$5:$O$5,0)),0)) -> 0 | F64: 0 | G64: =IF(AND(F64<>F63,F64<>F59),F64,F64+VLOOKUP(C64,$A$50:$F$55,6,0)/100) -> 0 | H64: 6 | L64: =RANK(C55,$C$50:$C$55)+COUNTIF($C$50:C55,C55)-1 -> 6 | M64: 1 | N64: AS | O64: 0

Sheet P4
A2: CHAMPIONNAT DES CLUBS
A4: POULE 4 | I4: Récapitulatif différence match entre 2 équipes
A5: EQUIPES | C5: POINTS | D5: Pour | E5: Contre | F5: Diff | J5: =A6 -> AT | K5: =A7 -> AU | L5: =A8 -> AV | M5: =A9 -> AW | N5: =A10 -> AX | O5: =A11 -> AY
A6: AT | B6: 4A | C6: =SUM(E16,E23,E30,E37,F45) -> 0 | D6: =I16+I23+I30+I37+J45 -> 0 | E6: =J16+J23+J30+J37+I45 -> 0 | F6: =D6-E6 -> 0 | I6: =A6 -> AT | K6: =IF(ISBLANK(B16),0,IFERROR(INDEX($B$15:$B$46,MATCH($I6&K$5,$K$15:$K$46,0))-INDEX($D$15:$D$46,MATCH($I6&K$5,$K$15:$K$46,0)),0-INDEX($J$6:$O$11,MATCH(K$5,$I$6:$I$11,0),MATCH($I6,$J$5:$O$5,0)))) -> 0 | L6: =IF(ISBLANK(B23),0,IFERROR(INDEX($B$15:$B$46,MATCH($I6&L$5,$K$15:$K$46,0))-INDEX($D$15:$D$46,MATCH($I6&L$5,$K$15:$K$46,0)),0-INDEX($J$6:$O$11,MATCH(L$5,$I$6:$I$11,0),MATCH($I6,$J$5:$O$5,0)))) -> 0 | M6: =IF(ISBLANK(B37),0,IFERROR(INDEX($B$15:$B$46,MATCH($I6&M$5,$K$15:$K$46,0))-INDEX($D$15:$D$46,MATCH($I6&M$5,$K$15:$K$46,0)),0-INDEX($J$6:$O$11,MATCH(M$5,$I$6:$I$11,0),MATCH($I6,$J$5:$O$5,0)))) -> 0 | N6: =IF(ISBLANK(B45),0,IFERROR(INDEX($B$15:$B$46,MATCH($I6&N$5,$K$15:$K$46,0))-INDEX($D$15:$D$46,MATCH($I6&N$5,$K$15:$K$46,0)),0-INDEX($J$6:$O$11,MATCH(N$5,$I$6:$I$11,0),MATCH($I6,$J$5:$O$5,0)))) -> 0 | O6: =IF(ISBLANK(B30),0,IFERROR(INDEX($B$15:$B$46,MATCH($I6&O$5,$K$15:$K$46,0))-INDEX($D$15:$D$46,MATCH($I6&O$5,$K$15:$K$46,0)),0-INDEX($J$6:$O$11,MATCH(O$5,$I$6:$I$11,0),MATCH($I6,$J$5:$O$5,0)))) -> 0
A7: AU | B7: 4B | C7: =SUM(F16,E24,F32,E38,E46) -> 0 | D7: =J16+I24+J32+I38+I46 -> 0 | E7: =I16+J24+I32+J38+J46 -> 0 | F7: 0 | I7: AU | J7: =IF(ISBLANK(B16),0,IFERROR(INDEX($B$15:$B$46,MATCH($I7&J$5,$K$15:$K$46,0))-INDEX($D$15:$D$46,MATCH($I7&J$5,$K$15:$K$46,0)),0-INDEX($J$6:$O$11,MATCH(J$5,$I$6:$I$11,0),MATCH($I7,$J$5:$O$5,0)))) -> 0 | L7: =IF(ISBLANK(B32),0,IFERROR(INDEX($B$15:$B$46,MATCH($I7&L$5,$K$15:$K$46,0))-INDEX($D$15:$D$46,MATCH($I7&L$5,$K$15:$K$46,0)),0-INDEX($J$6:$O$11,MATCH(L$5,$I$6:$I$11,0),MATCH($I7,$J$5:$O$5,0)))) -> 0 | M7: =IF(ISBLANK(B46),0,IFERROR(INDEX($B$15:$B$46,MATCH($I7&M$5,$K$15:$K$46,0))-INDEX($D$15:$D$46,MATCH($I7&M$5,$K$15:$K$46,0)),0-INDEX($J$6:$O$11,MATCH(M$5,$I$6:$I$11,0),MATCH($I7,$J$5:$O$5,0)))) -> 0 | N7: =IF(ISBLANK(B24),0,IFERROR(INDEX($B$15:$B$46,MATCH($I7&N$5,$K$15:$K$46,0))-INDEX($D$15:$D$46,MATCH($I7&N$5,$K$15:$K$46,0)),0-INDEX($J$6:$O$11,MATCH(N$5,$I$6:$I$11,0),MATCH($I7,$J$5:$O$5,0)))) -> 0 | O7: =IF(ISBLANK(B38),0,IFERROR(INDEX($B$15:$B$46,MATCH($I7&O$5,$K$15:$K$46,0))-INDEX($D$15:$D$46,MATCH($I7&O$5,$K$15:$K$46,0)),0-INDEX($J$6:$O$11,MATCH(O$5,$I$6:$I$11,0),MATCH($I7,$J$5:$O$5,0)))) -> 0
A8: AV | B8: 4C | C8: =SUM(E17,F23,E32,E39,E44) -> 0 | D8: =I17+J23+I32+I39+I44 -> 0 | E8: =J17+I23+J32+J39+J44 -> 0 | F8: 0 | I8: AV | J8: =IF(ISBLANK(B23),0,IFERROR(INDEX($B$15:$B$46,MATCH($I8&J$5,$K$15:$K$46,0))-INDEX($D$15:$D$46,MATCH($I8&J$5,$K$15:$K$46,0)),0-INDEX($J$6:$O$11,MATCH(J$5,$I$6:$I$11,0),MATCH($I8,$J$5:$O$5,0)))) -> 0 | K8: =IF(ISBLANK(B32),0,IFERROR(INDEX($B$15:$B$46,MATCH($I8&K$5,$K$15:$K$46,0))-INDEX($D$15:$D$46,MATCH($I8&K$5,$K$15:$K$46,0)),0-INDEX($J$6:$O$11,MATCH(K$5,$I$6:$I$11,0),MATCH($I8,$J$5:$O$5,0)))) -> 0 | M8: =IF(ISBLANK(B17),0,IFERROR(INDEX($B$15:$B$46,MATCH($I8&M$5,$K$15:$K$46,0))-INDEX($D$15:$D$46,MATCH($I8&M$5,$K$15:$K$46,0)),0-INDEX($J$6:$O$11,MATCH(M$5,$I$6:$I$11,0),MATCH($I8,$J$5:$O$5,0)))) -> 0 | N8: =IF(ISBLANK(B39),0,IFERROR(INDEX($B$15:$B$46,MATCH($I8&N$5,$K$15:$K$46,0))-INDEX($D$15:$D$46,MATCH($I8&N$5,$K$15:$K$46,0)),0-INDEX($J$6:$O$11,MATCH(N$5,$I$6:$I$11,0),MATCH($I8,$J$5:$O$5,0)))) -> 0 | O8: =IF(ISBLANK(B44),0,IFERROR(INDEX($B$15:$B$46,MATCH($I8&O$5,$K$15:$K$46,0))-INDEX($D$15:$D$46,MATCH($I8&O$5,$K$15:$K$46,0)),0-INDEX($J$6:$O$11,MATCH(O$5,$I$6:$I$11,0),MATCH($I8,$J$5:$O$5,0)))) -> 0
A9: AW | B9: 4D | C9: =SUM(F17,E25,F31,F37,F46) -> 0 | D9: =J17+I25+J31+J37+J46 -> 0 | E9: =I17+J25+I31+I37+I46 -> 0 | F9: 0 | I9: AW | J9: =IF(ISBLANK(B37),0,IFERROR(INDEX($B$15:$B$46,MATCH($I9&J$5,$K$15:$K$46,0))-INDEX($D$15:$D$46,MATCH($I9&J$5,$K$15:$K$46,0)),0-INDEX($J$6:$O$11,MATCH(J$5,$I$6:$I$11,0),MATCH($I9,$J$5:$O$5,0)))) -> 0 | K9: =IF(ISBLANK(B46),0,IFERROR(INDEX($B$15:$B$46,MATCH($I9&K$5,$K$15:$K$46,0))-INDEX($D$15:$D$46,MATCH($I9&K$5,$K$15:$K$46,0)),0-INDEX($J$6:$O$11,MATCH(K$5,$I$6:$I$11,0),MATCH($I9,$J$5:$O$5,0)))) -> 0 | L9: =IF(ISBLANK(B17),0,IFERROR(INDEX($B$15:$B$46,MATCH($I9&L$5,$K$15:$K$46,0))-INDEX($D$15:$D$46,MATCH($I9&L$5,$K$15:$K$46,0)),0-INDEX($J$6:$O$11,MATCH(L$5,$I$6:$I$11,0),MATCH($I9,$J$5:$O$5,0)))) -> 0 | N9: =IF(ISBLANK(B31),0,IFERROR(INDEX($B$15:$B$46,MATCH($I9&N$5,$K$15:$K$46,0))-INDEX($D$15:$D$46,MATCH($I9&N$5,$K$15:$K$46,0)),0-INDEX($J$6:$O$11,MATCH(N$5,$I$6:$I$11,0),MATCH($I9,$J$5:$O$5,0)))) -> 0 | O9: =IF(ISBLANK(B25),0,IFERROR(INDEX($B$15:$B$46,MATCH($I9&O$5,$K$15:$K$46,0))-INDEX($D$15:$D$46,MATCH($I9&O$5,$K$15:$K$46,0)),0-INDEX($J$6:$O$11,MATCH(O$5,$I$6:$I$11,0),MATCH($I9,$J$5:$O$5,0)))) -> 0
A10: AX | B10: 4E | C10: =SUM(E18,F24,E31,F39,E45) -> 0 | D10: =I18+J24+I31+J39+I45 -> 0 | E10: =J18+I24+J31+I39+J45 -> 0 | F10: 0 | I10: AX | J10: =IF(ISBLANK(B45),0,IFERROR(INDEX($B$15:$B$46,MATCH($I10&J$5,$K$15:$K$46,0))-INDEX($D$15:$D$46,MATCH($I10&J$5,$K$15:$K$46,0)),0-INDEX($J$6:$O$11,MATCH(J$5,$I$6:$I$11,0),MATCH($I10,$J$5:$O$5,0)))) -> 0 | K10: =IF(ISBLANK(B24),0,IFERROR(INDEX($B$15:$B$46,MATCH($I10&K$5,$K$15:$K$46,0))-INDEX($D$15:$D$46,MATCH($I10&K$5,$K$15:$K$46,0)),0-INDEX($J$6:$O$11,MATCH(K$5,$I$6:$I$11,0),MATCH($I10,$J$5:$O$5,0)))) -> 0 | L10: =IF(ISBLANK(B39),0,IFERROR(INDEX($B$15:$B$46,MATCH($I10&L$5,$K$15:$K$46,0))-INDEX($D$15:$D$46,MATCH($I10&L$5,$K$15:$K$46,0)),0-INDEX($J$6:$O$11,MATCH(L$5,$I$6:$I$11,0),MATCH($I10,$J$5:$O$5,0)))) -> 0 | M10: =IF(ISBLANK(B31),0,IFERROR(INDEX($B$15:$B$46,MATCH($I10&M$5,$K$15:$K$46,0))-INDEX($D$15:$D$46,MATCH($I10&M$5,$K$15:$K$46,0)),0-INDEX($J$6:$O$11,MATCH(M$5,$I$6:$I$11,0),MATCH($I10,$J$5:$O$5,0)))) -> 0 | O10: =IF(ISBLANK(B18),0,IFERROR(INDEX($B$15:$B$46,MATCH($I10&O$5,$K$15:$K$46,0))-INDEX($D$15:$D$46,MATCH($I10&O$5,$K$15:$K$46,0)),0-INDEX($J$6:$O$11,MATCH(O$5,$I$6:$I$11,0),MATCH($I10,$J$5:$O$5,0)))) -> 0
A11: AY | B11: 4F | C11: =SUM(F18,F25,F30,F38,F44) -> 0 | D11: =J18+J25+J30+J38+J44 -> 0 | E11: =I18+I25+I30+I38+I44 -> 0 | F11: 0 | I11: AY | J11: =IF(ISBLANK(B30),0,IFERROR(INDEX($B$15:$B$46,MATCH($I11&J$5,$K$15:$K$46,0))-INDEX($D$15:$D$46,MATCH($I11&J$5,$K$15:$K$46,0)),0-INDEX($J$6:$O$11,MATCH(J$5,$I$6:$I$11,0),MATCH($I11,$J$5:$O$5,0)))) -> 0 | K11: =IF(ISBLANK(B38),0,IFERROR(INDEX($B$15:$B$46,MATCH($I11&K$5,$K$15:$K$46,0))-INDEX($D$15:$D$46,MATCH($I11&K$5,$K$15:$K$46,0)),0-INDEX($J$6:$O$11,MATCH(K$5,$I$6:$I$11,0),MATCH($I11,$J$5:$O$5,0)))) -> 0 | L11: =IF(ISBLANK(B44),0,IFERROR(INDEX($B$15:$B$46,MATCH($I11&L$5,$K$15:$K$46,0))-INDEX($D$15:$D$46,MATCH($I11&L$5,$K$15:$K$46,0)),0-INDEX($J$6:$O$11,MATCH(L$5,$I$6:$I$11,0),MATCH($I11,$J$5:$O$5,0)))) -> 0 | M11: =IF(ISBLANK(B25),0,IFERROR(INDEX($B$15:$B$46,MATCH($I11&M$5,$K$15:$K$46,0))-INDEX($D$15:$D$46,MATCH($I11&M$5,$K$15:$K$46,0)),0-INDEX($J$6:$O$11,MATCH(M$5,$I$6:$I$11,0),MATCH($I11,$J$5:$O$5,0)))) -> 0 | N11: =IF(ISBLANK(B18),0,IFERROR(INDEX($B$15:$B$46,MATCH($I11&N$5,$K$15:$K$46,0))-INDEX($D$15:$D$46,MATCH($I11&N$5,$K$15:$K$46,0)),0-INDEX($J$6:$O$11,MATCH(N$5,$I$6:$I$11,0),MATCH($I11,$J$5:$O$5,0)))) -> 0
I12: Les concaténations en rouge permettent de remplir par formules le récapitulatif au dessus
A13: 1er MATCH le 15 mai | B13: à | C13: =A6 -> AT | I13: Ce récap servira à départager les ex aequos
G14: SI forfait éq recevante
A15: Equipes | B15: score | C15: Equipes | D15: score
A16: =$A$6 -> AT | C16: =$A$7 -> AU | D16: =IF(G16=19,19,IF(ISBLANK(B16),"",IF(B16=19,0,36-B16))) ->  | E16: =IF(G16=19,0,IF(ISBLANK(B16),"",IF(B16<18,1,IF(B16=18,2,IF(B16>18,3))))) ->  | F16: =IF(G16=19,3,IF(ISBLANK(B16),"",IF(B16=19,0,IF(D16<18,1,IF(D16=18,2,IF(D16>=20,3)))))) ->  | I16: =IF(ISBLANK(B16),0,B16) -> 0 | J16: =IF(ISBLANK(B16),0,D16) -> 0 | K16: =A16&C16 -> ATAU
A17: =$A$8 -> AV | C17: =$A$9 -> AW | D17: =IF(G17=19,19,IF(ISBLANK(B17),"",IF(B17=19,0,36-B17))) ->  | E17: =IF(G17=19,0,IF(ISBLANK(B17),"",IF(B17<18,1,IF(B17=18,2,IF(B17>18,3))))) ->  | F17: =IF(G17=19,3,IF(ISBLANK(B17),"",IF(B17=19,0,IF(D17<18,1,IF(D17=18,2,IF(D17>=20,3)))))) ->  | I17: =IF(ISBLANK(B17),0,B17) -> 0 | J17: =IF(ISBLANK(B17),0,D17) -> 0 | K17: =A17&C17 -> AVAW
A18: =$A$10 -> AX | C18: =$A$11 -> AY | D18: =IF(G18=19,19,IF(ISBLANK(B18),"",IF(B18=19,0,36-B18))) ->  | E18: =IF(G18=19,0,IF(ISBLANK(B18),"",IF(B18<18,1,IF(B18=18,2,IF(B18>18,3))))) ->  | F18: =IF(G18=19,3,IF(ISBLANK(B18),"",IF(B18=19,0,IF(D18<18,1,IF(D18=18,2,IF(D18>=20,3)))))) ->  | I18: =IF(ISBLANK(B18),0,B18) -> 0 | J18: =IF(ISBLANK(B18),0,D18) -> 0 | K18: =A18&C18 -> AXAY
A20: 2 éme MATCH le 22 mai | B20: à | C20: =A7 -> AU
G21: SI forfait éq recevante
A22: Equipes | B22: score | C22: Equipes | D22: score
A23: =$A$6 -> AT | C23: =$A$8 -> AV | D23: =IF(G23=19,19,IF(ISBLANK(B23),"",IF(B23=19,0,36-B23))) ->  | E23: =IF(G23=19,0,IF(ISBLANK(B23),"",IF(B23<18,1,IF(B23=18,2,IF(B23>18,3))))) ->  | F23: =IF(G23=19,3,IF(ISBLANK(B23),"",IF(B23=19,0,IF(D23<18,1,IF(D23=18,2,IF(D23>=20,3)))))) ->  | I23: =IF(ISBLANK(B23),0,B23) -> 0 | J23: =IF(ISBLANK(B23),0,D23) -> 0 | K23: =A23&C23 -> ATAV
A24: =$A$7 -> AU | C24: =$A$10 -> AX | D24: =IF(G24=19,19,IF(ISBLANK(B24),"",IF(B24=19,0,36-B24))) ->  | E24: =IF(G24=19,0,IF(ISBLANK(B24),"",IF(B24<18,1,IF(B24=18,2,IF(B24>18,3))))) ->  | F24: =IF(G24=19,3,IF(ISBLANK(B24),"",IF(B24=19,0,IF(D24<18,1,IF(D24=18,2,IF(D24>=20,3)))))) ->  | I24: =IF(ISBLANK(B24),0,B24) -> 0 | J24: =IF(ISBLANK(B24),0,D24) -> 0 | K24: =A24&C24 -> AUAX
A25: =$A$9 -> AW | C25: =$A$11 -> AY | D25: =IF(G25=19,19,IF(ISBLANK(B25),"",IF(B25=19,0,36-B25))) ->  | E25: =IF(G25=19,0,IF(ISBLANK(B25),"",IF(B25<18,1,IF(B25=18,2,IF(B25>18,3))))) ->  | F25: =IF(G25=19,3,IF(ISBLANK(B25),"",IF(B25=19,0,IF(D25<18,1,IF(D25=18,2,IF(D25>=20,3)))))) ->  | I25: =IF(ISBLANK(B25),0,B25) -> 0 | J25: =IF(ISBLANK(B25),0,D25) -> 0 | K25: =A25&C25 -> AWAY
A27: 3 éme MATCH le 29 mai | B27: à | C27: =A8 -> AV
G28: SI forfait éq recevante
A29: Equipes | B29: score | C29: Equipes | D29: score
A30: =$A$6 -> AT | C30: =$A$11 -> AY | D30: =IF(G30=19,19,IF(ISBLANK(B30),"",IF(B30=19,0,36-B30))) ->  | E30: =IF(G30=19,0,IF(ISBLANK(B30),"",IF(B30<18,1,IF(B30=18,2,IF(B30>18,3))))) ->  | F30: =IF(G30=19,3,IF(ISBLANK(B30),"",IF(B30=19,0,IF(D30<18,1,IF(D30=18,2,IF(D30>=20,3)))))) ->  | I30: =IF(ISBLANK(B30),0,B30) -> 0 | J30: =IF(ISBLANK(B30),0,D30) -> 0 | K30: =A30&C30 -> ATAY
A31: =$A$10 -> AX | C31: =$A$9 -> AW | D31: =IF(G31=19,19,IF(ISBLANK(B31),"",IF(B31=19,0,36-B31))) ->  | E31: =IF(G31=19,0,IF(ISBLANK(B31),"",IF(B31<18,1,IF(B31=18,2,IF(B31>18,3))))) ->  | F31: =IF(G31=19,3,IF(ISBLANK(B31),"",IF(B31=19,0,IF(D31<18,1,IF(D31=18,2,IF(D31>=20,3)))))) ->  | I31: =IF(ISBLANK(B31),0,B31) -> 0 | J31: =IF(ISBLANK(B31),0,D31) -> 0 | K31: =A31&C31 -> AXAW
A32: =$A$8 -> AV | C32: =$A$7 -> AU | D32: =IF(G32=19,19,IF(ISBLANK(B32),"",IF(B32=19,0,36-B32))) ->  | E32: =IF(G32=19,0,IF(ISBLANK(B32),"",IF(B32<18,1,IF(B32=18,2,IF(B32>18,3))))) ->  | F32: =IF(G32=19,3,IF(ISBLANK(B32),"",IF(B32=19,0,IF(D32<18,1,IF(D32=18,2,IF(D32>=20,3)))))) ->  | I32: =IF(ISBLANK(B32),0,B32) -> 0 | J32: =IF(ISBLANK(B32),0,D32) -> 0 | K32: =A32&C32 -> AVAU
A34: 4 éme MATCH le 5 juin | B34: à | C34: =A9 -> AW
G35: SI forfait éq recevante
A36: Equipes | B36: score | C36: Equipes | D36: score
A37: =A6 -> AT | C37: =$A$9 -> AW | D37: =IF(G37=19,19,IF(ISBLANK(B37),"",IF(B37=19,0,36-B37))) ->  | E37: =IF(G37=19,0,IF(ISBLANK(B37),"",IF(B37<18,1,IF(B37=18,2,IF(B37>18,3))))) ->  | F37: =IF(G37=19,3,IF(ISBLANK(B37),"",IF(B37=19,0,IF(D37<18,1,IF(D37=18,2,IF(D37>=20,3)))))) ->  | I37: =IF(ISBLANK(B37),0,B37) -> 0 | J37: =IF(ISBLANK(B37),0,D37) -> 0 | K37: =A37&C37 -> ATAW
A38: =$A$7 -> AU | C38: =$A$11 -> AY | D38: =IF(G38=19,19,IF(ISBLANK(B38),"",IF(B38=19,0,36-B38))) ->  | E38: =IF(G38=19,0,IF(ISBLANK(B38),"",IF(B38<18,1,IF(B38=18,2,IF(B38>18,3))))) ->  | F38: =IF(G38=19,3,IF(ISBLANK(B38),"",IF(B38=19,0,IF(D38<18,1,IF(D38=18,2,IF(D38>=20,3)))))) ->  | I38: =IF(ISBLANK(B38),0,B38) -> 0 | J38: =IF(ISBLANK(B38),0,D38) -> 0 | K38: =A38&C38 -> AUAY
A39: =A8 -> AV | C39: =$A$10 -> AX | D39: =IF(G39=19,19,IF(ISBLANK(B39),"",IF(B39=19,0,36-B39))) ->  | E39: =IF(G39=19,0,IF(ISBLANK(B39),"",IF(B39<18,1,IF(B39=18,2,IF(B39>18,3))))) ->  | F39: =IF(G39=19,3,IF(ISBLANK(B39),"",IF(B39=19,0,IF(D39<18,1,IF(D39=18,2,IF(D39>=20,3)))))) ->  | I39: =IF(ISBLANK(B39),0,B39) -> 0 | J39: =IF(ISBLANK(B39),0,D39) -> 0 | K39: =A39&C39 -> AVAX
A41: 5 éme MATCH le 12 juin | B41: à | C41: =A10 -> AX
G42: SI forfait éq recevante
A43: Equipes | B43: score | C43: Equipes | D43: score
A44: =A8 -> AV | C44: =$A$11 -> AY | D44: =IF(G44=19,19,IF(ISBLANK(B44),"",IF(B44=19,0,36-B44))) ->  | E44: =IF(G44=19,0,IF(ISBLANK(B44),"",IF(B44<18,1,IF(B44=18,2,IF(B44>18,3))))) ->  | F44: =IF(G44=19,3,IF(ISBLANK(B44),"",IF(B44=19,0,IF(D44<18,1,IF(D44=18,2,IF(D44>=20,3)))))) ->  | I44: =IF(ISBLANK(B44),0,B44) -> 0 | J44: =IF(ISBLANK(B44),0,D44) -> 0 | K44: =A44&C44 -> AVAY
A45: =$A$10 -> AX | C45: =A6 -> AT | D45: =IF(G45=19,19,IF(ISBLANK(B45),"",IF(B45=19,0,36-B45))) ->  | E45: =IF(G45=19,0,IF(ISBLANK(B45),"",IF(B45<18,1,IF(B45=18,2,IF(B45>18,3))))) ->  | F45: =IF(G45=19,3,IF(ISBLANK(B45),"",IF(B45=19,0,IF(D45<18,1,IF(D45=18,2,IF(D45>=20,3)))))) ->  | I45: =IF(ISBLANK(B45),0,B45) -> 0 | J45: =IF(ISBLANK(B45),0,D45) -> 0 | K45: =A45&C45 -> AXAT
A46: =A7 -> AU | C46: =$A$9 -> AW | D46: =IF(G46=19,19,IF(ISBLANK(B46),"",IF(B46=19,0,36-B46))) ->  | E46: =IF(G46=19,0,IF(ISBLANK(B46),"",IF(B46<18,1,IF(B46=18,2,IF(B46>18,3))))) ->  | F46: =IF(G46=19,3,IF(ISBLANK(B46),"",IF(B46=19,0,IF(D46<18,1,IF(D46=18,2,IF(D46>=20,3)))))) ->  | I46: =IF(ISBLANK(B46),0,B46) -> 0 | J46: =IF(ISBLANK(B46),0,D46) -> 0 | K46: =A46&C46 -> AUAW
A48: CLASSEMENT
A49: EQUIPES | C49: POINTS | D49: Pour | E49: Contre | F49: Diff | G49: CLASST
A50: AT | B50: 4A | C50: 0 | D50: 0 | E50: 0 | F50: 0 | G50: =B59 -> 1 | H50: =IF(AND(G50=1,COUNTIF(rang1,1)>1),COUNTIF(G$50:G50,1),IF(AND(G50=2,COUNTIF(rang1,2)>1),COUNTIF(G$50:G50,2)+3,"")) -> 1
A51: AU | B51: 4B | C51: 0 | D51: 0 | E51: 0 | F51: 0 | G51: 1 | H51: =IF(AND(G51=1,COUNTIF(rang1,1)>1),COUNTIF(G$50:G51,1),IF(AND(G51=2,COUNTIF(rang1,2)>1),COUNTIF(G$50:G51,2)+3,"")) -> 2
A52: AV | B52: 4C | C52: 0 | D52: 0 | E52: 0 | F52: 0 | G52: 1 | H52: =IF(AND(G52=1,COUNTIF(rang1,1)>1),COUNTIF(G$50:G52,1),IF(AND(G52=2,COUNTIF(rang1,2)>1),COUNTIF(G$50:G52,2)+3,"")) -> 3
A53: AW | B53: 4D | C53: 0 | D53: 0 | E53: 0 | F53: 0 | G53: 1 | H53: =IF(AND(G53=1,COUNTIF(rang1,1)>1),COUNTIF(G$50:G53,1),IF(AND(G53=2,COUNTIF(rang1,2)>1),COUNTIF(G$50:G53,2)+3,"")) -> 4
A54: AX | B54: 4E | C54: 0 | D54: 0 | E54: 0 | F54: 0 | G54: 1 | H54: =IF(AND(G54=1,COUNTIF(rang1,1)>1),COUNTIF(G$50:G54,1),IF(AND(G54=2,COUNTIF(rang1,2)>1),COUNTIF(G$50:G54,2)+3,"")) -> 5
A55: AY | B55: 4F | C55: 0 | D55: 0 | E55: 0 | F55: 0 | G55: 1 | H55: =IF(AND(G55=1,COUNTIF(rang1,1)>1),COUNTIF(G$50:G55,1),IF(AND(G55=2,COUNTIF(rang1,2)>1),COUNTIF(G$50:G55,2)+3,"")) -> 6
B57: CLASSEMENT FINAL et DEPARTAGE EX AEQUOS | M57: CLASSEMENT
B58: Rang | C58: Equipes | D58: Pts | E58: diff pts avec exaequo | F58: cumul | G58: departage goalaverage si même cumul | H58: RP | L58: RP | M58: Rang | N58: Equipe | O58: Pts
B59: =RANK(G59,$G$59:$G$64) -> 1 | C59: =INDEX($A$50:$A$55,MATCH(H59,$L$59:$L$64,0)) -> AT | D59: =VLOOKUP(C59,$A$50:$C$55,3,0) -> 0 | E59: =IF(D59=D60,INDEX($J$6:$O$11,MATCH(C59,$I$6:$I$11,0),MATCH(C60,$J$5:$O$5,0)),IF(D59=D58,INDEX($J$6:$O$11,MATCH(C59,$I$6:$I$11,0),MATCH(C58,$J$5:$O$5,0)),0)) -> 0 | F59: =D59+E59/100 -> 0 | G59: =IF(AND(F59<>F58,F59<>F60),F59,F59+VLOOKUP(C59,$A$50:$F$55,6,0)/100) -> 0 | H59: 1 | L59: =RANK(C50,$C$50:$C$55)+COUNTIF($C$50:C50,C50)-1 -> 1 | M59: =B59 -> 1 | N59: AT | O59: =VLOOKUP(N59,$C$59:$D$64,2,0) -> 0
B60: 1 | C60: AU | D60: 0 | E60: =IF(D60=D61,INDEX($J$6:$O$11,MATCH(C60,$I$6:$I$11,0),MATCH(C61,$J$5:$O$5,0)),IF(D60=D59,INDEX($J$6:$O$11,MATCH(C60,$I$6:$I$11,0),MATCH(C59,$J$5:$O$5,0)),0)) -> 0 | F60: 0 | G60: =IF(AND(F60<>F59,F60<>F61),F60,F60+VLOOKUP(C60,$A$50:$F$55,6,0)/100) -> 0 | H60: 2 | L60: =RANK(C51,$C$50:$C$55)+COUNTIF($C$50:C51,C51)-1 -> 2 | M60: 1 | N60: AU | O60: 0
B61: 1 | C61: AV | D61: 0 | E61: =IF(D61=D62,INDEX($J$6:$O$11,MATCH(C61,$I$6:$I$11,0),MATCH(C62,$J$5:$O$5,0)),IF(D61=D60,INDEX($J$6:$O$11,MATCH(C61,$I$6:$I$11,0),MATCH(C60,$J$5:$O$5,0)),0)) -> 0 | F61: 0 | G61: =IF(AND(F61<>F60,F61<>F62),F61,F61+VLOOKUP(C61,$A$50:$F$55,6,0)/100) -> 0 | H61: 3 | L61: =RANK(C52,$C$50:$C$55)+COUNTIF($C$50:C52,C52)-1 -> 3 | M61: 1 | N61: AV | O61: 0
B62: 1 | C62: AW | D62: 0 | E62: =IF(D62=D63,INDEX($J$6:$O$11,MATCH(C62,$I$6:$I$11,0),MATCH(C63,$J$5:$O$5,0)),IF(D62=D61,INDEX($J$6:$O$11,MATCH(C62,$I$6:$I$11,0),MATCH(C61,$J$5:$O$5,0)),0)) -> 0 | F62: 0 | G62: =IF(AND(F62<>F61,F62<>F63),F62,F62+VLOOKUP(C62,$A$50:$F$55,6,0)/100) -> 0 | H62: 4 | L62: =RANK(C53,$C$50:$C$55)+COUNTIF($C$50:C53,C53)-1 -> 4 | M62: 1 | N62: AW | O62: 0
B63: 1 | C63: AX | D63: 0 | E63: =IF(D63=D64,INDEX($J$6:$O$11,MATCH(C63,$I$6:$I$11,0),MATCH(C64,$J$5:$O$5,0)),IF(D63=D62,INDEX($J$6:$O$11,MATCH(C63,$I$6:$I$11,0),MATCH(C62,$J$5:$O$5,0)),0)) -> 0 | F63: 0 | G63: =IF(AND(F63<>F62,F63<>F64),F63,F63+VLOOKUP(C63,$A$50:$F$55,6,0)/100) -> 0 | H63: 5 | L63: =RANK(C54,$C$50:$C$55)+COUNTIF($C$50:C54,C54)-1 -> 5 | M63: 1 | N63: AX | O63: 0
B64: 1 | C64: AY | D64: 0 | E64: =IF(D64=D59,INDEX($J$6:$O$11,MATCH(C64,$I$6:$I$11,0),MATCH(C59,$J$5:$O$5,0)),IF(D64=D63,INDEX($J$6:$O$11,MATCH(C64,$I$6:$I$11,0),MATCH(C63,$J$5:$O$5,0)),0)) -> 0 | F64: 0 | G64: =IF(AND(F64<>F63,F64<>F59),F64,F64+VLOOKUP(C64,$A$50:$F$55,6,0)/100) -> 0 | H64: 6 | L64: =RANK(C55,$C$50:$C$55)+COUNTIF($C$50:C55,C55)-1 -> 6 | M64: 1 | N64: AY | O64: 0

Sheet P5
A2: CHAMPIONNAT DES CLUBS
A4: POULE 5 | I4: Récapitulatif différence match entre 2 équipes
A5: EQUIPES | C5: POINTS | D5: Pour | E5: Contre | F5: Diff | J5: =A6 -> AZ | K5: =A7 -> BA | L5: =A8 -> BB | M5: =A9 -> BC | N5: =A10 -> BD | O5: =A11 -> BE
A6: AZ | B6: 5A | C6: =SUM(E16,E23,E30,E37,F45) -> 0 | D6: =I16+I23+I30+I37+J45 -> 0 | E6: =J16+J23+J30+J37+I45 -> 0 | F6: =D6-E6 -> 0 | I6: =A6 -> AZ | K6: =IF(ISBLANK(B16),0,IFERROR(INDEX($B$15:$B$46,MATCH($I6&K$5,$K$15:$K$46,0))-INDEX($D$15:$D$46,MATCH($I6&K$5,$K$15:$K$46,0)),0-INDEX($J$6:$O$11,MATCH(K$5,$I$6:$I$11,0),MATCH($I6,$J$5:$O$5,0)))) -> 0 | L6: =IF(ISBLANK(B23),0,IFERROR(INDEX($B$15:$B$46,MATCH($I6&L$5,$K$15:$K$46,0))-INDEX($D$15:$D$46,MATCH($I6&L$5,$K$15:$K$46,0)),0-INDEX($J$6:$O$11,MATCH(L$5,$I$6:$I$11,0),MATCH($I6,$J$5:$O$5,0)))) -> 0 | M6: =IF(ISBLANK(B37),0,IFERROR(INDEX($B$15:$B$46,MATCH($I6&M$5,$K$15:$K$46,0))-INDEX($D$15:$D$46,MATCH($I6&M$5,$K$15:$K$46,0)),0-INDEX($J$6:$O$11,MATCH(M$5,$I$6:$I$11,0),MATCH($I6,$J$5:$O$5,0)))) -> 0 | N6: =IF(ISBLANK(B45),0,IFERROR(INDEX($B$15:$B$46,MATCH($I6&N$5,$K$15:$K$46,0))-INDEX($D$15:$D$46,MATCH($I6&N$5,$K$15:$K$46,0)),0-INDEX($J$6:$O$11,MATCH(N$5,$I$6:$I$11,0),MATCH($I6,$J$5:$O$5,0)))) -> 0 | O6: =IF(ISBLANK(B30),0,IFERROR(INDEX($B$15:$B$46,MATCH($I6&O$5,$K$15:$K$46,0))-INDEX($D$15:$D$46,MATCH($I6&O$5,$K$15:$K$46,0)),0-INDEX($J$6:$O$11,MATCH(O$5,$I$6:$I$11,0),MATCH($I6,$J$5:$O$5,0)))) -> 0
A7: BA | B7: 5B | C7: =SUM(F16,E24,F32,E38,E46) -> 0 | D7: =J16+I24+J32+I38+I46 -> 0 | E7: =I16+J24+I32+J38+J46 -> 0 | F7: 0 | I7: BA | J7: =IF(ISBLANK(B16),0,IFERROR(INDEX($B$15:$B$46,MATCH($I7&J$5,$K$15:$K$46,0))-INDEX($D$15:$D$46,MATCH($I7&J$5,$K$15:$K$46,0)),0-INDEX($J$6:$O$11,MATCH(J$5,$I$6:$I$11,0),MATCH($I7,$J$5:$O$5,0)))) -> 0 | L7: =IF(ISBLANK(B32),0,IFERROR(INDEX($B$15:$B$46,MATCH($I7&L$5,$K$15:$K$46,0))-INDEX($D$15:$D$46,MATCH($I7&L$5,$K$15:$K$46,0)),0-INDEX($J$6:$O$11,MATCH(L$5,$I$6:$I$11,0),MATCH($I7,$J$5:$O$5,0)))) -> 0 | M7: =IF(ISBLANK(B46),0,IFERROR(INDEX($B$15:$B$46,MATCH($I7&M$5,$K$15:$K$46,0))-INDEX($D$15:$D$46,MATCH($I7&M$5,$K$15:$K$46,0)),0-INDEX($J$6:$O$11,MATCH(M$5,$I$6:$I$11,0),MATCH($I7,$J$5:$O$5,0)))) -> 0 | N7: =IF(ISBLANK(B24),0,IFERROR(INDEX($B$15:$B$46,MATCH($I7&N$5,$K$15:$K$46,0))-INDEX($D$15:$D$46,MATCH($I7&N$5,$K$15:$K$46,0)),0-INDEX($J$6:$O$11,MATCH(N$5,$I$6:$I$11,0),MATCH($I7,$J$5:$O$5,0)))) -> 0 | O7: =IF(ISBLANK(B38),0,IFERROR(INDEX($B$15:$B$46,MATCH($I7&O$5,$K$15:$K$46,0))-INDEX($D$15:$D$46,MATCH($I7&O$5,$K$15:$K$46,0)),0-INDEX($J$6:$O$11,MATCH(O$5,$I$6:$I$11,0),MATCH($I7,$J$5:$O$5,0)))) -> 0
A8: BB | B8: 5C | C8: =SUM(E17,F23,E32,E39,E44) -> 0 | D8: =I17+J23+I32+I39+I44 -> 0 | E8: =J17+I23+J32+J39+J44 -> 0 | F8: 0 | I8: BB | J8: =IF(ISBLANK(B23),0,IFERROR(INDEX($B$15:$B$46,MATCH($I8&J$5,$K$15:$K$46,0))-INDEX($D$15:$D$46,MATCH($I8&J$5,$K$15:$K$46,0)),0-INDEX($J$6:$O$11,MATCH(J$5,$I$6:$I$11,0),MATCH($I8,$J$5:$O$5,0)))) -> 0 | K8: =IF(ISBLANK(B32),0,IFERROR(INDEX($B$15:$B$46,MATCH($I8&K$5,$K$15:$K$46,0))-INDEX($D$15:$D$46,MATCH($I8&K$5,$K$15:$K$46,0)),0-INDEX($J$6:$O$11,MATCH(K$5,$I$6:$I$11,0),MATCH($I8,$J$5:$O$5,0)))) -> 0 | M8: =IF(ISBLANK(B17),0,IFERROR(INDEX($B$15:$B$46,MATCH($I8&M$5,$K$15:$K$46,0))-INDEX($D$15:$D$46,MATCH($I8&M$5,$K$15:$K$46,0)),0-INDEX($J$6:$O$11,MATCH(M$5,$I$6:$I$11,0),MATCH($I8,$J$5:$O$5,0)))) -> 0 | N8: =IF(ISBLANK(B39),0,IFERROR(INDEX($B$15:$B$46,MATCH($I8&N$5,$K$15:$K$46,0))-INDEX($D$15:$D$46,MATCH($I8&N$5,$K$15:$K$46,0)),0-INDEX($J$6:$O$11,MATCH(N$5,$I$6:$I$11,0),MATCH($I8,$J$5:$O$5,0)))) -> 0 | O8: =IF(ISBLANK(B44),0,IFERROR(INDEX($B$15:$B$46,MATCH($I8&O$5,$K$15:$K$46,0))-INDEX($D$15:$D$46,MATCH($I8&O$5,$K$15:$K$46,0)),0-INDEX($J$6:$O$11,MATCH(O$5,$I$6:$I$11,0),MATCH($I8,$J$5:$O$5,0)))) -> 0
A9: BC | B9: 5D | C9: =SUM(F17,E25,F31,F37,F46) -> 0 | D9: =J17+I25+J31+J37+J46 -> 0 | E9: =I17+J25+I31+I37+I46 -> 0 | F9: 0 | I9: BC | J9: =IF(ISBLANK(B37),0,IFERROR(INDEX($B$15:$B$46,MATCH($I9&J$5,$K$15:$K$46,0))-INDEX($D$15:$D$46,MATCH($I9&J$5,$K$15:$K$46,0)),0-INDEX($J$6:$O$11,MATCH(J$5,$I$6:$I$11,0),MATCH($I9,$J$5:$O$5,0)))) -> 0 | K9: =IF(ISBLANK(B46),0,IFERROR(INDEX($B$15:$B$46,MATCH($I9&K$5,$K$15:$K$46,0))-INDEX($D$15:$D$46,MATCH($I9&K$5,$K$15:$K$46,0)),0-INDEX($J$6:$O$11,MATCH(K$5,$I$6:$I$11,0),MATCH($I9,$J$5:$O$5,0)))) -> 0 | L9: =IF(ISBLANK(B17),0,IFERROR(INDEX($B$15:$B$46,MATCH($I9&L$5,$K$15:$K$46,0))-INDEX($D$15:$D$46,MATCH($I9&L$5,$K$15:$K$46,0)),0-INDEX($J$6:$O$11,MATCH(L$5,$I$6:$I$11,0),MATCH($I9,$J$5:$O$5,0)))) -> 0 | N9: =IF(ISBLANK(B31),0,IFERROR(INDEX($B$15:$B$46,MATCH($I9&N$5,$K$15:$K$46,0))-INDEX($D$15:$D$46,MATCH($I9&N$5,$K$15:$K$46,0)),0-INDEX($J$6:$O$11,MATCH(N$5,$I$6:$I$11,0),MATCH($I9,$J$5:$O$5,0)))) -> 0 | O9: =IF(ISBLANK(B25),0,IFERROR(INDEX($B$15:$B$46,MATCH($I9&O$5,$K$15:$K$46,0))-INDEX($D$15:$D$46,MATCH($I9&O$5,$K$15:$K$46,0)),0-INDEX($J$6:$O$11,MATCH(O$5,$I$6:$I$11,0),MATCH($I9,$J$5:$O$5,0)))) -> 0
A10: BD | B10: 5E | C10: =SUM(E18,F24,E31,F39,E45) -> 0 | D10: =I18+J24+I31+J39+I45 -> 0 | E10: =J18+I24+J31+I39+J45 -> 0 | F10: 0 | I10: BD | J10: =IF(ISBLANK(B45),0,IFERROR(INDEX($B$15:$B$46,MATCH($I10&J$5,$K$15:$K$46,0))-INDEX($D$15:$D$46,MATCH($I10&J$5,$K$15:$K$46,0)),0-INDEX($J$6:$O$11,MATCH(J$5,$I$6:$I$11,0),MATCH($I10,$J$5:$O$5,0)))) -> 0 | K10: =IF(ISBLANK(B24),0,IFERROR(INDEX($B$15:$B$46,MATCH($I10&K$5,$K$15:$K$46,0))-INDEX($D$15:$D$46,MATCH($I10&K$5,$K$15:$K$46,0)),0-INDEX($J$6:$O$11,MATCH(K$5,$I$6:$I$11,0),MATCH($I10,$J$5:$O$5,0)))) -> 0 | L10: =IF(ISBLANK(B39),0,IFERROR(INDEX($B$15:$B$46,MATCH($I10&L$5,$K$15:$K$46,0))-INDEX($D$15:$D$46,MATCH($I10&L$5,$K$15:$K$46,0)),0-INDEX($J$6:$O$11,MATCH(L$5,$I$6:$I$11,0),MATCH($I10,$J$5:$O$5,0)))) -> 0 | M10: =IF(ISBLANK(B31),0,IFERROR(INDEX($B$15:$B$46,MATCH($I10&M$5,$K$15:$K$46,0))-INDEX($D$15:$D$46,MATCH($I10&M$5,$K$15:$K$46,0)),0-INDEX($J$6:$O$11,MATCH(M$5,$I$6:$I$11,0),MATCH($I10,$J$5:$O$5,0)))) -> 0 | O10: =IF(ISBLANK(B18),0,IFERROR(INDEX($B$15:$B$46,MATCH($I10&O$5,$K$15:$K$46,0))-INDEX($D$15:$D$46,MATCH($I10&O$5,$K$15:$K$46,0)),0-INDEX($J$6:$O$11,MATCH(O$5,$I$6:$I$11,0),MATCH($I10,$J$5:$O$5,0)))) -> 0
A11: BE | B11: 5F | C11: =SUM(F18,F25,F30,F38,F44) -> 0 | D11: =J18+J25+J30+J38+J44 -> 0 | E11: =I18+I25+I30+I38+I44 -> 0 | F11: 0 | I11: BE | J11: =IF(ISBLANK(B30),0,IFERROR(INDEX($B$15:$B$46,MATCH($I11&J$5,$K$15:$K$46,0))-INDEX($D$15:$D$46,MATCH($I11&J$5,$K$15:$K$46,0)),0-INDEX($J$6:$O$11,MATCH(J$5,$I$6:$I$11,0),MATCH($I11,$J$5:$O$5,0)))) -> 0 | K11: =IF(ISBLANK(B38),0,IFERROR(INDEX($B$15:$B$46,MATCH($I11&K$5,$K$15:$K$46,0))-INDEX($D$15:$D$46,MATCH($I11&K$5,$K$15:$K$46,0)),0-INDEX($J$6:$O$11,MATCH(K$5,$I$6:$I$11,0),MATCH($I11,$J$5:$O$5,0)))) -> 0 | L11: =IF(ISBLANK(B44),0,IFERROR(INDEX($B$15:$B$46,MATCH($I11&L$5,$K$15:$K$46,0))-INDEX($D$15:$D$46,MATCH($I11&L$5,$K$15:$K$46,0)),0-INDEX($J$6:$O$11,MATCH(L$5,$I$6:$I$11,0),MATCH($I11,$J$5:$O$5,0)))) -> 0 | M11: =IF(ISBLANK(B25),0,IFERROR(INDEX($B$15:$B$46,MATCH($I11&M$5,$K$15:$K$46,0))-INDEX($D$15:$D$46,MATCH($I11&M$5,$K$15:$K$46,0)),0-INDEX($J$6:$O$11,MATCH(M$5,$I$6:$I$11,0),MATCH($I11,$J$5:$O$5,0)))) -> 0 | N11: =IF(ISBLANK(B18),0,IFERROR(INDEX($B$15:$B$46,MATCH($I11&N$5,$K$15:$K$46,0))-INDEX($D$15:$D$46,MATCH($I11&N$5,$K$15:$K$46,0)),0-INDEX($J$6:$O$11,MATCH(N$5,$I$6:$I$11,0),MATCH($I11,$J$5:$O$5,0)))) -> 0
I12: Les concaténations en rouge permettent de remplir par formules le récapitulatif au dessus
A13: 1er MATCH le 15 mai | B13: à | C13: =A6 -> AZ | I13: Ce récap servira à départager les ex aequos
G14: SI forfait éq recevante
A15: Equipes | B15: score | C15: Equipes | D15: score
A16: =$A$6 -> AZ | C16: =$A$7 -> BA | D16: =IF(G16=19,19,IF(ISBLANK(B16),"",IF(B16=19,0,36-B16))) ->  | E16: =IF(G16=19,0,IF(ISBLANK(B16),"",IF(B16<18,1,IF(B16=18,2,IF(B16>18,3))))) ->  | F16: =IF(G16=19,3,IF(ISBLANK(B16),"",IF(B16=19,0,IF(D16<18,1,IF(D16=18,2,IF(D16>=20,3)))))) ->  | I16: =IF(ISBLANK(B16),0,B16) -> 0 | J16: =IF(ISBLANK(B16),0,D16) -> 0 | K16: =A16&C16 -> AZBA
A17: =$A$8 -> BB | C17: =$A$9 -> BC | D17: =IF(G17=19,19,IF(ISBLANK(B17),"",IF(B17=19,0,36-B17))) ->  | E17: =IF(G17=19,0,IF(ISBLANK(B17),"",IF(B17<18,1,IF(B17=18,2,IF(B17>18,3))))) ->  | F17: =IF(G17=19,3,IF(ISBLANK(B17),"",IF(B17=19,0,IF(D17<18,1,IF(D17=18,2,IF(D17>=20,3)))))) ->  | I17: =IF(ISBLANK(B17),0,B17) -> 0 | J17: =IF(ISBLANK(B17),0,D17) -> 0 | K17: =A17&C17 -> BBBC
A18: =$A$10 -> BD | C18: =$A$11 -> BE | D18: =IF(G18=19,19,IF(ISBLANK(B18),"",IF(B18=19,0,36-B18))) ->  | E18: =IF(G18=19,0,IF(ISBLANK(B18),"",IF(B18<18,1,IF(B18=18,2,IF(B18>18,3))))) ->  | F18: =IF(G18=19,3,IF(ISBLANK(B18),"",IF(B18=19,0,IF(D18<18,1,IF(D18=18,2,IF(D18>=20,3)))))) ->  | I18: =IF(ISBLANK(B18),0,B18) -> 0 | J18: =IF(ISBLANK(B18),0,D18) -> 0 | K18: =A18&C18 -> BDBE
A20: 2 éme MATCH le 22 mai | B20: à | C20: =A7 -> BA
G21: SI forfait éq recevante
A22: Equipes | B22: score | C22: Equipes | D22: score
A23: =$A$6 -> AZ | C23: =$A$8 -> BB | D23: =IF(G23=19,19,IF(ISBLANK(B23),"",IF(B23=19,0,36-B23))) ->  | E23: =IF(G23=19,0,IF(ISBLANK(B23),"",IF(B23<18,1,IF(B23=18,2,IF(B23>18,3))))) ->  | F23: =IF(G23=19,3,IF(ISBLANK(B23),"",IF(B23=19,0,IF(D23<18,1,IF(D23=18,2,IF(D23>=20,3)))))) ->  | I23: =IF(ISBLANK(B23),0,B23) -> 0 | J23: =IF(ISBLANK(B23),0,D23) -> 0 | K23: =A23&C23 -> AZBB
A24: =$A$7 -> BA | C24: =$A$10 -> BD | D24: =IF(G24=19,19,IF(ISBLANK(B24),"",IF(B24=19,0,36-B24))) ->  | E24: =IF(G24=19,0,IF(ISBLANK(B24),"",IF(B24<18,1,IF(B24=18,2,IF(B24>18,3))))) ->  | F24: =IF(G24=19,3,IF(ISBLANK(B24),"",IF(B24=19,0,IF(D24<18,1,IF(D24=18,2,IF(D24>=20,3)))))) ->  | I24: =IF(ISBLANK(B24),0,B24) -> 0 | J24: =IF(ISBLANK(B24),0,D24) -> 0 | K24: =A24&C24 -> BABD
A25: =$A$9 -> BC | C25: =$A$11 -> BE | D25: =IF(G25=19,19,IF(ISBLANK(B25),"",IF(B25=19,0,36-B25))) ->  | E25: =IF(G25=19,0,IF(ISBLANK(B25),"",IF(B25<18,1,IF(B25=18,2,IF(B25>18,3))))) ->  | F25: =IF(G25=19,3,IF(ISBLANK(B25),"",IF(B25=19,0,IF(D25<18,1,IF(D25=18,2,IF(D25>=20,3)))))) ->  | I25: =IF(ISBLANK(B25),0,B25) -> 0 | J25: =IF(ISBLANK(B25),0,D25) -> 0 | K25: =A25&C25 -> BCBE
A27: 3 éme MATCH le 29 mai | B27: à | C27: =A8 -> BB
G28: SI forfait éq recevante
A29: Equipes | B29: score | C29: Equipes | D29: score
A30: =$A$6 -> AZ | C30: =$A$11 -> BE | D30: =IF(G30=19,19,IF(ISBLANK(B30),"",IF(B30=19,0,36-B30))) ->  | E30: =IF(G30=19,0,IF(ISBLANK(B30),"",IF(B30<18,1,IF(B30=18,2,IF(B30>18,3))))) ->  | F30: =IF(G30=19,3,IF(ISBLANK(B30),"",IF(B30=19,0,IF(D30<18,1,IF(D30=18,2,IF(D30>=20,3)))))) ->  | I30: =IF(ISBLANK(B30),0,B30) -> 0 | J30: =IF(ISBLANK(B30),0,D30) -> 0 | K30: =A30&C30 -> AZBE
A31: =$A$10 -> BD | C31: =$A$9 -> BC | D31: =IF(G31=19,19,IF(ISBLANK(B31),"",IF(B31=19,0,36-B31))) ->  | E31: =IF(G31=19,0,IF(ISBLANK(B31),"",IF(B31<18,1,IF(B31=18,2,IF(B31>18,3))))) ->  | F31: =IF(G31=19,3,IF(ISBLANK(B31),"",IF(B31=19,0,IF(D31<18,1,IF(D31=18,2,IF(D31>=20,3)))))) ->  | I31: =IF(ISBLANK(B31),0,B31) -> 0 | J31: =IF(ISBLANK(B31),0,D31) -> 0 | K31: =A31&C31 -> BDBC
A32: =$A$8 -> BB | C32: =$A$7 -> BA | D32: =IF(G32=19,19,IF(ISBLANK(B32),"",IF(B32=19,0,36-B32))) ->  | E32: =IF(G32=19,0,IF(ISBLANK(B32),"",IF(B32<18,1,IF(B32=18,2,IF(B32>18,3))))) ->  | F32: =IF(G32=19,3,IF(ISBLANK(B32),"",IF(B32=19,0,IF(D32<18,1,IF(D32=18,2,IF(D32>=20,3)))))) ->  | I32: =IF(ISBLANK(B32),0,B32) -> 0 | J32: =IF(ISBLANK(B32),0,D32) -> 0 | K32: =A32&C32 -> BBBA
A34: 4 éme MATCH le 5 juin | B34: à | C34: =A9 -> BC
G35: SI forfait éq recevante
A36: Equipes | B36: score | C36: Equipes | D36: score
A37: =A6 -> AZ | C37: =$A$9 -> BC | D37: =IF(G37=19,19,IF(ISBLANK(B37),"",IF(B37=19,0,36-B37))) ->  | E37: =IF(G37=19,0,IF(ISBLANK(B37),"",IF(B37<18,1,IF(B37=18,2,IF(B37>18,3))))) ->  | F37: =IF(G37=19,3,IF(ISBLANK(B37),"",IF(B37=19,0,IF(D37<18,1,IF(D37=18,2,IF(D37>=20,3)))))) ->  | I37: =IF(ISBLANK(B37),0,B37) -> 0 | J37: =IF(ISBLANK(B37),0,D37) -> 0 | K37: =A37&C37 -> AZBC
A38: =$A$7 -> BA | C38: =$A$11 -> BE | D38: =IF(G38=19,19,IF(ISBLANK(B38),"",IF(B38=19,0,36-B38))) ->  | E38: =IF(G38=19,0,IF(ISBLANK(B38),"",IF(B38<18,1,IF(B38=18,2,IF(B38>18,3))))) ->  | F38: =IF(G38=19,3,IF(ISBLANK(B38),"",IF(B38=19,0,IF(D38<18,1,IF(D38=18,2,IF(D38>=20,3)))))) ->  | I38: =IF(ISBLANK(B38),0,B38) -> 0 | J38: =IF(ISBLANK(B38),0,D38) -> 0 | K38: =A38&C38 -> BABE
A39: =A8 -> BB | C39: =$A$10 -> BD | D39: =IF(G39=19,19,IF(ISBLANK(B39),"",IF(B39=19,0,36-B39))) ->  | E39: =IF(G39=19,0,IF(ISBLANK(B39),"",IF(B39<18,1,IF(B39=18,2,IF(B39>18,3))))) ->  | F39: =IF(G39=19,3,IF(ISBLANK(B39),"",IF(B39=19,0,IF(D39<18,1,IF(D39=18,2,IF(D39>=20,3)))))) ->  | I39: =IF(ISBLANK(B39),0,B39) -> 0 | J39: =IF(ISBLANK(B39),0,D39) -> 0 | K39: =A39&C39 -> BBBD
A41: 5 éme MATCH le 12 juin | B41: à | C41: =A10 -> BD
G42: SI forfait éq recevante
A43: Equipes | B43: score | C43: Equipes | D43: score
A44: =A8 -> BB | C44: =$A$11 -> BE | D44: =IF(G44=19,19,IF(ISBLANK(B44),"",IF(B44=19,0,36-B44))) ->  | E44: =IF(G44=19,0,IF(ISBLANK(B44),"",IF(B44<18,1,IF(B44=18,2,IF(B44>18,3))))) ->  | F44: =IF(G44=19,3,IF(ISBLANK(B44),"",IF(B44=19,0,IF(D44<18,1,IF(D44=18,2,IF(D44>=20,3)))))) ->  | I44: =IF(ISBLANK(B44),0,B44) -> 0 | J44: =IF(ISBLANK(B44),0,D44) -> 0 | K44: =A44&C44 -> BBBE
A45: =$A$10 -> BD | C45: =A6 -> AZ | D45: =IF(G45=19,19,IF(ISBLANK(B45),"",IF(B45=19,0,36-B45))) ->  | E45: =IF(G45=19,0,IF(ISBLANK(B45),"",IF(B45<18,1,IF(B45=18,2,IF(B45>18,3))))) ->  | F45: =IF(G45=19,3,IF(ISBLANK(B45),"",IF(B45=19,0,IF(D45<18,1,IF(D45=18,2,IF(D45>=20,3)))))) ->  | I45: =IF(ISBLANK(B45),0,B45) -> 0 | J45: =IF(ISBLANK(B45),0,D45) -> 0 | K45: =A45&C45 -> BDAZ
A46: =A7 -> BA | C46: =$A$9 -> BC | D46: =IF(G46=19,19,IF(ISBLANK(B46),"",IF(B46=19,0,36-B46))) ->  | E46: =IF(G46=19,0,IF(ISBLANK(B46),"",IF(B46<18,1,IF(B46=18,2,IF(B46>18,3))))) ->  | F46: =IF(G46=19,3,IF(ISBLANK(B46),"",IF(B46=19,0,IF(D46<18,1,IF(D46=18,2,IF(D46>=20,3)))))) ->  | I46: =IF(ISBLANK(B46),0,B46) -> 0 | J46: =IF(ISBLANK(B46),0,D46) -> 0 | K46: =A46&C46 -> BABC
A48: CLASSEMENT
A49: EQUIPES | C49: POINTS | D49: Pour | E49: Contre | F49: Diff | G49: CLASST
A50: AZ | B50: 5A | C50: 0 | D50: 0 | E50: 0 | F50: 0 | G50: =B59 -> 1 | H50: =IF(AND(G50=1,COUNTIF(rang1,1)>1),COUNTIF(G$50:G50,1),IF(AND(G50=2,COUNTIF(rang1,2)>1),COUNTIF(G$50:G50,2)+3,"")) -> 1
A51: BA | B51: 5B | C51: 0 | D51: 0 | E51: 0 | F51: 0 | G51: 1 | H51: =IF(AND(G51=1,COUNTIF(rang1,1)>1),COUNTIF(G$50:G51,1),IF(AND(G51=2,COUNTIF(rang1,2)>1),COUNTIF(G$50:G51,2)+3,"")) -> 2
A52: BB | B52: 5C | C52: 0 | D52: 0 | E52: 0 | F52: 0 | G52: 1 | H52: =IF(AND(G52=1,COUNTIF(rang1,1)>1),COUNTIF(G$50:G52,1),IF(AND(G52=2,COUNTIF(rang1,2)>1),COUNTIF(G$50:G52,2)+3,"")) -> 3
A53: BC | B53: 5D | C53: 0 | D53: 0 | E53: 0 | F53: 0 | G53: 1 | H53: =IF(AND(G53=1,COUNTIF(rang1,1)>1),COUNTIF(G$50:G53,1),IF(AND(G53=2,COUNTIF(rang1,2)>1),COUNTIF(G$50:G53,2)+3,"")) -> 4
A54: BD | B54: 5E | C54: 0 | D54: 0 | E54: 0 | F54: 0 | G54: 1 | H54: =IF(AND(G54=1,COUNTIF(rang1,1)>1),COUNTIF(G$50:G54,1),IF(AND(G54=2,COUNTIF(rang1,2)>1),COUNTIF(G$50:G54,2)+3,"")) -> 5
A55: BE | B55: 5F | C55: 0 | D55: 0 | E55: 0 | F55: 0 | G55: 1 | H55: =IF(AND(G55=1,COUNTIF(rang1,1)>1),COUNTIF(G$50:G55,1),IF(AND(G55=2,COUNTIF(rang1,2)>1),COUNTIF(G$50:G55,2)+3,"")) -> 6
B57: CLASSEMENT FINAL et DEPARTAGE EX AEQUOS | M57: CLASSEMENT
B58: Rang | C58: Equipes | D58: Pts | E58: diff pts avec exaequo | F58: cumul | G58: departage goalaverage si même cumul | H58: RP | L58: RP | M58: Rang | N58: Equipe | O58: Pts
B59: =RANK(G59,$G$59:$G$64) -> 1 | C59: =INDEX($A$50:$A$55,MATCH(H59,$L$59:$L$64,0)) -> AZ | D59: =VLOOKUP(C59,$A$50:$C$55,3,0) -> 0 | E59: =IF(D59=D60,INDEX($J$6:$O$11,MATCH(C59,$I$6:$I$11,0),MATCH(C60,$J$5:$O$5,0)),IF(D59=D58,INDEX($J$6:$O$11,MATCH(C59,$I$6:$I$11,0),MATCH(C58,$J$5:$O$5,0)),0)) -> 0 | F59: =D59+E59/100 -> 0 | G59: =IF(AND(F59<>F58,F59<>F60),F59,F59+VLOOKUP(C59,$A$50:$F$55,6,0)/100) -> 0 | H59: 1 | L59: =RANK(C50,$C$50:$C$55)+COUNTIF($C$50:C50,C50)-1 -> 1 | M59: =B59 -> 1 | N59: AZ | O59: =VLOOKUP(N59,$C$59:$D$64,2,0) -> 0
B60: 1 | C60: BA | D60: 0 | E60: =IF(D60=D61,INDEX($J$6:$O$11,MATCH(C60,$I$6:$I$11,0),MATCH(C61,$J$5:$O$5,0)),IF(D60=D59,INDEX($J$6:$O$11,MATCH(C60,$I$6:$I$11,0),MATCH(C59,$J$5:$O$5,0)),0)) -> 0 | F60: 0 | G60: =IF(AND(F60<>F59,F60<>F61),F60,F60+VLOOKUP(C60,$A$50:$F$55,6,0)/100) -> 0 | H60: 2 | L60: =RANK(C51,$C$50:$C$55)+COUNTIF($C$50:C51,C51)-1 -> 2 | M60: 1 | N60: BA | O60: 0
B61: 1 | C61: BB | D61: 0 | E61: =IF(D61=D62,INDEX($J$6:$O$11,MATCH(C61,$I$6:$I$11,0),MATCH(C62,$J$5:$O$5,0)),IF(D61=D60,INDEX($J$6:$O$11,MATCH(C61,$I$6:$I$11,0),MATCH(C60,$J$5:$O$5,0)),0)) -> 0 | F61: 0 | G61: =IF(AND(F61<>F60,F61<>F62),F61,F61+VLOOKUP(C61,$A$50:$F$55,6,0)/100) -> 0 | H61: 3 | L61: =RANK(C52,$C$50:$C$55)+COUNTIF($C$50:C52,C52)-1 -> 3 | M61: 1 | N61: BB | O61: 0
B62: 1 | C62: BC | D62: 0 | E62: =IF(D62=D63,INDEX($J$6:$O$11,MATCH(C62,$I$6:$I$11,0),MATCH(C63,$J$5:$O$5,0)),IF(D62=D61,INDEX($J$6:$O$11,MATCH(C62,$I$6:$I$11,0),MATCH(C61,$J$5:$O$5,0)),0)) -> 0 | F62: 0 | G62: =IF(AND(F62<>F61,F62<>F63),F62,F62+VLOOKUP(C62,$A$50:$F$55,6,0)/100) -> 0 | H62: 4 | L62: =RANK(C53,$C$50:$C$55)+COUNTIF($C$50:C53,C53)-1 -> 4 | M62: 1 | N62: BC | O62: 0
B63: 1 | C63: BD | D63: 0 | E63: =IF(D63=D64,INDEX($J$6:$O$11,MATCH(C63,$I$6:$I$11,0),MATCH(C64,$J$5:$O$5,0)),IF(D63=D62,INDEX($J$6:$O$11,MATCH(C63,$I$6:$I$11,0),MATCH(C62,$J$5:$O$5,0)),0)) -> 0 | F63: 0 | G63: =IF(AND(F63<>F62,F63<>F64),F63,F63+VLOOKUP(C63,$A$50:$F$55,6,0)/100) -> 0 | H63: 5 | L63: =RANK(C54,$C$50:$C$55)+COUNTIF($C$50:C54,C54)-1 -> 5 | M63: 1 | N63: BD | O63: 0
B64: 1 | C64: BE | D64: 0 | E64: =IF(D64=D59,INDEX($J$6:$O$11,MATCH(C64,$I$6:$I$11,0),MATCH(C59,$J$5:$O$5,0)),IF(D64=D63,INDEX($J$6:$O$11,MATCH(C64,$I$6:$I$11,0),MATCH(C63,$J$5:$O$5,0)),0)) -> 0 | F64: 0 | G64: =IF(AND(F64<>F63,F64<>F59),F64,F64+VLOOKUP(C64,$A$50:$F$55,6,0)/100) -> 0 | H64: 6 | L64: =RANK(C55,$C$50:$C$55)+COUNTIF($C$50:C55,C55)-1 -> 6 | M64: 1 | N64: BE | O64: 0

Sheet P6
A2: CHAMPIONNAT DES CLUBS
A4: POULE 6 | I4: Récapitulatif différence match entre 2 équipes
A5: EQUIPES | C5: POINTS | D5: Pour | E5: Contre | F5: Diff | J5: =A6 -> BF | K5: =A7 -> BG | L5: =A8 -> BH | M5: =A9 -> BI | N5: =A10 -> BJ | O5: =A11 -> BK
A6: BF | B6: 6A | C6: =SUM(E16,E23,E30,E37,F45) -> 0 | D6: =I16+I23+I30+I37+J45 -> 0 | E6: =J16+J23+J30+J37+I45 -> 0 | F6: =D6-E6 -> 0 | I6: =A6 -> BF | K6: =IF(ISBLANK(B16),0,IFERROR(INDEX($B$15:$B$46,MATCH($I6&K$5,$K$15:$K$46,0))-INDEX($D$15:$D$46,MATCH($I6&K$5,$K$15:$K$46,0)),0-INDEX($J$6:$O$11,MATCH(K$5,$I$6:$I$11,0),MATCH($I6,$J$5:$O$5,0)))) -> 0 | L6: =IF(ISBLANK(B23),0,IFERROR(INDEX($B$15:$B$46,MATCH($I6&L$5,$K$15:$K$46,0))-INDEX($D$15:$D$46,MATCH($I6&L$5,$K$15:$K$46,0)),0-INDEX($J$6:$O$11,MATCH(L$5,$I$6:$I$11,0),MATCH($I6,$J$5:$O$5,0)))) -> 0 | M6: =IF(ISBLANK(B37),0,IFERROR(INDEX($B$15:$B$46,MATCH($I6&M$5,$K$15:$K$46,0))-INDEX($D$15:$D$46,MATCH($I6&M$5,$K$15:$K$46,0)),0-INDEX($J$6:$O$11,MATCH(M$5,$I$6:$I$11,0),MATCH($I6,$J$5:$O$5,0)))) -> 0 | N6: =IF(ISBLANK(B45),0,IFERROR(INDEX($B$15:$B$46,MATCH($I6&N$5,$K$15:$K$46,0))-INDEX($D$15:$D$46,MATCH($I6&N$5,$K$15:$K$46,0)),0-INDEX($J$6:$O$11,MATCH(N$5,$I$6:$I$11,0),MATCH($I6,$J$5:$O$5,0)))) -> 0 | O6: =IF(ISBLANK(B30),0,IFERROR(INDEX($B$15:$B$46,MATCH($I6&O$5,$K$15:$K$46,0))-INDEX($D$15:$D$46,MATCH($I6&O$5,$K$15:$K$46,0)),0-INDEX($J$6:$O$11,MATCH(O$5,$I$6:$I$11,0),MATCH($I6,$J$5:$O$5,0)))) -> 0
A7: BG | B7: 6B | C7: =SUM(F16,E24,F32,E38,E46) -> 0 | D7: =J16+I24+J32+I38+I46 -> 0 | E7: =I16+J24+I32+J38+J46 -> 0 | F7: 0 | I7: BG | J7: =IF(ISBLANK(B16),0,IFERROR(INDEX($B$15:$B$46,MATCH($I7&J$5,$K$15:$K$46,0))-INDEX($D$15:$D$46,MATCH($I7&J$5,$K$15:$K$46,0)),0-INDEX($J$6:$O$11,MATCH(J$5,$I$6:$I$11,0),MATCH($I7,$J$5:$O$5,0)))) -> 0 | L7: =IF(ISBLANK(B32),0,IFERROR(INDEX($B$15:$B$46,MATCH($I7&L$5,$K$15:$K$46,0))-INDEX($D$15:$D$46,MATCH($I7&L$5,$K$15:$K$46,0)),0-INDEX($J$6:$O$11,MATCH(L$5,$I$6:$I$11,0),MATCH($I7,$J$5:$O$5,0)))) -> 0 | M7: =IF(ISBLANK(B46),0,IFERROR(INDEX($B$15:$B$46,MATCH($I7&M$5,$K$15:$K$46,0))-INDEX($D$15:$D$46,MATCH($I7&M$5,$K$15:$K$46,0)),0-INDEX($J$6:$O$11,MATCH(M$5,$I$6:$I$11,0),MATCH($I7,$J$5:$O$5,0)))) -> 0 | N7: =IF(ISBLANK(B24),0,IFERROR(INDEX($B$15:$B$46,MATCH($I7&N$5,$K$15:$K$46,0))-INDEX($D$15:$D$46,MATCH($I7&N$5,$K$15:$K$46,0)),0-INDEX($J$6:$O$11,MATCH(N$5,$I$6:$I$11,0),MATCH($I7,$J$5:$O$5,0)))) -> 0 | O7: =IF(ISBLANK(B38),0,IFERROR(INDEX($B$15:$B$46,MATCH($I7&O$5,$K$15:$K$46,0))-INDEX($D$15:$D$46,MATCH($I7&O$5,$K$15:$K$46,0)),0-INDEX($J$6:$O$11,MATCH(O$5,$I$6:$I$11,0),MATCH($I7,$J$5:$O$5,0)))) -> 0
A8: BH | B8: 6C | C8: =SUM(E17,F23,E32,E39,E44) -> 0 | D8: =I17+J23+I32+I39+I44 -> 0 | E8: =J17+I23+J32+J39+J44 -> 0 | F8: 0 | I8: BH | J8: =IF(ISBLANK(B23),0,IFERROR(INDEX($B$15:$B$46,MATCH($I8&J$5,$K$15:$K$46,0))-INDEX($D$15:$D$46,MATCH($I8&J$5,$K$15:$K$46,0)),0-INDEX($J$6:$O$11,MATCH(J$5,$I$6:$I$11,0),MATCH($I8,$J$5:$O$5,0)))) -> 0 | K8: =IF(ISBLANK(B32),0,IFERROR(INDEX($B$15:$B$46,MATCH($I8&K$5,$K$15:$K$46,0))-INDEX($D$15:$D$46,MATCH($I8&K$5,$K$15:$K$46,0)),0-INDEX($J$6:$O$11,MATCH(K$5,$I$6:$I$11,0),MATCH($I8,$J$5:$O$5,0)))) -> 0 | M8: =IF(ISBLANK(B17),0,IFERROR(INDEX($B$15:$B$46,MATCH($I8&M$5,$K$15:$K$46,0))-INDEX($D$15:$D$46,MATCH($I8&M$5,$K$15:$K$46,0)),0-INDEX($J$6:$O$11,MATCH(M$5,$I$6:$I$11,0),MATCH($I8,$J$5:$O$5,0)))) -> 0 | N8: =IF(ISBLANK(B39),0,IFERROR(INDEX($B$15:$B$46,MATCH($I8&N$5,$K$15:$K$46,0))-INDEX($D$15:$D$46,MATCH($I8&N$5,$K$15:$K$46,0)),0-INDEX($J$6:$O$11,MATCH(N$5,$I$6:$I$11,0),MATCH($I8,$J$5:$O$5,0)))) -> 0 | O8: =IF(ISBLANK(B44),0,IFERROR(INDEX($B$15:$B$46,MATCH($I8&O$5,$K$15:$K$46,0))-INDEX($D$15:$D$46,MATCH($I8&O$5,$K$15:$K$46,0)),0-INDEX($J$6:$O$11,MATCH(O$5,$I$6:$I$11,0),MATCH($I8,$J$5:$O$5,0)))) -> 0
A9: BI | B9: 6D | C9: =SUM(F17,E25,F31,F37,F46) -> 0 | D9: =J17+I25+J31+J37+J46 -> 0 | E9: =I17+J25+I31+I37+I46 -> 0 | F9: 0 | I9: BI | J9: =IF(ISBLANK(B37),0,IFERROR(INDEX($B$15:$B$46,MATCH($I9&J$5,$K$15:$K$46,0))-INDEX($D$15:$D$46,MATCH($I9&J$5,$K$15:$K$46,0)),0-INDEX($J$6:$O$11,MATCH(J$5,$I$6:$I$11,0),MATCH($I9,$J$5:$O$5,0)))) -> 0 | K9: =IF(ISBLANK(B46),0,IFERROR(INDEX($B$15:$B$46,MATCH($I9&K$5,$K$15:$K$46,0))-INDEX($D$15:$D$46,MATCH($I9&K$5,$K$15:$K$46,0)),0-INDEX($J$6:$O$11,MATCH(K$5,$I$6:$I$11,0),MATCH($I9,$J$5:$O$5,0)))) -> 0 | L9: =IF(ISBLANK(B17),0,IFERROR(INDEX($B$15:$B$46,MATCH($I9&L$5,$K$15:$K$46,0))-INDEX($D$15:$D$46,MATCH($I9&L$5,$K$15:$K$46,0)),0-INDEX($J$6:$O$11,MATCH(L$5,$I$6:$I$11,0),MATCH($I9,$J$5:$O$5,0)))) -> 0 | N9: =IF(ISBLANK(B31),0,IFERROR(INDEX($B$15:$B$46,MATCH($I9&N$5,$K$15:$K$46,0))-INDEX($D$15:$D$46,MATCH($I9&N$5,$K$15:$K$46,0)),0-INDEX($J$6:$O$11,MATCH(N$5,$I$6:$I$11,0),MATCH($I9,$J$5:$O$5,0)))) -> 0 | O9: =IF(ISBLANK(B25),0,IFERROR(INDEX($B$15:$B$46,MATCH($I9&O$5,$K$15:$K$46,0))-INDEX($D$15:$D$46,MATCH($I9&O$5,$K$15:$K$46,0)),0-INDEX($J$6:$O$11,MATCH(O$5,$I$6:$I$11,0),MATCH($I9,$J$5:$O$5,0)))) -> 0
A10: BJ | B10: 6E | C10: =SUM(E18,F24,E31,F39,E45) -> 0 | D10: =I18+J24+I31+J39+I45 -> 0 | E10: =J18+I24+J31+I39+J45 -> 0 | F10: 0 | I10: BJ | J10: =IF(ISBLANK(B45),0,IFERROR(INDEX($B$15:$B$46,MATCH($I10&J$5,$K$15:$K$46,0))-INDEX($D$15:$D$46,MATCH($I10&J$5,$K$15:$K$46,0)),0-INDEX($J$6:$O$11,MATCH(J$5,$I$6:$I$11,0),MATCH($I10,$J$5:$O$5,0)))) -> 0 | K10: =IF(ISBLANK(B24),0,IFERROR(INDEX($B$15:$B$46,MATCH($I10&K$5,$K$15:$K$46,0))-INDEX($D$15:$D$46,MATCH($I10&K$5,$K$15:$K$46,0)),0-INDEX($J$6:$O$11,MATCH(K$5,$I$6:$I$11,0),MATCH($I10,$J$5:$O$5,0)))) -> 0 | L10: =IF(ISBLANK(B39),0,IFERROR(INDEX($B$15:$B$46,MATCH($I10&L$5,$K$15:$K$46,0))-INDEX($D$15:$D$46,MATCH($I10&L$5,$K$15:$K$46,0)),0-INDEX($J$6:$O$11,MATCH(L$5,$I$6:$I$11,0),MATCH($I10,$J$5:$O$5,0)))) -> 0 | M10: =IF(ISBLANK(B31),0,IFERROR(INDEX($B$15:$B$46,MATCH($I10&M$5,$K$15:$K$46,0))-INDEX($D$15:$D$46,MATCH($I10&M$5,$K$15:$K$46,0)),0-INDEX($J$6:$O$11,MATCH(M$5,$I$6:$I$11,0),MATCH($I10,$J$5:$O$5,0)))) -> 0 | O10: =IF(ISBLANK(B18),0,IFERROR(INDEX($B$15:$B$46,MATCH($I10&O$5,$K$15:$K$46,0))-INDEX($D$15:$D$46,MATCH($I10&O$5,$K$15:$K$46,0)),0-INDEX($J$6:$O$11,MATCH(O$5,$I$6:$I$11,0),MATCH($I10,$J$5:$O$5,0)))) -> 0
A11: BK | B11: 6F | C11: =SUM(F18,F25,F30,F38,F44) -> 0 | D11: =J18+J25+J30+J38+J44 -> 0 | E11: =I18+I25+I30+I38+I44 -> 0 | F11: 0 | I11: BK | J11: =IF(ISBLANK(B30),0,IFERROR(INDEX($B$15:$B$46,MATCH($I11&J$5,$K$15:$K$46,0))-INDEX($D$15:$D$46,MATCH($I11&J$5,$K$15:$K$46,0)),0-INDEX($J$6:$O$11,MATCH(J$5,$I$6:$I$11,0),MATCH($I11,$J$5:$O$5,0)))) -> 0 | K11: =IF(ISBLANK(B38),0,IFERROR(INDEX($B$15:$B$46,MATCH($I11&K$5,$K$15:$K$46,0))-INDEX($D$15:$D$46,MATCH($I11&K$5,$K$15:$K$46,0)),0-INDEX($J$6:$O$11,MATCH(K$5,$I$6:$I$11,0),MATCH($I11,$J$5:$O$5,0)))) -> 0 | L11: =IF(ISBLANK(B44),0,IFERROR(INDEX($B$15:$B$46,MATCH($I11&L$5,$K$15:$K$46,0))-INDEX($D$15:$D$46,MATCH($I11&L$5,$K$15:$K$46,0)),0-INDEX($J$6:$O$11,MATCH(L$5,$I$6:$I$11,0),MATCH($I11,$J$5:$O$5,0)))) -> 0 | M11: =IF(ISBLANK(B25),0,IFERROR(INDEX($B$15:$B$46,MATCH($I11&M$5,$K$15:$K$46,0))-INDEX($D$15:$D$46,MATCH($I11&M$5,$K$15:$K$46,0)),0-INDEX($J$6:$O$11,MATCH(M$5,$I$6:$I$11,0),MATCH($I11,$J$5:$O$5,0)))) -> 0 | N11: =IF(ISBLANK(B18),0,IFERROR(INDEX($B$15:$B$46,MATCH($I11&N$5,$K$15:$K$46,0))-INDEX($D$15:$D$46,MATCH($I11&N$5,$K$15:$K$46,0)),0-INDEX($J$6:$O$11,MATCH(N$5,$I$6:$I$11,0),MATCH($I11,$J$5:$O$5,0)))) -> 0
I12: Les concaténations en rouge permettent de remplir par formules le récapitulatif au dessus
A13: 1er MATCH le 15 mai | B13: à | C13: =A6 -> BF | I13: Ce récap servira à départager les ex aequos
G14: SI forfait éq recevante
A15: Equipes | B15: score | C15: Equipes | D15: score
A16: =$A$6 -> BF | C16: =$A$7 -> BG | D16: =IF(G16=19,19,IF(ISBLANK(B16),"",IF(B16=19,0,36-B16))) ->  | E16: =IF(G16=19,0,IF(ISBLANK(B16),"",IF(B16<18,1,IF(B16=18,2,IF(B16>18,3))))) ->  | F16: =IF(G16=19,3,IF(ISBLANK(B16),"",IF(B16=19,0,IF(D16<18,1,IF(D16=18,2,IF(D16>=20,3)))))) ->  | I16: =IF(ISBLANK(B16),0,B16) -> 0 | J16: =IF(ISBLANK(B16),0,D16) -> 0 | K16: =A16&C16 -> BFBG
A17: =$A$8 -> BH | C17: =$A$9 -> BI | D17: =IF(G17=19,19,IF(ISBLANK(B17),"",IF(B17=19,0,36-B17))) ->  | E17: =IF(G17=19,0,IF(ISBLANK(B17),"",IF(B17<18,1,IF(B17=18,2,IF(B17>18,3))))) ->  | F17: =IF(G17=19,3,IF(ISBLANK(B17),"",IF(B17=19,0,IF(D17<18,1,IF(D17=18,2,IF(D17>=20,3)))))) ->  | I17: =IF(ISBLANK(B17),0,B17) -> 0 | J17: =IF(ISBLANK(B17),0,D17) -> 0 | K17: =A17&C17 -> BHBI
A18: =$A$10 -> BJ | C18: =$A$11 -> BK | D18: =IF(G18=19,19,IF(ISBLANK(B18),"",IF(B18=19,0,36-B18))) ->  | E18: =IF(G18=19,0,IF(ISBLANK(B18),"",IF(B18<18,1,IF(B18=18,2,IF(B18>18,3))))) ->  | F18: =IF(G18=19,3,IF(ISBLANK(B18),"",IF(B18=19,0,IF(D18<18,1,IF(D18=18,2,IF(D18>=20,3)))))) ->  | I18: =IF(ISBLANK(B18),0,B18) -> 0 | J18: =IF(ISBLANK(B18),0,D18) -> 0 | K18: =A18&C18 -> BJBK
A20: 2 éme MATCH le 22 mai | B20: à | C20: =A7 -> BG
G21: SI forfait éq recevante
A22: Equipes | B22: score | C22: Equipes | D22: score
A23: =$A$6 -> BF | C23: =$A$8 -> BH | D23: =IF(G23=19,19,IF(ISBLANK(B23),"",IF(B23=19,0,36-B23))) ->  | E23: =IF(G23=19,0,IF(ISBLANK(B23),"",IF(B23<18,1,IF(B23=18,2,IF(B23>18,3))))) ->  | F23: =IF(G23=19,3,IF(ISBLANK(B23),"",IF(B23=19,0,IF(D23<18,1,IF(D23=18,2,IF(D23>=20,3)))))) ->  | I23: =IF(ISBLANK(B23),0,B23) -> 0 | J23: =IF(ISBLANK(B23),0,D23) -> 0 | K23: =A23&C23 -> BFBH
A24: =$A$7 -> BG | C24: =$A$10 -> BJ | D24: =IF(G24=19,19,IF(ISBLANK(B24),"",IF(B24=19,0,36-B24))) ->  | E24: =IF(G24=19,0,IF(ISBLANK(B24),"",IF(B24<18,1,IF(B24=18,2,IF(B24>18,3))))) ->  | F24: =IF(G24=19,3,IF(ISBLANK(B24),"",IF(B24=19,0,IF(D24<18,1,IF(D24=18,2,IF(D24>=20,3)))))) ->  | I24: =IF(ISBLANK(B24),0,B24) -> 0 | J24: =IF(ISBLANK(B24),0,D24) -> 0 | K24: =A24&C24 -> BGBJ
A25: =$A$9 -> BI | C25: =$A$11 -> BK | D25: =IF(G25=19,19,IF(ISBLANK(B25),"",IF(B25=19,0,36-B25))) ->  | E25: =IF(G25=19,0,IF(ISBLANK(B25),"",IF(B25<18,1,IF(B25=18,2,IF(B25>18,3))))) ->  | F25: =IF(G25=19,3,IF(ISBLANK(B25),"",IF(B25=19,0,IF(D25<18,1,IF(D25=18,2,IF(D25>=20,3)))))) ->  | I25: =IF(ISBLANK(B25),0,B25) -> 0 | J25: =IF(ISBLANK(B25),0,D25) -> 0 | K25: =A25&C25 -> BIBK
A27: 3 éme MATCH le 29 mai | B27: à | C27: =A8 -> BH
G28: SI forfait éq recevante
A29: Equipes | B29: score | C29: Equipes | D29: score
A30: =$A$6 -> BF | C30: =$A$11 -> BK | D30: =IF(G30=19,19,IF(ISBLANK(B30),"",IF(B30=19,0,36-B30))) ->  | E30: =IF(G30=19,0,IF(ISBLANK(B30),"",IF(B30<18,1,IF(B30=18,2,IF(B30>18,3))))) ->  | F30: =IF(G30=19,3,IF(ISBLANK(B30),"",IF(B30=19,0,IF(D30<18,1,IF(D30=18,2,IF(D30>=20,3)))))) ->  | I30: =IF(ISBLANK(B30),0,B30) -> 0 | J30: =IF(ISBLANK(B30),0,D30) -> 0 | K30: =A30&C30 -> BFBK
A31: =$A$10 -> BJ | C31: =$A$9 -> BI | D31: =IF(G31=19,19,IF(ISBLANK(B31),"",IF(B31=19,0,36-B31))) ->  | E31: =IF(G31=19,0,IF(ISBLANK(B31),"",IF(B31<18,1,IF(B31=18,2,IF(B31>18,3))))) ->  | F31: =IF(G31=19,3,IF(ISBLANK(B31),"",IF(B31=19,0,IF(D31<18,1,IF(D31=18,2,IF(D31>=20,3)))))) ->  | I31: =IF(ISBLANK(B31),0,B31) -> 0 | J31: =IF(ISBLANK(B31),0,D31) -> 0 | K31: =A31&C31 -> BJBI
A32: =$A$8 -> BH | C32: =$A$7 -> BG | D32: =IF(G32=19,19,IF(ISBLANK(B32),"",IF(B32=19,0,36-B32))) ->  | E32: =IF(G32=19,0,IF(ISBLANK(B32),"",IF(B32<18,1,IF(B32=18,2,IF(B32>18,3))))) ->  | F32: =IF(G32=19,3,IF(ISBLANK(B32),"",IF(B32=19,0,IF(D32<18,1,IF(D32=18,2,IF(D32>=20,3)))))) ->  | I32: =IF(ISBLANK(B32),0,B32) -> 0 | J32: =IF(ISBLANK(B32),0,D32) -> 0 | K32: =A32&C32 -> BHBG
A34: 4 éme MATCH le 5 juin | B34: à | C34: =A9 -> BI
G35: SI forfait éq recevante
A36: Equipes | B36: score | C36: Equipes | D36: score
A37: =A6 -> BF | C37: =$A$9 -> BI | D37: =IF(G37=19,19,IF(ISBLANK(B37),"",IF(B37=19,0,36-B37))) ->  | E37: =IF(G37=19,0,IF(ISBLANK(B37),"",IF(B37<18,1,IF(B37=18,2,IF(B37>18,3))))) ->  | F37: =IF(G37=19,3,IF(ISBLANK(B37),"",IF(B37=19,0,IF(D37<18,1,IF(D37=18,2,IF(D37>=20,3)))))) ->  | I37: =IF(ISBLANK(B37),0,B37) -> 0 | J37: =IF(ISBLANK(B37),0,D37) -> 0 | K37: =A37&C37 -> BFBI
A38: =$A$7 -> BG | C38: =$A$11 -> BK | D38: =IF(G38=19,19,IF(ISBLANK(B38),"",IF(B38=19,0,36-B38))) ->  | E38: =IF(G38=19,0,IF(ISBLANK(B38),"",IF(B38<18,1,IF(B38=18,2,IF(B38>18,3))))) ->  | F38: =IF(G38=19,3,IF(ISBLANK(B38),"",IF(B38=19,0,IF(D38<18,1,IF(D38=18,2,IF(D38>=20,3)))))) ->  | I38: =IF(ISBLANK(B38),0,B38) -> 0 | J38: =IF(ISBLANK(B38),0,D38) -> 0 | K38: =A38&C38 -> BGBK
A39: =A8 -> BH | C39: =$A$10 -> BJ | D39: =IF(G39=19,19,IF(ISBLANK(B39),"",IF(B39=19,0,36-B39))) ->  | E39: =IF(G39=19,0,IF(ISBLANK(B39),"",IF(B39<18,1,IF(B39=18,2,IF(B39>18,3))))) ->  | F39: =IF(G39=19,3,IF(ISBLANK(B39),"",IF(B39=19,0,IF(D39<18,1,IF(D39=18,2,IF(D39>=20,3)))))) ->  | I39: =IF(ISBLANK(B39),0,B39) -> 0 | J39: =IF(ISBLANK(B39),0,D39) -> 0 | K39: =A39&C39 -> BHBJ
A41: 5 éme MATCH le 12 juin | B41: à | C41: =A10 -> BJ
G42: SI forfait éq recevante
A43: Equipes | B43: score | C43: Equipes | D43: score
A44: =A8 -> BH | C44: =$A$11 -> BK | D44: =IF(G44=19,19,IF(ISBLANK(B44),"",IF(B44=19,0,36-B44))) ->  | E44: =IF(G44=19,0,IF(ISBLANK(B44),"",IF(B44<18,1,IF(B44=18,2,IF(B44>18,3))))) ->  | F44: =IF(G44=19,3,IF(ISBLANK(B44),"",IF(B44=19,0,IF(D44<18,1,IF(D44=18,2,IF(D44>=20,3)))))) ->  | I44: =IF(ISBLANK(B44),0,B44) -> 0 | J44: =IF(ISBLANK(B44),0,D44) -> 0 | K44: =A44&C44 -> BHBK
A45: =$A$10 -> BJ | C45: =A6 -> BF | D45: =IF(G45=19,19,IF(ISBLANK(B45),"",IF(B45=19,0,36-B45))) ->  | E45: =IF(G45=19,0,IF(ISBLANK(B45),"",IF(B45<18,1,IF(B45=18,2,IF(B45>18,3))))) ->  | F45: =IF(G45=19,3,IF(ISBLANK(B45),"",IF(B45=19,0,IF(D45<18,1,IF(D45=18,2,IF(D45>=20,3)))))) ->  | I45: =IF(ISBLANK(B45),0,B45) -> 0 | J45: =IF(ISBLANK(B45),0,D45) -> 0 | K45: =A45&C45 -> BJBF
A46: =A7 -> BG | C46: =$A$9 -> BI | D46: =IF(G46=19,19,IF(ISBLANK(B46),"",IF(B46=19,0,36-B46))) ->  | E46: =IF(G46=19,0,IF(ISBLANK(B46),"",IF(B46<18,1,IF(B46=18,2,IF(B46>18,3))))) ->  | F46: =IF(G46=19,3,IF(ISBLANK(B46),"",IF(B46=19,0,IF(D46<18,1,IF(D46=18,2,IF(D46>=20,3)))))) ->  | I46: =IF(ISBLANK(B46),0,B46) -> 0 | J46: =IF(ISBLANK(B46),0,D46) -> 0 | K46: =A46&C46 -> BGBI
A48: CLASSEMENT
A49: EQUIPES | C49: POINTS | D49: Pour | E49: Contre | F49: Diff | G49: CLASST
A50: BF | B50: 6A | C50: 0 | D50: 0 | E50: 0 | F50: 0 | G50: =B59 -> 1 | H50: =IF(AND(G50=1,COUNTIF(rang1,1)>1),COUNTIF(G$50:G50,1),IF(AND(G50=2,COUNTIF(rang1,2)>1),COUNTIF(G$50:G50,2)+3,"")) -> 1
A51: BG | B51: 6B | C51: 0 | D51: 0 | E51: 0 | F51: 0 | G51: 1 | H51: =IF(AND(G51=1,COUNTIF(rang1,1)>1),COUNTIF(G$50:G51,1),IF(AND(G51=2,COUNTIF(rang1,2)>1),COUNTIF(G$50:G51,2)+3,"")) -> 2
A52: BH | B52: 6C | C52: 0 | D52: 0 | E52: 0 | F52: 0 | G52: 1 | H52: =IF(AND(G52=1,COUNTIF(rang1,1)>1),COUNTIF(G$50:G52,1),IF(AND(G52=2,COUNTIF(rang1,2)>1),COUNTIF(G$50:G52,2)+3,"")) -> 3
A53: BI | B53: 6D | C53: 0 | D53: 0 | E53: 0 | F53: 0 | G53: 1 | H53: =IF(AND(G53=1,COUNTIF(rang1,1)>1),COUNTIF(G$50:G53,1),IF(AND(G53=2,COUNTIF(rang1,2)>1),COUNTIF(G$50:G53,2)+3,"")) -> 4
A54: BJ | B54: 6E | C54: 0 | D54: 0 | E54: 0 | F54: 0 | G54: 1 | H54: =IF(AND(G54=1,COUNTIF(rang1,1)>1),COUNTIF(G$50:G54,1),IF(AND(G54=2,COUNTIF(rang1,2)>1),COUNTIF(G$50:G54,2)+3,"")) -> 5
A55: BK | B55: 6F | C55: 0 | D55: 0 | E55: 0 | F55: 0 | G55: 1 | H55: =IF(AND(G55=1,COUNTIF(rang1,1)>1),COUNTIF(G$50:G55,1),IF(AND(G55=2,COUNTIF(rang1,2)>1),COUNTIF(G$50:G55,2)+3,"")) -> 6
B57: CLASSEMENT FINAL et DEPARTAGE EX AEQUOS | M57: CLASSEMENT
B58: Rang | C58: Equipes | D58: Pts | E58: diff pts avec exaequo | F58: cumul | G58: departage goalaverage si même cumul | H58: RP | L58: RP | M58: Rang | N58: Equipe | O58: Pts
B59: =RANK(G59,$G$59:$G$64) -> 1 | C59: =INDEX($A$50:$A$55,MATCH(H59,$L$59:$L$64,0)) -> BF | D59: =VLOOKUP(C59,$A$50:$C$55,3,0) -> 0 | E59: =IF(D59=D60,INDEX($J$6:$O$11,MATCH(C59,$I$6:$I$11,0),MATCH(C60,$J$5:$O$5,0)),IF(D59=D58,INDEX($J$6:$O$11,MATCH(C59,$I$6:$I$11,0),MATCH(C58,$J$5:$O$5,0)),0)) -> 0 | F59: =D59+E59/100 -> 0 | G59: =IF(AND(F59<>F58,F59<>F60),F59,F59+VLOOKUP(C59,$A$50:$F$55,6,0)/100) -> 0 | H59: 1 | L59: =RANK(C50,$C$50:$C$55)+COUNTIF($C$50:C50,C50)-1 -> 1 | M59: =B59 -> 1 | N59: BF | O59: =VLOOKUP(N59,$C$59:$D$64,2,0) -> 0
B60: 1 | C60: BG | D60: 0 | E60: =IF(D60=D61,INDEX($J$6:$O$11,MATCH(C60,$I$6:$I$11,0),MATCH(C61,$J$5:$O$5,0)),IF(D60=D59,INDEX($J$6:$O$11,MATCH(C60,$I$6:$I$11,0),MATCH(C59,$J$5:$O$5,0)),0)) -> 0 | F60: 0 | G60: =IF(AND(F60<>F59,F60<>F61),F60,F60+VLOOKUP(C60,$A$50:$F$55,6,0)/100) -> 0 | H60: 2 | L60: =RANK(C51,$C$50:$C$55)+COUNTIF($C$50:C51,C51)-1 -> 2 | M60: 1 | N60: BG | O60: 0
B61: 1 | C61: BH | D61: 0 | E61: =IF(D61=D62,INDEX($J$6:$O$11,MATCH(C61,$I$6:$I$11,0),MATCH(C62,$J$5:$O$5,0)),IF(D61=D60,INDEX($J$6:$O$11,MATCH(C61,$I$6:$I$11,0),MATCH(C60,$J$5:$O$5,0)),0)) -> 0 | F61: 0 | G61: =IF(AND(F61<>F60,F61<>F62),F61,F61+VLOOKUP(C61,$A$50:$F$55,6,0)/100) -> 0 | H61: 3 | L61: =RANK(C52,$C$50:$C$55)+COUNTIF($C$50:C52,C52)-1 -> 3 | M61: 1 | N61: BH | O61: 0
B62: 1 | C62: BI | D62: 0 | E62: =IF(D62=D63,INDEX($J$6:$O$11,MATCH(C62,$I$6:$I$11,0),MATCH(C63,$J$5:$O$5,0)),IF(D62=D61,INDEX($J$6:$O$11,MATCH(C62,$I$6:$I$11,0),MATCH(C61,$J$5:$O$5,0)),0)) -> 0 | F62: 0 | G62: =IF(AND(F62<>F61,F62<>F63),F62,F62+VLOOKUP(C62,$A$50:$F$55,6,0)/100) -> 0 | H62: 4 | L62: =RANK(C53,$C$50:$C$55)+COUNTIF($C$50:C53,C53)-1 -> 4 | M62: 1 | N62: BI | O62: 0
B63: 1 | C63: BJ | D63: 0 | E63: =IF(D63=D64,INDEX($J$6:$O$11,MATCH(C63,$I$6:$I$11,0),MATCH(C64,$J$5:$O$5,0)),IF(D63=D62,INDEX($J$6:$O$11,MATCH(C63,$I$6:$I$11,0),MATCH(C62,$J$5:$O$5,0)),0)) -> 0 | F63: 0 | G63: =IF(AND(F63<>F62,F63<>F64),F63,F63+VLOOKUP(C63,$A$50:$F$55,6,0)/100) -> 0 | H63: 5 | L63: =RANK(C54,$C$50:$C$55)+COUNTIF($C$50:C54,C54)-1 -> 5 | M63: 1 | N63: BJ | O63: 0
B64: 1 | C64: BK | D64: 0 | E64: =IF(D64=D59,INDEX($J$6:$O$11,MATCH(C64,$I$6:$I$11,0),MATCH(C59,$J$5:$O$5,0)),IF(D64=D63,INDEX($J$6:$O$11,MATCH(C64,$I$6:$I$11,0),MATCH(C63,$J$5:$O$5,0)),0)) -> 0 | F64: 0 | G64: =IF(AND(F64<>F63,F64<>F59),F64,F64+VLOOKUP(C64,$A$50:$F$55,6,0)/100) -> 0 | H64: 6 | L64: =RANK(C55,$C$50:$C$55)+COUNTIF($C$50:C55,C55)-1 -> 6 | M64: 1 | N64: BK | O64: 0

Sheet P7
A2: CHAMPIONNAT DES CLUBS
A4: POULE 7 | I4: Récapitulatif différence match entre 2 équipes
A5: EQUIPES | C5: POINTS | D5: Pour | E5: Contre | F5: Diff | J5: =A6 -> BL | K5: =A7 -> BM | L5: =A8 -> BN | M5: =A9 -> BO | N5: =A10 -> BP | O5: =A11 -> BQ
A6: BL | B6: 7A | C6: =SUM(E16,E23,E30,E37,F45) -> 0 | D6: =I16+I23+I30+I37+J45 -> 0 | E6: =J16+J23+J30+J37+I45 -> 0 | F6: =D6-E6 -> 0 | I6: =A6 -> BL | K6: =IF(ISBLANK(B16),0,IFERROR(INDEX($B$15:$B$46,MATCH($I6&K$5,$K$15:$K$46,0))-INDEX($D$15:$D$46,MATCH($I6&K$5,$K$15:$K$46,0)),0-INDEX($J$6:$O$11,MATCH(K$5,$I$6:$I$11,0),MATCH($I6,$J$5:$O$5,0)))) -> 0 | L6: =IF(ISBLANK(B23),0,IFERROR(INDEX($B$15:$B$46,MATCH($I6&L$5,$K$15:$K$46,0))-INDEX($D$15:$D$46,MATCH($I6&L$5,$K$15:$K$46,0)),0-INDEX($J$6:$O$11,MATCH(L$5,$I$6:$I$11,0),MATCH($I6,$J$5:$O$5,0)))) -> 0 | M6: =IF(ISBLANK(B37),0,IFERROR(INDEX($B$15:$B$46,MATCH($I6&M$5,$K$15:$K$46,0))-INDEX($D$15:$D$46,MATCH($I6&M$5,$K$15:$K$46,0)),0-INDEX($J$6:$O$11,MATCH(M$5,$I$6:$I$11,0),MATCH($I6,$J$5:$O$5,0)))) -> 0 | N6: =IF(ISBLANK(B45),0,IFERROR(INDEX($B$15:$B$46,MATCH($I6&N$5,$K$15:$K$46,0))-INDEX($D$15:$D$46,MATCH($I6&N$5,$K$15:$K$46,0)),0-INDEX($J$6:$O$11,MATCH(N$5,$I$6:$I$11,0),MATCH($I6,$J$5:$O$5,0)))) -> 0 | O6: =IF(ISBLANK(B30),0,IFERROR(INDEX($B$15:$B$46,MATCH($I6&O$5,$K$15:$K$46,0))-INDEX($D$15:$D$46,MATCH($I6&O$5,$K$15:$K$46,0)),0-INDEX($J$6:$O$11,MATCH(O$5,$I$6:$I$11,0),MATCH($I6,$J$5:$O$5,0)))) -> 0
A7: BM | B7: 7B | C7: =SUM(F16,E24,F32,E38,E46) -> 0 | D7: =J16+I24+J32+I38+I46 -> 0 | E7: =I16+J24+I32+J38+J46 -> 0 | F7: 0 | I7: BM | J7: =IF(ISBLANK(B16),0,IFERROR(INDEX($B$15:$B$46,MATCH($I7&J$5,$K$15:$K$46,0))-INDEX($D$15:$D$46,MATCH($I7&J$5,$K$15:$K$46,0)),0-INDEX($J$6:$O$11,MATCH(J$5,$I$6:$I$11,0),MATCH($I7,$J$5:$O$5,0)))) -> 0 | L7: =IF(ISBLANK(B32),0,IFERROR(INDEX($B$15:$B$46,MATCH($I7&L$5,$K$15:$K$46,0))-INDEX($D$15:$D$46,MATCH($I7&L$5,$K$15:$K$46,0)),0-INDEX($J$6:$O$11,MATCH(L$5,$I$6:$I$11,0),MATCH($I7,$J$5:$O$5,0)))) -> 0 | M7: =IF(ISBLANK(B46),0,IFERROR(INDEX($B$15:$B$46,MATCH($I7&M$5,$K$15:$K$46,0))-INDEX($D$15:$D$46,MATCH($I7&M$5,$K$15:$K$46,0)),0-INDEX($J$6:$O$11,MATCH(M$5,$I$6:$I$11,0),MATCH($I7,$J$5:$O$5,0)))) -> 0 | N7: =IF(ISBLANK(B24),0,IFERROR(INDEX($B$15:$B$46,MATCH($I7&N$5,$K$15:$K$46,0))-INDEX($D$15:$D$46,MATCH($I7&N$5,$K$15:$K$46,0)),0-INDEX($J$6:$O$11,MATCH(N$5,$I$6:$I$11,0),MATCH($I7,$J$5:$O$5,0)))) -> 0 | O7: =IF(ISBLANK(B38),0,IFERROR(INDEX($B$15:$B$46,MATCH($I7&O$5,$K$15:$K$46,0))-INDEX($D$15:$D$46,MATCH($I7&O$5,$K$15:$K$46,0)),0-INDEX($J$6:$O$11,MATCH(O$5,$I$6:$I$11,0),MATCH($I7,$J$5:$O$5,0)))) -> 0
A8: BN | B8: 7C | C8: =SUM(E17,F23,E32,E39,E44) -> 0 | D8: =I17+J23+I32+I39+I44 -> 0 | E8: =J17+I23+J32+J39+J44 -> 0 | F8: 0 | I8: BN | J8: =IF(ISBLANK(B23),0,IFERROR(INDEX($B$15:$B$46,MATCH($I8&J$5,$K$15:$K$46,0))-INDEX($D$15:$D$46,MATCH($I8&J$5,$K$15:$K$46,0)),0-INDEX($J$6:$O$11,MATCH(J$5,$I$6:$I$11,0),MATCH($I8,$J$5:$O$5,0)))) -> 0 | K8: =IF(ISBLANK(B32),0,IFERROR(INDEX($B$15:$B$46,MATCH($I8&K$5,$K$15:$K$46,0))-INDEX($D$15:$D$46,MATCH($I8&K$5,$K$15:$K$46,0)),0-INDEX($J$6:$O$11,MATCH(K$5,$I$6:$I$11,0),MATCH($I8,$J$5:$O$5,0)))) -> 0 | M8: =IF(ISBLANK(B17),0,IFERROR(INDEX($B$15:$B$46,MATCH($I8&M$5,$K$15:$K$46,0))-INDEX($D$15:$D$46,MATCH($I8&M$5,$K$15:$K$46,0)),0-INDEX($J$6:$O$11,MATCH(M$5,$I$6:$I$11,0),MATCH($I8,$J$5:$O$5,0)))) -> 0 | N8: =IF(ISBLANK(B39),0,IFERROR(INDEX($B$15:$B$46,MATCH($I8&N$5,$K$15:$K$46,0))-INDEX($D$15:$D$46,MATCH($I8&N$5,$K$15:$K$46,0)),0-INDEX($J$6:$O$11,MATCH(N$5,$I$6:$I$11,0),MATCH($I8,$J$5:$O$5,0)))) -> 0 | O8: =IF(ISBLANK(B44),0,IFERROR(INDEX($B$15:$B$46,MATCH($I8&O$5,$K$15:$K$46,0))-INDEX($D$15:$D$46,MATCH($I8&O$5,$K$15:$K$46,0)),0-INDEX($J$6:$O$11,MATCH(O$5,$I$6:$I$11,0),MATCH($I8,$J$5:$O$5,0)))) -> 0
A9: BO | B9: 7D | C9: =SUM(F17,E25,F31,F37,F46) -> 0 | D9: =J17+I25+J31+J37+J46 -> 0 | E9: =I17+J25+I31+I37+I46 -> 0 | F9: 0 | I9: BO | J9: =IF(ISBLANK(B37),0,IFERROR(INDEX($B$15:$B$46,MATCH($I9&J$5,$K$15:$K$46,0))-INDEX($D$15:$D$46,MATCH($I9&J$5,$K$15:$K$46,0)),0-INDEX($J$6:$O$11,MATCH(J$5,$I$6:$I$11,0),MATCH($I9,$J$5:$O$5,0)))) -> 0 | K9: =IF(ISBLANK(B46),0,IFERROR(INDEX($B$15:$B$46,MATCH($I9&K$5,$K$15:$K$46,0))-INDEX($D$15:$D$46,MATCH($I9&K$5,$K$15:$K$46,0)),0-INDEX($J$6:$O$11,MATCH(K$5,$I$6:$I$11,0),MATCH($I9,$J$5:$O$5,0)))) -> 0 | L9: =IF(ISBLANK(B17),0,IFERROR(INDEX($B$15:$B$46,MATCH($I9&L$5,$K$15:$K$46,0))-INDEX($D$15:$D$46,MATCH($I9&L$5,$K$15:$K$46,0)),0-INDEX($J$6:$O$11,MATCH(L$5,$I$6:$I$11,0),MATCH($I9,$J$5:$O$5,0)))) -> 0 | N9: =IF(ISBLANK(B31),0,IFERROR(INDEX($B$15:$B$46,MATCH($I9&N$5,$K$15:$K$46,0))-INDEX($D$15:$D$46,MATCH($I9&N$5,$K$15:$K$46,0)),0-INDEX($J$6:$O$11,MATCH(N$5,$I$6:$I$11,0),MATCH($I9,$J$5:$O$5,0)))) -> 0 | O9: =IF(ISBLANK(B25),0,IFERROR(INDEX($B$15:$B$46,MATCH($I9&O$5,$K$15:$K$46,0))-INDEX($D$15:$D$46,MATCH($I9&O$5,$K$15:$K$46,0)),0-INDEX($J$6:$O$11,MATCH(O$5,$I$6:$I$11,0),MATCH($I9,$J$5:$O$5,0)))) -> 0
A10: BP | B10: 7E | C10: =SUM(E18,F24,E31,F39,E45) -> 0 | D10: =I18+J24+I31+J39+I45 -> 0 | E10: =J18+I24+J31+I39+J45 -> 0 | F10: 0 | I10: BP | J10: =IF(ISBLANK(B45),0,IFERROR(INDEX($B$15:$B$46,MATCH($I10&J$5,$K$15:$K$46,0))-INDEX($D$15:$D$46,MATCH($I10&J$5,$K$15:$K$46,0)),0-INDEX($J$6:$O$11,MATCH(J$5,$I$6:$I$11,0),MATCH($I10,$J$5:$O$5,0)))) -> 0 | K10: =IF(ISBLANK(B24),0,IFERROR(INDEX($B$15:$B$46,MATCH($I10&K$5,$K$15:$K$46,0))-INDEX($D$15:$D$46,MATCH($I10&K$5,$K$15:$K$46,0)),0-INDEX($J$6:$O$11,MATCH(K$5,$I$6:$I$11,0),MATCH($I10,$J$5:$O$5,0)))) -> 0 | L10: =IF(ISBLANK(B39),0,IFERROR(INDEX($B$15:$B$46,MATCH($I10&L$5,$K$15:$K$46,0))-INDEX($D$15:$D$46,MATCH($I10&L$5,$K$15:$K$46,0)),0-INDEX($J$6:$O$11,MATCH(L$5,$I$6:$I$11,0),MATCH($I10,$J$5:$O$5,0)))) -> 0 | M10: =IF(ISBLANK(B31),0,IFERROR(INDEX($B$15:$B$46,MATCH($I10&M$5,$K$15:$K$46,0))-INDEX($D$15:$D$46,MATCH($I10&M$5,$K$15:$K$46,0)),0-INDEX($J$6:$O$11,MATCH(M$5,$I$6:$I$11,0),MATCH($I10,$J$5:$O$5,0)))) -> 0 | O10: =IF(ISBLANK(B18),0,IFERROR(INDEX($B$15:$B$46,MATCH($I10&O$5,$K$15:$K$46,0))-INDEX($D$15:$D$46,MATCH($I10&O$5,$K$15:$K$46,0)),0-INDEX($J$6:$O$11,MATCH(O$5,$I$6:$I$11,0),MATCH($I10,$J$5:$O$5,0)))) -> 0
A11: BQ | B11: 7F | C11: =SUM(F18,F25,F30,F38,F44) -> 0 | D11: =J18+J25+J30+J38+J44 -> 0 | E11: =I18+I25+I30+I38+I44 -> 0 | F11: 0 | I11: BQ | J11: =IF(ISBLANK(B30),0,IFERROR(INDEX($B$15:$B$46,MATCH($I11&J$5,$K$15:$K$46,0))-INDEX($D$15:$D$46,MATCH($I11&J$5,$K$15:$K$46,0)),0-INDEX($J$6:$O$11,MATCH(J$5,$I$6:$I$11,0),MATCH($I11,$J$5:$O$5,0)))) -> 0 | K11: =IF(ISBLANK(B38),0,IFERROR(INDEX($B$15:$B$46,MATCH($I11&K$5,$K$15:$K$46,0))-INDEX($D$15:$D$46,MATCH($I11&K$5,$K$15:$K$46,0)),0-INDEX($J$6:$O$11,MATCH(K$5,$I$6:$I$11,0),MATCH($I11,$J$5:$O$5,0)))) -> 0 | L11: =IF(ISBLANK(B44),0,IFERROR(INDEX($B$15:$B$46,MATCH($I11&L$5,$K$15:$K$46,0))-INDEX($D$15:$D$46,MATCH($I11&L$5,$K$15:$K$46,0)),0-INDEX($J$6:$O$11,MATCH(L$5,$I$6:$I$11,0),MATCH($I11,$J$5:$O$5,0)))) -> 0 | M11: =IF(ISBLANK(B25),0,IFERROR(INDEX($B$15:$B$46,MATCH($I11&M$5,$K$15:$K$46,0))-INDEX($D$15:$D$46,MATCH($I11&M$5,$K$15:$K$46,0)),0-INDEX($J$6:$O$11,MATCH(M$5,$I$6:$I$11,0),MATCH($I11,$J$5:$O$5,0)))) -> 0 | N11: =IF(ISBLANK(B18),0,IFERROR(INDEX($B$15:$B$46,MATCH($I11&N$5,$K$15:$K$46,0))-INDEX($D$15:$D$46,MATCH($I11&N$5,$K$15:$K$46,0)),0-INDEX($J$6:$O$11,MATCH(N$5,$I$6:$I$11,0),MATCH($I11,$J$5:$O$5,0)))) -> 0
I12: Les concaténations en rouge permettent de remplir par formules le récapitulatif au dessus
A13: 1er MATCH le 15 mai | B13: à | C13: =A6 -> BL | I13: Ce récap servira à départager les ex aequos
G14: SI forfait éq recevante
A15: Equipes | B15: score | C15: Equipes | D15: score
A16: =$A$6 -> BL | C16: =$A$7 -> BM | D16: =IF(G16=19,19,IF(ISBLANK(B16),"",IF(B16=19,0,36-B16))) ->  | E16: =IF(G16=19,0,IF(ISBLANK(B16),"",IF(B16<18,1,IF(B16=18,2,IF(B16>18,3))))) ->  | F16: =IF(G16=19,3,IF(ISBLANK(B16),"",IF(B16=19,0,IF(D16<18,1,IF(D16=18,2,IF(D16>=20,3)))))) ->  | I16: =IF(ISBLANK(B16),0,B16) -> 0 | J16: =IF(ISBLANK(B16),0,D16) -> 0 | K16: =A16&C16 -> BLBM
A17: =$A$8 -> BN | C17: =$A$9 -> BO | D17: =IF(G17=19,19,IF(ISBLANK(B17),"",IF(B17=19,0,36-B17))) ->  | E17: =IF(G17=19,0,IF(ISBLANK(B17),"",IF(B17<18,1,IF(B17=18,2,IF(B17>18,3))))) ->  | F17: =IF(G17=19,3,IF(ISBLANK(B17),"",IF(B17=19,0,IF(D17<18,1,IF(D17=18,2,IF(D17>=20,3)))))) ->  | I17: =IF(ISBLANK(B17),0,B17) -> 0 | J17: =IF(ISBLANK(B17),0,D17) -> 0 | K17: =A17&C17 -> BNBO
A18: =$A$10 -> BP | C18: =$A$11 -> BQ | D18: =IF(G18=19,19,IF(ISBLANK(B18),"",IF(B18=19,0,36-B18))) ->  | E18: =IF(G18=19,0,IF(ISBLANK(B18),"",IF(B18<18,1,IF(B18=18,2,IF(B18>18,3))))) ->  | F18: =IF(G18=19,3,IF(ISBLANK(B18),"",IF(B18=19,0,IF(D18<18,1,IF(D18=18,2,IF(D18>=20,3)))))) ->  | I18: =IF(ISBLANK(B18),0,B18) -> 0 | J18: =IF(ISBLANK(B18),0,D18) -> 0 | K18: =A18&C18 -> BPBQ
A20: 2 éme MATCH le 22 mai | B20: à | C20: =A7 -> BM
G21: SI forfait éq recevante
A22: Equipes | B22: score | C22: Equipes | D22: score
A23: =$A$6 -> BL | C23: =$A$8 -> BN | D23: =IF(G23=19,19,IF(ISBLANK(B23),"",IF(B23=19,0,36-B23))) ->  | E23: =IF(G23=19,0,IF(ISBLANK(B23),"",IF(B23<18,1,IF(B23=18,2,IF(B23>18,3))))) ->  | F23: =IF(G23=19,3,IF(ISBLANK(B23),"",IF(B23=19,0,IF(D23<18,1,IF(D23=18,2,IF(D23>=20,3)))))) ->  | I23: =IF(ISBLANK(B23),0,B23) -> 0 | J23: =IF(ISBLANK(B23),0,D23) -> 0 | K23: =A23&C23 -> BLBN
A24: =$A$7 -> BM | C24: =$A$10 -> BP | D24: =IF(G24=19,19,IF(ISBLANK(B24),"",IF(B24=19,0,36-B24))) ->  | E24: =IF(G24=19,0,IF(ISBLANK(B24),"",IF(B24<18,1,IF(B24=18,2,IF(B24>18,3))))) ->  | F24: =IF(G24=19,3,IF(ISBLANK(B24),"",IF(B24=19,0,IF(D24<18,1,IF(D24=18,2,IF(D24>=20,3)))))) ->  | I24: =IF(ISBLANK(B24),0,B24) -> 0 | J24: =IF(ISBLANK(B24),0,D24) -> 0 | K24: =A24&C24 -> BMBP
A25: =$A$9 -> BO | C25: =$A$11 -> BQ | D25: =IF(G25=19,19,IF(ISBLANK(B25),"",IF(B25=19,0,36-B25))) ->  | E25: =IF(G25=19,0,IF(ISBLANK(B25),"",IF(B25<18,1,IF(B25=18,2,IF(B25>18,3))))) ->  | F25: =IF(G25=19,3,IF(ISBLANK(B25),"",IF(B25=19,0,IF(D25<18,1,IF(D25=18,2,IF(D25>=20,3)))))) ->  | I25: =IF(ISBLANK(B25),0,B25) -> 0 | J25: =IF(ISBLANK(B25),0,D25) -> 0 | K25: =A25&C25 -> BOBQ
A27: 3 éme MATCH le 29 mai | B27: à | C27: =A8 -> BN
G28: SI forfait éq recevante
A29: Equipes | B29: score | C29: Equipes | D29: score
A30: =$A$6 -> BL | C30: =$A$11 -> BQ | D30: =IF(G30=19,19,IF(ISBLANK(B30),"",IF(B30=19,0,36-B30))) ->  | E30: =IF(G30=19,0,IF(ISBLANK(B30),"",IF(B30<18,1,IF(B30=18,2,IF(B30>18,3))))) ->  | F30: =IF(G30=19,3,IF(ISBLANK(B30),"",IF(B30=19,0,IF(D30<18,1,IF(D30=18,2,IF(D30>=20,3)))))) ->  | I30: =IF(ISBLANK(B30),0,B30) -> 0 | J30: =IF(ISBLANK(B30),0,D30) -> 0 | K30: =A30&C30 -> BLBQ
A31: =$A$10 -> BP | C31: =$A$9 -> BO | D31: =IF(G31=19,19,IF(ISBLANK(B31),"",IF(B31=19,0,36-B31))) ->  | E31: =IF(G31=19,0,IF(ISBLANK(B31),"",IF(B31<18,1,IF(B31=18,2,IF(B31>18,3))))) ->  | F31: =IF(G31=19,3,IF(ISBLANK(B31),"",IF(B31=19,0,IF(D31<18,1,IF(D31=18,2,IF(D31>=20,3)))))) ->  | I31: =IF(ISBLANK(B31),0,B31) -> 0 | J31: =IF(ISBLANK(B31),0,D31) -> 0 | K31: =A31&C31 -> BPBO
A32: =$A$8 -> BN | C32: =$A$7 -> BM | D32: =IF(G32=19,19,IF(ISBLANK(B32),"",IF(B32=19,0,36-B32))) ->  | E32: =IF(G32=19,0,IF(ISBLANK(B32),"",IF(B32<18,1,IF(B32=18,2,IF(B32>18,3))))) ->  | F32: =IF(G32=19,3,IF(ISBLANK(B32),"",IF(B32=19,0,IF(D32<18,1,IF(D32=18,2,IF(D32>=20,3)))))) ->  | I32: =IF(ISBLANK(B32),0,B32) -> 0 | J32: =IF(ISBLANK(B32),0,D32) -> 0 | K32: =A32&C32 -> BNBM
A34: 4 éme MATCH le 5 juin | B34: à | C34: =A9 -> BO
G35: SI forfait éq recevante
A36: Equipes | B36: score | C36: Equipes | D36: score
A37: =A6 -> BL | C37: =$A$9 -> BO | D37: =IF(G37=19,19,IF(ISBLANK(B37),"",IF(B37=19,0,36-B37))) ->  | E37: =IF(G37=19,0,IF(ISBLANK(B37),"",IF(B37<18,1,IF(B37=18,2,IF(B37>18,3))))) ->  | F37: =IF(G37=19,3,IF(ISBLANK(B37),"",IF(B37=19,0,IF(D37<18,1,IF(D37=18,2,IF(D37>=20,3)))))) ->  | I37: =IF(ISBLANK(B37),0,B37) -> 0 | J37: =IF(ISBLANK(B37),0,D37) -> 0 | K37: =A37&C37 -> BLBO
A38: =$A$7 -> BM | C38: =$A$11 -> BQ | D38: =IF(G38=19,19,IF(ISBLANK(B38),"",IF(B38=19,0,36-B38))) ->  | E38: =IF(G38=19,0,IF(ISBLANK(B38),"",IF(B38<18,1,IF(B38=18,2,IF(B38>18,3))))) ->  | F38: =IF(G38=19,3,IF(ISBLANK(B38),"",IF(B38=19,0,IF(D38<18,1,IF(D38=18,2,IF(D38>=20,3)))))) ->  | I38: =IF(ISBLANK(B38),0,B38) -> 0 | J38: =IF(ISBLANK(B38),0,D38) -> 0 | K38: =A38&C38 -> BMBQ
A39: =A8 -> BN | C39: =$A$10 -> BP | D39: =IF(G39=19,19,IF(ISBLANK(B39),"",IF(B39=19,0,36-B39))) ->  | E39: =IF(G39=19,0,IF(ISBLANK(B39),"",IF(B39<18,1,IF(B39=18,2,IF(B39>18,3))))) ->  | F39: =IF(G39=19,3,IF(ISBLANK(B39),"",IF(B39=19,0,IF(D39<18,1,IF(D39=18,2,IF(D39>=20,3)))))) ->  | I39: =IF(ISBLANK(B39),0,B39) -> 0 | J39: =IF(ISBLANK(B39),0,D39) -> 0 | K39: =A39&C39 -> BNBP
A41: 5 éme MATCH le 12 juin | B41: à | C41: =A10 -> BP
G42: SI forfait éq recevante
A43: Equipes | B43: score | C43: Equipes | D43: score
A44: =A8 -> BN | C44: =$A$11 -> BQ | D44: =IF(G44=19,19,IF(ISBLANK(B44),"",IF(B44=19,0,36-B44))) ->  | E44: =IF(G44=19,0,IF(ISBLANK(B44),"",IF(B44<18,1,IF(B44=18,2,IF(B44>18,3))))) ->  | F44: =IF(G44=19,3,IF(ISBLANK(B44),"",IF(B44=19,0,IF(D44<18,1,IF(D44=18,2,IF(D44>=20,3)))))) ->  | I44: =IF(ISBLANK(B44),0,B44) -> 0 | J44: =IF(ISBLANK(B44),0,D44) -> 0 | K44: =A44&C44 -> BNBQ
A45: =$A$10 -> BP | C45: =A6 -> BL | D45: =IF(G45=19,19,IF(ISBLANK(B45),"",IF(B45=19,0,36-B45))) ->  | E45: =IF(G45=19,0,IF(ISBLANK(B45),"",IF(B45<18,1,IF(B45=18,2,IF(B45>18,3))))) ->  | F45: =IF(G45=19,3,IF(ISBLANK(B45),"",IF(B45=19,0,IF(D45<18,1,IF(D45=18,2,IF(D45>=20,3)))))) ->  | I45: =IF(ISBLANK(B45),0,B45) -> 0 | J45: =IF(ISBLANK(B45),0,D45) -> 0 | K45: =A45&C45 -> BPBL
A46: =A7 -> BM | C46: =$A$9 -> BO | D46: =IF(G46=19,19,IF(ISBLANK(B46),"",IF(B46=19,0,36-B46))) ->  | E46: =IF(G46=19,0,IF(ISBLANK(B46),"",IF(B46<18,1,IF(B46=18,2,IF(B46>18,3))))) ->  | F46: =IF(G46=19,3,IF(ISBLANK(B46),"",IF(B46=19,0,IF(D46<18,1,IF(D46=18,2,IF(D46>=20,3)))))) ->  | I46: =IF(ISBLANK(B46),0,B46) -> 0 | J46: =IF(ISBLANK(B46),0,D46) -> 0 | K46: =A46&C46 -> BMBO
A48: CLASSEMENT
A49: EQUIPES | C49: POINTS | D49: Pour | E49: Contre | F49: Diff | G49: CLASST
A50: BL | B50: 7A | C50: 0 | D50: 0 | E50: 0 | F50: 0 | G50: =B59 -> 1 | H50: =IF(AND(G50=1,COUNTIF(rang1,1)>1),COUNTIF(G$50:G50,1),IF(AND(G50=2,COUNTIF(rang1,2)>1),COUNTIF(G$50:G50,2)+3,"")) -> 1
A51: BM | B51: 7B | C51: 0 | D51: 0 | E51: 0 | F51: 0 | G51: 1 | H51: =IF(AND(G51=1,COUNTIF(rang1,1)>1),COUNTIF(G$50:G51,1),IF(AND(G51=2,COUNTIF(rang1,2)>1),COUNTIF(G$50:G51,2)+3,"")) -> 2
A52: BN | B52: 7C | C52: 0 | D52: 0 | E52: 0 | F52: 0 | G52: 1 | H52: =IF(AND(G52=1,COUNTIF(rang1,1)>1),COUNTIF(G$50:G52,1),IF(AND(G52=2,COUNTIF(rang1,2)>1),COUNTIF(G$50:G52,2)+3,"")) -> 3
A53: BO | B53: 7D | C53: 0 | D53: 0 | E53: 0 | F53: 0 | G53: 1 | H53: =IF(AND(G53=1,COUNTIF(rang1,1)>1),COUNTIF(G$50:G53,1),IF(AND(G53=2,COUNTIF(rang1,2)>1),COUNTIF(G$50:G53,2)+3,"")) -> 4
A54: BP | B54: 7E | C54: 0 | D54: 0 | E54: 0 | F54: 0 | G54: 1 | H54: =IF(AND(G54=1,COUNTIF(rang1,1)>1),COUNTIF(G$50:G54,1),IF(AND(G54=2,COUNTIF(rang1,2)>1),COUNTIF(G$50:G54,2)+3,"")) -> 5
A55: BQ | B55: 7F | C55: 0 | D55: 0 | E55: 0 | F55: 0 | G55: 1 | H55: =IF(AND(G55=1,COUNTIF(rang1,1)>1),COUNTIF(G$50:G55,1),IF(AND(G55=2,COUNTIF(rang1,2)>1),COUNTIF(G$50:G55,2)+3,"")) -> 6
B57: CLASSEMENT FINAL et DEPARTAGE EX AEQUOS | M57: CLASSEMENT
B58: Rang | C58: Equipes | D58: Pts | E58: diff pts avec exaequo | F58: cumul | G58: departage goalaverage si même cumul | H58: RP | L58: RP | M58: Rang | N58: Equipe | O58: Pts
B59: =RANK(G59,$G$59:$G$64) -> 1 | C59: =INDEX($A$50:$A$55,MATCH(H59,$L$59:$L$64,0)) -> BL | D59: =VLOOKUP(C59,$A$50:$C$55,3,0) -> 0 | E59: =IF(D59=D60,INDEX($J$6:$O$11,MATCH(C59,$I$6:$I$11,0),MATCH(C60,$J$5:$O$5,0)),IF(D59=D58,INDEX($J$6:$O$11,MATCH(C59,$I$6:$I$11,0),MATCH(C58,$J$5:$O$5,0)),0)) -> 0 | F59: =D59+E59/100 -> 0 | G59: =IF(AND(F59<>F58,F59<>F60),F59,F59+VLOOKUP(C59,$A$50:$F$55,6,0)/100) -> 0 | H59: 1 | L59: =RANK(C50,$C$50:$C$55)+COUNTIF($C$50:C50,C50)-1 -> 1 | M59: =B59 -> 1 | N59: BL | O59: =VLOOKUP(N59,$C$59:$D$64,2,0) -> 0
B60: 1 | C60: BM | D60: 0 | E60: =IF(D60=D61,INDEX($J$6:$O$11,MATCH(C60,$I$6:$I$11,0),MATCH(C61,$J$5:$O$5,0)),IF(D60=D59,INDEX($J$6:$O$11,MATCH(C60,$I$6:$I$11,0),MATCH(C59,$J$5:$O$5,0)),0)) -> 0 | F60: 0 | G60: =IF(AND(F60<>F59,F60<>F61),F60,F60+VLOOKUP(C60,$A$50:$F$55,6,0)/100) -> 0 | H60: 2 | L60: =RANK(C51,$C$50:$C$55)+COUNTIF($C$50:C51,C51)-1 -> 2 | M60: 1 | N60: BM | O60: 0
B61: 1 | C61: BN | D61: 0 | E61: =IF(D61=D62,INDEX($J$6:$O$11,MATCH(C61,$I$6:$I$11,0),MATCH(C62,$J$5:$O$5,0)),IF(D61=D60,INDEX($J$6:$O$11,MATCH(C61,$I$6:$I$11,0),MATCH(C60,$J$5:$O$5,0)),0)) -> 0 | F61: 0 | G61: =IF(AND(F61<>F60,F61<>F62),F61,F61+VLOOKUP(C61,$A$50:$F$55,6,0)/100) -> 0 | H61: 3 | L61: =RANK(C52,$C$50:$C$55)+COUNTIF($C$50:C52,C52)-1 -> 3 | M61: 1 | N61: BN | O61: 0
B62: 1 | C62: BO | D62: 0 | E62: =IF(D62=D63,INDEX($J$6:$O$11,MATCH(C62,$I$6:$I$11,0),MATCH(C63,$J$5:$O$5,0)),IF(D62=D61,INDEX($J$6:$O$11,MATCH(C62,$I$6:$I$11,0),MATCH(C61,$J$5:$O$5,0)),0)) -> 0 | F62: 0 | G62: =IF(AND(F62<>F61,F62<>F63),F62,F62+VLOOKUP(C62,$A$50:$F$55,6,0)/100) -> 0 | H62: 4 | L62: =RANK(C53,$C$50:$C$55)+COUNTIF($C$50:C53,C53)-1 -> 4 | M62: 1 | N62: BO | O62: 0
B63: 1 | C63: BP | D63: 0 | E63: =IF(D63=D64,INDEX($J$6:$O$11,MATCH(C63,$I$6:$I$11,0),MATCH(C64,$J$5:$O$5,0)),IF(D63=D62,INDEX($J$6:$O$11,MATCH(C63,$I$6:$I$11,0),MATCH(C62,$J$5:$O$5,0)),0)) -> 0 | F63: 0 | G63: =IF(AND(F63<>F62,F63<>F64),F63,F63+VLOOKUP(C63,$A$50:$F$55,6,0)/100) -> 0 | H63: 5 | L63: =RANK(C54,$C$50:$C$55)+COUNTIF($C$50:C54,C54)-1 -> 5 | M63: 1 | N63: BP | O63: 0
B64: 1 | C64: BQ | D64: 0 | E64: =IF(D64=D59,INDEX($J$6:$O$11,MATCH(C64,$I$6:$I$11,0),MATCH(C59,$J$5:$O$5,0)),IF(D64=D63,INDEX($J$6:$O$11,MATCH(C64,$I$6:$I$11,0),MATCH(C63,$J$5:$O$5,0)),0)) -> 0 | F64: 0 | G64: =IF(AND(F64<>F63,F64<>F59),F64,F64+VLOOKUP(C64,$A$50:$F$55,6,0)/100) -> 0 | H64: 6 | L64: =RANK(C55,$C$50:$C$55)+COUNTIF($C$50:C55,C55)-1 -> 6 | M64: 1 | N64: BQ | O64: 0

Sheet P8
A2: CHAMPIONNAT DES CLUBS
A4: POULE 8 | I4: Récapitulatif différence match entre 2 équipes
A5: EQUIPES | C5: POINTS | D5: Pour | E5: Contre | F5: Diff | J5: =A6 -> BR | K5: =A7 -> BS | L5: =A8 -> BT | M5: =A9 -> BU | N5: =A10 -> BV | O5: =A11 -> BW
A6: BR | B6: 8A | C6: =SUM(E16,E23,E30,E37,F45) -> 0 | D6: =I16+I23+I30+I37+J45 -> 0 | E6: =J16+J23+J30+J37+I45 -> 0 | F6: =D6-E6 -> 0 | I6: =A6 -> BR | K6: =IF(ISBLANK(B16),0,IFERROR(INDEX($B$15:$B$46,MATCH($I6&K$5,$K$15:$K$46,0))-INDEX($D$15:$D$46,MATCH($I6&K$5,$K$15:$K$46,0)),0-INDEX($J$6:$O$11,MATCH(K$5,$I$6:$I$11,0),MATCH($I6,$J$5:$O$5,0)))) -> 0 | L6: =IF(ISBLANK(B23),0,IFERROR(INDEX($B$15:$B$46,MATCH($I6&L$5,$K$15:$K$46,0))-INDEX($D$15:$D$46,MATCH($I6&L$5,$K$15:$K$46,0)),0-INDEX($J$6:$O$11,MATCH(L$5,$I$6:$I$11,0),MATCH($I6,$J$5:$O$5,0)))) -> 0 | M6: =IF(ISBLANK(B37),0,IFERROR(INDEX($B$15:$B$46,MATCH($I6&M$5,$K$15:$K$46,0))-INDEX($D$15:$D$46,MATCH($I6&M$5,$K$15:$K$46,0)),0-INDEX($J$6:$O$11,MATCH(M$5,$I$6:$I$11,0),MATCH($I6,$J$5:$O$5,0)))) -> 0 | N6: =IF(ISBLANK(B45),0,IFERROR(INDEX($B$15:$B$46,MATCH($I6&N$5,$K$15:$K$46,0))-INDEX($D$15:$D$46,MATCH($I6&N$5,$K$15:$K$46,0)),0-INDEX($J$6:$O$11,MATCH(N$5,$I$6:$I$11,0),MATCH($I6,$J$5:$O$5,0)))) -> 0 | O6: =IF(ISBLANK(B30),0,IFERROR(INDEX($B$15:$B$46,MATCH($I6&O$5,$K$15:$K$46,0))-INDEX($D$15:$D$46,MATCH($I6&O$5,$K$15:$K$46,0)),0-INDEX($J$6:$O$11,MATCH(O$5,$I$6:$I$11,0),MATCH($I6,$J$5:$O$5,0)))) -> 0
A7: BS | B7: 8B | C7: =SUM(F16,E24,F32,E38,E46) -> 0 | D7: =J16+I24+J32+I38+I46 -> 0 | E7: =I16+J24+I32+J38+J46 -> 0 | F7: 0 | I7: BS | J7: =IF(ISBLANK(B16),0,IFERROR(INDEX($B$15:$B$46,MATCH($I7&J$5,$K$15:$K$46,0))-INDEX($D$15:$D$46,MATCH($I7&J$5,$K$15:$K$46,0)),0-INDEX($J$6:$O$11,MATCH(J$5,$I$6:$I$11,0),MATCH($I7,$J$5:$O$5,0)))) -> 0 | L7: =IF(ISBLANK(B32),0,IFERROR(INDEX($B$15:$B$46,MATCH($I7&L$5,$K$15:$K$46,0))-INDEX($D$15:$D$46,MATCH($I7&L$5,$K$15:$K$46,0)),0-INDEX($J$6:$O$11,MATCH(L$5,$I$6:$I$11,0),MATCH($I7,$J$5:$O$5,0)))) -> 0 | M7: =IF(ISBLANK(B46),0,IFERROR(INDEX($B$15:$B$46,MATCH($I7&M$5,$K$15:$K$46,0))-INDEX($D$15:$D$46,MATCH($I7&M$5,$K$15:$K$46,0)),0-INDEX($J$6:$O$11,MATCH(M$5,$I$6:$I$11,0),MATCH($I7,$J$5:$O$5,0)))) -> 0 | N7: =IF(ISBLANK(B24),0,IFERROR(INDEX($B$15:$B$46,MATCH($I7&N$5,$K$15:$K$46,0))-INDEX($D$15:$D$46,MATCH($I7&N$5,$K$15:$K$46,0)),0-INDEX($J$6:$O$11,MATCH(N$5,$I$6:$I$11,0),MATCH($I7,$J$5:$O$5,0)))) -> 0 | O7: =IF(ISBLANK(B38),0,IFERROR(INDEX($B$15:$B$46,MATCH($I7&O$5,$K$15:$K$46,0))-INDEX($D$15:$D$46,MATCH($I7&O$5,$K$15:$K$46,0)),0-INDEX($J$6:$O$11,MATCH(O$5,$I$6:$I$11,0),MATCH($I7,$J$5:$O$5,0)))) -> 0
A8: BT | B8: 8C | C8: =SUM(E17,F23,E32,E39,E44) -> 0 | D8: =I17+J23+I32+I39+I44 -> 0 | E8: =J17+I23+J32+J39+J44 -> 0 | F8: 0 | I8: BT | J8: =IF(ISBLANK(B23),0,IFERROR(INDEX($B$15:$B$46,MATCH($I8&J$5,$K$15:$K$46,0))-INDEX($D$15:$D$46,MATCH($I8&J$5,$K$15:$K$46,0)),0-INDEX($J$6:$O$11,MATCH(J$5,$I$6:$I$11,0),MATCH($I8,$J$5:$O$5,0)))) -> 0 | K8: =IF(ISBLANK(B32),0,IFERROR(INDEX($B$15:$B$46,MATCH($I8&K$5,$K$15:$K$46,0))-INDEX($D$15:$D$46,MATCH($I8&K$5,$K$15:$K$46,0)),0-INDEX($J$6:$O$11,MATCH(K$5,$I$6:$I$11,0),MATCH($I8,$J$5:$O$5,0)))) -> 0 | M8: =IF(ISBLANK(B17),0,IFERROR(INDEX($B$15:$B$46,MATCH($I8&M$5,$K$15:$K$46,0))-INDEX($D$15:$D$46,MATCH($I8&M$5,$K$15:$K$46,0)),0-INDEX($J$6:$O$11,MATCH(M$5,$I$6:$I$11,0),MATCH($I8,$J$5:$O$5,0)))) -> 0 | N8: =IF(ISBLANK(B39),0,IFERROR(INDEX($B$15:$B$46,MATCH($I8&N$5,$K$15:$K$46,0))-INDEX($D$15:$D$46,MATCH($I8&N$5,$K$15:$K$46,0)),0-INDEX($J$6:$O$11,MATCH(N$5,$I$6:$I$11,0),MATCH($I8,$J$5:$O$5,0)))) -> 0 | O8: =IF(ISBLANK(B44),0,IFERROR(INDEX($B$15:$B$46,MATCH($I8&O$5,$K$15:$K$46,0))-INDEX($D$15:$D$46,MATCH($I8&O$5,$K$15:$K$46,0)),0-INDEX($J$6:$O$11,MATCH(O$5,$I$6:$I$11,0),MATCH($I8,$J$5:$O$5,0)))) -> 0
A9: BU | B9: 8D | C9: =SUM(F17,E25,F31,F37,F46) -> 0 | D9: =J17+I25+J31+J37+J46 -> 0 | E9: =I17+J25+I31+I37+I46 -> 0 | F9: 0 | I9: BU | J9: =IF(ISBLANK(B37),0,IFERROR(INDEX($B$15:$B$46,MATCH($I9&J$5,$K$15:$K$46,0))-INDEX($D$15:$D$46,MATCH($I9&J$5,$K$15:$K$46,0)),0-INDEX($J$6:$O$11,MATCH(J$5,$I$6:$I$11,0),MATCH($I9,$J$5:$O$5,0)))) -> 0 | K9: =IF(ISBLANK(B46),0,IFERROR(INDEX($B$15:$B$46,MATCH($I9&K$5,$K$15:$K$46,0))-INDEX($D$15:$D$46,MATCH($I9&K$5,$K$15:$K$46,0)),0-INDEX($J$6:$O$11,MATCH(K$5,$I$6:$I$11,0),MATCH($I9,$J$5:$O$5,0)))) -> 0 | L9: =IF(ISBLANK(B17),0,IFERROR(INDEX($B$15:$B$46,MATCH($I9&L$5,$K$15:$K$46,0))-INDEX($D$15:$D$46,MATCH($I9&L$5,$K$15:$K$46,0)),0-INDEX($J$6:$O$11,MATCH(L$5,$I$6:$I$11,0),MATCH($I9,$J$5:$O$5,0)))) -> 0 | N9: =IF(ISBLANK(B31),0,IFERROR(INDEX($B$15:$B$46,MATCH($I9&N$5,$K$15:$K$46,0))-INDEX($D$15:$D$46,MATCH($I9&N$5,$K$15:$K$46,0)),0-INDEX($J$6:$O$11,MATCH(N$5,$I$6:$I$11,0),MATCH($I9,$J$5:$O$5,0)))) -> 0 | O9: =IF(ISBLANK(B25),0,IFERROR(INDEX($B$15:$B$46,MATCH($I9&O$5,$K$15:$K$46,0))-INDEX($D$15:$D$46,MATCH($I9&O$5,$K$15:$K$46,0)),0-INDEX($J$6:$O$11,MATCH(O$5,$I$6:$I$11,0),MATCH($I9,$J$5:$O$5,0)))) -> 0
A10: BV | B10: 8E | C10: =SUM(E18,F24,E31,F39,E45) -> 0 | D10: =I18+J24+I31+J39+I45 -> 0 | E10: =J18+I24+J31+I39+J45 -> 0 | F10: 0 | I10: BV | J10: =IF(ISBLANK(B45),0,IFERROR(INDEX($B$15:$B$46,MATCH($I10&J$5,$K$15:$K$46,0))-INDEX($D$15:$D$46,MATCH($I10&J$5,$K$15:$K$46,0)),0-INDEX($J$6:$O$11,MATCH(J$5,$I$6:$I$11,0),MATCH($I10,$J$5:$O$5,0)))) -> 0 | K10: =IF(ISBLANK(B24),0,IFERROR(INDEX($B$15:$B$46,MATCH($I10&K$5,$K$15:$K$46,0))-INDEX($D$15:$D$46,MATCH($I10&K$5,$K$15:$K$46,0)),0-INDEX($J$6:$O$11,MATCH(K$5,$I$6:$I$11,0),MATCH($I10,$J$5:$O$5,0)))) -> 0 | L10: =IF(ISBLANK(B39),0,IFERROR(INDEX($B$15:$B$46,MATCH($I10&L$5,$K$15:$K$46,0))-INDEX($D$15:$D$46,MATCH($I10&L$5,$K$15:$K$46,0)),0-INDEX($J$6:$O$11,MATCH(L$5,$I$6:$I$11,0),MATCH($I10,$J$5:$O$5,0)))) -> 0 | M10: =IF(ISBLANK(B31),0,IFERROR(INDEX($B$15:$B$46,MATCH($I10&M$5,$K$15:$K$46,0))-INDEX($D$15:$D$46,MATCH($I10&M$5,$K$15:$K$46,0)),0-INDEX($J$6:$O$11,MATCH(M$5,$I$6:$I$11,0),MATCH($I10,$J$5:$O$5,0)))) -> 0 | O10: =IF(ISBLANK(B18),0,IFERROR(INDEX($B$15:$B$46,MATCH($I10&O$5,$K$15:$K$46,0))-INDEX($D$15:$D$46,MATCH($I10&O$5,$K$15:$K$46,0)),0-INDEX($J$6:$O$11,MATCH(O$5,$I$6:$I$11,0),MATCH($I10,$J$5:$O$5,0)))) -> 0
A11: BW | B11: 8F | C11: =SUM(F18,F25,F30,F38,F44) -> 0 | D11: =J18+J25+J30+J38+J44 -> 0 | E11: =I18+I25+I30+I38+I44 -> 0 | F11: 0 | I11: BW | J11: =IF(ISBLANK(B30),0,IFERROR(INDEX($B$15:$B$46,MATCH($I11&J$5,$K$15:$K$46,0))-INDEX($D$15:$D$46,MATCH($I11&J$5,$K$15:$K$46,0)),0-INDEX($J$6:$O$11,MATCH(J$5,$I$6:$I$11,0),MATCH($I11,$J$5:$O$5,0)))) -> 0 | K11: =IF(ISBLANK(B38),0,IFERROR(INDEX($B$15:$B$46,MATCH($I11&K$5,$K$15:$K$46,0))-INDEX($D$15:$D$46,MATCH($I11&K$5,$K$15:$K$46,0)),0-INDEX($J$6:$O$11,MATCH(K$5,$I$6:$I$11,0),MATCH($I11,$J$5:$O$5,0)))) -> 0 | L11: =IF(ISBLANK(B44),0,IFERROR(INDEX($B$15:$B$46,MATCH($I11&L$5,$K$15:$K$46,0))-INDEX($D$15:$D$46,MATCH($I11&L$5,$K$15:$K$46,0)),0-INDEX($J$6:$O$11,MATCH(L$5,$I$6:$I$11,0),MATCH($I11,$J$5:$O$5,0)))) -> 0 | M11: =IF(ISBLANK(B25),0,IFERROR(INDEX($B$15:$B$46,MATCH($I11&M$5,$K$15:$K$46,0))-INDEX($D$15:$D$46,MATCH($I11&M$5,$K$15:$K$46,0)),0-INDEX($J$6:$O$11,MATCH(M$5,$I$6:$I$11,0),MATCH($I11,$J$5:$O$5,0)))) -> 0 | N11: =IF(ISBLANK(B18),0,IFERROR(INDEX($B$15:$B$46,MATCH($I11&N$5,$K$15:$K$46,0))-INDEX($D$15:$D$46,MATCH($I11&N$5,$K$15:$K$46,0)),0-INDEX($J$6:$O$11,MATCH(N$5,$I$6:$I$11,0),MATCH($I11,$J$5:$O$5,0)))) -> 0
I12: Les concaténations en rouge permettent de remplir par formules le récapitulatif au dessus
A13: 1er MATCH le 15 mai | B13: à | C13: =A6 -> BR | I13: Ce récap servira à départager les ex aequos
G14: SI forfait éq recevante
A15: Equipes | B15: score | C15: Equipes | D15: score
A16: =$A$6 -> BR | C16: =$A$7 -> BS | D16: =IF(G16=19,19,IF(ISBLANK(B16),"",IF(B16=19,0,36-B16))) ->  | E16: =IF(G16=19,0,IF(ISBLANK(B16),"",IF(B16<18,1,IF(B16=18,2,IF(B16>18,3))))) ->  | F16: =IF(G16=19,3,IF(ISBLANK(B16),"",IF(B16=19,0,IF(D16<18,1,IF(D16=18,2,IF(D16>=20,3)))))) ->  | I16: =IF(ISBLANK(B16),0,B16) -> 0 | J16: =IF(ISBLANK(B16),0,D16) -> 0 | K16: =A16&C16 -> BRBS
A17: =$A$8 -> BT | C17: =$A$9 -> BU | D17: =IF(G17=19,19,IF(ISBLANK(B17),"",IF(B17=19,0,36-B17))) ->  | E17: =IF(G17=19,0,IF(ISBLANK(B17),"",IF(B17<18,1,IF(B17=18,2,IF(B17>18,3))))) ->  | F17: =IF(G17=19,3,IF(ISBLANK(B17),"",IF(B17=19,0,IF(D17<18,1,IF(D17=18,2,IF(D17>=20,3)))))) ->  | I17: =IF(ISBLANK(B17),0,B17) -> 0 | J17: =IF(ISBLANK(B17),0,D17) -> 0 | K17: =A17&C17 -> BTBU
A18: =$A$10 -> BV | C18: =$A$11 -> BW | D18: =IF(G18=19,19,IF(ISBLANK(B18),"",IF(B18=19,0,36-B18))) ->  | E18: =IF(G18=19,0,IF(ISBLANK(B18),"",IF(B18<18,1,IF(B18=18,2,IF(B18>18,3))))) ->  | F18: =IF(G18=19,3,IF(ISBLANK(B18),"",IF(B18=19,0,IF(D18<18,1,IF(D18=18,2,IF(D18>=20,3)))))) ->  | I18: =IF(ISBLANK(B18),0,B18) -> 0 | J18: =IF(ISBLANK(B18),0,D18) -> 0 | K18: =A18&C18 -> BVBW
A20: 2 éme MATCH le 22 mai | B20: à | C20: =A7 -> BS
G21: SI forfait éq recevante
A22: Equipes | B22: score | C22: Equipes | D22: score
A23: =$A$6 -> BR | C23: =$A$8 -> BT | D23: =IF(G23=19,19,IF(ISBLANK(B23),"",IF(B23=19,0,36-B23))) ->  | E23: =IF(G23=19,0,IF(ISBLANK(B23),"",IF(B23<18,1,IF(B23=18,2,IF(B23>18,3))))) ->  | F23: =IF(G23=19,3,IF(ISBLANK(B23),"",IF(B23=19,0,IF(D23<18,1,IF(D23=18,2,IF(D23>=20,3)))))) ->  | I23: =IF(ISBLANK(B23),0,B23) -> 0 | J23: =IF(ISBLANK(B23),0,D23) -> 0 | K23: =A23&C23 -> BRBT
A24: =$A$7 -> BS | C24: =$A$10 -> BV | D24: =IF(G24=19,19,IF(ISBLANK(B24),"",IF(B24=19,0,36-B24))) ->  | E24: =IF(G24=19,0,IF(ISBLANK(B24),"",IF(B24<18,1,IF(B24=18,2,IF(B24>18,3))))) ->  | F24: =IF(G24=19,3,IF(ISBLANK(B24),"",IF(B24=19,0,IF(D24<18,1,IF(D24=18,2,IF(D24>=20,3)))))) ->  | I24: =IF(ISBLANK(B24),0,B24) -> 0 | J24: =IF(ISBLANK(B24),0,D24) -> 0 | K24: =A24&C24 -> BSBV
A25: =$A$9 -> BU | C25: =$A$11 -> BW | D25: =IF(G25=19,19,IF(ISBLANK(B25),"",IF(B25=19,0,36-B25))) ->  | E25: =IF(G25=19,0,IF(ISBLANK(B25),"",IF(B25<18,1,IF(B25=18,2,IF(B25>18,3))))) ->  | F25: =IF(G25=19,3,IF(ISBLANK(B25),"",IF(B25=19,0,IF(D25<18,1,IF(D25=18,2,IF(D25>=20,3)))))) ->  | I25: =IF(ISBLANK(B25),0,B25) -> 0 | J25: =IF(ISBLANK(B25),0,D25) -> 0 | K25: =A25&C25 -> BUBW
A27: 3 éme MATCH le 29 mai | B27: à | C27: =A8 -> BT
G28: SI forfait éq recevante
A29: Equipes | B29: score | C29: Equipes | D29: score
A30: =$A$6 -> BR | C30: =$A$11 -> BW | D30: =IF(G30=19,19,IF(ISBLANK(B30),"",IF(B30=19,0,36-B30))) ->  | E30: =IF(G30=19,0,IF(ISBLANK(B30),"",IF(B30<18,1,IF(B30=18,2,IF(B30>18,3))))) ->  | F30: =IF(G30=19,3,IF(ISBLANK(B30),"",IF(B30=19,0,IF(D30<18,1,IF(D30=18,2,IF(D30>=20,3)))))) ->  | I30: =IF(ISBLANK(B30),0,B30) -> 0 | J30: =IF(ISBLANK(B30),0,D30) -> 0 | K30: =A30&C30 -> BRBW
A31: =$A$10 -> BV | C31: =$A$9 -> BU | D31: =IF(G31=19,19,IF(ISBLANK(B31),"",IF(B31=19,0,36-B31))) ->  | E31: =IF(G31=19,0,IF(ISBLANK(B31),"",IF(B31<18,1,IF(B31=18,2,IF(B31>18,3))))) ->  | F31: =IF(G31=19,3,IF(ISBLANK(B31),"",IF(B31=19,0,IF(D31<18,1,IF(D31=18,2,IF(D31>=20,3)))))) ->  | I31: =IF(ISBLANK(B31),0,B31) -> 0 | J31: =IF(ISBLANK(B31),0,D31) -> 0 | K31: =A31&C31 -> BVBU
A32: =$A$8 -> BT | C32: =$A$7 -> BS | D32: =IF(G32=19,19,IF(ISBLANK(B32),"",IF(B32=19,0,36-B32))) ->  | E32: =IF(G32=19,0,IF(ISBLANK(B32),"",IF(B32<18,1,IF(B32=18,2,IF(B32>18,3))))) ->  | F32: =IF(G32=19,3,IF(ISBLANK(B32),"",IF(B32=19,0,IF(D32<18,1,IF(D32=18,2,IF(D32>=20,3)))))) ->  | I32: =IF(ISBLANK(B32),0,B32) -> 0 | J32: =IF(ISBLANK(B32),0,D32) -> 0 | K32: =A32&C32 -> BTBS
A34: 4 éme MATCH le 5 juin | B34: à | C34: =A9 -> BU
G35: SI forfait éq recevante
A36: Equipes | B36: score | C36: Equipes | D36: score
A37: =A6 -> BR | C37: =$A$9 -> BU | D37: =IF(G37=19,19,IF(ISBLANK(B37),"",IF(B37=19,0,36-B37))) ->  | E37: =IF(G37=19,0,IF(ISBLANK(B37),"",IF(B37<18,1,IF(B37=18,2,IF(B37>18,3))))) ->  | F37: =IF(G37=19,3,IF(ISBLANK(B37),"",IF(B37=19,0,IF(D37<18,1,IF(D37=18,2,IF(D37>=20,3)))))) ->  | I37: =IF(ISBLANK(B37),0,B37) -> 0 | J37: =IF(ISBLANK(B37),0,D37) -> 0 | K37: =A37&C37 -> BRBU
A38: =$A$7 -> BS | C38: =$A$11 -> BW | D38: =IF(G38=19,19,IF(ISBLANK(B38),"",IF(B38=19,0,36-B38))) ->  | E38: =IF(G38=19,0,IF(ISBLANK(B38),"",IF(B38<18,1,IF(B38=18,2,IF(B38>18,3))))) ->  | F38: =IF(G38=19,3,IF(ISBLANK(B38),"",IF(B38=19,0,IF(D38<18,1,IF(D38=18,2,IF(D38>=20,3)))))) ->  | I38: =IF(ISBLANK(B38),0,B38) -> 0 | J38: =IF(ISBLANK(B38),0,D38) -> 0 | K38: =A38&C38 -> BSBW
A39: =A8 -> BT | C39: =$A$10 -> BV | D39: =IF(G39=19,19,IF(ISBLANK(B39),"",IF(B39=19,0,36-B39))) ->  | E39: =IF(G39=19,0,IF(ISBLANK(B39),"",IF(B39<18,1,IF(B39=18,2,IF(B39>18,3))))) ->  | F39: =IF(G39=19,3,IF(ISBLANK(B39),"",IF(B39=19,0,IF(D39<18,1,IF(D39=18,2,IF(D39>=20,3)))))) ->  | I39: =IF(ISBLANK(B39),0,B39) -> 0 | J39: =IF(ISBLANK(B39),0,D39) -> 0 | K39: =A39&C39 -> BTBV
A41: 5 éme MATCH le 12 juin | B41: à | C41: =A10 -> BV
G42: SI forfait éq recevante
A43: Equipes | B43: score | C43: Equipes | D43: score
A44: =A8 -> BT | C44: =$A$11 -> BW | D44: =IF(G44=19,19,IF(ISBLANK(B44),"",IF(B44=19,0,36-B44))) ->  | E44: =IF(G44=19,0,IF(ISBLANK(B44),"",IF(B44<18,1,IF(B44=18,2,IF(B44>18,3))))) ->  | F44: =IF(G44=19,3,IF(ISBLANK(B44),"",IF(B44=19,0,IF(D44<18,1,IF(D44=18,2,IF(D44>=20,3)))))) ->  | I44: =IF(ISBLANK(B44),0,B44) -> 0 | J44: =IF(ISBLANK(B44),0,D44) -> 0 | K44: =A44&C44 -> BTBW
A45: =$A$10 -> BV | C45: =A6 -> BR | D45: =IF(G45=19,19,IF(ISBLANK(B45),"",IF(B45=19,0,36-B45))) ->  | E45: =IF(G45=19,0,IF(ISBLANK(B45),"",IF(B45<18,1,IF(B45=18,2,IF(B45>18,3))))) ->  | F45: =IF(G45=19,3,IF(ISBLANK(B45),"",IF(B45=19,0,IF(D45<18,1,IF(D45=18,2,IF(D45>=20,3)))))) ->  | I45: =IF(ISBLANK(B45),0,B45) -> 0 | J45: =IF(ISBLANK(B45),0,D45) -> 0 | K45: =A45&C45 -> BVBR
A46: =A7 -> BS | C46: =$A$9 -> BU | D46: =IF(G46=19,19,IF(ISBLANK(B46),"",IF(B46=19,0,36-B46))) ->  | E46: =IF(G46=19,0,IF(ISBLANK(B46),"",IF(B46<18,1,IF(B46=18,2,IF(B46>18,3))))) ->  | F46: =IF(G46=19,3,IF(ISBLANK(B46),"",IF(B46=19,0,IF(D46<18,1,IF(D46=18,2,IF(D46>=20,3)))))) ->  | I46: =IF(ISBLANK(B46),0,B46) -> 0 | J46: =IF(ISBLANK(B46),0,D46) -> 0 | K46: =A46&C46 -> BSBU
A48: CLASSEMENT
A49: EQUIPES | C49: POINTS | D49: Pour | E49: Contre | F49: Diff | G49: CLASST
A50: BR | B50: 8A | C50: 0 | D50: 0 | E50: 0 | F50: 0 | G50: =B59 -> 1 | H50: =IF(AND(G50=1,COUNTIF(rang1,1)>1),COUNTIF(G$50:G50,1),IF(AND(G50=2,COUNTIF(rang1,2)>1),COUNTIF(G$50:G50,2)+3,"")) -> 1
A51: BS | B51: 8B | C51: 0 | D51: 0 | E51: 0 | F51: 0 | G51: 1 | H51: =IF(AND(G51=1,COUNTIF(rang1,1)>1),COUNTIF(G$50:G51,1),IF(AND(G51=2,COUNTIF(rang1,2)>1),COUNTIF(G$50:G51,2)+3,"")) -> 2
A52: BT | B52: 8C | C52: 0 | D52: 0 | E52: 0 | F52: 0 | G52: 1 | H52: =IF(AND(G52=1,COUNTIF(rang1,1)>1),COUNTIF(G$50:G52,1),IF(AND(G52=2,COUNTIF(rang1,2)>1),COUNTIF(G$50:G52,2)+3,"")) -> 3
A53: BU | B53: 8D | C53: 0 | D53: 0 | E53: 0 | F53: 0 | G53: 1 | H53: =IF(AND(G53=1,COUNTIF(rang1,1)>1),COUNTIF(G$50:G53,1),IF(AND(G53=2,COUNTIF(rang1,2)>1),COUNTIF(G$50:G53,2)+3,"")) -> 4
A54: BV | B54: 8E | C54: 0 | D54: 0 | E54: 0 | F54: 0 | G54: 1 | H54: =IF(AND(G54=1,COUNTIF(rang1,1)>1),COUNTIF(G$50:G54,1),IF(AND(G54=2,COUNTIF(rang1,2)>1),COUNTIF(G$50:G54,2)+3,"")) -> 5
A55: BW | B55: 8F | C55: 0 | D55: 0 | E55: 0 | F55: 0 | G55: 1 | H55: =IF(AND(G55=1,COUNTIF(rang1,1)>1),COUNTIF(G$50:G55,1),IF(AND(G55=2,COUNTIF(rang1,2)>1),COUNTIF(G$50:G55,2)+3,"")) -> 6
B57: CLASSEMENT FINAL et DEPARTAGE EX AEQUOS | M57: CLASSEMENT
B58: Rang | C58: Equipes | D58: Pts | E58: diff pts avec exaequo | F58: cumul | G58: departage goalaverage si même cumul | H58: RP | L58: RP | M58: Rang | N58: Equipe | O58: Pts
B59: =RANK(G59,$G$59:$G$64) -> 1 | C59: =INDEX($A$50:$A$55,MATCH(H59,$L$59:$L$64,0)) -> BR | D59: =VLOOKUP(C59,$A$50:$C$55,3,0) -> 0 | E59: =IF(D59=D60,INDEX($J$6:$O$11,MATCH(C59,$I$6:$I$11,0),MATCH(C60,$J$5:$O$5,0)),IF(D59=D58,INDEX($J$6:$O$11,MATCH(C59,$I$6:$I$11,0),MATCH(C58,$J$5:$O$5,0)),0)) -> 0 | F59: =D59+E59/100 -> 0 | G59: =IF(AND(F59<>F58,F59<>F60),F59,F59+VLOOKUP(C59,$A$50:$F$55,6,0)/100) -> 0 | H59: 1 | L59: =RANK(C50,$C$50:$C$55)+COUNTIF($C$50:C50,C50)-1 -> 1 | M59: =B59 -> 1 | N59: BR | O59: =VLOOKUP(N59,$C$59:$D$64,2,0) -> 0
B60: 1 | C60: BS | D60: 0 | E60: =IF(D60=D61,INDEX($J$6:$O$11,MATCH(C60,$I$6:$I$11,0),MATCH(C61,$J$5:$O$5,0)),IF(D60=D59,INDEX($J$6:$O$11,MATCH(C60,$I$6:$I$11,0),MATCH(C59,$J$5:$O$5,0)),0)) -> 0 | F60: 0 | G60: =IF(AND(F60<>F59,F60<>F61),F60,F60+VLOOKUP(C60,$A$50:$F$55,6,0)/100) -> 0 | H60: 2 | L60: =RANK(C51,$C$50:$C$55)+COUNTIF($C$50:C51,C51)-1 -> 2 | M60: 1 | N60: BS | O60: 0
B61: 1 | C61: BT | D61: 0 | E61: =IF(D61=D62,INDEX($J$6:$O$11,MATCH(C61,$I$6:$I$11,0),MATCH(C62,$J$5:$O$5,0)),IF(D61=D60,INDEX($J$6:$O$11,MATCH(C61,$I$6:$I$11,0),MATCH(C60,$J$5:$O$5,0)),0)) -> 0 | F61: 0 | G61: =IF(AND(F61<>F60,F61<>F62),F61,F61+VLOOKUP(C61,$A$50:$F$55,6,0)/100) -> 0 | H61: 3 | L61: =RANK(C52,$C$50:$C$55)+COUNTIF($C$50:C52,C52)-1 -> 3 | M61: 1 | N61: BT | O61: 0
B62: 1 | C62: BU | D62: 0 | E62: =IF(D62=D63,INDEX($J$6:$O$11,MATCH(C62,$I$6:$I$11,0),MATCH(C63,$J$5:$O$5,0)),IF(D62=D61,INDEX($J$6:$O$11,MATCH(C62,$I$6:$I$11,0),MATCH(C61,$J$5:$O$5,0)),0)) -> 0 | F62: 0 | G62: =IF(AND(F62<>F61,F62<>F63),F62,F62+VLOOKUP(C62,$A$50:$F$55,6,0)/100) -> 0 | H62: 4 | L62: =RANK(C53,$C$50:$C$55)+COUNTIF($C$50:C53,C53)-1 -> 4 | M62: 1 | N62: BU | O62: 0
B63: 1 | C63: BV | D63: 0 | E63: =IF(D63=D64,INDEX($J$6:$O$11,MATCH(C63,$I$6:$I$11,0),MATCH(C64,$J$5:$O$5,0)),IF(D63=D62,INDEX($J$6:$O$11,MATCH(C63,$I$6:$I$11,0),MATCH(C62,$J$5:$O$5,0)),0)) -> 0 | F63: 0 | G63: =IF(AND(F63<>F62,F63<>F64),F63,F63+VLOOKUP(C63,$A$50:$F$55,6,0)/100) -> 0 | H63: 5 | L63: =RANK(C54,$C$50:$C$55)+COUNTIF($C$50:C54,C54)-1 -> 5 | M63: 1 | N63: BV | O63: 0
B64: 1 | C64: BW | D64: 0 | E64: =IF(D64=D59,INDEX($J$6:$O$11,MATCH(C64,$I$6:$I$11,0),MATCH(C59,$J$5:$O$5,0)),IF(D64=D63,INDEX($J$6:$O$11,MATCH(C64,$I$6:$I$11,0),MATCH(C63,$J$5:$O$5,0)),0)) -> 0 | F64: 0 | G64: =IF(AND(F64<>F63,F64<>F59),F64,F64+VLOOKUP(C64,$A$50:$F$55,6,0)/100) -> 0 | H64: 6 | L64: =RANK(C55,$C$50:$C$55)+COUNTIF($C$50:C55,C55)-1 -> 6 | M64: 1 | N64: BW | O64: 0

Sheet P9
A2: CHAMPIONNAT DES CLUBS
A4: POULE 9 | I4: Récapitulatif différence match entre 2 équipes
A5: EQUIPES | C5: POINTS | D5: Pour | E5: Contre | F5: Diff | J5: =A6 -> BX | K5: =A7 -> BY | L5: =A8 -> BZ | M5: =A9 -> CA | N5: =A10 -> CB | O5: =A11 -> CC
A6: BX | B6: 9A | C6: =SUM(E16,E23,E30,E37,F45) -> 0 | D6: =I16+I23+I30+I37+J45 -> 0 | E6: =J16+J23+J30+J37+I45 -> 0 | F6: =D6-E6 -> 0 | I6: =A6 -> BX | K6: =IF(ISBLANK(B16),0,IFERROR(INDEX($B$15:$B$46,MATCH($I6&K$5,$K$15:$K$46,0))-INDEX($D$15:$D$46,MATCH($I6&K$5,$K$15:$K$46,0)),0-INDEX($J$6:$O$11,MATCH(K$5,$I$6:$I$11,0),MATCH($I6,$J$5:$O$5,0)))) -> 0 | L6: =IF(ISBLANK(B23),0,IFERROR(INDEX($B$15:$B$46,MATCH($I6&L$5,$K$15:$K$46,0))-INDEX($D$15:$D$46,MATCH($I6&L$5,$K$15:$K$46,0)),0-INDEX($J$6:$O$11,MATCH(L$5,$I$6:$I$11,0),MATCH($I6,$J$5:$O$5,0)))) -> 0 | M6: =IF(ISBLANK(B37),0,IFERROR(INDEX($B$15:$B$46,MATCH($I6&M$5,$K$15:$K$46,0))-INDEX($D$15:$D$46,MATCH($I6&M$5,$K$15:$K$46,0)),0-INDEX($J$6:$O$11,MATCH(M$5,$I$6:$I$11,0),MATCH($I6,$J$5:$O$5,0)))) -> 0 | N6: =IF(ISBLANK(B45),0,IFERROR(INDEX($B$15:$B$46,MATCH($I6&N$5,$K$15:$K$46,0))-INDEX($D$15:$D$46,MATCH($I6&N$5,$K$15:$K$46,0)),0-INDEX($J$6:$O$11,MATCH(N$5,$I$6:$I$11,0),MATCH($I6,$J$5:$O$5,0)))) -> 0 | O6: =IF(ISBLANK(B30),0,IFERROR(INDEX($B$15:$B$46,MATCH($I6&O$5,$K$15:$K$46,0))-INDEX($D$15:$D$46,MATCH($I6&O$5,$K$15:$K$46,0)),0-INDEX($J$6:$O$11,MATCH(O$5,$I$6:$I$11,0),MATCH($I6,$J$5:$O$5,0)))) -> 0
A7: BY | B7: 9B | C7: =SUM(F16,E24,F32,E38,E46) -> 0 | D7: =J16+I24+J32+I38+I46 -> 0 | E7: =I16+J24+I32+J38+J46 -> 0 | F7: 0 | I7: BY | J7: =IF(ISBLANK(B16),0,IFERROR(INDEX($B$15:$B$46,MATCH($I7&J$5,$K$15:$K$46,0))-INDEX($D$15:$D$46,MATCH($I7&J$5,$K$15:$K$46,0)),0-INDEX($J$6:$O$11,MATCH(J$5,$I$6:$I$11,0),MATCH($I7,$J$5:$O$5,0)))) -> 0 | L7: =IF(ISBLANK(B32),0,IFERROR(INDEX($B$15:$B$46,MATCH($I7&L$5,$K$15:$K$46,0))-INDEX($D$15:$D$46,MATCH($I7&L$5,$K$15:$K$46,0)),0-INDEX($J$6:$O$11,MATCH(L$5,$I$6:$I$11,0),MATCH($I7,$J$5:$O$5,0)))) -> 0 | M7: =IF(ISBLANK(B46),0,IFERROR(INDEX($B$15:$B$46,MATCH($I7&M$5,$K$15:$K$46,0))-INDEX($D$15:$D$46,MATCH($I7&M$5,$K$15:$K$46,0)),0-INDEX($J$6:$O$11,MATCH(M$5,$I$6:$I$11,0),MATCH($I7,$J$5:$O$5,0)))) -> 0 | N7: =IF(ISBLANK(B24),0,IFERROR(INDEX($B$15:$B$46,MATCH($I7&N$5,$K$15:$K$46,0))-INDEX($D$15:$D$46,MATCH($I7&N$5,$K$15:$K$46,0)),0-INDEX($J$6:$O$11,MATCH(N$5,$I$6:$I$11,0),MATCH($I7,$J$5:$O$5,0)))) -> 0 | O7: =IF(ISBLANK(B38),0,IFERROR(INDEX($B$15:$B$46,MATCH($I7&O$5,$K$15:$K$46,0))-INDEX($D$15:$D$46,MATCH($I7&O$5,$K$15:$K$46,0)),0-INDEX($J$6:$O$11,MATCH(O$5,$I$6:$I$11,0),MATCH($I7,$J$5:$O$5,0)))) -> 0
A8: BZ | B8: 9C | C8: =SUM(E17,F23,E32,E39,E44) -> 0 | D8: =I17+J23+I32+I39+I44 -> 0 | E8: =J17+I23+J32+J39+J44 -> 0 | F8: 0 | I8: BZ | J8: =IF(ISBLANK(B23),0,IFERROR(INDEX($B$15:$B$46,MATCH($I8&J$5,$K$15:$K$46,0))-INDEX($D$15:$D$46,MATCH($I8&J$5,$K$15:$K$46,0)),0-INDEX($J$6:$O$11,MATCH(J$5,$I$6:$I$11,0),MATCH($I8,$J$5:$O$5,0)))) -> 0 | K8: =IF(ISBLANK(B32),0,IFERROR(INDEX($B$15:$B$46,MATCH($I8&K$5,$K$15:$K$46,0))-INDEX($D$15:$D$46,MATCH($I8&K$5,$K$15:$K$46,0)),0-INDEX($J$6:$O$11,MATCH(K$5,$I$6:$I$11,0),MATCH($I8,$J$5:$O$5,0)))) -> 0 | M8: =IF(ISBLANK(B17),0,IFERROR(INDEX($B$15:$B$46,MATCH($I8&M$5,$K$15:$K$46,0))-INDEX($D$15:$D$46,MATCH($I8&M$5,$K$15:$K$46,0)),0-INDEX($J$6:$O$11,MATCH(M$5,$I$6:$I$11,0),MATCH($I8,$J$5:$O$5,0)))) -> 0 | N8: =IF(ISBLANK(B39),0,IFERROR(INDEX($B$15:$B$46,MATCH($I8&N$5,$K$15:$K$46,0))-INDEX($D$15:$D$46,MATCH($I8&N$5,$K$15:$K$46,0)),0-INDEX($J$6:$O$11,MATCH(N$5,$I$6:$I$11,0),MATCH($I8,$J$5:$O$5,0)))) -> 0 | O8: =IF(ISBLANK(B44),0,IFERROR(INDEX($B$15:$B$46,MATCH($I8&O$5,$K$15:$K$46,0))-INDEX($D$15:$D$46,MATCH($I8&O$5,$K$15:$K$46,0)),0-INDEX($J$6:$O$11,MATCH(O$5,$I$6:$I$11,0),MATCH($I8,$J$5:$O$5,0)))) -> 0
A9: CA | B9: 9D | C9: =SUM(F17,E25,F31,F37,F46) -> 0 | D9: =J17+I25+J31+J37+J46 -> 0 | E9: =I17+J25+I31+I37+I46 -> 0 | F9: 0 | I9: CA | J9: =IF(ISBLANK(B37),0,IFERROR(INDEX($B$15:$B$46,MATCH($I9&J$5,$K$15:$K$46,0))-INDEX($D$15:$D$46,MATCH($I9&J$5,$K$15:$K$46,0)),0-INDEX($J$6:$O$11,MATCH(J$5,$I$6:$I$11,0),MATCH($I9,$J$5:$O$5,0)))) -> 0 | K9: =IF(ISBLANK(B46),0,IFERROR(INDEX($B$15:$B$46,MATCH($I9&K$5,$K$15:$K$46,0))-INDEX($D$15:$D$46,MATCH($I9&K$5,$K$15:$K$46,0)),0-INDEX($J$6:$O$11,MATCH(K$5,$I$6:$I$11,0),MATCH($I9,$J$5:$O$5,0)))) -> 0 | L9: =IF(ISBLANK(B17),0,IFERROR(INDEX($B$15:$B$46,MATCH($I9&L$5,$K$15:$K$46,0))-INDEX($D$15:$D$46,MATCH($I9&L$5,$K$15:$K$46,0)),0-INDEX($J$6:$O$11,MATCH(L$5,$I$6:$I$11,0),MATCH($I9,$J$5:$O$5,0)))) -> 0 | N9: =IF(ISBLANK(B31),0,IFERROR(INDEX($B$15:$B$46,MATCH($I9&N$5,$K$15:$K$46,0))-INDEX($D$15:$D$46,MATCH($I9&N$5,$K$15:$K$46,0)),0-INDEX($J$6:$O$11,MATCH(N$5,$I$6:$I$11,0),MATCH($I9,$J$5:$O$5,0)))) -> 0 | O9: =IF(ISBLANK(B25),0,IFERROR(INDEX($B$15:$B$46,MATCH($I9&O$5,$K$15:$K$46,0))-INDEX($D$15:$D$46,MATCH($I9&O$5,$K$15:$K$46,0)),0-INDEX($J$6:$O$11,MATCH(O$5,$I$6:$I$11,0),MATCH($I9,$J$5:$O$5,0)))) -> 0
A10: CB | B10: 9E | C10: =SUM(E18,F24,E31,F39,E45) -> 0 | D10: =I18+J24+I31+J39+I45 -> 0 | E10: =J18+I24+J31+I39+J45 -> 0 | F10: 0 | I10: CB | J10: =IF(ISBLANK(B45),0,IFERROR(INDEX($B$15:$B$46,MATCH($I10&J$5,$K$15:$K$46,0))-INDEX($D$15:$D$46,MATCH($I10&J$5,$K$15:$K$46,0)),0-INDEX($J$6:$O$11,MATCH(J$5,$I$6:$I$11,0),MATCH($I10,$J$5:$O$5,0)))) -> 0 | K10: =IF(ISBLANK(B24),0,IFERROR(INDEX($B$15:$B$46,MATCH($I10&K$5,$K$15:$K$46,0))-INDEX($D$15:$D$46,MATCH($I10&K$5,$K$15:$K$46,0)),0-INDEX($J$6:$O$11,MATCH(K$5,$I$6:$I$11,0),MATCH($I10,$J$5:$O$5,0)))) -> 0 | L10: =IF(ISBLANK(B39),0,IFERROR(INDEX($B$15:$B$46,MATCH($I10&L$5,$K$15:$K$46,0))-INDEX($D$15:$D$46,MATCH($I10&L$5,$K$15:$K$46,0)),0-INDEX($J$6:$O$11,MATCH(L$5,$I$6:$I$11,0),MATCH($I10,$J$5:$O$5,0)))) -> 0 | M10: =IF(ISBLANK(B31),0,IFERROR(INDEX($B$15:$B$46,MATCH($I10&M$5,$K$15:$K$46,0))-INDEX($D$15:$D$46,MATCH($I10&M$5,$K$15:$K$46,0)),0-INDEX($J$6:$O$11,MATCH(M$5,$I$6:$I$11,0),MATCH($I10,$J$5:$O$5,0)))) -> 0 | O10: =IF(ISBLANK(B18),0,IFERROR(INDEX($B$15:$B$46,MATCH($I10&O$5,$K$15:$K$46,0))-INDEX($D$15:$D$46,MATCH($I10&O$5,$K$15:$K$46,0)),0-INDEX($J$6:$O$11,MATCH(O$5,$I$6:$I$11,0),MATCH($I10,$J$5:$O$5,0)))) -> 0
A11: CC | B11: 9F | C11: =SUM(F18,F25,F30,F38,F44) -> 0 | D11: =J18+J25+J30+J38+J44 -> 0 | E11: =I18+I25+I30+I38+I44 -> 0 | F11: 0 | I11: CC | J11: =IF(ISBLANK(B30),0,IFERROR(INDEX($B$15:$B$46,MATCH($I11&J$5,$K$15:$K$46,0))-INDEX($D$15:$D$46,MATCH($I11&J$5,$K$15:$K$46,0)),0-INDEX($J$6:$O$11,MATCH(J$5,$I$6:$I$11,0),MATCH($I11,$J$5:$O$5,0)))) -> 0 | K11: =IF(ISBLANK(B38),0,IFERROR(INDEX($B$15:$B$46,MATCH($I11&K$5,$K$15:$K$46,0))-INDEX($D$15:$D$46,MATCH($I11&K$5,$K$15:$K$46,0)),0-INDEX($J$6:$O$11,MATCH(K$5,$I$6:$I$11,0),MATCH($I11,$J$5:$O$5,0)))) -> 0 | L11: =IF(ISBLANK(B44),0,IFERROR(INDEX($B$15:$B$46,MATCH($I11&L$5,$K$15:$K$46,0))-INDEX($D$15:$D$46,MATCH($I11&L$5,$K$15:$K$46,0)),0-INDEX($J$6:$O$11,MATCH(L$5,$I$6:$I$11,0),MATCH($I11,$J$5:$O$5,0)))) -> 0 | M11: =IF(ISBLANK(B25),0,IFERROR(INDEX($B$15:$B$46,MATCH($I11&M$5,$K$15:$K$46,0))-INDEX($D$15:$D$46,MATCH($I11&M$5,$K$15:$K$46,0)),0-INDEX($J$6:$O$11,MATCH(M$5,$I$6:$I$11,0),MATCH($I11,$J$5:$O$5,0)))) -> 0 | N11: =IF(ISBLANK(B18),0,IFERROR(INDEX($B$15:$B$46,MATCH($I11&N$5,$K$15:$K$46,0))-INDEX($D$15:$D$46,MATCH($I11&N$5,$K$15:$K$46,0)),0-INDEX($J$6:$O$11,MATCH(N$5,$I$6:$I$11,0),MATCH($I11,$J$5:$O$5,0)))) -> 0
I12: Les concaténations en rouge permettent de remplir par formules le récapitulatif au dessus
A13: 1er MATCH le 15 mai | B13: à | C13: =A6 -> BX | I13: Ce récap servira à départager les ex aequos
G14: SI forfait éq recevante
A15: Equipes | B15: score | C15: Equipes | D15: score
A16: =$A$6 -> BX | C16: =$A$7 -> BY | D16: =IF(G16=19,19,IF(ISBLANK(B16),"",IF(B16=19,0,36-B16))) ->  | E16: =IF(G16=19,0,IF(ISBLANK(B16),"",IF(B16<18,1,IF(B16=18,2,IF(B16>18,3))))) ->  | F16: =IF(G16=19,3,IF(ISBLANK(B16),"",IF(B16=19,0,IF(D16<18,1,IF(D16=18,2,IF(D16>=20,3)))))) ->  | I16: =IF(ISBLANK(B16),0,B16) -> 0 | J16: =IF(ISBLANK(B16),0,D16) -> 0 | K16: =A16&C16 -> BXBY
A17: =$A$8 -> BZ | C17: =$A$9 -> CA | D17: =IF(G17=19,19,IF(ISBLANK(B17),"",IF(B17=19,0,36-B17))) ->  | E17: =IF(G17=19,0,IF(ISBLANK(B17),"",IF(B17<18,1,IF(B17=18,2,IF(B17>18,3))))) ->  | F17: =IF(G17=19,3,IF(ISBLANK(B17),"",IF(B17=19,0,IF(D17<18,1,IF(D17=18,2,IF(D17>=20,3)))))) ->  | I17: =IF(ISBLANK(B17),0,B17) -> 0 | J17: =IF(ISBLANK(B17),0,D17) -> 0 | K17: =A17&C17 -> BZCA
A18: =$A$10 -> CB | C18: =$A$11 -> CC | D18: =IF(G18=19,19,IF(ISBLANK(B18),"",IF(B18=19,0,36-B18))) ->  | E18: =IF(G18=19,0,IF(ISBLANK(B18),"",IF(B18<18,1,IF(B18=18,2,IF(B18>18,3))))) ->  | F18: =IF(G18=19,3,IF(ISBLANK(B18),"",IF(B18=19,0,IF(D18<18,1,IF(D18=18,2,IF(D18>=20,3)))))) ->  | I18: =IF(ISBLANK(B18),0,B18) -> 0 | J18: =IF(ISBLANK(B18),0,D18) -> 0 | K18: =A18&C18 -> CBCC
A20: 2 éme MATCH le 22 mai | B20: à | C20: =A7 -> BY
G21: SI forfait éq recevante
A22: Equipes | B22: score | C22: Equipes | D22: score
A23: =$A$6 -> BX | C23: =$A$8 -> BZ | D23: =IF(G23=19,19,IF(ISBLANK(B23),"",IF(B23=19,0,36-B23))) ->  | E23: =IF(G23=19,0,IF(ISBLANK(B23),"",IF(B23<18,1,IF(B23=18,2,IF(B23>18,3))))) ->  | F23: =IF(G23=19,3,IF(ISBLANK(B23),"",IF(B23=19,0,IF(D23<18,1,IF(D23=18,2,IF(D23>=20,3)))))) ->  | I23: =IF(ISBLANK(B23),0,B23) -> 0 | J23: =IF(ISBLANK(B23),0,D23) -> 0 | K23: =A23&C23 -> BXBZ
A24: =$A$7 -> BY | C24: =$A$10 -> CB | D24: =IF(G24=19,19,IF(ISBLANK(B24),"",IF(B24=19,0,36-B24))) ->  | E24: =IF(G24=19,0,IF(ISBLANK(B24),"",IF(B24<18,1,IF(B24=18,2,IF(B24>18,3))))) ->  | F24: =IF(G24=19,3,IF(ISBLANK(B24),"",IF(B24=19,0,IF(D24<18,1,IF(D24=18,2,IF(D24>=20,3)))))) ->  | I24: =IF(ISBLANK(B24),0,B24) -> 0 | J24: =IF(ISBLANK(B24),0,D24) -> 0 | K24: =A24&C24 -> BYCB
A25: =$A$9 -> CA | C25: =$A$11 -> CC | D25: =IF(G25=19,19,IF(ISBLANK(B25),"",IF(B25=19,0,36-B25))) ->  | E25: =IF(G25=19,0,IF(ISBLANK(B25),"",IF(B25<18,1,IF(B25=18,2,IF(B25>18,3))))) ->  | F25: =IF(G25=19,3,IF(ISBLANK(B25),"",IF(B25=19,0,IF(D25<18,1,IF(D25=18,2,IF(D25>=20,3)))))) ->  | I25: =IF(ISBLANK(B25),0,B25) -> 0 | J25: =IF(ISBLANK(B25),0,D25) -> 0 | K25: =A25&C25 -> CACC
A27: 3 éme MATCH le 29 mai | B27: à | C27: =A8 -> BZ
G28: SI forfait éq recevante
A29: Equipes | B29: score | C29: Equipes | D29: score
A30: =$A$6 -> BX | C30: =$A$11 -> CC | D30: =IF(G30=19,19,IF(ISBLANK(B30),"",IF(B30=19,0,36-B30))) ->  | E30: =IF(G30=19,0,IF(ISBLANK(B30),"",IF(B30<18,1,IF(B30=18,2,IF(B30>18,3))))) ->  | F30: =IF(G30=19,3,IF(ISBLANK(B30),"",IF(B30=19,0,IF(D30<18,1,IF(D30=18,2,IF(D30>=20,3)))))) ->  | I30: =IF(ISBLANK(B30),0,B30) -> 0 | J30: =IF(ISBLANK(B30),0,D30) -> 0 | K30: =A30&C30 -> BXCC
A31: =$A$10 -> CB | C31: =$A$9 -> CA | D31: =IF(G31=19,19,IF(ISBLANK(B31),"",IF(B31=19,0,36-B31))) ->  | E31: =IF(G31=19,0,IF(ISBLANK(B31),"",IF(B31<18,1,IF(B31=18,2,IF(B31>18,3))))) ->  | F31: =IF(G31=19,3,IF(ISBLANK(B31),"",IF(B31=19,0,IF(D31<18,1,IF(D31=18,2,IF(D31>=20,3)))))) ->  | I31: =IF(ISBLANK(B31),0,B31) -> 0 | J31: =IF(ISBLANK(B31),0,D31) -> 0 | K31: =A31&C31 -> CBCA
A32: =$A$8 -> BZ | C32: =$A$7 -> BY | D32: =IF(G32=19,19,IF(ISBLANK(B32),"",IF(B32=19,0,36-B32))) ->  | E32: =IF(G32=19,0,IF(ISBLANK(B32),"",IF(B32<18,1,IF(B32=18,2,IF(B32>18,3))))) ->  | F32: =IF(G32=19,3,IF(ISBLANK(B32),"",IF(B32=19,0,IF(D32<18,1,IF(D32=18,2,IF(D32>=20,3)))))) ->  | I32: =IF(ISBLANK(B32),0,B32) -> 0 | J32: =IF(ISBLANK(B32),0,D32) -> 0 | K32: =A32&C32 -> BZBY
A34: 4 éme MATCH le 5 juin | B34: à | C34: =A9 -> CA
G35: SI forfait éq recevante
A36: Equipes | B36: score | C36: Equipes | D36: score
A37: =A6 -> BX | C37: =$A$9 -> CA | D37: =IF(G37=19,19,IF(ISBLANK(B37),"",IF(B37=19,0,36-B37))) ->  | E37: =IF(G37=19,0,IF(ISBLANK(B37),"",IF(B37<18,1,IF(B37=18,2,IF(B37>18,3))))) ->  | F37: =IF(G37=19,3,IF(ISBLANK(B37),"",IF(B37=19,0,IF(D37<18,1,IF(D37=18,2,IF(D37>=20,3)))))) ->  | I37: =IF(ISBLANK(B37),0,B37) -> 0 | J37: =IF(ISBLANK(B37),0,D37) -> 0 | K37: =A37&C37 -> BXCA
A38: =$A$7 -> BY | C38: =$A$11 -> CC | D38: =IF(G38=19,19,IF(ISBLANK(B38),"",IF(B38=19,0,36-B38))) ->  | E38: =IF(G38=19,0,IF(ISBLANK(B38),"",IF(B38<18,1,IF(B38=18,2,IF(B38>18,3))))) ->  | F38: =IF(G38=19,3,IF(ISBLANK(B38),"",IF(B38=19,0,IF(D38<18,1,IF(D38=18,2,IF(D38>=20,3)))))) ->  | I38: =IF(ISBLANK(B38),0,B38) -> 0 | J38: =IF(ISBLANK(B38),0,D38) -> 0 | K38: =A38&C38 -> BYCC
A39: =A8 -> BZ | C39: =$A$10 -> CB | D39: =IF(G39=19,19,IF(ISBLANK(B39),"",IF(B39=19,0,36-B39))) ->  | E39: =IF(G39=19,0,IF(ISBLANK(B39),"",IF(B39<18,1,IF(B39=18,2,IF(B39>18,3))))) ->  | F39: =IF(G39=19,3,IF(ISBLANK(B39),"",IF(B39=19,0,IF(D39<18,1,IF(D39=18,2,IF(D39>=20,3)))))) ->  | I39: =IF(ISBLANK(B39),0,B39) -> 0 | J39: =IF(ISBLANK(B39),0,D39) -> 0 | K39: =A39&C39 -> BZCB
A41: 5 éme MATCH le 12 juin | B41: à | C41: =A10 -> CB
G42: SI forfait éq recevante
A43: Equipes | B43: score | C43: Equipes | D43: score
A44: =A8 -> BZ | C44: =$A$11 -> CC | D44: =IF(G44=19,19,IF(ISBLANK(B44),"",IF(B44=19,0,36-B44))) ->  | E44: =IF(G44=19,0,IF(ISBLANK(B44),"",IF(B44<18,1,IF(B44=18,2,IF(B44>18,3))))) ->  | F44: =IF(G44=19,3,IF(ISBLANK(B44),"",IF(B44=19,0,IF(D44<18,1,IF(D44=18,2,IF(D44>=20,3)))))) ->  | I44: =IF(ISBLANK(B44),0,B44) -> 0 | J44: =IF(ISBLANK(B44),0,D44) -> 0 | K44: =A44&C44 -> BZCC
A45: =$A$10 -> CB | C45: =A6 -> BX | D45: =IF(G45=19,19,IF(ISBLANK(B45),"",IF(B45=19,0,36-B45))) ->  | E45: =IF(G45=19,0,IF(ISBLANK(B45),"",IF(B45<18,1,IF(B45=18,2,IF(B45>18,3))))) ->  | F45: =IF(G45=19,3,IF(ISBLANK(B45),"",IF(B45=19,0,IF(D45<18,1,IF(D45=18,2,IF(D45>=20,3)))))) ->  | I45: =IF(ISBLANK(B45),0,B45) -> 0 | J45: =IF(ISBLANK(B45),0,D45) -> 0 | K45: =A45&C45 -> CBBX
A46: =A7 -> BY | C46: =$A$9 -> CA | D46: =IF(G46=19,19,IF(ISBLANK(B46),"",IF(B46=19,0,36-B46))) ->  | E46: =IF(G46=19,0,IF(ISBLANK(B46),"",IF(B46<18,1,IF(B46=18,2,IF(B46>18,3))))) ->  | F46: =IF(G46=19,3,IF(ISBLANK(B46),"",IF(B46=19,0,IF(D46<18,1,IF(D46=18,2,IF(D46>=20,3)))))) ->  | I46: =IF(ISBLANK(B46),0,B46) -> 0 | J46: =IF(ISBLANK(B46),0,D46) -> 0 | K46: =A46&C46 -> BYCA
A48: CLASSEMENT
A49: EQUIPES | C49: POINTS | D49: Pour | E49: Contre | F49: Diff | G49: CLASST
A50: BX | B50: 9A | C50: 0 | D50: 0 | E50: 0 | F50: 0 | G50: =B59 -> 1 | H50: =IF(AND(G50=1,COUNTIF(rang1,1)>1),COUNTIF(G$50:G50,1),IF(AND(G50=2,COUNTIF(rang1,2)>1),COUNTIF(G$50:G50,2)+3,"")) -> 1
A51: BY | B51: 9B | C51: 0 | D51: 0 | E51: 0 | F51: 0 | G51: 1 | H51: =IF(AND(G51=1,COUNTIF(rang1,1)>1),COUNTIF(G$50:G51,1),IF(AND(G51=2,COUNTIF(rang1,2)>1),COUNTIF(G$50:G51,2)+3,"")) -> 2
A52: BZ | B52: 9C | C52: 0 | D52: 0 | E52: 0 | F52: 0 | G52: 1 | H52: =IF(AND(G52=1,COUNTIF(rang1,1)>1),COUNTIF(G$50:G52,1),IF(AND(G52=2,COUNTIF(rang1,2)>1),COUNTIF(G$50:G52,2)+3,"")) -> 3
A53: CA | B53: 9D | C53: 0 | D53: 0 | E53: 0 | F53: 0 | G53: 1 | H53: =IF(AND(G53=1,COUNTIF(rang1,1)>1),COUNTIF(G$50:G53,1),IF(AND(G53=2,COUNTIF(rang1,2)>1),COUNTIF(G$50:G53,2)+3,"")) -> 4
A54: CB | B54: 9E | C54: 0 | D54: 0 | E54: 0 | F54: 0 | G54: 1 | H54: =IF(AND(G54=1,COUNTIF(rang1,1)>1),COUNTIF(G$50:G54,1),IF(AND(G54=2,COUNTIF(rang1,2)>1),COUNTIF(G$50:G54,2)+3,"")) -> 5
A55: CC | B55: 9F | C55: 0 | D55: 0 | E55: 0 | F55: 0 | G55: 1 | H55: =IF(AND(G55=1,COUNTIF(rang1,1)>1),COUNTIF(G$50:G55,1),IF(AND(G55=2,COUNTIF(rang1,2)>1),COUNTIF(G$50:G55,2)+3,"")) -> 6
B57: CLASSEMENT FINAL et DEPARTAGE EX AEQUOS | M57: CLASSEMENT
B58: Rang | C58: Equipes | D58: Pts | E58: diff pts avec exaequo | F58: cumul | G58: departage goalaverage si même cumul | H58: RP | L58: RP | M58: Rang | N58: Equipe | O58: Pts
B59: =RANK(G59,$G$59:$G$64) -> 1 | C59: =INDEX($A$50:$A$55,MATCH(H59,$L$59:$L$64,0)) -> BX | D59: =VLOOKUP(C59,$A$50:$C$55,3,0) -> 0 | E59: =IF(D59=D60,INDEX($J$6:$O$11,MATCH(C59,$I$6:$I$11,0),MATCH(C60,$J$5:$O$5,0)),IF(D59=D58,INDEX($J$6:$O$11,MATCH(C59,$I$6:$I$11,0),MATCH(C58,$J$5:$O$5,0)),0)) -> 0 | F59: =D59+E59/100 -> 0 | G59: =IF(AND(F59<>F58,F59<>F60),F59,F59+VLOOKUP(C59,$A$50:$F$55,6,0)/100) -> 0 | H59: 1 | L59: =RANK(C50,$C$50:$C$55)+COUNTIF($C$50:C50,C50)-1 -> 1 | M59: =B59 -> 1 | N59: BX | O59: =VLOOKUP(N59,$C$59:$D$64,2,0) -> 0
B60: 1 | C60: BY | D60: 0 | E60: =IF(D60=D61,INDEX($J$6:$O$11,MATCH(C60,$I$6:$I$11,0),MATCH(C61,$J$5:$O$5,0)),IF(D60=D59,INDEX($J$6:$O$11,MATCH(C60,$I$6:$I$11,0),MATCH(C59,$J$5:$O$5,0)),0)) -> 0 | F60: 0 | G60: =IF(AND(F60<>F59,F60<>F61),F60,F60+VLOOKUP(C60,$A$50:$F$55,6,0)/100) -> 0 | H60: 2 | L60: =RANK(C51,$C$50:$C$55)+COUNTIF($C$50:C51,C51)-1 -> 2 | M60: 1 | N60: BY | O60: 0
B61: 1 | C61: BZ | D61: 0 | E61: =IF(D61=D62,INDEX($J$6:$O$11,MATCH(C61,$I$6:$I$11,0),MATCH(C62,$J$5:$O$5,0)),IF(D61=D60,INDEX($J$6:$O$11,MATCH(C61,$I$6:$I$11,0),MATCH(C60,$J$5:$O$5,0)),0)) -> 0 | F61: 0 | G61: =IF(AND(F61<>F60,F61<>F62),F61,F61+VLOOKUP(C61,$A$50:$F$55,6,0)/100) -> 0 | H61: 3 | L61: =RANK(C52,$C$50:$C$55)+COUNTIF($C$50:C52,C52)-1 -> 3 | M61: 1 | N61: BZ | O61: 0
B62: 1 | C62: CA | D62: 0 | E62: =IF(D62=D63,INDEX($J$6:$O$11,MATCH(C62,$I$6:$I$11,0),MATCH(C63,$J$5:$O$5,0)),IF(D62=D61,INDEX($J$6:$O$11,MATCH(C62,$I$6:$I$11,0),MATCH(C61,$J$5:$O$5,0)),0)) -> 0 | F62: 0 | G62: =IF(AND(F62<>F61,F62<>F63),F62,F62+VLOOKUP(C62,$A$50:$F$55,6,0)/100) -> 0 | H62: 4 | L62: =RANK(C53,$C$50:$C$55)+COUNTIF($C$50:C53,C53)-1 -> 4 | M62: 1 | N62: CA | O62: 0
B63: 1 | C63: CB | D63: 0 | E63: =IF(D63=D64,INDEX($J$6:$O$11,MATCH(C63,$I$6:$I$11,0),MATCH(C64,$J$5:$O$5,0)),IF(D63=D62,INDEX($J$6:$O$11,MATCH(C63,$I$6:$I$11,0),MATCH(C62,$J$5:$O$5,0)),0)) -> 0 | F63: 0 | G63: =IF(AND(F63<>F62,F63<>F64),F63,F63+VLOOKUP(C63,$A$50:$F$55,6,0)/100) -> 0 | H63: 5 | L63: =RANK(C54,$C$50:$C$55)+COUNTIF($C$50:C54,C54)-1 -> 5 | M63: 1 | N63: CB | O63: 0
B64: 1 | C64: CC | D64: 0 | E64: =IF(D64=D59,INDEX($J$6:$O$11,MATCH(C64,$I$6:$I$11,0),MATCH(C59,$J$5:$O$5,0)),IF(D64=D63,INDEX($J$6:$O$11,MATCH(C64,$I$6:$I$11,0),MATCH(C63,$J$5:$O$5,0)),0)) -> 0 | F64: 0 | G64: =IF(AND(F64<>F63,F64<>F59),F64,F64+VLOOKUP(C64,$A$50:$F$55,6,0)/100) -> 0 | H64: 6 | L64: =RANK(C55,$C$50:$C$55)+COUNTIF($C$50:C55,C55)-1 -> 6 | M64: 1 | N64: CC | O64: 0

Sheet P10
A2: CHAMPIONNAT DES CLUBS
A4: POULE 10 | I4: Récapitulatif différence match entre 2 équipes
A5: EQUIPES | C5: POINTS | D5: Pour | E5: Contre | F5: Diff | J5: =A6 -> CD | K5: =A7 -> CE | L5: =A8 -> CF | M5: =A9 -> CG | N5: =A10 -> CH | O5: =A11 -> CI
A6: CD | B6: 10A | C6: =SUM(E16,E23,E30,E37,F45) -> 0 | D6: =I16+I23+I30+I37+J45 -> 0 | E6: =J16+J23+J30+J37+I45 -> 0 | F6: =D6-E6 -> 0 | I6: =A6 -> CD | K6: =IF(ISBLANK(B16),0,IFERROR(INDEX($B$15:$B$46,MATCH($I6&K$5,$K$15:$K$46,0))-INDEX($D$15:$D$46,MATCH($I6&K$5,$K$15:$K$46,0)),0-INDEX($J$6:$O$11,MATCH(K$5,$I$6:$I$11,0),MATCH($I6,$J$5:$O$5,0)))) -> 0 | L6: =IF(ISBLANK(B23),0,IFERROR(INDEX($B$15:$B$46,MATCH($I6&L$5,$K$15:$K$46,0))-INDEX($D$15:$D$46,MATCH($I6&L$5,$K$15:$K$46,0)),0-INDEX($J$6:$O$11,MATCH(L$5,$I$6:$I$11,0),MATCH($I6,$J$5:$O$5,0)))) -> 0 | M6: =IF(ISBLANK(B37),0,IFERROR(INDEX($B$15:$B$46,MATCH($I6&M$5,$K$15:$K$46,0))-INDEX($D$15:$D$46,MATCH($I6&M$5,$K$15:$K$46,0)),0-INDEX($J$6:$O$11,MATCH(M$5,$I$6:$I$11,0),MATCH($I6,$J$5:$O$5,0)))) -> 0 | N6: =IF(ISBLANK(B45),0,IFERROR(INDEX($B$15:$B$46,MATCH($I6&N$5,$K$15:$K$46,0))-INDEX($D$15:$D$46,MATCH($I6&N$5,$K$15:$K$46,0)),0-INDEX($J$6:$O$11,MATCH(N$5,$I$6:$I$11,0),MATCH($I6,$J$5:$O$5,0)))) -> 0 | O6: =IF(ISBLANK(B30),0,IFERROR(INDEX($B$15:$B$46,MATCH($I6&O$5,$K$15:$K$46,0))-INDEX($D$15:$D$46,MATCH($I6&O$5,$K$15:$K$46,0)),0-INDEX($J$6:$O$11,MATCH(O$5,$I$6:$I$11,0),MATCH($I6,$J$5:$O$5,0)))) -> 0
A7: CE | B7: 10B | C7: =SUM(F16,E24,F32,E38,E46) -> 0 | D7: =J16+I24+J32+I38+I46 -> 0 | E7: =I16+J24+I32+J38+J46 -> 0 | F7: 0 | I7: CE | J7: =IF(ISBLANK(B16),0,IFERROR(INDEX($B$15:$B$46,MATCH($I7&J$5,$K$15:$K$46,0))-INDEX($D$15:$D$46,MATCH($I7&J$5,$K$15:$K$46,0)),0-INDEX($J$6:$O$11,MATCH(J$5,$I$6:$I$11,0),MATCH($I7,$J$5:$O$5,0)))) -> 0 | L7: =IF(ISBLANK(B32),0,IFERROR(INDEX($B$15:$B$46,MATCH($I7&L$5,$K$15:$K$46,0))-INDEX($D$15:$D$46,MATCH($I7&L$5,$K$15:$K$46,0)),0-INDEX($J$6:$O$11,MATCH(L$5,$I$6:$I$11,0),MATCH($I7,$J$5:$O$5,0)))) -> 0 | M7: =IF(ISBLANK(B46),0,IFERROR(INDEX($B$15:$B$46,MATCH($I7&M$5,$K$15:$K$46,0))-INDEX($D$15:$D$46,MATCH($I7&M$5,$K$15:$K$46,0)),0-INDEX($J$6:$O$11,MATCH(M$5,$I$6:$I$11,0),MATCH($I7,$J$5:$O$5,0)))) -> 0 | N7: =IF(ISBLANK(B24),0,IFERROR(INDEX($B$15:$B$46,MATCH($I7&N$5,$K$15:$K$46,0))-INDEX($D$15:$D$46,MATCH($I7&N$5,$K$15:$K$46,0)),0-INDEX($J$6:$O$11,MATCH(N$5,$I$6:$I$11,0),MATCH($I7,$J$5:$O$5,0)))) -> 0 | O7: =IF(ISBLANK(B38),0,IFERROR(INDEX($B$15:$B$46,MATCH($I7&O$5,$K$15:$K$46,0))-INDEX($D$15:$D$46,MATCH($I7&O$5,$K$15:$K$46,0)),0-INDEX($J$6:$O$11,MATCH(O$5,$I$6:$I$11,0),MATCH($I7,$J$5:$O$5,0)))) -> 0
A8: CF | B8: 10C | C8: =SUM(E17,F23,E32,E39,E44) -> 0 | D8: =I17+J23+I32+I39+I44 -> 0 | E8: =J17+I23+J32+J39+J44 -> 0 | F8: 0 | I8: CF | J8: =IF(ISBLANK(B23),0,IFERROR(INDEX($B$15:$B$46,MATCH($I8&J$5,$K$15:$K$46,0))-INDEX($D$15:$D$46,MATCH($I8&J$5,$K$15:$K$46,0)),0-INDEX($J$6:$O$11,MATCH(J$5,$I$6:$I$11,0),MATCH($I8,$J$5:$O$5,0)))) -> 0 | K8: =IF(ISBLANK(B32),0,IFERROR(INDEX($B$15:$B$46,MATCH($I8&K$5,$K$15:$K$46,0))-INDEX($D$15:$D$46,MATCH($I8&K$5,$K$15:$K$46,0)),0-INDEX($J$6:$O$11,MATCH(K$5,$I$6:$I$11,0),MATCH($I8,$J$5:$O$5,0)))) -> 0 | M8: =IF(ISBLANK(B17),0,IFERROR(INDEX($B$15:$B$46,MATCH($I8&M$5,$K$15:$K$46,0))-INDEX($D$15:$D$46,MATCH($I8&M$5,$K$15:$K$46,0)),0-INDEX($J$6:$O$11,MATCH(M$5,$I$6:$I$11,0),MATCH($I8,$J$5:$O$5,0)))) -> 0 | N8: =IF(ISBLANK(B39),0,IFERROR(INDEX($B$15:$B$46,MATCH($I8&N$5,$K$15:$K$46,0))-INDEX($D$15:$D$46,MATCH($I8&N$5,$K$15:$K$46,0)),0-INDEX($J$6:$O$11,MATCH(N$5,$I$6:$I$11,0),MATCH($I8,$J$5:$O$5,0)))) -> 0 | O8: =IF(ISBLANK(B44),0,IFERROR(INDEX($B$15:$B$46,MATCH($I8&O$5,$K$15:$K$46,0))-INDEX($D$15:$D$46,MATCH($I8&O$5,$K$15:$K$46,0)),0-INDEX($J$6:$O$11,MATCH(O$5,$I$6:$I$11,0),MATCH($I8,$J$5:$O$5,0)))) -> 0
A9: CG | B9: 10D | C9: =SUM(F17,E25,F31,F37,F46) -> 0 | D9: =J17+I25+J31+J37+J46 -> 0 | E9: =I17+J25+I31+I37+I46 -> 0 | F9: 0 | I9: CG | J9: =IF(ISBLANK(B37),0,IFERROR(INDEX($B$15:$B$46,MATCH($I9&J$5,$K$15:$K$46,0))-INDEX($D$15:$D$46,MATCH($I9&J$5,$K$15:$K$46,0)),0-INDEX($J$6:$O$11,MATCH(J$5,$I$6:$I$11,0),MATCH($I9,$J$5:$O$5,0)))) -> 0 | K9: =IF(ISBLANK(B46),0,IFERROR(INDEX($B$15:$B$46,MATCH($I9&K$5,$K$15:$K$46,0))-INDEX($D$15:$D$46,MATCH($I9&K$5,$K$15:$K$46,0)),0-INDEX($J$6:$O$11,MATCH(K$5,$I$6:$I$11,0),MATCH($I9,$J$5:$O$5,0)))) -> 0 | L9: =IF(ISBLANK(B17),0,IFERROR(INDEX($B$15:$B$46,MATCH($I9&L$5,$K$15:$K$46,0))-INDEX($D$15:$D$46,MATCH($I9&L$5,$K$15:$K$46,0)),0-INDEX($J$6:$O$11,MATCH(L$5,$I$6:$I$11,0),MATCH($I9,$J$5:$O$5,0)))) -> 0 | N9: =IF(ISBLANK(B31),0,IFERROR(INDEX($B$15:$B$46,MATCH($I9&N$5,$K$15:$K$46,0))-INDEX($D$15:$D$46,MATCH($I9&N$5,$K$15:$K$46,0)),0-INDEX($J$6:$O$11,MATCH(N$5,$I$6:$I$11,0),MATCH($I9,$J$5:$O$5,0)))) -> 0 | O9: =IF(ISBLANK(B25),0,IFERROR(INDEX($B$15:$B$46,MATCH($I9&O$5,$K$15:$K$46,0))-INDEX($D$15:$D$46,MATCH($I9&O$5,$K$15:$K$46,0)),0-INDEX($J$6:$O$11,MATCH(O$5,$I$6:$I$11,0),MATCH($I9,$J$5:$O$5,0)))) -> 0
A10: CH | B10: 10E | C10: =SUM(E18,F24,E31,F39,E45) -> 0 | D10: =I18+J24+I31+J39+I45 -> 0 | E10: =J18+I24+J31+I39+J45 -> 0 | F10: 0 | I10: CH | J10: =IF(ISBLANK(B45),0,IFERROR(INDEX($B$15:$B$46,MATCH($I10&J$5,$K$15:$K$46,0))-INDEX($D$15:$D$46,MATCH($I10&J$5,$K$15:$K$46,0)),0-INDEX($J$6:$O$11,MATCH(J$5,$I$6:$I$11,0),MATCH($I10,$J$5:$O$5,0)))) -> 0 | K10: =IF(ISBLANK(B24),0,IFERROR(INDEX($B$15:$B$46,MATCH($I10&K$5,$K$15:$K$46,0))-INDEX($D$15:$D$46,MATCH($I10&K$5,$K$15:$K$46,0)),0-INDEX($J$6:$O$11,MATCH(K$5,$I$6:$I$11,0),MATCH($I10,$J$5:$O$5,0)))) -> 0 | L10: =IF(ISBLANK(B39),0,IFERROR(INDEX($B$15:$B$46,MATCH($I10&L$5,$K$15:$K$46,0))-INDEX($D$15:$D$46,MATCH($I10&L$5,$K$15:$K$46,0)),0-INDEX($J$6:$O$11,MATCH(L$5,$I$6:$I$11,0),MATCH($I10,$J$5:$O$5,0)))) -> 0 | M10: =IF(ISBLANK(B31),0,IFERROR(INDEX($B$15:$B$46,MATCH($I10&M$5,$K$15:$K$46,0))-INDEX($D$15:$D$46,MATCH($I10&M$5,$K$15:$K$46,0)),0-INDEX($J$6:$O$11,MATCH(M$5,$I$6:$I$11,0),MATCH($I10,$J$5:$O$5,0)))) -> 0 | O10: =IF(ISBLANK(B18),0,IFERROR(INDEX($B$15:$B$46,MATCH($I10&O$5,$K$15:$K$46,0))-INDEX($D$15:$D$46,MATCH($I10&O$5,$K$15:$K$46,0)),0-INDEX($J$6:$O$11,MATCH(O$5,$I$6:$I$11,0),MATCH($I10,$J$5:$O$5,0)))) -> 0
A11: CI | B11: 10F | C11: =SUM(F18,F25,F30,F38,F44) -> 0 | D11: =J18+J25+J30+J38+J44 -> 0 | E11: =I18+I25+I30+I38+I44 -> 0 | F11: 0 | I11: CI | J11: =IF(ISBLANK(B30),0,IFERROR(INDEX($B$15:$B$46,MATCH($I11&J$5,$K$15:$K$46,0))-INDEX($D$15:$D$46,MATCH($I11&J$5,$K$15:$K$46,0)),0-INDEX($J$6:$O$11,MATCH(J$5,$I$6:$I$11,0),MATCH($I11,$J$5:$O$5,0)))) -> 0 | K11: =IF(ISBLANK(B38),0,IFERROR(INDEX($B$15:$B$46,MATCH($I11&K$5,$K$15:$K$46,0))-INDEX($D$15:$D$46,MATCH($I11&K$5,$K$15:$K$46,0)),0-INDEX($J$6:$O$11,MATCH(K$5,$I$6:$I$11,0),MATCH($I11,$J$5:$O$5,0)))) -> 0 | L11: =IF(ISBLANK(B44),0,IFERROR(INDEX($B$15:$B$46,MATCH($I11&L$5,$K$15:$K$46,0))-INDEX($D$15:$D$46,MATCH($I11&L$5,$K$15:$K$46,0)),0-INDEX($J$6:$O$11,MATCH(L$5,$I$6:$I$11,0),MATCH($I11,$J$5:$O$5,0)))) -> 0 | M11: =IF(ISBLANK(B25),0,IFERROR(INDEX($B$15:$B$46,MATCH($I11&M$5,$K$15:$K$46,0))-INDEX($D$15:$D$46,MATCH($I11&M$5,$K$15:$K$46,0)),0-INDEX($J$6:$O$11,MATCH(M$5,$I$6:$I$11,0),MATCH($I11,$J$5:$O$5,0)))) -> 0 | N11: =IF(ISBLANK(B18),0,IFERROR(INDEX($B$15:$B$46,MATCH($I11&N$5,$K$15:$K$46,0))-INDEX($D$15:$D$46,MATCH($I11&N$5,$K$15:$K$46,0)),0-INDEX($J$6:$O$11,MATCH(N$5,$I$6:$I$11,0),MATCH($I11,$J$5:$O$5,0)))) -> 0
I12: Les concaténations en rouge permettent de remplir par formules le récapitulatif au dessus
A13: 1er MATCH le 15 mai | B13: à | C13: =A6 -> CD | I13: Ce récap servira à départager les ex aequos
G14: SI forfait éq recevante
A15: Equipes | B15: score | C15: Equipes | D15: score
A16: =$A$6 -> CD | C16: =$A$7 -> CE | D16: =IF(G16=19,19,IF(ISBLANK(B16),"",IF(B16=19,0,36-B16))) ->  | E16: =IF(G16=19,0,IF(ISBLANK(B16),"",IF(B16<18,1,IF(B16=18,2,IF(B16>18,3))))) ->  | F16: =IF(G16=19,3,IF(ISBLANK(B16),"",IF(B16=19,0,IF(D16<18,1,IF(D16=18,2,IF(D16>=20,3)))))) ->  | I16: =IF(ISBLANK(B16),0,B16) -> 0 | J16: =IF(ISBLANK(B16),0,D16) -> 0 | K16: =A16&C16 -> CDCE
A17: =$A$8 -> CF | C17: =$A$9 -> CG | D17: =IF(G17=19,19,IF(ISBLANK(B17),"",IF(B17=19,0,36-B17))) ->  | E17: =IF(G17=19,0,IF(ISBLANK(B17),"",IF(B17<18,1,IF(B17=18,2,IF(B17>18,3))))) ->  | F17: =IF(G17=19,3,IF(ISBLANK(B17),"",IF(B17=19,0,IF(D17<18,1,IF(D17=18,2,IF(D17>=20,3)))))) ->  | I17: =IF(ISBLANK(B17),0,B17) -> 0 | J17: =IF(ISBLANK(B17),0,D17) -> 0 | K17: =A17&C17 -> CFCG
A18: =$A$10 -> CH | C18: =$A$11 -> CI | D18: =IF(G18=19,19,IF(ISBLANK(B18),"",IF(B18=19,0,36-B18))) ->  | E18: =IF(G18=19,0,IF(ISBLANK(B18),"",IF(B18<18,1,IF(B18=18,2,IF(B18>18,3))))) ->  | F18: =IF(G18=19,3,IF(ISBLANK(B18),"",IF(B18=19,0,IF(D18<18,1,IF(D18=18,2,IF(D18>=20,3)))))) ->  | I18: =IF(ISBLANK(B18),0,B18) -> 0 | J18: =IF(ISBLANK(B18),0,D18) -> 0 | K18: =A18&C18 -> CHCI
A20: 2 éme MATCH le 22 mai | B20: à | C20: =A7 -> CE
G21: SI forfait éq recevante
A22: Equipes | B22: score | C22: Equipes | D22: score
A23: =$A$6 -> CD | C23: =$A$8 -> CF | D23: =IF(G23=19,19,IF(ISBLANK(B23),"",IF(B23=19,0,36-B23))) ->  | E23: =IF(G23=19,0,IF(ISBLANK(B23),"",IF(B23<18,1,IF(B23=18,2,IF(B23>18,3))))) ->  | F23: =IF(G23=19,3,IF(ISBLANK(B23),"",IF(B23=19,0,IF(D23<18,1,IF(D23=18,2,IF(D23>=20,3)))))) ->  | I23: =IF(ISBLANK(B23),0,B23) -> 0 | J23: =IF(ISBLANK(B23),0,D23) -> 0 | K23: =A23&C23 -> CDCF
A24: =$A$7 -> CE | C24: =$A$10 -> CH | D24: =IF(G24=19,19,IF(ISBLANK(B24),"",IF(B24=19,0,36-B24))) ->  | E24: =IF(G24=19,0,IF(ISBLANK(B24),"",IF(B24<18,1,IF(B24=18,2,IF(B24>18,3))))) ->  | F24: =IF(G24=19,3,IF(ISBLANK(B24),"",IF(B24=19,0,IF(D24<18,1,IF(D24=18,2,IF(D24>=20,3)))))) ->  | I24: =IF(ISBLANK(B24),0,B24) -> 0 | J24: =IF(ISBLANK(B24),0,D24) -> 0 | K24: =A24&C24 -> CECH
A25: =$A$9 -> CG | C25: =$A$11 -> CI | D25: =IF(G25=19,19,IF(ISBLANK(B25),"",IF(B25=19,0,36-B25))) ->  | E25: =IF(G25=19,0,IF(ISBLANK(B25),"",IF(B25<18,1,IF(B25=18,2,IF(B25>18,3))))) ->  | F25: =IF(G25=19,3,IF(ISBLANK(B25),"",IF(B25=19,0,IF(D25<18,1,IF(D25=18,2,IF(D25>=20,3)))))) ->  | I25: =IF(ISBLANK(B25),0,B25) -> 0 | J25: =IF(ISBLANK(B25),0,D25) -> 0 | K25: =A25&C25 -> CGCI
A27: 3 éme MATCH le 29 mai | B27: à | C27: =A8 -> CF
G28: SI forfait éq recevante
A29: Equipes | B29: score | C29: Equipes | D29: score
A30: =$A$6 -> CD | C30: =$A$11 -> CI | D30: =IF(G30=19,19,IF(ISBLANK(B30),"",IF(B30=19,0,36-B30))) ->  | E30: =IF(G30=19,0,IF(ISBLANK(B30),"",IF(B30<18,1,IF(B30=18,2,IF(B30>18,3))))) ->  | F30: =IF(G30=19,3,IF(ISBLANK(B30),"",IF(B30=19,0,IF(D30<18,1,IF(D30=18,2,IF(D30>=20,3)))))) ->  | I30: =IF(ISBLANK(B30),0,B30) -> 0 | J30: =IF(ISBLANK(B30),0,D30) -> 0 | K30: =A30&C30 -> CDCI
A31: =$A$10 -> CH | C31: =$A$9 -> CG | D31: =IF(G31=19,19,IF(ISBLANK(B31),"",IF(B31=19,0,36-B31))) ->  | E31: =IF(G31=19,0,IF(ISBLANK(B31),"",IF(B31<18,1,IF(B31=18,2,IF(B31>18,3))))) ->  | F31: =IF(G31=19,3,IF(ISBLANK(B31),"",IF(B31=19,0,IF(D31<18,1,IF(D31=18,2,IF(D31>=20,3)))))) ->  | I31: =IF(ISBLANK(B31),0,B31) -> 0 | J31: =IF(ISBLANK(B31),0,D31) -> 0 | K31: =A31&C31 -> CHCG
A32: =$A$8 -> CF | C32: =$A$7 -> CE | D32: =IF(G32=19,19,IF(ISBLANK(B32),"",IF(B32=19,0,36-B32))) ->  | E32: =IF(G32=19,0,IF(ISBLANK(B32),"",IF(B32<18,1,IF(B32=18,2,IF(B32>18,3))))) ->  | F32: =IF(G32=19,3,IF(ISBLANK(B32),"",IF(B32=19,0,IF(D32<18,1,IF(D32=18,2,IF(D32>=20,3)))))) ->  | I32: =IF(ISBLANK(B32),0,B32) -> 0 | J32: =IF(ISBLANK(B32),0,D32) -> 0 | K32: =A32&C32 -> CFCE
A34: 4 éme MATCH le 5 juin | B34: à | C34: =A9 -> CG
G35: SI forfait éq recevante
A36: Equipes | B36: score | C36: Equipes | D36: score
A37: =A6 -> CD | C37: =$A$9 -> CG | D37: =IF(G37=19,19,IF(ISBLANK(B37),"",IF(B37=19,0,36-B37))) ->  | E37: =IF(G37=19,0,IF(ISBLANK(B37),"",IF(B37<18,1,IF(B37=18,2,IF(B37>18,3))))) ->  | F37: =IF(G37=19,3,IF(ISBLANK(B37),"",IF(B37=19,0,IF(D37<18,1,IF(D37=18,2,IF(D37>=20,3)))))) ->  | I37: =IF(ISBLANK(B37),0,B37) -> 0 | J37: =IF(ISBLANK(B37),0,D37) -> 0 | K37: =A37&C37 -> CDCG
A38: =$A$7 -> CE | C38: =$A$11 -> CI | D38: =IF(G38=19,19,IF(ISBLANK(B38),"",IF(B38=19,0,36-B38))) ->  | E38: =IF(G38=19,0,IF(ISBLANK(B38),"",IF(B38<18,1,IF(B38=18,2,IF(B38>18,3))))) ->  | F38: =IF(G38=19,3,IF(ISBLANK(B38),"",IF(B38=19,0,IF(D38<18,1,IF(D38=18,2,IF(D38>=20,3)))))) ->  | I38: =IF(ISBLANK(B38),0,B38) -> 0 | J38: =IF(ISBLANK(B38),0,D38) -> 0 | K38: =A38&C38 -> CECI
A39: =A8 -> CF | C39: =$A$10 -> CH | D39: =IF(G39=19,19,IF(ISBLANK(B39),"",IF(B39=19,0,36-B39))) ->  | E39: =IF(G39=19,0,IF(ISBLANK(B39),"",IF(B39<18,1,IF(B39=18,2,IF(B39>18,3))))) ->  | F39: =IF(G39=19,3,IF(ISBLANK(B39),"",IF(B39=19,0,IF(D39<18,1,IF(D39=18,2,IF(D39>=20,3)))))) ->  | I39: =IF(ISBLANK(B39),0,B39) -> 0 | J39: =IF(ISBLANK(B39),0,D39) -> 0 | K39: =A39&C39 -> CFCH
A41: 5 éme MATCH le 12 juin | B41: à | C41: =A10 -> CH
G42: SI forfait éq recevante
A43: Equipes | B43: score | C43: Equipes | D43: score
A44: =A8 -> CF | C44: =$A$11 -> CI | D44: =IF(G44=19,19,IF(ISBLANK(B44),"",IF(B44=19,0,36-B44))) ->  | E44: =IF(G44=19,0,IF(ISBLANK(B44),"",IF(B44<18,1,IF(B44=18,2,IF(B44>18,3))))) ->  | F44: =IF(G44=19,3,IF(ISBLANK(B44),"",IF(B44=19,0,IF(D44<18,1,IF(D44=18,2,IF(D44>=20,3)))))) ->  | I44: =IF(ISBLANK(B44),0,B44) -> 0 | J44: =IF(ISBLANK(B44),0,D44) -> 0 | K44: =A44&C44 -> CFCI
A45: =$A$10 -> CH | C45: =A6 -> CD | D45: =IF(G45=19,19,IF(ISBLANK(B45),"",IF(B45=19,0,36-B45))) ->  | E45: =IF(G45=19,0,IF(ISBLANK(B45),"",IF(B45<18,1,IF(B45=18,2,IF(B45>18,3))))) ->  | F45: =IF(G45=19,3,IF(ISBLANK(B45),"",IF(B45=19,0,IF(D45<18,1,IF(D45=18,2,IF(D45>=20,3)))))) ->  | I45: =IF(ISBLANK(B45),0,B45) -> 0 | J45: =IF(ISBLANK(B45),0,D45) -> 0 | K45: =A45&C45 -> CHCD
A46: =A7 -> CE | C46: =$A$9 -> CG | D46: =IF(G46=19,19,IF(ISBLANK(B46),"",IF(B46=19,0,36-B46))) ->  | E46: =IF(G46=19,0,IF(ISBLANK(B46),"",IF(B46<18,1,IF(B46=18,2,IF(B46>18,3))))) ->  | F46: =IF(G46=19,3,IF(ISBLANK(B46),"",IF(B46=19,0,IF(D46<18,1,IF(D46=18,2,IF(D46>=20,3)))))) ->  | I46: =IF(ISBLANK(B46),0,B46) -> 0 | J46: =IF(ISBLANK(B46),0,D46) -> 0 | K46: =A46&C46 -> CECG
A48: CLASSEMENT
A49: EQUIPES | C49: POINTS | D49: Pour | E49: Contre | F49: Diff | G49: CLASST
A50: CD | B50: 10A | C50: 0 | D50: 0 | E50: 0 | F50: 0 | G50: =B59 -> 1 | H50: =IF(AND(G50=1,COUNTIF(rang1,1)>1),COUNTIF(G$50:G50,1),IF(AND(G50=2,COUNTIF(rang1,2)>1),COUNTIF(G$50:G50,2)+3,"")) -> 1
A51: CE | B51: 10B | C51: 0 | D51: 0 | E51: 0 | F51: 0 | G51: 1 | H51: =IF(AND(G51=1,COUNTIF(rang1,1)>1),COUNTIF(G$50:G51,1),IF(AND(G51=2,COUNTIF(rang1,2)>1),COUNTIF(G$50:G51,2)+3,"")) -> 2
A52: CF | B52: 10C | C52: 0 | D52: 0 | E52: 0 | F52: 0 | G52: 1 | H52: =IF(AND(G52=1,COUNTIF(rang1,1)>1),COUNTIF(G$50:G52,1),IF(AND(G52=2,COUNTIF(rang1,2)>1),COUNTIF(G$50:G52,2)+3,"")) -> 3
A53: CG | B53: 10D | C53: 0 | D53: 0 | E53: 0 | F53: 0 | G53: 1 | H53: =IF(AND(G53=1,COUNTIF(rang1,1)>1),COUNTIF(G$50:G53,1),IF(AND(G53=2,COUNTIF(rang1,2)>1),COUNTIF(G$50:G53,2)+3,"")) -> 4
A54: CH | B54: 10E | C54: 0 | D54: 0 | E54: 0 | F54: 0 | G54: 1 | H54: =IF(AND(G54=1,COUNTIF(rang1,1)>1),COUNTIF(G$50:G54,1),IF(AND(G54=2,COUNTIF(rang1,2)>1),COUNTIF(G$50:G54,2)+3,"")) -> 5
A55: CI | B55: 10F | C55: 0 | D55: 0 | E55: 0 | F55: 0 | G55: 1 | H55: =IF(AND(G55=1,COUNTIF(rang1,1)>1),COUNTIF(G$50:G55,1),IF(AND(G55=2,COUNTIF(rang1,2)>1),COUNTIF(G$50:G55,2)+3,"")) -> 6
B57: CLASSEMENT FINAL et DEPARTAGE EX AEQUOS | M57: CLASSEMENT
B58: Rang | C58: Equipes | D58: Pts | E58: diff pts avec exaequo | F58: cumul | G58: departage goalaverage si même cumul | H58: RP | L58: RP | M58: Rang | N58: Equipe | O58: Pts
B59: =RANK(G59,$G$59:$G$64) -> 1 | C59: =INDEX($A$50:$A$55,MATCH(H59,$L$59:$L$64,0)) -> CD | D59: =VLOOKUP(C59,$A$50:$C$55,3,0) -> 0 | E59: =IF(D59=D60,INDEX($J$6:$O$11,MATCH(C59,$I$6:$I$11,0),MATCH(C60,$J$5:$O$5,0)),IF(D59=D58,INDEX($J$6:$O$11,MATCH(C59,$I$6:$I$11,0),MATCH(C58,$J$5:$O$5,0)),0)) -> 0 | F59: =D59+E59/100 -> 0 | G59: =IF(AND(F59<>F58,F59<>F60),F59,F59+VLOOKUP(C59,$A$50:$F$55,6,0)/100) -> 0 | H59: 1 | L59: =RANK(C50,$C$50:$C$55)+COUNTIF($C$50:C50,C50)-1 -> 1 | M59: =B59 -> 1 | N59: CD | O59: =VLOOKUP(N59,$C$59:$D$64,2,0) -> 0
B60: 1 | C60: CE | D60: 0 | E60: =IF(D60=D61,INDEX($J$6:$O$11,MATCH(C60,$I$6:$I$11,0),MATCH(C61,$J$5:$O$5,0)),IF(D60=D59,INDEX($J$6:$O$11,MATCH(C60,$I$6:$I$11,0),MATCH(C59,$J$5:$O$5,0)),0)) -> 0 | F60: 0 | G60: =IF(AND(F60<>F59,F60<>F61),F60,F60+VLOOKUP(C60,$A$50:$F$55,6,0)/100) -> 0 | H60: 2 | L60: =RANK(C51,$C$50:$C$55)+COUNTIF($C$50:C51,C51)-1 -> 2 | M60: 1 | N60: CE | O60: 0
B61: 1 | C61: CF | D61: 0 | E61: =IF(D61=D62,INDEX($J$6:$O$11,MATCH(C61,$I$6:$I$11,0),MATCH(C62,$J$5:$O$5,0)),IF(D61=D60,INDEX($J$6:$O$11,MATCH(C61,$I$6:$I$11,0),MATCH(C60,$J$5:$O$5,0)),0)) -> 0 | F61: 0 | G61: =IF(AND(F61<>F60,F61<>F62),F61,F61+VLOOKUP(C61,$A$50:$F$55,6,0)/100) -> 0 | H61: 3 | L61: =RANK(C52,$C$50:$C$55)+COUNTIF($C$50:C52,C52)-1 -> 3 | M61: 1 | N61: CF | O61: 0
B62: 1 | C62: CG | D62: 0 | E62: =IF(D62=D63,INDEX($J$6:$O$11,MATCH(C62,$I$6:$I$11,0),MATCH(C63,$J$5:$O$5,0)),IF(D62=D61,INDEX($J$6:$O$11,MATCH(C62,$I$6:$I$11,0),MATCH(C61,$J$5:$O$5,0)),0)) -> 0 | F62: 0 | G62: =IF(AND(F62<>F61,F62<>F63),F62,F62+VLOOKUP(C62,$A$50:$F$55,6,0)/100) -> 0 | H62: 4 | L62: =RANK(C53,$C$50:$C$55)+COUNTIF($C$50:C53,C53)-1 -> 4 | M62: 1 | N62: CG | O62: 0
B63: 1 | C63: CH | D63: 0 | E63: =IF(D63=D64,INDEX($J$6:$O$11,MATCH(C63,$I$6:$I$11,0),MATCH(C64,$J$5:$O$5,0)),IF(D63=D62,INDEX($J$6:$O$11,MATCH(C63,$I$6:$I$11,0),MATCH(C62,$J$5:$O$5,0)),0)) -> 0 | F63: 0 | G63: =IF(AND(F63<>F62,F63<>F64),F63,F63+VLOOKUP(C63,$A$50:$F$55,6,0)/100) -> 0 | H63: 5 | L63: =RANK(C54,$C$50:$C$55)+COUNTIF($C$50:C54,C54)-1 -> 5 | M63: 1 | N63: CH | O63: 0
B64: 1 | C64: CI | D64: 0 | E64: =IF(D64=D59,INDEX($J$6:$O$11,MATCH(C64,$I$6:$I$11,0),MATCH(C59,$J$5:$O$5,0)),IF(D64=D63,INDEX($J$6:$O$11,MATCH(C64,$I$6:$I$11,0),MATCH(C63,$J$5:$O$5,0)),0)) -> 0 | F64: 0 | G64: =IF(AND(F64<>F63,F64<>F59),F64,F64+VLOOKUP(C64,$A$50:$F$55,6,0)/100) -> 0 | H64: 6 | L64: =RANK(C55,$C$50:$C$55)+COUNTIF($C$50:C55,C55)-1 -> 6 | M64: 1 | N64: CI | O64: 0

Sheet P11
A2: CHAMPIONNAT DES CLUBS
A4: POULE 11 | I4: Récapitulatif différence match entre 2 équipes
A5: EQUIPES | C5: POINTS | D5: Pour | E5: Contre | F5: Diff | J5: =A6 -> CJ | K5: =A7 -> CK | L5: =A8 -> CL | M5: =A9 -> CM | N5: =A10 -> CN | O5: =A11 -> CO
A6: CJ | B6: 11A | C6: =SUM(E16,E23,E30,E37,F45) -> 0 | D6: =I16+I23+I30+I37+J45 -> 0 | E6: =J16+J23+J30+J37+I45 -> 0 | F6: =D6-E6 -> 0 | I6: =A6 -> CJ | K6: =IF(ISBLANK(B16),0,IFERROR(INDEX($B$15:$B$46,MATCH($I6&K$5,$K$15:$K$46,0))-INDEX($D$15:$D$46,MATCH($I6&K$5,$K$15:$K$46,0)),0-INDEX($J$6:$O$11,MATCH(K$5,$I$6:$I$11,0),MATCH($I6,$J$5:$O$5,0)))) -> 0 | L6: =IF(ISBLANK(B23),0,IFERROR(INDEX($B$15:$B$46,MATCH($I6&L$5,$K$15:$K$46,0))-INDEX($D$15:$D$46,MATCH($I6&L$5,$K$15:$K$46,0)),0-INDEX($J$6:$O$11,MATCH(L$5,$I$6:$I$11,0),MATCH($I6,$J$5:$O$5,0)))) -> 0 | M6: =IF(ISBLANK(B37),0,IFERROR(INDEX($B$15:$B$46,MATCH($I6&M$5,$K$15:$K$46,0))-INDEX($D$15:$D$46,MATCH($I6&M$5,$K$15:$K$46,0)),0-INDEX($J$6:$O$11,MATCH(M$5,$I$6:$I$11,0),MATCH($I6,$J$5:$O$5,0)))) -> 0 | N6: =IF(ISBLANK(B45),0,IFERROR(INDEX($B$15:$B$46,MATCH($I6&N$5,$K$15:$K$46,0))-INDEX($D$15:$D$46,MATCH($I6&N$5,$K$15:$K$46,0)),0-INDEX($J$6:$O$11,MATCH(N$5,$I$6:$I$11,0),MATCH($I6,$J$5:$O$5,0)))) -> 0 | O6: =IF(ISBLANK(B30),0,IFERROR(INDEX($B$15:$B$46,MATCH($I6&O$5,$K$15:$K$46,0))-INDEX($D$15:$D$46,MATCH($I6&O$5,$K$15:$K$46,0)),0-INDEX($J$6:$O$11,MATCH(O$5,$I$6:$I$11,0),MATCH($I6,$J$5:$O$5,0)))) -> 0
A7: CK | B7: 11B | C7: =SUM(F16,E24,F32,E38,E46) -> 0 | D7: =J16+I24+J32+I38+I46 -> 0 | E7: =I16+J24+I32+J38+J46 -> 0 | F7: 0 | I7: CK | J7: =IF(ISBLANK(B16),0,IFERROR(INDEX($B$15:$B$46,MATCH($I7&J$5,$K$15:$K$46,0))-INDEX($D$15:$D$46,MATCH($I7&J$5,$K$15:$K$46,0)),0-INDEX($J$6:$O$11,MATCH(J$5,$I$6:$I$11,0),MATCH($I7,$J$5:$O$5,0)))) -> 0 | L7: =IF(ISBLANK(B32),0,IFERROR(INDEX($B$15:$B$46,MATCH($I7&L$5,$K$15:$K$46,0))-INDEX($D$15:$D$46,MATCH($I7&L$5,$K$15:$K$46,0)),0-INDEX($J$6:$O$11,MATCH(L$5,$I$6:$I$11,0),MATCH($I7,$J$5:$O$5,0)))) -> 0 | M7: =IF(ISBLANK(B46),0,IFERROR(INDEX($B$15:$B$46,MATCH($I7&M$5,$K$15:$K$46,0))-INDEX($D$15:$D$46,MATCH($I7&M$5,$K$15:$K$46,0)),0-INDEX($J$6:$O$11,MATCH(M$5,$I$6:$I$11,0),MATCH($I7,$J$5:$O$5,0)))) -> 0 | N7: =IF(ISBLANK(B24),0,IFERROR(INDEX($B$15:$B$46,MATCH($I7&N$5,$K$15:$K$46,0))-INDEX($D$15:$D$46,MATCH($I7&N$5,$K$15:$K$46,0)),0-INDEX($J$6:$O$11,MATCH(N$5,$I$6:$I$11,0),MATCH($I7,$J$5:$O$5,0)))) -> 0 | O7: =IF(ISBLANK(B38),0,IFERROR(INDEX($B$15:$B$46,MATCH($I7&O$5,$K$15:$K$46,0))-INDEX($D$15:$D$46,MATCH($I7&O$5,$K$15:$K$46,0)),0-INDEX($J$6:$O$11,MATCH(O$5,$I$6:$I$11,0),MATCH($I7,$J$5:$O$5,0)))) -> 0
A8: CL | B8: 11C | C8: =SUM(E17,F23,E32,E39,E44) -> 0 | D8: =I17+J23+I32+I39+I44 -> 0 | E8: =J17+I23+J32+J39+J44 -> 0 | F8: 0 | I8: CL | J8: =IF(ISBLANK(B23),0,IFERROR(INDEX($B$15:$B$46,MATCH($I8&J$5,$K$15:$K$46,0))-INDEX($D$15:$D$46,MATCH($I8&J$5,$K$15:$K$46,0)),0-INDEX($J$6:$O$11,MATCH(J$5,$I$6:$I$11,0),MATCH($I8,$J$5:$O$5,0)))) -> 0 | K8: =IF(ISBLANK(B32),0,IFERROR(INDEX($B$15:$B$46,MATCH($I8&K$5,$K$15:$K$46,0))-INDEX($D$15:$D$46,MATCH($I8&K$5,$K$15:$K$46,0)),0-INDEX($J$6:$O$11,MATCH(K$5,$I$6:$I$11,0),MATCH($I8,$J$5:$O$5,0)))) -> 0 | M8: =IF(ISBLANK(B17),0,IFERROR(INDEX($B$15:$B$46,MATCH($I8&M$5,$K$15:$K$46,0))-INDEX($D$15:$D$46,MATCH($I8&M$5,$K$15:$K$46,0)),0-INDEX($J$6:$O$11,MATCH(M$5,$I$6:$I$11,0),MATCH($I8,$J$5:$O$5,0)))) -> 0 | N8: =IF(ISBLANK(B39),0,IFERROR(INDEX($B$15:$B$46,MATCH($I8&N$5,$K$15:$K$46,0))-INDEX($D$15:$D$46,MATCH($I8&N$5,$K$15:$K$46,0)),0-INDEX($J$6:$O$11,MATCH(N$5,$I$6:$I$11,0),MATCH($I8,$J$5:$O$5,0)))) -> 0 | O8: =IF(ISBLANK(B44),0,IFERROR(INDEX($B$15:$B$46,MATCH($I8&O$5,$K$15:$K$46,0))-INDEX($D$15:$D$46,MATCH($I8&O$5,$K$15:$K$46,0)),0-INDEX($J$6:$O$11,MATCH(O$5,$I$6:$I$11,0),MATCH($I8,$J$5:$O$5,0)))) -> 0
A9: CM | B9: 11D | C9: =SUM(F17,E25,F31,F37,F46) -> 0 | D9: =J17+I25+J31+J37+J46 -> 0 | E9: =I17+J25+I31+I37+I46 -> 0 | F9: 0 | I9: CM | J9: =IF(ISBLANK(B37),0,IFERROR(INDEX($B$15:$B$46,MATCH($I9&J$5,$K$15:$K$46,0))-INDEX($D$15:$D$46,MATCH($I9&J$5,$K$15:$K$46,0)),0-INDEX($J$6:$O$11,MATCH(J$5,$I$6:$I$11,0),MATCH($I9,$J$5:$O$5,0)))) -> 0 | K9: =IF(ISBLANK(B46),0,IFERROR(INDEX($B$15:$B$46,MATCH($I9&K$5,$K$15:$K$46,0))-INDEX($D$15:$D$46,MATCH($I9&K$5,$K$15:$K$46,0)),0-INDEX($J$6:$O$11,MATCH(K$5,$I$6:$I$11,0),MATCH($I9,$J$5:$O$5,0)))) -> 0 | L9: =IF(ISBLANK(B17),0,IFERROR(INDEX($B$15:$B$46,MATCH($I9&L$5,$K$15:$K$46,0))-INDEX($D$15:$D$46,MATCH($I9&L$5,$K$15:$K$46,0)),0-INDEX($J$6:$O$11,MATCH(L$5,$I$6:$I$11,0),MATCH($I9,$J$5:$O$5,0)))) -> 0 | N9: =IF(ISBLANK(B31),0,IFERROR(INDEX($B$15:$B$46,MATCH($I9&N$5,$K$15:$K$46,0))-INDEX($D$15:$D$46,MATCH($I9&N$5,$K$15:$K$46,0)),0-INDEX($J$6:$O$11,MATCH(N$5,$I$6:$I$11,0),MATCH($I9,$J$5:$O$5,0)))) -> 0 | O9: =IF(ISBLANK(B25),0,IFERROR(INDEX($B$15:$B$46,MATCH($I9&O$5,$K$15:$K$46,0))-INDEX($D$15:$D$46,MATCH($I9&O$5,$K$15:$K$46,0)),0-INDEX($J$6:$O$11,MATCH(O$5,$I$6:$I$11,0),MATCH($I9,$J$5:$O$5,0)))) -> 0
A10: CN | B10: 11E | C10: =SUM(E18,F24,E31,F39,E45) -> 0 | D10: =I18+J24+I31+J39+I45 -> 0 | E10: =J18+I24+J31+I39+J45 -> 0 | F10: 0 | I10: CN | J10: =IF(ISBLANK(B45),0,IFERROR(INDEX($B$15:$B$46,MATCH($I10&J$5,$K$15:$K$46,0))-INDEX($D$15:$D$46,MATCH($I10&J$5,$K$15:$K$46,0)),0-INDEX($J$6:$O$11,MATCH(J$5,$I$6:$I$11,0),MATCH($I10,$J$5:$O$5,0)))) -> 0 | K10: =IF(ISBLANK(B24),0,IFERROR(INDEX($B$15:$B$46,MATCH($I10&K$5,$K$15:$K$46,0))-INDEX($D$15:$D$46,MATCH($I10&K$5,$K$15:$K$46,0)),0-INDEX($J$6:$O$11,MATCH(K$5,$I$6:$I$11,0),MATCH($I10,$J$5:$O$5,0)))) -> 0 | L10: =IF(ISBLANK(B39),0,IFERROR(INDEX($B$15:$B$46,MATCH($I10&L$5,$K$15:$K$46,0))-INDEX($D$15:$D$46,MATCH($I10&L$5,$K$15:$K$46,0)),0-INDEX($J$6:$O$11,MATCH(L$5,$I$6:$I$11,0),MATCH($I10,$J$5:$O$5,0)))) -> 0 | M10: =IF(ISBLANK(B31),0,IFERROR(INDEX($B$15:$B$46,MATCH($I10&M$5,$K$15:$K$46,0))-INDEX($D$15:$D$46,MATCH($I10&M$5,$K$15:$K$46,0)),0-INDEX($J$6:$O$11,MATCH(M$5,$I$6:$I$11,0),MATCH($I10,$J$5:$O$5,0)))) -> 0 | O10: =IF(ISBLANK(B18),0,IFERROR(INDEX($B$15:$B$46,MATCH($I10&O$5,$K$15:$K$46,0))-INDEX($D$15:$D$46,MATCH($I10&O$5,$K$15:$K$46,0)),0-INDEX($J$6:$O$11,MATCH(O$5,$I$6:$I$11,0),MATCH($I10,$J$5:$O$5,0)))) -> 0
A11: CO | B11: 11F | C11: =SUM(F18,F25,F30,F38,F44) -> 0 | D11: =J18+J25+J30+J38+J44 -> 0 | E11: =I18+I25+I30+I38+I44 -> 0 | F11: 0 | I11: CO | J11: =IF(ISBLANK(B30),0,IFERROR(INDEX($B$15:$B$46,MATCH($I11&J$5,$K$15:$K$46,0))-INDEX($D$15:$D$46,MATCH($I11&J$5,$K$15:$K$46,0)),0-INDEX($J$6:$O$11,MATCH(J$5,$I$6:$I$11,0),MATCH($I11,$J$5:$O$5,0)))) -> 0 | K11: =IF(ISBLANK(B38),0,IFERROR(INDEX($B$15:$B$46,MATCH($I11&K$5,$K$15:$K$46,0))-INDEX($D$15:$D$46,MATCH($I11&K$5,$K$15:$K$46,0)),0-INDEX($J$6:$O$11,MATCH(K$5,$I$6:$I$11,0),MATCH($I11,$J$5:$O$5,0)))) -> 0 | L11: =IF(ISBLANK(B44),0,IFERROR(INDEX($B$15:$B$46,MATCH($I11&L$5,$K$15:$K$46,0))-INDEX($D$15:$D$46,MATCH($I11&L$5,$K$15:$K$46,0)),0-INDEX($J$6:$O$11,MATCH(L$5,$I$6:$I$11,0),MATCH($I11,$J$5:$O$5,0)))) -> 0 | M11: =IF(ISBLANK(B25),0,IFERROR(INDEX($B$15:$B$46,MATCH($I11&M$5,$K$15:$K$46,0))-INDEX($D$15:$D$46,MATCH($I11&M$5,$K$15:$K$46,0)),0-INDEX($J$6:$O$11,MATCH(M$5,$I$6:$I$11,0),MATCH($I11,$J$5:$O$5,0)))) -> 0 | N11: =IF(ISBLANK(B18),0,IFERROR(INDEX($B$15:$B$46,MATCH($I11&N$5,$K$15:$K$46,0))-INDEX($D$15:$D$46,MATCH($I11&N$5,$K$15:$K$46,0)),0-INDEX($J$6:$O$11,MATCH(N$5,$I$6:$I$11,0),MATCH($I11,$J$5:$O$5,0)))) -> 0
I12: Les concaténations en rouge permettent de remplir par formules le récapitulatif au dessus
A13: 1er MATCH le 15 mai | B13: à | C13: =A6 -> CJ | I13: Ce récap servira à départager les ex aequos
G14: SI forfait éq recevante
A15: Equipes | B15: score | C15: Equipes | D15: score
A16: =$A$6 -> CJ | C16: =$A$7 -> CK | D16: =IF(G16=19,19,IF(ISBLANK(B16),"",IF(B16=19,0,36-B16))) ->  | E16: =IF(G16=19,0,IF(ISBLANK(B16),"",IF(B16<18,1,IF(B16=18,2,IF(B16>18,3))))) ->  | F16: =IF(G16=19,3,IF(ISBLANK(B16),"",IF(B16=19,0,IF(D16<18,1,IF(D16=18,2,IF(D16>=20,3)))))) ->  | I16: =IF(ISBLANK(B16),0,B16) -> 0 | J16: =IF(ISBLANK(B16),0,D16) -> 0 | K16: =A16&C16 -> CJCK
A17: =$A$8 -> CL | C17: =$A$9 -> CM | D17: =IF(G17=19,19,IF(ISBLANK(B17),"",IF(B17=19,0,36-B17))) ->  | E17: =IF(G17=19,0,IF(ISBLANK(B17),"",IF(B17<18,1,IF(B17=18,2,IF(B17>18,3))))) ->  | F17: =IF(G17=19,3,IF(ISBLANK(B17),"",IF(B17=19,0,IF(D17<18,1,IF(D17=18,2,IF(D17>=20,3)))))) ->  | I17: =IF(ISBLANK(B17),0,B17) -> 0 | J17: =IF(ISBLANK(B17),0,D17) -> 0 | K17: =A17&C17 -> CLCM
A18: =$A$10 -> CN | C18: =$A$11 -> CO | D18: =IF(G18=19,19,IF(ISBLANK(B18),"",IF(B18=19,0,36-B18))) ->  | E18: =IF(G18=19,0,IF(ISBLANK(B18),"",IF(B18<18,1,IF(B18=18,2,IF(B18>18,3))))) ->  | F18: =IF(G18=19,3,IF(ISBLANK(B18),"",IF(B18=19,0,IF(D18<18,1,IF(D18=18,2,IF(D18>=20,3)))))) ->  | I18: =IF(ISBLANK(B18),0,B18) -> 0 | J18: =IF(ISBLANK(B18),0,D18) -> 0 | K18: =A18&C18 -> CNCO
A20: 2 éme MATCH le 22 mai | B20: à | C20: =A7 -> CK
G21: SI forfait éq recevante
A22: Equipes | B22: score | C22: Equipes | D22: score
A23: =$A$6 -> CJ | C23: =$A$8 -> CL | D23: =IF(G23=19,19,IF(ISBLANK(B23),"",IF(B23=19,0,36-B23))) ->  | E23: =IF(G23=19,0,IF(ISBLANK(B23),"",IF(B23<18,1,IF(B23=18,2,IF(B23>18,3))))) ->  | F23: =IF(G23=19,3,IF(ISBLANK(B23),"",IF(B23=19,0,IF(D23<18,1,IF(D23=18,2,IF(D23>=20,3)))))) ->  | I23: =IF(ISBLANK(B23),0,B23) -> 0 | J23: =IF(ISBLANK(B23),0,D23) -> 0 | K23: =A23&C23 -> CJCL
A24: =$A$7 -> CK | C24: =$A$10 -> CN | D24: =IF(G24=19,19,IF(ISBLANK(B24),"",IF(B24=19,0,36-B24))) ->  | E24: =IF(G24=19,0,IF(ISBLANK(B24),"",IF(B24<18,1,IF(B24=18,2,IF(B24>18,3))))) ->  | F24: =IF(G24=19,3,IF(ISBLANK(B24),"",IF(B24=19,0,IF(D24<18,1,IF(D24=18,2,IF(D24>=20,3)))))) ->  | I24: =IF(ISBLANK(B24),0,B24) -> 0 | J24: =IF(ISBLANK(B24),0,D24) -> 0 | K24: =A24&C24 -> CKCN
A25: =$A$9 -> CM | C25: =$A$11 -> CO | D25: =IF(G25=19,19,IF(ISBLANK(B25),"",IF(B25=19,0,36-B25))) ->  | E25: =IF(G25=19,0,IF(ISBLANK(B25),"",IF(B25<18,1,IF(B25=18,2,IF(B25>18,3))))) ->  | F25: =IF(G25=19,3,IF(ISBLANK(B25),"",IF(B25=19,0,IF(D25<18,1,IF(D25=18,2,IF(D25>=20,3)))))) ->  | I25: =IF(ISBLANK(B25),0,B25) -> 0 | J25: =IF(ISBLANK(B25),0,D25) -> 0 | K25: =A25&C25 -> CMCO
A27: 3 éme MATCH le 29 mai | B27: à | C27: =A8 -> CL
G28: SI forfait éq recevante
A29: Equipes | B29: score | C29: Equipes | D29: score
A30: =$A$6 -> CJ | C30: =$A$11 -> CO | D30: =IF(G30=19,19,IF(ISBLANK(B30),"",IF(B30=19,0,36-B30))) ->  | E30: =IF(G30=19,0,IF(ISBLANK(B30),"",IF(B30<18,1,IF(B30=18,2,IF(B30>18,3))))) ->  | F30: =IF(G30=19,3,IF(ISBLANK(B30),"",IF(B30=19,0,IF(D30<18,1,IF(D30=18,2,IF(D30>=20,3)))))) ->  | I30: =IF(ISBLANK(B30),0,B30) -> 0 | J30: =IF(ISBLANK(B30),0,D30) -> 0 | K30: =A30&C30 -> CJCO
A31: =$A$10 -> CN | C31: =$A$9 -> CM | D31: =IF(G31=19,19,IF(ISBLANK(B31),"",IF(B31=19,0,36-B31))) ->  | E31: =IF(G31=19,0,IF(ISBLANK(B31),"",IF(B31<18,1,IF(B31=18,2,IF(B31>18,3))))) ->  | F31: =IF(G31=19,3,IF(ISBLANK(B31),"",IF(B31=19,0,IF(D31<18,1,IF(D31=18,2,IF(D31>=20,3)))))) ->  | I31: =IF(ISBLANK(B31),0,B31) -> 0 | J31: =IF(ISBLANK(B31),0,D31) -> 0 | K31: =A31&C31 -> CNCM
A32: =$A$8 -> CL | C32: =$A$7 -> CK | D32: =IF(G32=19,19,IF(ISBLANK(B32),"",IF(B32=19,0,36-B32))) ->  | E32: =IF(G32=19,0,IF(ISBLANK(B32),"",IF(B32<18,1,IF(B32=18,2,IF(B32>18,3))))) ->  | F32: =IF(G32=19,3,IF(ISBLANK(B32),"",IF(B32=19,0,IF(D32<18,1,IF(D32=18,2,IF(D32>=20,3)))))) ->  | I32: =IF(ISBLANK(B32),0,B32) -> 0 | J32: =IF(ISBLANK(B32),0,D32) -> 0 | K32: =A32&C32 -> CLCK
A34: 4 éme MATCH le 5 juin | B34: à | C34: =A9 -> CM
G35: SI forfait éq recevante
A36: Equipes | B36: score | C36: Equipes | D36: score
A37: =A6 -> CJ | C37: =$A$9 -> CM | D37: =IF(G37=19,19,IF(ISBLANK(B37),"",IF(B37=19,0,36-B37))) ->  | E37: =IF(G37=19,0,IF(ISBLANK(B37),"",IF(B37<18,1,IF(B37=18,2,IF(B37>18,3))))) ->  | F37: =IF(G37=19,3,IF(ISBLANK(B37),"",IF(B37=19,0,IF(D37<18,1,IF(D37=18,2,IF(D37>=20,3)))))) ->  | I37: =IF(ISBLANK(B37),0,B37) -> 0 | J37: =IF(ISBLANK(B37),0,D37) -> 0 | K37: =A37&C37 -> CJCM
A38: =$A$7 -> CK | C38: =$A$11 -> CO | D38: =IF(G38=19,19,IF(ISBLANK(B38),"",IF(B38=19,0,36-B38))) ->  | E38: =IF(G38=19,0,IF(ISBLANK(B38),"",IF(B38<18,1,IF(B38=18,2,IF(B38>18,3))))) ->  | F38: =IF(G38=19,3,IF(ISBLANK(B38),"",IF(B38=19,0,IF(D38<18,1,IF(D38=18,2,IF(D38>=20,3)))))) ->  | I38: =IF(ISBLANK(B38),0,B38) -> 0 | J38: =IF(ISBLANK(B38),0,D38) -> 0 | K38: =A38&C38 -> CKCO
A39: =A8 -> CL | C39: =$A$10 -> CN | D39: =IF(G39=19,19,IF(ISBLANK(B39),"",IF(B39=19,0,36-B39))) ->  | E39: =IF(G39=19,0,IF(ISBLANK(B39),"",IF(B39<18,1,IF(B39=18,2,IF(B39>18,3))))) ->  | F39: =IF(G39=19,3,IF(ISBLANK(B39),"",IF(B39=19,0,IF(D39<18,1,IF(D39=18,2,IF(D39>=20,3)))))) ->  | I39: =IF(ISBLANK(B39),0,B39) -> 0 | J39: =IF(ISBLANK(B39),0,D39) -> 0 | K39: =A39&C39 -> CLCN
A41: 5 éme MATCH le 12 juin | B41: à | C41: =A10 -> CN
G42: SI forfait éq recevante
A43: Equipes | B43: score | C43: Equipes | D43: score
A44: =A8 -> CL | C44: =$A$11 -> CO | D44: =IF(G44=19,19,IF(ISBLANK(B44),"",IF(B44=19,0,36-B44))) ->  | E44: =IF(G44=19,0,IF(ISBLANK(B44),"",IF(B44<18,1,IF(B44=18,2,IF(B44>18,3))))) ->  | F44: =IF(G44=19,3,IF(ISBLANK(B44),"",IF(B44=19,0,IF(D44<18,1,IF(D44=18,2,IF(D44>=20,3)))))) ->  | I44: =IF(ISBLANK(B44),0,B44) -> 0 | J44: =IF(ISBLANK(B44),0,D44) -> 0 | K44: =A44&C44 -> CLCO
A45: =$A$10 -> CN | C45: =A6 -> CJ | D45: =IF(G45=19,19,IF(ISBLANK(B45),"",IF(B45=19,0,36-B45))) ->  | E45: =IF(G45=19,0,IF(ISBLANK(B45),"",IF(B45<18,1,IF(B45=18,2,IF(B45>18,3))))) ->  | F45: =IF(G45=19,3,IF(ISBLANK(B45),"",IF(B45=19,0,IF(D45<18,1,IF(D45=18,2,IF(D45>=20,3)))))) ->  | I45: =IF(ISBLANK(B45),0,B45) -> 0 | J45: =IF(ISBLANK(B45),0,D45) -> 0 | K45: =A45&C45 -> CNCJ
A46: =A7 -> CK | C46: =$A$9 -> CM | D46: =IF(G46=19,19,IF(ISBLANK(B46),"",IF(B46=19,0,36-B46))) ->  | E46: =IF(G46=19,0,IF(ISBLANK(B46),"",IF(B46<18,1,IF(B46=18,2,IF(B46>18,3))))) ->  | F46: =IF(G46=19,3,IF(ISBLANK(B46),"",IF(B46=19,0,IF(D46<18,1,IF(D46=18,2,IF(D46>=20,3)))))) ->  | I46: =IF(ISBLANK(B46),0,B46) -> 0 | J46: =IF(ISBLANK(B46),0,D46) -> 0 | K46: =A46&C46 -> CKCM
A48: CLASSEMENT
A49: EQUIPES | C49: POINTS | D49: Pour | E49: Contre | F49: Diff | G49: CLASST
A50: CJ | B50: 11A | C50: 0 | D50: 0 | E50: 0 | F50: 0 | G50: =B59 -> 1 | H50: =IF(AND(G50=1,COUNTIF(rang1,1)>1),COUNTIF(G$50:G50,1),IF(AND(G50=2,COUNTIF(rang1,2)>1),COUNTIF(G$50:G50,2)+3,"")) -> 1
A51: CK | B51: 11B | C51: 0 | D51: 0 | E51: 0 | F51: 0 | G51: 1 | H51: =IF(AND(G51=1,COUNTIF(rang1,1)>1),COUNTIF(G$50:G51,1),IF(AND(G51=2,COUNTIF(rang1,2)>1),COUNTIF(G$50:G51,2)+3,"")) -> 2
A52: CL | B52: 11C | C52: 0 | D52: 0 | E52: 0 | F52: 0 | G52: 1 | H52: =IF(AND(G52=1,COUNTIF(rang1,1)>1),COUNTIF(G$50:G52,1),IF(AND(G52=2,COUNTIF(rang1,2)>1),COUNTIF(G$50:G52,2)+3,"")) -> 3
A53: CM | B53: 11D | C53: 0 | D53: 0 | E53: 0 | F53: 0 | G53: 1 | H53: =IF(AND(G53=1,COUNTIF(rang1,1)>1),COUNTIF(G$50:G53,1),IF(AND(G53=2,COUNTIF(rang1,2)>1),COUNTIF(G$50:G53,2)+3,"")) -> 4
A54: CN | B54: 11E | C54: 0 | D54: 0 | E54: 0 | F54: 0 | G54: 1 | H54: =IF(AND(G54=1,COUNTIF(rang1,1)>1),COUNTIF(G$50:G54,1),IF(AND(G54=2,COUNTIF(rang1,2)>1),COUNTIF(G$50:G54,2)+3,"")) -> 5
A55: CO | B55: 11F | C55: 0 | D55: 0 | E55: 0 | F55: 0 | G55: 1 | H55: =IF(AND(G55=1,COUNTIF(rang1,1)>1),COUNTIF(G$50:G55,1),IF(AND(G55=2,COUNTIF(rang1,2)>1),COUNTIF(G$50:G55,2)+3,"")) -> 6
B57: CLASSEMENT FINAL et DEPARTAGE EX AEQUOS | M57: CLASSEMENT
B58: Rang | C58: Equipes | D58: Pts | E58: diff pts avec exaequo | F58: cumul | G58: departage goalaverage si même cumul | H58: RP | L58: RP | M58: Rang | N58: Equipe | O58: Pts
B59: =RANK(G59,$G$59:$G$64) -> 1 | C59: =INDEX($A$50:$A$55,MATCH(H59,$L$59:$L$64,0)) -> CJ | D59: =VLOOKUP(C59,$A$50:$C$55,3,0) -> 0 | E59: =IF(D59=D60,INDEX($J$6:$O$11,MATCH(C59,$I$6:$I$11,0),MATCH(C60,$J$5:$O$5,0)),IF(D59=D58,INDEX($J$6:$O$11,MATCH(C59,$I$6:$I$11,0),MATCH(C58,$J$5:$O$5,0)),0)) -> 0 | F59: =D59+E59/100 -> 0 | G59: =IF(AND(F59<>F58,F59<>F60),F59,F59+VLOOKUP(C59,$A$50:$F$55,6,0)/100) -> 0 | H59: 1 | L59: =RANK(C50,$C$50:$C$55)+COUNTIF($C$50:C50,C50)-1 -> 1 | M59: =B59 -> 1 | N59: CJ | O59: =VLOOKUP(N59,$C$59:$D$64,2,0) -> 0
B60: 1 | C60: CK | D60: 0 | E60: =IF(D60=D61,INDEX($J$6:$O$11,MATCH(C60,$I$6:$I$11,0),MATCH(C61,$J$5:$O$5,0)),IF(D60=D59,INDEX($J$6:$O$11,MATCH(C60,$I$6:$I$11,0),MATCH(C59,$J$5:$O$5,0)),0)) -> 0 | F60: 0 | G60: =IF(AND(F60<>F59,F60<>F61),F60,F60+VLOOKUP(C60,$A$50:$F$55,6,0)/100) -> 0 | H60: 2 | L60: =RANK(C51,$C$50:$C$55)+COUNTIF($C$50:C51,C51)-1 -> 2 | M60: 1 | N60: CK | O60: 0
B61: 1 | C61: CL | D61: 0 | E61: =IF(D61=D62,INDEX($J$6:$O$11,MATCH(C61,$I$6:$I$11,0),MATCH(C62,$J$5:$O$5,0)),IF(D61=D60,INDEX($J$6:$O$11,MATCH(C61,$I$6:$I$11,0),MATCH(C60,$J$5:$O$5,0)),0)) -> 0 | F61: 0 | G61: =IF(AND(F61<>F60,F61<>F62),F61,F61+VLOOKUP(C61,$A$50:$F$55,6,0)/100) -> 0 | H61: 3 | L61: =RANK(C52,$C$50:$C$55)+COUNTIF($C$50:C52,C52)-1 -> 3 | M61: 1 | N61: CL | O61: 0
B62: 1 | C62: CM | D62: 0 | E62: =IF(D62=D63,INDEX($J$6:$O$11,MATCH(C62,$I$6:$I$11,0),MATCH(C63,$J$5:$O$5,0)),IF(D62=D61,INDEX($J$6:$O$11,MATCH(C62,$I$6:$I$11,0),MATCH(C61,$J$5:$O$5,0)),0)) -> 0 | F62: 0 | G62: =IF(AND(F62<>F61,F62<>F63),F62,F62+VLOOKUP(C62,$A$50:$F$55,6,0)/100) -> 0 | H62: 4 | L62: =RANK(C53,$C$50:$C$55)+COUNTIF($C$50:C53,C53)-1 -> 4 | M62: 1 | N62: CM | O62: 0
B63: 1 | C63: CN | D63: 0 | E63: =IF(D63=D64,INDEX($J$6:$O$11,MATCH(C63,$I$6:$I$11,0),MATCH(C64,$J$5:$O$5,0)),IF(D63=D62,INDEX($J$6:$O$11,MATCH(C63,$I$6:$I$11,0),MATCH(C62,$J$5:$O$5,0)),0)) -> 0 | F63: 0 | G63: =IF(AND(F63<>F62,F63<>F64),F63,F63+VLOOKUP(C63,$A$50:$F$55,6,0)/100) -> 0 | H63: 5 | L63: =RANK(C54,$C$50:$C$55)+COUNTIF($C$50:C54,C54)-1 -> 5 | M63: 1 | N63: CN | O63: 0
B64: 1 | C64: CO | D64: 0 | E64: =IF(D64=D59,INDEX($J$6:$O$11,MATCH(C64,$I$6:$I$11,0),MATCH(C59,$J$5:$O$5,0)),IF(D64=D63,INDEX($J$6:$O$11,MATCH(C64,$I$6:$I$11,0),MATCH(C63,$J$5:$O$5,0)),0)) -> 0 | F64: 0 | G64: =IF(AND(F64<>F63,F64<>F59),F64,F64+VLOOKUP(C64,$A$50:$F$55,6,0)/100) -> 0 | H64: 6 | L64: =RANK(C55,$C$50:$C$55)+COUNTIF($C$50:C55,C55)-1 -> 6 | M64: 1 | N64: CO | O64: 0

Sheet P12
A2: CHAMPIONNAT DES CLUBS
A4: POULE 12 | I4: Récapitulatif différence match entre 2 équipes
A5: EQUIPES | C5: POINTS | D5: Pour | E5: Contre | F5: Diff | J5: =A6 -> CP | K5: =A7 -> CQ | L5: =A8 -> CR | M5: =A9 -> CS | N5: =A10 -> CT | O5: =A11 -> CU
A6: CP | B6: 12A | C6: =SUM(E16,E23,E30,E37,F45) -> 0 | D6: =I16+I23+I30+I37+J45 -> 0 | E6: =J16+J23+J30+J37+I45 -> 0 | F6: =D6-E6 -> 0 | I6: =A6 -> CP | K6: =IF(ISBLANK(B16),0,IFERROR(INDEX($B$15:$B$46,MATCH($I6&K$5,$K$15:$K$46,0))-INDEX($D$15:$D$46,MATCH($I6&K$5,$K$15:$K$46,0)),0-INDEX($J$6:$O$11,MATCH(K$5,$I$6:$I$11,0),MATCH($I6,$J$5:$O$5,0)))) -> 0 | L6: =IF(ISBLANK(B23),0,IFERROR(INDEX($B$15:$B$46,MATCH($I6&L$5,$K$15:$K$46,0))-INDEX($D$15:$D$46,MATCH($I6&L$5,$K$15:$K$46,0)),0-INDEX($J$6:$O$11,MATCH(L$5,$I$6:$I$11,0),MATCH($I6,$J$5:$O$5,0)))) -> 0 | M6: =IF(ISBLANK(B37),0,IFERROR(INDEX($B$15:$B$46,MATCH($I6&M$5,$K$15:$K$46,0))-INDEX($D$15:$D$46,MATCH($I6&M$5,$K$15:$K$46,0)),0-INDEX($J$6:$O$11,MATCH(M$5,$I$6:$I$11,0),MATCH($I6,$J$5:$O$5,0)))) -> 0 | N6: =IF(ISBLANK(B45),0,IFERROR(INDEX($B$15:$B$46,MATCH($I6&N$5,$K$15:$K$46,0))-INDEX($D$15:$D$46,MATCH($I6&N$5,$K$15:$K$46,0)),0-INDEX($J$6:$O$11,MATCH(N$5,$I$6:$I$11,0),MATCH($I6,$J$5:$O$5,0)))) -> 0 | O6: =IF(ISBLANK(B30),0,IFERROR(INDEX($B$15:$B$46,MATCH($I6&O$5,$K$15:$K$46,0))-INDEX($D$15:$D$46,MATCH($I6&O$5,$K$15:$K$46,0)),0-INDEX($J$6:$O$11,MATCH(O$5,$I$6:$I$11,0),MATCH($I6,$J$5:$O$5,0)))) -> 0
A7: CQ | B7: 12B | C7: =SUM(F16,E24,F32,E38,E46) -> 0 | D7: =J16+I24+J32+I38+I46 -> 0 | E7: =I16+J24+I32+J38+J46 -> 0 | F7: 0 | I7: CQ | J7: =IF(ISBLANK(B16),0,IFERROR(INDEX($B$15:$B$46,MATCH($I7&J$5,$K$15:$K$46,0))-INDEX($D$15:$D$46,MATCH($I7&J$5,$K$15:$K$46,0)),0-INDEX($J$6:$O$11,MATCH(J$5,$I$6:$I$11,0),MATCH($I7,$J$5:$O$5,0)))) -> 0 | L7: =IF(ISBLANK(B32),0,IFERROR(INDEX($B$15:$B$46,MATCH($I7&L$5,$K$15:$K$46,0))-INDEX($D$15:$D$46,MATCH($I7&L$5,$K$15:$K$46,0)),0-INDEX($J$6:$O$11,MATCH(L$5,$I$6:$I$11,0),MATCH($I7,$J$5:$O$5,0)))) -> 0 | M7: =IF(ISBLANK(B46),0,IFERROR(INDEX($B$15:$B$46,MATCH($I7&M$5,$K$15:$K$46,0))-INDEX($D$15:$D$46,MATCH($I7&M$5,$K$15:$K$46,0)),0-INDEX($J$6:$O$11,MATCH(M$5,$I$6:$I$11,0),MATCH($I7,$J$5:$O$5,0)))) -> 0 | N7: =IF(ISBLANK(B24),0,IFERROR(INDEX($B$15:$B$46,MATCH($I7&N$5,$K$15:$K$46,0))-INDEX($D$15:$D$46,MATCH($I7&N$5,$K$15:$K$46,0)),0-INDEX($J$6:$O$11,MATCH(N$5,$I$6:$I$11,0),MATCH($I7,$J$5:$O$5,0)))) -> 0 | O7: =IF(ISBLANK(B38),0,IFERROR(INDEX($B$15:$B$46,MATCH($I7&O$5,$K$15:$K$46,0))-INDEX($D$15:$D$46,MATCH($I7&O$5,$K$15:$K$46,0)),0-INDEX($J$6:$O$11,MATCH(O$5,$I$6:$I$11,0),MATCH($I7,$J$5:$O$5,0)))) -> 0
A8: CR | B8: 12C | C8: =SUM(E17,F23,E32,E39,E44) -> 0 | D8: =I17+J23+I32+I39+I44 -> 0 | E8: =J17+I23+J32+J39+J44 -> 0 | F8: 0 | I8: CR | J8: =IF(ISBLANK(B23),0,IFERROR(INDEX($B$15:$B$46,MATCH($I8&J$5,$K$15:$K$46,0))-INDEX($D$15:$D$46,MATCH($I8&J$5,$K$15:$K$46,0)),0-INDEX($J$6:$O$11,MATCH(J$5,$I$6:$I$11,0),MATCH($I8,$J$5:$O$5,0)))) -> 0 | K8: =IF(ISBLANK(B32),0,IFERROR(INDEX($B$15:$B$46,MATCH($I8&K$5,$K$15:$K$46,0))-INDEX($D$15:$D$46,MATCH($I8&K$5,$K$15:$K$46,0)),0-INDEX($J$6:$O$11,MATCH(K$5,$I$6:$I$11,0),MATCH($I8,$J$5:$O$5,0)))) -> 0 | M8: =IF(ISBLANK(B17),0,IFERROR(INDEX($B$15:$B$46,MATCH($I8&M$5,$K$15:$K$46,0))-INDEX($D$15:$D$46,MATCH($I8&M$5,$K$15:$K$46,0)),0-INDEX($J$6:$O$11,MATCH(M$5,$I$6:$I$11,0),MATCH($I8,$J$5:$O$5,0)))) -> 0 | N8: =IF(ISBLANK(B39),0,IFERROR(INDEX($B$15:$B$46,MATCH($I8&N$5,$K$15:$K$46,0))-INDEX($D$15:$D$46,MATCH($I8&N$5,$K$15:$K$46,0)),0-INDEX($J$6:$O$11,MATCH(N$5,$I$6:$I$11,0),MATCH($I8,$J$5:$O$5,0)))) -> 0 | O8: =IF(ISBLANK(B44),0,IFERROR(INDEX($B$15:$B$46,MATCH($I8&O$5,$K$15:$K$46,0))-INDEX($D$15:$D$46,MATCH($I8&O$5,$K$15:$K$46,0)),0-INDEX($J$6:$O$11,MATCH(O$5,$I$6:$I$11,0),MATCH($I8,$J$5:$O$5,0)))) -> 0
A9: CS | B9: 12D | C9: =SUM(F17,E25,F31,F37,F46) -> 0 | D9: =J17+I25+J31+J37+J46 -> 0 | E9: =I17+J25+I31+I37+I46 -> 0 | F9: 0 | I9: CS | J9: =IF(ISBLANK(B37),0,IFERROR(INDEX($B$15:$B$46,MATCH($I9&J$5,$K$15:$K$46,0))-INDEX($D$15:$D$46,MATCH($I9&J$5,$K$15:$K$46,0)),0-INDEX($J$6:$O$11,MATCH(J$5,$I$6:$I$11,0),MATCH($I9,$J$5:$O$5,0)))) -> 0 | K9: =IF(ISBLANK(B46),0,IFERROR(INDEX($B$15:$B$46,MATCH($I9&K$5,$K$15:$K$46,0))-INDEX($D$15:$D$46,MATCH($I9&K$5,$K$15:$K$46,0)),0-INDEX($J$6:$O$11,MATCH(K$5,$I$6:$I$11,0),MATCH($I9,$J$5:$O$5,0)))) -> 0 | L9: =IF(ISBLANK(B17),0,IFERROR(INDEX($B$15:$B$46,MATCH($I9&L$5,$K$15:$K$46,0))-INDEX($D$15:$D$46,MATCH($I9&L$5,$K$15:$K$46,0)),0-INDEX($J$6:$O$11,MATCH(L$5,$I$6:$I$11,0),MATCH($I9,$J$5:$O$5,0)))) -> 0 | N9: =IF(ISBLANK(B31),0,IFERROR(INDEX($B$15:$B$46,MATCH($I9&N$5,$K$15:$K$46,0))-INDEX($D$15:$D$46,MATCH($I9&N$5,$K$15:$K$46,0)),0-INDEX($J$6:$O$11,MATCH(N$5,$I$6:$I$11,0),MATCH($I9,$J$5:$O$5,0)))) -> 0 | O9: =IF(ISBLANK(B25),0,IFERROR(INDEX($B$15:$B$46,MATCH($I9&O$5,$K$15:$K$46,0))-INDEX($D$15:$D$46,MATCH($I9&O$5,$K$15:$K$46,0)),0-INDEX($J$6:$O$11,MATCH(O$5,$I$6:$I$11,0),MATCH($I9,$J$5:$O$5,0)))) -> 0
A10: CT | B10: 12E | C10: =SUM(E18,F24,E31,F39,E45) -> 0 | D10: =I18+J24+I31+J39+I45 -> 0 | E10: =J18+I24+J31+I39+J45 -> 0 | F10: 0 | I10: CT | J10: =IF(ISBLANK(B45),0,IFERROR(INDEX($B$15:$B$46,MATCH($I10&J$5,$K$15:$K$46,0))-INDEX($D$15:$D$46,MATCH($I10&J$5,$K$15:$K$46,0)),0-INDEX($J$6:$O$11,MATCH(J$5,$I$6:$I$11,0),MATCH($I10,$J$5:$O$5,0)))) -> 0 | K10: =IF(ISBLANK(B24),0,IFERROR(INDEX($B$15:$B$46,MATCH($I10&K$5,$K$15:$K$46,0))-INDEX($D$15:$D$46,MATCH($I10&K$5,$K$15:$K$46,0)),0-INDEX($J$6:$O$11,MATCH(K$5,$I$6:$I$11,0),MATCH($I10,$J$5:$O$5,0)))) -> 0 | L10: =IF(ISBLANK(B39),0,IFERROR(INDEX($B$15:$B$46,MATCH($I10&L$5,$K$15:$K$46,0))-INDEX($D$15:$D$46,MATCH($I10&L$5,$K$15:$K$46,0)),0-INDEX($J$6:$O$11,MATCH(L$5,$I$6:$I$11,0),MATCH($I10,$J$5:$O$5,0)))) -> 0 | M10: =IF(ISBLANK(B31),0,IFERROR(INDEX($B$15:$B$46,MATCH($I10&M$5,$K$15:$K$46,0))-INDEX($D$15:$D$46,MATCH($I10&M$5,$K$15:$K$46,0)),0-INDEX($J$6:$O$11,MATCH(M$5,$I$6:$I$11,0),MATCH($I10,$J$5:$O$5,0)))) -> 0 | O10: =IF(ISBLANK(B18),0,IFERROR(INDEX($B$15:$B$46,MATCH($I10&O$5,$K$15:$K$46,0))-INDEX($D$15:$D$46,MATCH($I10&O$5,$K$15:$K$46,0)),0-INDEX($J$6:$O$11,MATCH(O$5,$I$6:$I$11,0),MATCH($I10,$J$5:$O$5,0)))) -> 0
A11: CU | B11: 12F | C11: =SUM(F18,F25,F30,F38,F44) -> 0 | D11: =J18+J25+J30+J38+J44 -> 0 | E11: =I18+I25+I30+I38+I44 -> 0 | F11: 0 | I11: CU | J11: =IF(ISBLANK(B30),0,IFERROR(INDEX($B$15:$B$46,MATCH($I11&J$5,$K$15:$K$46,0))-INDEX($D$15:$D$46,MATCH($I11&J$5,$K$15:$K$46,0)),0-INDEX($J$6:$O$11,MATCH(J$5,$I$6:$I$11,0),MATCH($I11,$J$5:$O$5,0)))) -> 0 | K11: =IF(ISBLANK(B38),0,IFERROR(INDEX($B$15:$B$46,MATCH($I11&K$5,$K$15:$K$46,0))-INDEX($D$15:$D$46,MATCH($I11&K$5,$K$15:$K$46,0)),0-INDEX($J$6:$O$11,MATCH(K$5,$I$6:$I$11,0),MATCH($I11,$J$5:$O$5,0)))) -> 0 | L11: =IF(ISBLANK(B44),0,IFERROR(INDEX($B$15:$B$46,MATCH($I11&L$5,$K$15:$K$46,0))-INDEX($D$15:$D$46,MATCH($I11&L$5,$K$15:$K$46,0)),0-INDEX($J$6:$O$11,MATCH(L$5,$I$6:$I$11,0),MATCH($I11,$J$5:$O$5,0)))) -> 0 | M11: =IF(ISBLANK(B25),0,IFERROR(INDEX($B$15:$B$46,MATCH($I11&M$5,$K$15:$K$46,0))-INDEX($D$15:$D$46,MATCH($I11&M$5,$K$15:$K$46,0)),0-INDEX($J$6:$O$11,MATCH(M$5,$I$6:$I$11,0),MATCH($I11,$J$5:$O$5,0)))) -> 0 | N11: =IF(ISBLANK(B18),0,IFERROR(INDEX($B$15:$B$46,MATCH($I11&N$5,$K$15:$K$46,0))-INDEX($D$15:$D$46,MATCH($I11&N$5,$K$15:$K$46,0)),0-INDEX($J$6:$O$11,MATCH(N$5,$I$6:$I$11,0),MATCH($I11,$J$5:$O$5,0)))) -> 0
I12: Les concaténations en rouge permettent de remplir par formules le récapitulatif au dessus
A13: 1er MATCH le 15 mai | B13: à | C13: =A6 -> CP | I13: Ce récap servira à départager les ex aequos
G14: SI forfait éq recevante
A15: Equipes | B15: score | C15: Equipes | D15: score
A16: =$A$6 -> CP | C16: =$A$7 -> CQ | D16: =IF(G16=19,19,IF(ISBLANK(B16),"",IF(B16=19,0,36-B16))) ->  | E16: =IF(G16=19,0,IF(ISBLANK(B16),"",IF(B16<18,1,IF(B16=18,2,IF(B16>18,3))))) ->  | F16: =IF(G16=19,3,IF(ISBLANK(B16),"",IF(B16=19,0,IF(D16<18,1,IF(D16=18,2,IF(D16>=20,3)))))) ->  | I16: =IF(ISBLANK(B16),0,B16) -> 0 | J16: =IF(ISBLANK(B16),0,D16) -> 0 | K16: =A16&C16 -> CPCQ
A17: =$A$8 -> CR | C17: =$A$9 -> CS | D17: =IF(G17=19,19,IF(ISBLANK(B17),"",IF(B17=19,0,36-B17))) ->  | E17: =IF(G17=19,0,IF(ISBLANK(B17),"",IF(B17<18,1,IF(B17=18,2,IF(B17>18,3))))) ->  | F17: =IF(G17=19,3,IF(ISBLANK(B17),"",IF(B17=19,0,IF(D17<18,1,IF(D17=18,2,IF(D17>=20,3)))))) ->  | I17: =IF(ISBLANK(B17),0,B17) -> 0 | J17: =IF(ISBLANK(B17),0,D17) -> 0 | K17: =A17&C17 -> CRCS
A18: =$A$10 -> CT | C18: =$A$11 -> CU | D18: =IF(G18=19,19,IF(ISBLANK(B18),"",IF(B18=19,0,36-B18))) ->  | E18: =IF(G18=19,0,IF(ISBLANK(B18),"",IF(B18<18,1,IF(B18=18,2,IF(B18>18,3))))) ->  | F18: =IF(G18=19,3,IF(ISBLANK(B18),"",IF(B18=19,0,IF(D18<18,1,IF(D18=18,2,IF(D18>=20,3)))))) ->  | I18: =IF(ISBLANK(B18),0,B18) -> 0 | J18: =IF(ISBLANK(B18),0,D18) -> 0 | K18: =A18&C18 -> CTCU
A20: 2 éme MATCH le 22 mai | B20: à | C20: =A7 -> CQ
G21: SI forfait éq recevante
A22: Equipes | B22: score | C22: Equipes | D22: score
A23: =$A$6 -> CP | C23: =$A$8 -> CR | D23: =IF(G23=19,19,IF(ISBLANK(B23),"",IF(B23=19,0,36-B23))) ->  | E23: =IF(G23=19,0,IF(ISBLANK(B23),"",IF(B23<18,1,IF(B23=18,2,IF(B23>18,3))))) ->  | F23: =IF(G23=19,3,IF(ISBLANK(B23),"",IF(B23=19,0,IF(D23<18,1,IF(D23=18,2,IF(D23>=20,3)))))) ->  | I23: =IF(ISBLANK(B23),0,B23) -> 0 | J23: =IF(ISBLANK(B23),0,D23) -> 0 | K23: =A23&C23 -> CPCR
A24: =$A$7 -> CQ | C24: =$A$10 -> CT | D24: =IF(G24=19,19,IF(ISBLANK(B24),"",IF(B24=19,0,36-B24))) ->  | E24: =IF(G24=19,0,IF(ISBLANK(B24),"",IF(B24<18,1,IF(B24=18,2,IF(B24>18,3))))) ->  | F24: =IF(G24=19,3,IF(ISBLANK(B24),"",IF(B24=19,0,IF(D24<18,1,IF(D24=18,2,IF(D24>=20,3)))))) ->  | I24: =IF(ISBLANK(B24),0,B24) -> 0 | J24: =IF(ISBLANK(B24),0,D24) -> 0 | K24: =A24&C24 -> CQCT
A25: =$A$9 -> CS | C25: =$A$11 -> CU | D25: =IF(G25=19,19,IF(ISBLANK(B25),"",IF(B25=19,0,36-B25))) ->  | E25: =IF(G25=19,0,IF(ISBLANK(B25),"",IF(B25<18,1,IF(B25=18,2,IF(B25>18,3))))) ->  | F25: =IF(G25=19,3,IF(ISBLANK(B25),"",IF(B25=19,0,IF(D25<18,1,IF(D25=18,2,IF(D25>=20,3)))))) ->  | I25: =IF(ISBLANK(B25),0,B25) -> 0 | J25: =IF(ISBLANK(B25),0,D25) -> 0 | K25: =A25&C25 -> CSCU
A27: 3 éme MATCH le 29 mai | B27: à | C27: =A8 -> CR
G28: SI forfait éq recevante
A29: Equipes | B29: score | C29: Equipes | D29: score
A30: =$A$6 -> CP | C30: =$A$11 -> CU | D30: =IF(G30=19,19,IF(ISBLANK(B30),"",IF(B30=19,0,36-B30))) ->  | E30: =IF(G30=19,0,IF(ISBLANK(B30),"",IF(B30<18,1,IF(B30=18,2,IF(B30>18,3))))) ->  | F30: =IF(G30=19,3,IF(ISBLANK(B30),"",IF(B30=19,0,IF(D30<18,1,IF(D30=18,2,IF(D30>=20,3)))))) ->  | I30: =IF(ISBLANK(B30),0,B30) -> 0 | J30: =IF(ISBLANK(B30),0,D30) -> 0 | K30: =A30&C30 -> CPCU
A31: =$A$10 -> CT | C31: =$A$9 -> CS | D31: =IF(G31=19,19,IF(ISBLANK(B31),"",IF(B31=19,0,36-B31))) ->  | E31: =IF(G31=19,0,IF(ISBLANK(B31),"",IF(B31<18,1,IF(B31=18,2,IF(B31>18,3))))) ->  | F31: =IF(G31=19,3,IF(ISBLANK(B31),"",IF(B31=19,0,IF(D31<18,1,IF(D31=18,2,IF(D31>=20,3)))))) ->  | I31: =IF(ISBLANK(B31),0,B31) -> 0 | J31: =IF(ISBLANK(B31),0,D31) -> 0 | K31: =A31&C31 -> CTCS
A32: =$A$8 -> CR | C32: =$A$7 -> CQ | D32: =IF(G32=19,19,IF(ISBLANK(B32),"",IF(B32=19,0,36-B32))) ->  | E32: =IF(G32=19,0,IF(ISBLANK(B32),"",IF(B32<18,1,IF(B32=18,2,IF(B32>18,3))))) ->  | F32: =IF(G32=19,3,IF(ISBLANK(B32),"",IF(B32=19,0,IF(D32<18,1,IF(D32=18,2,IF(D32>=20,3)))))) ->  | I32: =IF(ISBLANK(B32),0,B32) -> 0 | J32: =IF(ISBLANK(B32),0,D32) -> 0 | K32: =A32&C32 -> CRCQ
A34: 4 éme MATCH le 5 juin | B34: à | C34: =A9 -> CS
G35: SI forfait éq recevante
A36: Equipes | B36: score | C36: Equipes | D36: score
A37: =A6 -> CP | C37: =$A$9 -> CS | D37: =IF(G37=19,19,IF(ISBLANK(B37),"",IF(B37=19,0,36-B37))) ->  | E37: =IF(G37=19,0,IF(ISBLANK(B37),"",IF(B37<18,1,IF(B37=18,2,IF(B37>18,3))))) ->  | F37: =IF(G37=19,3,IF(ISBLANK(B37),"",IF(B37=19,0,IF(D37<18,1,IF(D37=18,2,IF(D37>=20,3)))))) ->  | I37: =IF(ISBLANK(B37),0,B37) -> 0 | J37: =IF(ISBLANK(B37),0,D37) -> 0 | K37: =A37&C37 -> CPCS
A38: =$A$7 -> CQ | C38: =$A$11 -> CU | D38: =IF(G38=19,19,IF(ISBLANK(B38),"",IF(B38=19,0,36-B38))) ->  | E38: =IF(G38=19,0,IF(ISBLANK(B38),"",IF(B38<18,1,IF(B38=18,2,IF(B38>18,3))))) ->  | F38: =IF(G38=19,3,IF(ISBLANK(B38),"",IF(B38=19,0,IF(D38<18,1,IF(D38=18,2,IF(D38>=20,3)))))) ->  | I38: =IF(ISBLANK(B38),0,B38) -> 0 | J38: =IF(ISBLANK(B38),0,D38) -> 0 | K38: =A38&C38 -> CQCU
A39: =A8 -> CR | C39: =$A$10 -> CT | D39: =IF(G39=19,19,IF(ISBLANK(B39),"",IF(B39=19,0,36-B39))) ->  | E39: =IF(G39=19,0,IF(ISBLANK(B39),"",IF(B39<18,1,IF(B39=18,2,IF(B39>18,3))))) ->  | F39: =IF(G39=19,3,IF(ISBLANK(B39),"",IF(B39=19,0,IF(D39<18,1,IF(D39=18,2,IF(D39>=20,3)))))) ->  | I39: =IF(ISBLANK(B39),0,B39) -> 0 | J39: =IF(ISBLANK(B39),0,D39) -> 0 | K39: =A39&C39 -> CRCT
A41: 5 éme MATCH le 12 juin | B41: à | C41: =A10 -> CT
G42: SI forfait éq recevante
A43: Equipes | B43: score | C43: Equipes | D43: score
A44: =A8 -> CR | C44: =$A$11 -> CU | D44: =IF(G44=19,19,IF(ISBLANK(B44),"",IF(B44=19,0,36-B44))) ->  | E44: =IF(G44=19,0,IF(ISBLANK(B44),"",IF(B44<18,1,IF(B44=18,2,IF(B44>18,3))))) ->  | F44: =IF(G44=19,3,IF(ISBLANK(B44),"",IF(B44=19,0,IF(D44<18,1,IF(D44=18,2,IF(D44>=20,3)))))) ->  | I44: =IF(ISBLANK(B44),0,B44) -> 0 | J44: =IF(ISBLANK(B44),0,D44) -> 0 | K44: =A44&C44 -> CRCU
A45: =$A$10 -> CT | C45: =A6 -> CP | D45: =IF(G45=19,19,IF(ISBLANK(B45),"",IF(B45=19,0,36-B45))) ->  | E45: =IF(G45=19,0,IF(ISBLANK(B45),"",IF(B45<18,1,IF(B45=18,2,IF(B45>18,3))))) ->  | F45: =IF(G45=19,3,IF(ISBLANK(B45),"",IF(B45=19,0,IF(D45<18,1,IF(D45=18,2,IF(D45>=20,3)))))) ->  | I45: =IF(ISBLANK(B45),0,B45) -> 0 | J45: =IF(ISBLANK(B45),0,D45) -> 0 | K45: =A45&C45 -> CTCP
A46: =A7 -> CQ | C46: =$A$9 -> CS | D46: =IF(G46=19,19,IF(ISBLANK(B46),"",IF(B46=19,0,36-B46))) ->  | E46: =IF(G46=19,0,IF(ISBLANK(B46),"",IF(B46<18,1,IF(B46=18,2,IF(B46>18,3))))) ->  | F46: =IF(G46=19,3,IF(ISBLANK(B46),"",IF(B46=19,0,IF(D46<18,1,IF(D46=18,2,IF(D46>=20,3)))))) ->  | I46: =IF(ISBLANK(B46),0,B46) -> 0 | J46: =IF(ISBLANK(B46),0,D46) -> 0 | K46: =A46&C46 -> CQCS
A48: CLASSEMENT
A49: EQUIPES | C49: POINTS | D49: Pour | E49: Contre | F49: Diff | G49: CLASST
A50: CP | B50: 12A | C50: 0 | D50: 0 | E50: 0 | F50: 0 | G50: =B59 -> 1 | H50: =IF(AND(G50=1,COUNTIF(rang1,1)>1),COUNTIF(G$50:G50,1),IF(AND(G50=2,COUNTIF(rang1,2)>1),COUNTIF(G$50:G50,2)+3,"")) -> 1
A51: CQ | B51: 12B | C51: 0 | D51: 0 | E51: 0 | F51: 0 | G51: 1 | H51: =IF(AND(G51=1,COUNTIF(rang1,1)>1),COUNTIF(G$50:G51,1),IF(AND(G51=2,COUNTIF(rang1,2)>1),COUNTIF(G$50:G51,2)+3,"")) -> 2
A52: CR | B52: 12C | C52: 0 | D52: 0 | E52: 0 | F52: 0 | G52: 1 | H52: =IF(AND(G52=1,COUNTIF(rang1,1)>1),COUNTIF(G$50:G52,1),IF(AND(G52=2,COUNTIF(rang1,2)>1),COUNTIF(G$50:G52,2)+3,"")) -> 3
A53: CS | B53: 12D | C53: 0 | D53: 0 | E53: 0 | F53: 0 | G53: 1 | H53: =IF(AND(G53=1,COUNTIF(rang1,1)>1),COUNTIF(G$50:G53,1),IF(AND(G53=2,COUNTIF(rang1,2)>1),COUNTIF(G$50:G53,2)+3,"")) -> 4
A54: CT | B54: 12E | C54: 0 | D54: 0 | E54: 0 | F54: 0 | G54: 1 | H54: =IF(AND(G54=1,COUNTIF(rang1,1)>1),COUNTIF(G$50:G54,1),IF(AND(G54=2,COUNTIF(rang1,2)>1),COUNTIF(G$50:G54,2)+3,"")) -> 5
A55: CU | B55: 12F | C55: 0 | D55: 0 | E55: 0 | F55: 0 | G55: 1 | H55: =IF(AND(G55=1,COUNTIF(rang1,1)>1),COUNTIF(G$50:G55,1),IF(AND(G55=2,COUNTIF(rang1,2)>1),COUNTIF(G$50:G55,2)+3,"")) -> 6
B57: CLASSEMENT FINAL et DEPARTAGE EX AEQUOS | M57: CLASSEMENT
B58: Rang | C58: Equipes | D58: Pts | E58: diff pts avec exaequo | F58: cumul | G58: departage goalaverage si même cumul | H58: RP | L58: RP | M58: Rang | N58: Equipe | O58: Pts
B59: =RANK(G59,$G$59:$G$64) -> 1 | C59: =INDEX($A$50:$A$55,MATCH(H59,$L$59:$L$64,0)) -> CP | D59: =VLOOKUP(C59,$A$50:$C$55,3,0) -> 0 | E59: =IF(D59=D60,INDEX($J$6:$O$11,MATCH(C59,$I$6:$I$11,0),MATCH(C60,$J$5:$O$5,0)),IF(D59=D58,INDEX($J$6:$O$11,MATCH(C59,$I$6:$I$11,0),MATCH(C58,$J$5:$O$5,0)),0)) -> 0 | F59: =D59+E59/100 -> 0 | G59: =IF(AND(F59<>F58,F59<>F60),F59,F59+VLOOKUP(C59,$A$50:$F$55,6,0)/100) -> 0 | H59: 1 | L59: =RANK(C50,$C$50:$C$55)+COUNTIF($C$50:C50,C50)-1 -> 1 | M59: =B59 -> 1 | N59: CP | O59: =VLOOKUP(N59,$C$59:$D$64,2,0) -> 0
B60: 1 | C60: CQ | D60: 0 | E60: =IF(D60=D61,INDEX($J$6:$O$11,MATCH(C60,$I$6:$I$11,0),MATCH(C61,$J$5:$O$5,0)),IF(D60=D59,INDEX($J$6:$O$11,MATCH(C60,$I$6:$I$11,0),MATCH(C59,$J$5:$O$5,0)),0)) -> 0 | F60: 0 | G60: =IF(AND(F60<>F59,F60<>F61),F60,F60+VLOOKUP(C60,$A$50:$F$55,6,0)/100) -> 0 | H60: 2 | L60: =RANK(C51,$C$50:$C$55)+COUNTIF($C$50:C51,C51)-1 -> 2 | M60: 1 | N60: CQ | O60: 0
B61: 1 | C61: CR | D61: 0 | E61: =IF(D61=D62,INDEX($J$6:$O$11,MATCH(C61,$I$6:$I$11,0),MATCH(C62,$J$5:$O$5,0)),IF(D61=D60,INDEX($J$6:$O$11,MATCH(C61,$I$6:$I$11,0),MATCH(C60,$J$5:$O$5,0)),0)) -> 0 | F61: 0 | G61: =IF(AND(F61<>F60,F61<>F62),F61,F61+VLOOKUP(C61,$A$50:$F$55,6,0)/100) -> 0 | H61: 3 | L61: =RANK(C52,$C$50:$C$55)+COUNTIF($C$50:C52,C52)-1 -> 3 | M61: 1 | N61: CR | O61: 0
B62: 1 | C62: CS | D62: 0 | E62: =IF(D62=D63,INDEX($J$6:$O$11,MATCH(C62,$I$6:$I$11,0),MATCH(C63,$J$5:$O$5,0)),IF(D62=D61,INDEX($J$6:$O$11,MATCH(C62,$I$6:$I$11,0),MATCH(C61,$J$5:$O$5,0)),0)) -> 0 | F62: 0 | G62: =IF(AND(F62<>F61,F62<>F63),F62,F62+VLOOKUP(C62,$A$50:$F$55,6,0)/100) -> 0 | H62: 4 | L62: =RANK(C53,$C$50:$C$55)+COUNTIF($C$50:C53,C53)-1 -> 4 | M62: 1 | N62: CS | O62: 0
B63: 1 | C63: CT | D63: 0 | E63: =IF(D63=D64,INDEX($J$6:$O$11,MATCH(C63,$I$6:$I$11,0),MATCH(C64,$J$5:$O$5,0)),IF(D63=D62,INDEX($J$6:$O$11,MATCH(C63,$I$6:$I$11,0),MATCH(C62,$J$5:$O$5,0)),0)) -> 0 | F63: 0 | G63: =IF(AND(F63<>F62,F63<>F64),F63,F63+VLOOKUP(C63,$A$50:$F$55,6,0)/100) -> 0 | H63: 5 | L63: =RANK(C54,$C$50:$C$55)+COUNTIF($C$50:C54,C54)-1 -> 5 | M63: 1 | N63: CT | O63: 0
B64: 1 | C64: CU | D64: 0 | E64: =IF(D64=D59,INDEX($J$6:$O$11,MATCH(C64,$I$6:$I$11,0),MATCH(C59,$J$5:$O$5,0)),IF(D64=D63,INDEX($J$6:$O$11,MATCH(C64,$I$6:$I$11,0),MATCH(C63,$J$5:$O$5,0)),0)) -> 0 | F64: 0 | G64: =IF(AND(F64<>F63,F64<>F59),F64,F64+VLOOKUP(C64,$A$50:$F$55,6,0)/100) -> 0 | H64: 6 | L64: =RANK(C55,$C$50:$C$55)+COUNTIF($C$50:C55,C55)-1 -> 6 | M64: 1 | N64: CU | O64: 0

Sheet P13
A2: CHAMPIONNAT DES CLUBS
A4: POULE 13 | I4: Récapitulatif différence match entre 2 équipes
A5: EQUIPES | C5: POINTS | D5: Pour | E5: Contre | F5: Diff | J5: =A6 -> CV | K5: =A7 -> CW | L5: =A8 -> CX | M5: =A9 -> CY | N5: =A10 -> CZ | O5: =A11 -> DA
A6: CV | B6: 13A | C6: =SUM(E16,E23,E30,E37,F45) -> 0 | D6: =I16+I23+I30+I37+J45 -> 0 | E6: =J16+J23+J30+J37+I45 -> 0 | F6: =D6-E6 -> 0 | I6: =A6 -> CV | K6: =IF(ISBLANK(B16),0,IFERROR(INDEX($B$15:$B$46,MATCH($I6&K$5,$K$15:$K$46,0))-INDEX($D$15:$D$46,MATCH($I6&K$5,$K$15:$K$46,0)),0-INDEX($J$6:$O$11,MATCH(K$5,$I$6:$I$11,0),MATCH($I6,$J$5:$O$5,0)))) -> 0 | L6: =IF(ISBLANK(B23),0,IFERROR(INDEX($B$15:$B$46,MATCH($I6&L$5,$K$15:$K$46,0))-INDEX($D$15:$D$46,MATCH($I6&L$5,$K$15:$K$46,0)),0-INDEX($J$6:$O$11,MATCH(L$5,$I$6:$I$11,0),MATCH($I6,$J$5:$O$5,0)))) -> 0 | M6: =IF(ISBLANK(B37),0,IFERROR(INDEX($B$15:$B$46,MATCH($I6&M$5,$K$15:$K$46,0))-INDEX($D$15:$D$46,MATCH($I6&M$5,$K$15:$K$46,0)),0-INDEX($J$6:$O$11,MATCH(M$5,$I$6:$I$11,0),MATCH($I6,$J$5:$O$5,0)))) -> 0 | N6: =IF(ISBLANK(B45),0,IFERROR(INDEX($B$15:$B$46,MATCH($I6&N$5,$K$15:$K$46,0))-INDEX($D$15:$D$46,MATCH($I6&N$5,$K$15:$K$46,0)),0-INDEX($J$6:$O$11,MATCH(N$5,$I$6:$I$11,0),MATCH($I6,$J$5:$O$5,0)))) -> 0 | O6: =IF(ISBLANK(B30),0,IFERROR(INDEX($B$15:$B$46,MATCH($I6&O$5,$K$15:$K$46,0))-INDEX($D$15:$D$46,MATCH($I6&O$5,$K$15:$K$46,0)),0-INDEX($J$6:$O$11,MATCH(O$5,$I$6:$I$11,0),MATCH($I6,$J$5:$O$5,0)))) -> 0
A7: CW | B7: 13B | C7: =SUM(F16,E24,F32,E38,E46) -> 0 | D7: =J16+I24+J32+I38+I46 -> 0 | E7: =I16+J24+I32+J38+J46 -> 0 | F7: 0 | I7: CW | J7: =IF(ISBLANK(B16),0,IFERROR(INDEX($B$15:$B$46,MATCH($I7&J$5,$K$15:$K$46,0))-INDEX($D$15:$D$46,MATCH($I7&J$5,$K$15:$K$46,0)),0-INDEX($J$6:$O$11,MATCH(J$5,$I$6:$I$11,0),MATCH($I7,$J$5:$O$5,0)))) -> 0 | L7: =IF(ISBLANK(B32),0,IFERROR(INDEX($B$15:$B$46,MATCH($I7&L$5,$K$15:$K$46,0))-INDEX($D$15:$D$46,MATCH($I7&L$5,$K$15:$K$46,0)),0-INDEX($J$6:$O$11,MATCH(L$5,$I$6:$I$11,0),MATCH($I7,$J$5:$O$5,0)))) -> 0 | M7: =IF(ISBLANK(B46),0,IFERROR(INDEX($B$15:$B$46,MATCH($I7&M$5,$K$15:$K$46,0))-INDEX($D$15:$D$46,MATCH($I7&M$5,$K$15:$K$46,0)),0-INDEX($J$6:$O$11,MATCH(M$5,$I$6:$I$11,0),MATCH($I7,$J$5:$O$5,0)))) -> 0 | N7: =IF(ISBLANK(B24),0,IFERROR(INDEX($B$15:$B$46,MATCH($I7&N$5,$K$15:$K$46,0))-INDEX($D$15:$D$46,MATCH($I7&N$5,$K$15:$K$46,0)),0-INDEX($J$6:$O$11,MATCH(N$5,$I$6:$I$11,0),MATCH($I7,$J$5:$O$5,0)))) -> 0 | O7: =IF(ISBLANK(B38),0,IFERROR(INDEX($B$15:$B$46,MATCH($I7&O$5,$K$15:$K$46,0))-INDEX($D$15:$D$46,MATCH($I7&O$5,$K$15:$K$46,0)),0-INDEX($J$6:$O$11,MATCH(O$5,$I$6:$I$11,0),MATCH($I7,$J$5:$O$5,0)))) -> 0
A8: CX | B8: 13C | C8: =SUM(E17,F23,E32,E39,E44) -> 0 | D8: =I17+J23+I32+I39+I44 -> 0 | E8: =J17+I23+J32+J39+J44 -> 0 | F8: 0 | I8: CX | J8: =IF(ISBLANK(B23),0,IFERROR(INDEX($B$15:$B$46,MATCH($I8&J$5,$K$15:$K$46,0))-INDEX($D$15:$D$46,MATCH($I8&J$5,$K$15:$K$46,0)),0-INDEX($J$6:$O$11,MATCH(J$5,$I$6:$I$11,0),MATCH($I8,$J$5:$O$5,0)))) -> 0 | K8: =IF(ISBLANK(B32),0,IFERROR(INDEX($B$15:$B$46,MATCH($I8&K$5,$K$15:$K$46,0))-INDEX($D$15:$D$46,MATCH($I8&K$5,$K$15:$K$46,0)),0-INDEX($J$6:$O$11,MATCH(K$5,$I$6:$I$11,0),MATCH($I8,$J$5:$O$5,0)))) -> 0 | M8: =IF(ISBLANK(B17),0,IFERROR(INDEX($B$15:$B$46,MATCH($I8&M$5,$K$15:$K$46,0))-INDEX($D$15:$D$46,MATCH($I8&M$5,$K$15:$K$46,0)),0-INDEX($J$6:$O$11,MATCH(M$5,$I$6:$I$11,0),MATCH($I8,$J$5:$O$5,0)))) -> 0 | N8: =IF(ISBLANK(B39),0,IFERROR(INDEX($B$15:$B$46,MATCH($I8&N$5,$K$15:$K$46,0))-INDEX($D$15:$D$46,MATCH($I8&N$5,$K$15:$K$46,0)),0-INDEX($J$6:$O$11,MATCH(N$5,$I$6:$I$11,0),MATCH($I8,$J$5:$O$5,0)))) -> 0 | O8: =IF(ISBLANK(B44),0,IFERROR(INDEX($B$15:$B$46,MATCH($I8&O$5,$K$15:$K$46,0))-INDEX($D$15:$D$46,MATCH($I8&O$5,$K$15:$K$46,0)),0-INDEX($J$6:$O$11,MATCH(O$5,$I$6:$I$11,0),MATCH($I8,$J$5:$O$5,0)))) -> 0
A9: CY | B9: 13D | C9: =SUM(F17,E25,F31,F37,F46) -> 0 | D9: =J17+I25+J31+J37+J46 -> 0 | E9: =I17+J25+I31+I37+I46 -> 0 | F9: 0 | I9: CY | J9: =IF(ISBLANK(B37),0,IFERROR(INDEX($B$15:$B$46,MATCH($I9&J$5,$K$15:$K$46,0))-INDEX($D$15:$D$46,MATCH($I9&J$5,$K$15:$K$46,0)),0-INDEX($J$6:$O$11,MATCH(J$5,$I$6:$I$11,0),MATCH($I9,$J$5:$O$5,0)))) -> 0 | K9: =IF(ISBLANK(B46),0,IFERROR(INDEX($B$15:$B$46,MATCH($I9&K$5,$K$15:$K$46,0))-INDEX($D$15:$D$46,MATCH($I9&K$5,$K$15:$K$46,0)),0-INDEX($J$6:$O$11,MATCH(K$5,$I$6:$I$11,0),MATCH($I9,$J$5:$O$5,0)))) -> 0 | L9: =IF(ISBLANK(B17),0,IFERROR(INDEX($B$15:$B$46,MATCH($I9&L$5,$K$15:$K$46,0))-INDEX($D$15:$D$46,MATCH($I9&L$5,$K$15:$K$46,0)),0-INDEX($J$6:$O$11,MATCH(L$5,$I$6:$I$11,0),MATCH($I9,$J$5:$O$5,0)))) -> 0 | N9: =IF(ISBLANK(B31),0,IFERROR(INDEX($B$15:$B$46,MATCH($I9&N$5,$K$15:$K$46,0))-INDEX($D$15:$D$46,MATCH($I9&N$5,$K$15:$K$46,0)),0-INDEX($J$6:$O$11,MATCH(N$5,$I$6:$I$11,0),MATCH($I9,$J$5:$O$5,0)))) -> 0 | O9: =IF(ISBLANK(B25),0,IFERROR(INDEX($B$15:$B$46,MATCH($I9&O$5,$K$15:$K$46,0))-INDEX($D$15:$D$46,MATCH($I9&O$5,$K$15:$K$46,0)),0-INDEX($J$6:$O$11,MATCH(O$5,$I$6:$I$11,0),MATCH($I9,$J$5:$O$5,0)))) -> 0
A10: CZ | B10: 13E | C10: =SUM(E18,F24,E31,F39,E45) -> 0 | D10: =I18+J24+I31+J39+I45 -> 0 | E10: =J18+I24+J31+I39+J45 -> 0 | F10: 0 | I10: CZ | J10: =IF(ISBLANK(B45),0,IFERROR(INDEX($B$15:$B$46,MATCH($I10&J$5,$K$15:$K$46,0))-INDEX($D$15:$D$46,MATCH($I10&J$5,$K$15:$K$46,0)),0-INDEX($J$6:$O$11,MATCH(J$5,$I$6:$I$11,0),MATCH($I10,$J$5:$O$5,0)))) -> 0 | K10: =IF(ISBLANK(B24),0,IFERROR(INDEX($B$15:$B$46,MATCH($I10&K$5,$K$15:$K$46,0))-INDEX($D$15:$D$46,MATCH($I10&K$5,$K$15:$K$46,0)),0-INDEX($J$6:$O$11,MATCH(K$5,$I$6:$I$11,0),MATCH($I10,$J$5:$O$5,0)))) -> 0 | L10: =IF(ISBLANK(B39),0,IFERROR(INDEX($B$15:$B$46,MATCH($I10&L$5,$K$15:$K$46,0))-INDEX($D$15:$D$46,MATCH($I10&L$5,$K$15:$K$46,0)),0-INDEX($J$6:$O$11,MATCH(L$5,$I$6:$I$11,0),MATCH($I10,$J$5:$O$5,0)))) -> 0 | M10: =IF(ISBLANK(B31),0,IFERROR(INDEX($B$15:$B$46,MATCH($I10&M$5,$K$15:$K$46,0))-INDEX($D$15:$D$46,MATCH($I10&M$5,$K$15:$K$46,0)),0-INDEX($J$6:$O$11,MATCH(M$5,$I$6:$I$11,0),MATCH($I10,$J$5:$O$5,0)))) -> 0 | O10: =IF(ISBLANK(B18),0,IFERROR(INDEX($B$15:$B$46,MATCH($I10&O$5,$K$15:$K$46,0))-INDEX($D$15:$D$46,MATCH($I10&O$5,$K$15:$K$46,0)),0-INDEX($J$6:$O$11,MATCH(O$5,$I$6:$I$11,0),MATCH($I10,$J$5:$O$5,0)))) -> 0
A11: DA | B11: 13F | C11: =SUM(F18,F25,F30,F38,F44) -> 0 | D11: =J18+J25+J30+J38+J44 -> 0 | E11: =I18+I25+I30+I38+I44 -> 0 | F11: 0 | I11: DA | J11: =IF(ISBLANK(B30),0,IFERROR(INDEX($B$15:$B$46,MATCH($I11&J$5,$K$15:$K$46,0))-INDEX($D$15:$D$46,MATCH($I11&J$5,$K$15:$K$46,0)),0-INDEX($J$6:$O$11,MATCH(J$5,$I$6:$I$11,0),MATCH($I11,$J$5:$O$5,0)))) -> 0 | K11: =IF(ISBLANK(B38),0,IFERROR(INDEX($B$15:$B$46,MATCH($I11&K$5,$K$15:$K$46,0))-INDEX($D$15:$D$46,MATCH($I11&K$5,$K$15:$K$46,0)),0-INDEX($J$6:$O$11,MATCH(K$5,$I$6:$I$11,0),MATCH($I11,$J$5:$O$5,0)))) -> 0 | L11: =IF(ISBLANK(B44),0,IFERROR(INDEX($B$15:$B$46,MATCH($I11&L$5,$K$15:$K$46,0))-INDEX($D$15:$D$46,MATCH($I11&L$5,$K$15:$K$46,0)),0-INDEX($J$6:$O$11,MATCH(L$5,$I$6:$I$11,0),MATCH($I11,$J$5:$O$5,0)))) -> 0 | M11: =IF(ISBLANK(B25),0,IFERROR(INDEX($B$15:$B$46,MATCH($I11&M$5,$K$15:$K$46,0))-INDEX($D$15:$D$46,MATCH($I11&M$5,$K$15:$K$46,0)),0-INDEX($J$6:$O$11,MATCH(M$5,$I$6:$I$11,0),MATCH($I11,$J$5:$O$5,0)))) -> 0 | N11: =IF(ISBLANK(B18),0,IFERROR(INDEX($B$15:$B$46,MATCH($I11&N$5,$K$15:$K$46,0))-INDEX($D$15:$D$46,MATCH($I11&N$5,$K$15:$K$46,0)),0-INDEX($J$6:$O$11,MATCH(N$5,$I$6:$I$11,0),MATCH($I11,$J$5:$O$5,0)))) -> 0
I12: Les concaténations en rouge permettent de remplir par formules le récapitulatif au dessus
A13: 1er MATCH le 15 mai | B13: à | C13: =A6 -> CV | I13: Ce récap servira à départager les ex aequos
G14: SI forfait éq recevante
A15: Equipes | B15: score | C15: Equipes | D15: score
A16: =$A$6 -> CV | C16: =$A$7 -> CW | D16: =IF(G16=19,19,IF(ISBLANK(B16),"",IF(B16=19,0,36-B16))) ->  | E16: =IF(G16=19,0,IF(ISBLANK(B16),"",IF(B16<18,1,IF(B16=18,2,IF(B16>18,3))))) ->  | F16: =IF(G16=19,3,IF(ISBLANK(B16),"",IF(B16=19,0,IF(D16<18,1,IF(D16=18,2,IF(D16>=20,3)))))) ->  | I16: =IF(ISBLANK(B16),0,B16) -> 0 | J16: =IF(ISBLANK(B16),0,D16) -> 0 | K16: =A16&C16 -> CVCW
A17: =$A$8 -> CX | C17: =$A$9 -> CY | D17: =IF(G17=19,19,IF(ISBLANK(B17),"",IF(B17=19,0,36-B17))) ->  | E17: =IF(G17=19,0,IF(ISBLANK(B17),"",IF(B17<18,1,IF(B17=18,2,IF(B17>18,3))))) ->  | F17: =IF(G17=19,3,IF(ISBLANK(B17),"",IF(B17=19,0,IF(D17<18,1,IF(D17=18,2,IF(D17>=20,3)))))) ->  | I17: =IF(ISBLANK(B17),0,B17) -> 0 | J17: =IF(ISBLANK(B17),0,D17) -> 0 | K17: =A17&C17 -> CXCY
A18: =$A$10 -> CZ | C18: =$A$11 -> DA | D18: =IF(G18=19,19,IF(ISBLANK(B18),"",IF(B18=19,0,36-B18))) ->  | E18: =IF(G18=19,0,IF(ISBLANK(B18),"",IF(B18<18,1,IF(B18=18,2,IF(B18>18,3))))) ->  | F18: =IF(G18=19,3,IF(ISBLANK(B18),"",IF(B18=19,0,IF(D18<18,1,IF(D18=18,2,IF(D18>=20,3)))))) ->  | I18: =IF(ISBLANK(B18),0,B18) -> 0 | J18: =IF(ISBLANK(B18),0,D18) -> 0 | K18: =A18&C18 -> CZDA
A20: 2 éme MATCH le 22 mai | B20: à | C20: =A7 -> CW
G21: SI forfait éq recevante
A22: Equipes | B22: score | C22: Equipes | D22: score
A23: =$A$6 -> CV | C23: =$A$8 -> CX | D23: =IF(G23=19,19,IF(ISBLANK(B23),"",IF(B23=19,0,36-B23))) ->  | E23: =IF(G23=19,0,IF(ISBLANK(B23),"",IF(B23<18,1,IF(B23=18,2,IF(B23>18,3))))) ->  | F23: =IF(G23=19,3,IF(ISBLANK(B23),"",IF(B23=19,0,IF(D23<18,1,IF(D23=18,2,IF(D23>=20,3)))))) ->  | I23: =IF(ISBLANK(B23),0,B23) -> 0 | J23: =IF(ISBLANK(B23),0,D23) -> 0 | K23: =A23&C23 -> CVCX
A24: =$A$7 -> CW | C24: =$A$10 -> CZ | D24: =IF(G24=19,19,IF(ISBLANK(B24),"",IF(B24=19,0,36-B24))) ->  | E24: =IF(G24=19,0,IF(ISBLANK(B24),"",IF(B24<18,1,IF(B24=18,2,IF(B24>18,3))))) ->  | F24: =IF(G24=19,3,IF(ISBLANK(B24),"",IF(B24=19,0,IF(D24<18,1,IF(D24=18,2,IF(D24>=20,3)))))) ->  | I24: =IF(ISBLANK(B24),0,B24) -> 0 | J24: =IF(ISBLANK(B24),0,D24) -> 0 | K24: =A24&C24 -> CWCZ
A25: =$A$9 -> CY | C25: =$A$11 -> DA | D25: =IF(G25=19,19,IF(ISBLANK(B25),"",IF(B25=19,0,36-B25))) ->  | E25: =IF(G25=19,0,IF(ISBLANK(B25),"",IF(B25<18,1,IF(B25=18,2,IF(B25>18,3))))) ->  | F25: =IF(G25=19,3,IF(ISBLANK(B25),"",IF(B25=19,0,IF(D25<18,1,IF(D25=18,2,IF(D25>=20,3)))))) ->  | I25: =IF(ISBLANK(B25),0,B25) -> 0 | J25: =IF(ISBLANK(B25),0,D25) -> 0 | K25: =A25&C25 -> CYDA
A27: 3 éme MATCH le 29 mai | B27: à | C27: =A8 -> CX
G28: SI forfait éq recevante
A29: Equipes | B29: score | C29: Equipes | D29: score
A30: =$A$6 -> CV | C30: =$A$11 -> DA | D30: =IF(G30=19,19,IF(ISBLANK(B30),"",IF(B30=19,0,36-B30))) ->  | E30: =IF(G30=19,0,IF(ISBLANK(B30),"",IF(B30<18,1,IF(B30=18,2,IF(B30>18,3))))) ->  | F30: =IF(G30=19,3,IF(ISBLANK(B30),"",IF(B30=19,0,IF(D30<18,1,IF(D30=18,2,IF(D30>=20,3)))))) ->  | I30: =IF(ISBLANK(B30),0,B30) -> 0 | J30: =IF(ISBLANK(B30),0,D30) -> 0 | K30: =A30&C30 -> CVDA
A31: =$A$10 -> CZ | C31: =$A$9 -> CY | D31: =IF(G31=19,19,IF(ISBLANK(B31),"",IF(B31=19,0,36-B31))) ->  | E31: =IF(G31=19,0,IF(ISBLANK(B31),"",IF(B31<18,1,IF(B31=18,2,IF(B31>18,3))))) ->  | F31: =IF(G31=19,3,IF(ISBLANK(B31),"",IF(B31=19,0,IF(D31<18,1,IF(D31=18,2,IF(D31>=20,3)))))) ->  | I31: =IF(ISBLANK(B31),0,B31) -> 0 | J31: =IF(ISBLANK(B31),0,D31) -> 0 | K31: =A31&C31 -> CZCY
A32: =$A$8 -> CX | C32: =$A$7 -> CW | D32: =IF(G32=19,19,IF(ISBLANK(B32),"",IF(B32=19,0,36-B32))) ->  | E32: =IF(G32=19,0,IF(ISBLANK(B32),"",IF(B32<18,1,IF(B32=18,2,IF(B32>18,3))))) ->  | F32: =IF(G32=19,3,IF(ISBLANK(B32),"",IF(B32=19,0,IF(D32<18,1,IF(D32=18,2,IF(D32>=20,3)))))) ->  | I32: =IF(ISBLANK(B32),0,B32) -> 0 | J32: =IF(ISBLANK(B32),0,D32) -> 0 | K32: =A32&C32 -> CXCW
A34: 4 éme MATCH le 5 juin | B34: à | C34: =A9 -> CY
G35: SI forfait éq recevante
A36: Equipes | B36: score | C36: Equipes | D36: score
A37: =A6 -> CV | C37: =$A$9 -> CY | D37: =IF(G37=19,19,IF(ISBLANK(B37),"",IF(B37=19,0,36-B37))) ->  | E37: =IF(G37=19,0,IF(ISBLANK(B37),"",IF(B37<18,1,IF(B37=18,2,IF(B37>18,3))))) ->  | F37: =IF(G37=19,3,IF(ISBLANK(B37),"",IF(B37=19,0,IF(D37<18,1,IF(D37=18,2,IF(D37>=20,3)))))) ->  | I37: =IF(ISBLANK(B37),0,B37) -> 0 | J37: =IF(ISBLANK(B37),0,D37) -> 0 | K37: =A37&C37 -> CVCY
A38: =$A$7 -> CW | C38: =$A$11 -> DA | D38: =IF(G38=19,19,IF(ISBLANK(B38),"",IF(B38=19,0,36-B38))) ->  | E38: =IF(G38=19,0,IF(ISBLANK(B38),"",IF(B38<18,1,IF(B38=18,2,IF(B38>18,3))))) ->  | F38: =IF(G38=19,3,IF(ISBLANK(B38),"",IF(B38=19,0,IF(D38<18,1,IF(D38=18,2,IF(D38>=20,3)))))) ->  | I38: =IF(ISBLANK(B38),0,B38) -> 0 | J38: =IF(ISBLANK(B38),0,D38) -> 0 | K38: =A38&C38 -> CWDA
A39: =A8 -> CX | C39: =$A$10 -> CZ | D39: =IF(G39=19,19,IF(ISBLANK(B39),"",IF(B39=19,0,36-B39))) ->  | E39: =IF(G39=19,0,IF(ISBLANK(B39),"",IF(B39<18,1,IF(B39=18,2,IF(B39>18,3))))) ->  | F39: =IF(G39=19,3,IF(ISBLANK(B39),"",IF(B39=19,0,IF(D39<18,1,IF(D39=18,2,IF(D39>=20,3)))))) ->  | I39: =IF(ISBLANK(B39),0,B39) -> 0 | J39: =IF(ISBLANK(B39),0,D39) -> 0 | K39: =A39&C39 -> CXCZ
A41: 5 éme MATCH le 12 juin | B41: à | C41: =A10 -> CZ
G42: SI forfait éq recevante
A43: Equipes | B43: score | C43: Equipes | D43: score
A44: =A8 -> CX | C44: =$A$11 -> DA | D44: =IF(G44=19,19,IF(ISBLANK(B44),"",IF(B44=19,0,36-B44))) ->  | E44: =IF(G44=19,0,IF(ISBLANK(B44),"",IF(B44<18,1,IF(B44=18,2,IF(B44>18,3))))) ->  | F44: =IF(G44=19,3,IF(ISBLANK(B44),"",IF(B44=19,0,IF(D44<18,1,IF(D44=18,2,IF(D44>=20,3)))))) ->  | I44: =IF(ISBLANK(B44),0,B44) -> 0 | J44: =IF(ISBLANK(B44),0,D44) -> 0 | K44: =A44&C44 -> CXDA
A45: =$A$10 -> CZ | C45: =A6 -> CV | D45: =IF(G45=19,19,IF(ISBLANK(B45),"",IF(B45=19,0,36-B45))) ->  | E45: =IF(G45=19,0,IF(ISBLANK(B45),"",IF(B45<18,1,IF(B45=18,2,IF(B45>18,3))))) ->  | F45: =IF(G45=19,3,IF(ISBLANK(B45),"",IF(B45=19,0,IF(D45<18,1,IF(D45=18,2,IF(D45>=20,3)))))) ->  | I45: =IF(ISBLANK(B45),0,B45) -> 0 | J45: =IF(ISBLANK(B45),0,D45) -> 0 | K45: =A45&C45 -> CZCV
A46: =A7 -> CW | C46: =$A$9 -> CY | D46: =IF(G46=19,19,IF(ISBLANK(B46),"",IF(B46=19,0,36-B46))) ->  | E46: =IF(G46=19,0,IF(ISBLANK(B46),"",IF(B46<18,1,IF(B46=18,2,IF(B46>18,3))))) ->  | F46: =IF(G46=19,3,IF(ISBLANK(B46),"",IF(B46=19,0,IF(D46<18,1,IF(D46=18,2,IF(D46>=20,3)))))) ->  | I46: =IF(ISBLANK(B46),0,B46) -> 0 | J46: =IF(ISBLANK(B46),0,D46) -> 0 | K46: =A46&C46 -> CWCY
A48: CLASSEMENT
A49: EQUIPES | C49: POINTS | D49: Pour | E49: Contre | F49: Diff | G49: CLASST
A50: CV | B50: 13A | C50: 0 | D50: 0 | E50: 0 | F50: 0 | G50: =B59 -> 1 | H50: =IF(AND(G50=1,COUNTIF(rang1,1)>1),COUNTIF(G$50:G50,1),IF(AND(G50=2,COUNTIF(rang1,2)>1),COUNTIF(G$50:G50,2)+3,"")) -> 1
A51: CW | B51: 13B | C51: 0 | D51: 0 | E51: 0 | F51: 0 | G51: 1 | H51: =IF(AND(G51=1,COUNTIF(rang1,1)>1),COUNTIF(G$50:G51,1),IF(AND(G51=2,COUNTIF(rang1,2)>1),COUNTIF(G$50:G51,2)+3,"")) -> 2
A52: CX | B52: 13C | C52: 0 | D52: 0 | E52: 0 | F52: 0 | G52: 1 | H52: =IF(AND(G52=1,COUNTIF(rang1,1)>1),COUNTIF(G$50:G52,1),IF(AND(G52=2,COUNTIF(rang1,2)>1),COUNTIF(G$50:G52,2)+3,"")) -> 3
A53: CY | B53: 13D | C53: 0 | D53: 0 | E53: 0 | F53: 0 | G53: 1 | H53: =IF(AND(G53=1,COUNTIF(rang1,1)>1),COUNTIF(G$50:G53,1),IF(AND(G53=2,COUNTIF(rang1,2)>1),COUNTIF(G$50:G53,2)+3,"")) -> 4
A54: CZ | B54: 13E | C54: 0 | D54: 0 | E54: 0 | F54: 0 | G54: 1 | H54: =IF(AND(G54=1,COUNTIF(rang1,1)>1),COUNTIF(G$50:G54,1),IF(AND(G54=2,COUNTIF(rang1,2)>1),COUNTIF(G$50:G54,2)+3,"")) -> 5
A55: DA | B55: 13F | C55: 0 | D55: 0 | E55: 0 | F55: 0 | G55: 1 | H55: =IF(AND(G55=1,COUNTIF(rang1,1)>1),COUNTIF(G$50:G55,1),IF(AND(G55=2,COUNTIF(rang1,2)>1),COUNTIF(G$50:G55,2)+3,"")) -> 6
B57: CLASSEMENT FINAL et DEPARTAGE EX AEQUOS | M57: CLASSEMENT
B58: Rang | C58: Equipes | D58: Pts | E58: diff pts avec exaequo | F58: cumul | G58: departage goalaverage si même cumul | H58: RP | L58: RP | M58: Rang | N58: Equipe | O58: Pts
B59: =RANK(G59,$G$59:$G$64) -> 1 | C59: =INDEX($A$50:$A$55,MATCH(H59,$L$59:$L$64,0)) -> CV | D59: =VLOOKUP(C59,$A$50:$C$55,3,0) -> 0 | E59: =IF(D59=D60,INDEX($J$6:$O$11,MATCH(C59,$I$6:$I$11,0),MATCH(C60,$J$5:$O$5,0)),IF(D59=D58,INDEX($J$6:$O$11,MATCH(C59,$I$6:$I$11,0),MATCH(C58,$J$5:$O$5,0)),0)) -> 0 | F59: =D59+E59/100 -> 0 | G59: =IF(AND(F59<>F58,F59<>F60),F59,F59+VLOOKUP(C59,$A$50:$F$55,6,0)/100) -> 0 | H59: 1 | L59: =RANK(C50,$C$50:$C$55)+COUNTIF($C$50:C50,C50)-1 -> 1 | M59: =B59 -> 1 | N59: CV | O59: =VLOOKUP(N59,$C$59:$D$64,2,0) -> 0
B60: 1 | C60: CW | D60: 0 | E60: =IF(D60=D61,INDEX($J$6:$O$11,MATCH(C60,$I$6:$I$11,0),MATCH(C61,$J$5:$O$5,0)),IF(D60=D59,INDEX($J$6:$O$11,MATCH(C60,$I$6:$I$11,0),MATCH(C59,$J$5:$O$5,0)),0)) -> 0 | F60: 0 | G60: =IF(AND(F60<>F59,F60<>F61),F60,F60+VLOOKUP(C60,$A$50:$F$55,6,0)/100) -> 0 | H60: 2 | L60: =RANK(C51,$C$50:$C$55)+COUNTIF($C$50:C51,C51)-1 -> 2 | M60: 1 | N60: CW | O60: 0
B61: 1 | C61: CX | D61: 0 | E61: =IF(D61=D62,INDEX($J$6:$O$11,MATCH(C61,$I$6:$I$11,0),MATCH(C62,$J$5:$O$5,0)),IF(D61=D60,INDEX($J$6:$O$11,MATCH(C61,$I$6:$I$11,0),MATCH(C60,$J$5:$O$5,0)),0)) -> 0 | F61: 0 | G61: =IF(AND(F61<>F60,F61<>F62),F61,F61+VLOOKUP(C61,$A$50:$F$55,6,0)/100) -> 0 | H61: 3 | L61: =RANK(C52,$C$50:$C$55)+COUNTIF($C$50:C52,C52)-1 -> 3 | M61: 1 | N61: CX | O61: 0
B62: 1 | C62: CY | D62: 0 | E62: =IF(D62=D63,INDEX($J$6:$O$11,MATCH(C62,$I$6:$I$11,0),MATCH(C63,$J$5:$O$5,0)),IF(D62=D61,INDEX($J$6:$O$11,MATCH(C62,$I$6:$I$11,0),MATCH(C61,$J$5:$O$5,0)),0)) -> 0 | F62: 0 | G62: =IF(AND(F62<>F61,F62<>F63),F62,F62+VLOOKUP(C62,$A$50:$F$55,6,0)/100) -> 0 | H62: 4 | L62: =RANK(C53,$C$50:$C$55)+COUNTIF($C$50:C53,C53)-1 -> 4 | M62: 1 | N62: CY | O62: 0
B63: 1 | C63: CZ | D63: 0 | E63: =IF(D63=D64,INDEX($J$6:$O$11,MATCH(C63,$I$6:$I$11,0),MATCH(C64,$J$5:$O$5,0)),IF(D63=D62,INDEX($J$6:$O$11,MATCH(C63,$I$6:$I$11,0),MATCH(C62,$J$5:$O$5,0)),0)) -> 0 | F63: 0 | G63: =IF(AND(F63<>F62,F63<>F64),F63,F63+VLOOKUP(C63,$A$50:$F$55,6,0)/100) -> 0 | H63: 5 | L63: =RANK(C54,$C$50:$C$55)+COUNTIF($C$50:C54,C54)-1 -> 5 | M63: 1 | N63: CZ | O63: 0
B64: 1 | C64: DA | D64: 0 | E64: =IF(D64=D59,INDEX($J$6:$O$11,MATCH(C64,$I$6:$I$11,0),MATCH(C59,$J$5:$O$5,0)),IF(D64=D63,INDEX($J$6:$O$11,MATCH(C64,$I$6:$I$11,0),MATCH(C63,$J$5:$O$5,0)),0)) -> 0 | F64: 0 | G64: =IF(AND(F64<>F63,F64<>F59),F64,F64+VLOOKUP(C64,$A$50:$F$55,6,0)/100) -> 0 | H64: 6 | L64: =RANK(C55,$C$50:$C$55)+COUNTIF($C$50:C55,C55)-1 -> 6 | M64: 1 | N64: DA | O64: 0

Sheet P14
A2: CHAMPIONNAT DES CLUBS
A4: POULE 12 | I4: Récapitulatif différence match entre 2 équipes
A5: EQUIPES | C5: POINTS | D5: Pour | E5: Contre | F5: Diff | J5: =A6 -> DB | K5: =A7 -> DE | L5: =A8 -> DF | M5: =A9 -> DG | N5: =A10 -> DH | O5: =A11 -> DI
A6: DB | B6: 14A | C6: =SUM(E16,E23,E30,E37,F45) -> 0 | D6: =I16+I23+I30+I37+J45 -> 0 | E6: =J16+J23+J30+J37+I45 -> 0 | F6: =D6-E6 -> 0 | I6: =A6 -> DB | K6: =IF(ISBLANK(B16),0,IFERROR(INDEX($B$15:$B$46,MATCH($I6&K$5,$K$15:$K$46,0))-INDEX($D$15:$D$46,MATCH($I6&K$5,$K$15:$K$46,0)),0-INDEX($J$6:$O$11,MATCH(K$5,$I$6:$I$11,0),MATCH($I6,$J$5:$O$5,0)))) -> 0 | L6: =IF(ISBLANK(B23),0,IFERROR(INDEX($B$15:$B$46,MATCH($I6&L$5,$K$15:$K$46,0))-INDEX($D$15:$D$46,MATCH($I6&L$5,$K$15:$K$46,0)),0-INDEX($J$6:$O$11,MATCH(L$5,$I$6:$I$11,0),MATCH($I6,$J$5:$O$5,0)))) -> 0 | M6: =IF(ISBLANK(B37),0,IFERROR(INDEX($B$15:$B$46,MATCH($I6&M$5,$K$15:$K$46,0))-INDEX($D$15:$D$46,MATCH($I6&M$5,$K$15:$K$46,0)),0-INDEX($J$6:$O$11,MATCH(M$5,$I$6:$I$11,0),MATCH($I6,$J$5:$O$5,0)))) -> 0 | N6: =IF(ISBLANK(B45),0,IFERROR(INDEX($B$15:$B$46,MATCH($I6&N$5,$K$15:$K$46,0))-INDEX($D$15:$D$46,MATCH($I6&N$5,$K$15:$K$46,0)),0-INDEX($J$6:$O$11,MATCH(N$5,$I$6:$I$11,0),MATCH($I6,$J$5:$O$5,0)))) -> 0 | O6: =IF(ISBLANK(B30),0,IFERROR(INDEX($B$15:$B$46,MATCH($I6&O$5,$K$15:$K$46,0))-INDEX($D$15:$D$46,MATCH($I6&O$5,$K$15:$K$46,0)),0-INDEX($J$6:$O$11,MATCH(O$5,$I$6:$I$11,0),MATCH($I6,$J$5:$O$5,0)))) -> 0
A7: DE | B7: 14B | C7: =SUM(F16,E24,F32,E38,E46) -> 0 | D7: =J16+I24+J32+I38+I46 -> 0 | E7: =I16+J24+I32+J38+J46 -> 0 | F7: 0 | I7: DE | J7: =IF(ISBLANK(B16),0,IFERROR(INDEX($B$15:$B$46,MATCH($I7&J$5,$K$15:$K$46,0))-INDEX($D$15:$D$46,MATCH($I7&J$5,$K$15:$K$46,0)),0-INDEX($J$6:$O$11,MATCH(J$5,$I$6:$I$11,0),MATCH($I7,$J$5:$O$5,0)))) -> 0 | L7: =IF(ISBLANK(B32),0,IFERROR(INDEX($B$15:$B$46,MATCH($I7&L$5,$K$15:$K$46,0))-INDEX($D$15:$D$46,MATCH($I7&L$5,$K$15:$K$46,0)),0-INDEX($J$6:$O$11,MATCH(L$5,$I$6:$I$11,0),MATCH($I7,$J$5:$O$5,0)))) -> 0 | M7: =IF(ISBLANK(B46),0,IFERROR(INDEX($B$15:$B$46,MATCH($I7&M$5,$K$15:$K$46,0))-INDEX($D$15:$D$46,MATCH($I7&M$5,$K$15:$K$46,0)),0-INDEX($J$6:$O$11,MATCH(M$5,$I$6:$I$11,0),MATCH($I7,$J$5:$O$5,0)))) -> 0 | N7: =IF(ISBLANK(B24),0,IFERROR(INDEX($B$15:$B$46,MATCH($I7&N$5,$K$15:$K$46,0))-INDEX($D$15:$D$46,MATCH($I7&N$5,$K$15:$K$46,0)),0-INDEX($J$6:$O$11,MATCH(N$5,$I$6:$I$11,0),MATCH($I7,$J$5:$O$5,0)))) -> 0 | O7: =IF(ISBLANK(B38),0,IFERROR(INDEX($B$15:$B$46,MATCH($I7&O$5,$K$15:$K$46,0))-INDEX($D$15:$D$46,MATCH($I7&O$5,$K$15:$K$46,0)),0-INDEX($J$6:$O$11,MATCH(O$5,$I$6:$I$11,0),MATCH($I7,$J$5:$O$5,0)))) -> 0
A8: DF | B8: 14C | C8: =SUM(E17,F23,E32,E39,E44) -> 0 | D8: =I17+J23+I32+I39+I44 -> 0 | E8: =J17+I23+J32+J39+J44 -> 0 | F8: 0 | I8: DF | J8: =IF(ISBLANK(B23),0,IFERROR(INDEX($B$15:$B$46,MATCH($I8&J$5,$K$15:$K$46,0))-INDEX($D$15:$D$46,MATCH($I8&J$5,$K$15:$K$46,0)),0-INDEX($J$6:$O$11,MATCH(J$5,$I$6:$I$11,0),MATCH($I8,$J$5:$O$5,0)))) -> 0 | K8: =IF(ISBLANK(B32),0,IFERROR(INDEX($B$15:$B$46,MATCH($I8&K$5,$K$15:$K$46,0))-INDEX($D$15:$D$46,MATCH($I8&K$5,$K$15:$K$46,0)),0-INDEX($J$6:$O$11,MATCH(K$5,$I$6:$I$11,0),MATCH($I8,$J$5:$O$5,0)))) -> 0 | M8: =IF(ISBLANK(B17),0,IFERROR(INDEX($B$15:$B$46,MATCH($I8&M$5,$K$15:$K$46,0))-INDEX($D$15:$D$46,MATCH($I8&M$5,$K$15:$K$46,0)),0-INDEX($J$6:$O$11,MATCH(M$5,$I$6:$I$11,0),MATCH($I8,$J$5:$O$5,0)))) -> 0 | N8: =IF(ISBLANK(B39),0,IFERROR(INDEX($B$15:$B$46,MATCH($I8&N$5,$K$15:$K$46,0))-INDEX($D$15:$D$46,MATCH($I8&N$5,$K$15:$K$46,0)),0-INDEX($J$6:$O$11,MATCH(N$5,$I$6:$I$11,0),MATCH($I8,$J$5:$O$5,0)))) -> 0 | O8: =IF(ISBLANK(B44),0,IFERROR(INDEX($B$15:$B$46,MATCH($I8&O$5,$K$15:$K$46,0))-INDEX($D$15:$D$46,MATCH($I8&O$5,$K$15:$K$46,0)),0-INDEX($J$6:$O$11,MATCH(O$5,$I$6:$I$11,0),MATCH($I8,$J$5:$O$5,0)))) -> 0
A9: DG | B9: 14D | C9: =SUM(F17,E25,F31,F37,F46) -> 0 | D9: =J17+I25+J31+J37+J46 -> 0 | E9: =I17+J25+I31+I37+I46 -> 0 | F9: 0 | I9: DG | J9: =IF(ISBLANK(B37),0,IFERROR(INDEX($B$15:$B$46,MATCH($I9&J$5,$K$15:$K$46,0))-INDEX($D$15:$D$46,MATCH($I9&J$5,$K$15:$K$46,0)),0-INDEX($J$6:$O$11,MATCH(J$5,$I$6:$I$11,0),MATCH($I9,$J$5:$O$5,0)))) -> 0 | K9: =IF(ISBLANK(B46),0,IFERROR(INDEX($B$15:$B$46,MATCH($I9&K$5,$K$15:$K$46,0))-INDEX($D$15:$D$46,MATCH($I9&K$5,$K$15:$K$46,0)),0-INDEX($J$6:$O$11,MATCH(K$5,$I$6:$I$11,0),MATCH($I9,$J$5:$O$5,0)))) -> 0 | L9: =IF(ISBLANK(B17),0,IFERROR(INDEX($B$15:$B$46,MATCH($I9&L$5,$K$15:$K$46,0))-INDEX($D$15:$D$46,MATCH($I9&L$5,$K$15:$K$46,0)),0-INDEX($J$6:$O$11,MATCH(L$5,$I$6:$I$11,0),MATCH($I9,$J$5:$O$5,0)))) -> 0 | N9: =IF(ISBLANK(B31),0,IFERROR(INDEX($B$15:$B$46,MATCH($I9&N$5,$K$15:$K$46,0))-INDEX($D$15:$D$46,MATCH($I9&N$5,$K$15:$K$46,0)),0-INDEX($J$6:$O$11,MATCH(N$5,$I$6:$I$11,0),MATCH($I9,$J$5:$O$5,0)))) -> 0 | O9: =IF(ISBLANK(B25),0,IFERROR(INDEX($B$15:$B$46,MATCH($I9&O$5,$K$15:$K$46,0))-INDEX($D$15:$D$46,MATCH($I9&O$5,$K$15:$K$46,0)),0-INDEX($J$6:$O$11,MATCH(O$5,$I$6:$I$11,0),MATCH($I9,$J$5:$O$5,0)))) -> 0
A10: DH | B10: 14E | C10: =SUM(E18,F24,E31,F39,E45) -> 0 | D10: =I18+J24+I31+J39+I45 -> 0 | E10: =J18+I24+J31+I39+J45 -> 0 | F10: 0 | I10: DH | J10: =IF(ISBLANK(B45),0,IFERROR(INDEX($B$15:$B$46,MATCH($I10&J$5,$K$15:$K$46,0))-INDEX($D$15:$D$46,MATCH($I10&J$5,$K$15:$K$46,0)),0-INDEX($J$6:$O$11,MATCH(J$5,$I$6:$I$11,0),MATCH($I10,$J$5:$O$5,0)))) -> 0 | K10: =IF(ISBLANK(B24),0,IFERROR(INDEX($B$15:$B$46,MATCH($I10&K$5,$K$15:$K$46,0))-INDEX($D$15:$D$46,MATCH($I10&K$5,$K$15:$K$46,0)),0-INDEX($J$6:$O$11,MATCH(K$5,$I$6:$I$11,0),MATCH($I10,$J$5:$O$5,0)))) -> 0 | L10: =IF(ISBLANK(B39),0,IFERROR(INDEX($B$15:$B$46,MATCH($I10&L$5,$K$15:$K$46,0))-INDEX($D$15:$D$46,MATCH($I10&L$5,$K$15:$K$46,0)),0-INDEX($J$6:$O$11,MATCH(L$5,$I$6:$I$11,0),MATCH($I10,$J$5:$O$5,0)))) -> 0 | M10: =IF(ISBLANK(B31),0,IFERROR(INDEX($B$15:$B$46,MATCH($I10&M$5,$K$15:$K$46,0))-INDEX($D$15:$D$46,MATCH($I10&M$5,$K$15:$K$46,0)),0-INDEX($J$6:$O$11,MATCH(M$5,$I$6:$I$11,0),MATCH($I10,$J$5:$O$5,0)))) -> 0 | O10: =IF(ISBLANK(B18),0,IFERROR(INDEX($B$15:$B$46,MATCH($I10&O$5,$K$15:$K$46,0))-INDEX($D$15:$D$46,MATCH($I10&O$5,$K$15:$K$46,0)),0-INDEX($J$6:$O$11,MATCH(O$5,$I$6:$I$11,0),MATCH($I10,$J$5:$O$5,0)))) -> 0
A11: DI | B11: 14F | C11: =SUM(F18,F25,F30,F38,F44) -> 0 | D11: =J18+J25+J30+J38+J44 -> 0 | E11: =I18+I25+I30+I38+I44 -> 0 | F11: 0 | I11: DI | J11: =IF(ISBLANK(B30),0,IFERROR(INDEX($B$15:$B$46,MATCH($I11&J$5,$K$15:$K$46,0))-INDEX($D$15:$D$46,MATCH($I11&J$5,$K$15:$K$46,0)),0-INDEX($J$6:$O$11,MATCH(J$5,$I$6:$I$11,0),MATCH($I11,$J$5:$O$5,0)))) -> 0 | K11: =IF(ISBLANK(B38),0,IFERROR(INDEX($B$15:$B$46,MATCH($I11&K$5,$K$15:$K$46,0))-INDEX($D$15:$D$46,MATCH($I11&K$5,$K$15:$K$46,0)),0-INDEX($J$6:$O$11,MATCH(K$5,$I$6:$I$11,0),MATCH($I11,$J$5:$O$5,0)))) -> 0 | L11: =IF(ISBLANK(B44),0,IFERROR(INDEX($B$15:$B$46,MATCH($I11&L$5,$K$15:$K$46,0))-INDEX($D$15:$D$46,MATCH($I11&L$5,$K$15:$K$46,0)),0-INDEX($J$6:$O$11,MATCH(L$5,$I$6:$I$11,0),MATCH($I11,$J$5:$O$5,0)))) -> 0 | M11: =IF(ISBLANK(B25),0,IFERROR(INDEX($B$15:$B$46,MATCH($I11&M$5,$K$15:$K$46,0))-INDEX($D$15:$D$46,MATCH($I11&M$5,$K$15:$K$46,0)),0-INDEX($J$6:$O$11,MATCH(M$5,$I$6:$I$11,0),MATCH($I11,$J$5:$O$5,0)))) -> 0 | N11: =IF(ISBLANK(B18),0,IFERROR(INDEX($B$15:$B$46,MATCH($I11&N$5,$K$15:$K$46,0))-INDEX($D$15:$D$46,MATCH($I11&N$5,$K$15:$K$46,0)),0-INDEX($J$6:$O$11,MATCH(N$5,$I$6:$I$11,0),MATCH($I11,$J$5:$O$5,0)))) -> 0
I12: Les concaténations en rouge permettent de remplir par formules le récapitulatif au dessus
A13: 1er MATCH le 15 mai | B13: à | C13: =A6 -> DB | I13: Ce récap servira à départager les ex aequos
G14: SI forfait éq recevante
A15: Equipes | B15: score | C15: Equipes | D15: score
A16: =$A$6 -> DB | C16: =$A$7 -> DE | D16: =IF(G16=19,19,IF(ISBLANK(B16),"",IF(B16=19,0,36-B16))) ->  | E16: =IF(G16=19,0,IF(ISBLANK(B16),"",IF(B16<18,1,IF(B16=18,2,IF(B16>18,3))))) ->  | F16: =IF(G16=19,3,IF(ISBLANK(B16),"",IF(B16=19,0,IF(D16<18,1,IF(D16=18,2,IF(D16>=20,3)))))) ->  | I16: =IF(ISBLANK(B16),0,B16) -> 0 | J16: =IF(ISBLANK(B16),0,D16) -> 0 | K16: =A16&C16 -> DBDE
A17: =$A$8 -> DF | C17: =$A$9 -> DG | D17: =IF(G17=19,19,IF(ISBLANK(B17),"",IF(B17=19,0,36-B17))) ->  | E17: =IF(G17=19,0,IF(ISBLANK(B17),"",IF(B17<18,1,IF(B17=18,2,IF(B17>18,3))))) ->  | F17: =IF(G17=19,3,IF(ISBLANK(B17),"",IF(B17=19,0,IF(D17<18,1,IF(D17=18,2,IF(D17>=20,3)))))) ->  | I17: =IF(ISBLANK(B17),0,B17) -> 0 | J17: =IF(ISBLANK(B17),0,D17) -> 0 | K17: =A17&C17 -> DFDG
A18: =$A$10 -> DH | C18: =$A$11 -> DI | D18: =IF(G18=19,19,IF(ISBLANK(B18),"",IF(B18=19,0,36-B18))) ->  | E18: =IF(G18=19,0,IF(ISBLANK(B18),"",IF(B18<18,1,IF(B18=18,2,IF(B18>18,3))))) ->  | F18: =IF(G18=19,3,IF(ISBLANK(B18),"",IF(B18=19,0,IF(D18<18,1,IF(D18=18,2,IF(D18>=20,3)))))) ->  | I18: =IF(ISBLANK(B18),0,B18) -> 0 | J18: =IF(ISBLANK(B18),0,D18) -> 0 | K18: =A18&C18 -> DHDI
A20: 2 éme MATCH le 22 mai | B20: à | C20: =A7 -> DE
G21: SI forfait éq recevante
A22: Equipes | B22: score | C22: Equipes | D22: score
A23: =$A$6 -> DB | C23: =$A$8 -> DF | D23: =IF(G23=19,19,IF(ISBLANK(B23),"",IF(B23=19,0,36-B23))) ->  | E23: =IF(G23=19,0,IF(ISBLANK(B23),"",IF(B23<18,1,IF(B23=18,2,IF(B23>18,3))))) ->  | F23: =IF(G23=19,3,IF(ISBLANK(B23),"",IF(B23=19,0,IF(D23<18,1,IF(D23=18,2,IF(D23>=20,3)))))) ->  | I23: =IF(ISBLANK(B23),0,B23) -> 0 | J23: =IF(ISBLANK(B23),0,D23) -> 0 | K23: =A23&C23 -> DBDF
A24: =$A$7 -> DE | C24: =$A$10 -> DH | D24: =IF(G24=19,19,IF(ISBLANK(B24),"",IF(B24=19,0,36-B24))) ->  | E24: =IF(G24=19,0,IF(ISBLANK(B24),"",IF(B24<18,1,IF(B24=18,2,IF(B24>18,3))))) ->  | F24: =IF(G24=19,3,IF(ISBLANK(B24),"",IF(B24=19,0,IF(D24<18,1,IF(D24=18,2,IF(D24>=20,3)))))) ->  | I24: =IF(ISBLANK(B24),0,B24) -> 0 | J24: =IF(ISBLANK(B24),0,D24) -> 0 | K24: =A24&C24 -> DEDH
A25: =$A$9 -> DG | C25: =$A$11 -> DI | D25: =IF(G25=19,19,IF(ISBLANK(B25),"",IF(B25=19,0,36-B25))) ->  | E25: =IF(G25=19,0,IF(ISBLANK(B25),"",IF(B25<18,1,IF(B25=18,2,IF(B25>18,3))))) ->  | F25: =IF(G25=19,3,IF(ISBLANK(B25),"",IF(B25=19,0,IF(D25<18,1,IF(D25=18,2,IF(D25>=20,3)))))) ->  | I25: =IF(ISBLANK(B25),0,B25) -> 0 | J25: =IF(ISBLANK(B25),0,D25) -> 0 | K25: =A25&C25 -> DGDI
A27: 3 éme MATCH le 29 mai | B27: à | C27: =A8 -> DF
G28: SI forfait éq recevante
A29: Equipes | B29: score | C29: Equipes | D29: score
A30: =$A$6 -> DB | C30: =$A$11 -> DI | D30: =IF(G30=19,19,IF(ISBLANK(B30),"",IF(B30=19,0,36-B30))) ->  | E30: =IF(G30=19,0,IF(ISBLANK(B30),"",IF(B30<18,1,IF(B30=18,2,IF(B30>18,3))))) ->  | F30: =IF(G30=19,3,IF(ISBLANK(B30),"",IF(B30=19,0,IF(D30<18,1,IF(D30=18,2,IF(D30>=20,3)))))) ->  | I30: =IF(ISBLANK(B30),0,B30) -> 0 | J30: =IF(ISBLANK(B30),0,D30) -> 0 | K30: =A30&C30 -> DBDI
A31: =$A$10 -> DH | C31: =$A$9 -> DG | D31: =IF(G31=19,19,IF(ISBLANK(B31),"",IF(B31=19,0,36-B31))) ->  | E31: =IF(G31=19,0,IF(ISBLANK(B31),"",IF(B31<18,1,IF(B31=18,2,IF(B31>18,3))))) ->  | F31: =IF(G31=19,3,IF(ISBLANK(B31),"",IF(B31=19,0,IF(D31<18,1,IF(D31=18,2,IF(D31>=20,3)))))) ->  | I31: =IF(ISBLANK(B31),0,B31) -> 0 | J31: =IF(ISBLANK(B31),0,D31) -> 0 | K31: =A31&C31 -> DHDG
A32: =$A$8 -> DF | C32: =$A$7 -> DE | D32: =IF(G32=19,19,IF(ISBLANK(B32),"",IF(B32=19,0,36-B32))) ->  | E32: =IF(G32=19,0,IF(ISBLANK(B32),"",IF(B32<18,1,IF(B32=18,2,IF(B32>18,3))))) ->  | F32: =IF(G32=19,3,IF(ISBLANK(B32),"",IF(B32=19,0,IF(D32<18,1,IF(D32=18,2,IF(D32>=20,3)))))) ->  | I32: =IF(ISBLANK(B32),0,B32) -> 0 | J32: =IF(ISBLANK(B32),0,D32) -> 0 | K32: =A32&C32 -> DFDE
A34: 4 éme MATCH le 5 juin | B34: à | C34: =A9 -> DG
G35: SI forfait éq recevante
A36: Equipes | B36: score | C36: Equipes | D36: score
A37: =A6 -> DB | C37: =$A$9 -> DG | D37: =IF(G37=19,19,IF(ISBLANK(B37),"",IF(B37=19,0,36-B37))) ->  | E37: =IF(G37=19,0,IF(ISBLANK(B37),"",IF(B37<18,1,IF(B37=18,2,IF(B37>18,3))))) ->  | F37: =IF(G37=19,3,IF(ISBLANK(B37),"",IF(B37=19,0,IF(D37<18,1,IF(D37=18,2,IF(D37>=20,3)))))) ->  | I37: =IF(ISBLANK(B37),0,B37) -> 0 | J37: =IF(ISBLANK(B37),0,D37) -> 0 | K37: =A37&C37 -> DBDG
A38: =$A$7 -> DE | C38: =$A$11 -> DI | D38: =IF(G38=19,19,IF(ISBLANK(B38),"",IF(B38=19,0,36-B38))) ->  | E38: =IF(G38=19,0,IF(ISBLANK(B38),"",IF(B38<18,1,IF(B38=18,2,IF(B38>18,3))))) ->  | F38: =IF(G38=19,3,IF(ISBLANK(B38),"",IF(B38=19,0,IF(D38<18,1,IF(D38=18,2,IF(D38>=20,3)))))) ->  | I38: =IF(ISBLANK(B38),0,B38) -> 0 | J38: =IF(ISBLANK(B38),0,D38) -> 0 | K38: =A38&C38 -> DEDI
A39: =A8 -> DF | C39: =$A$10 -> DH | D39: =IF(G39=19,19,IF(ISBLANK(B39),"",IF(B39=19,0,36-B39))) ->  | E39: =IF(G39=19,0,IF(ISBLANK(B39),"",IF(B39<18,1,IF(B39=18,2,IF(B39>18,3))))) ->  | F39: =IF(G39=19,3,IF(ISBLANK(B39),"",IF(B39=19,0,IF(D39<18,1,IF(D39=18,2,IF(D39>=20,3)))))) ->  | I39: =IF(ISBLANK(B39),0,B39) -> 0 | J39: =IF(ISBLANK(B39),0,D39) -> 0 | K39: =A39&C39 -> DFDH
A41: 5 éme MATCH le 12 juin | B41: à | C41: =A10 -> DH
G42: SI forfait éq recevante
A43: Equipes | B43: score | C43: Equipes | D43: score
A44: =A8 -> DF | C44: =$A$11 -> DI | D44: =IF(G44=19,19,IF(ISBLANK(B44),"",IF(B44=19,0,36-B44))) ->  | E44: =IF(G44=19,0,IF(ISBLANK(B44),"",IF(B44<18,1,IF(B44=18,2,IF(B44>18,3))))) ->  | F44: =IF(G44=19,3,IF(ISBLANK(B44),"",IF(B44=19,0,IF(D44<18,1,IF(D44=18,2,IF(D44>=20,3)))))) ->  | I44: =IF(ISBLANK(B44),0,B44) -> 0 | J44: =IF(ISBLANK(B44),0,D44) -> 0 | K44: =A44&C44 -> DFDI
A45: =$A$10 -> DH | C45: =A6 -> DB | D45: =IF(G45=19,19,IF(ISBLANK(B45),"",IF(B45=19,0,36-B45))) ->  | E45: =IF(G45=19,0,IF(ISBLANK(B45),"",IF(B45<18,1,IF(B45=18,2,IF(B45>18,3))))) ->  | F45: =IF(G45=19,3,IF(ISBLANK(B45),"",IF(B45=19,0,IF(D45<18,1,IF(D45=18,2,IF(D45>=20,3)))))) ->  | I45: =IF(ISBLANK(B45),0,B45) -> 0 | J45: =IF(ISBLANK(B45),0,D45) -> 0 | K45: =A45&C45 -> DHDB
A46: =A7 -> DE | C46: =$A$9 -> DG | D46: =IF(G46=19,19,IF(ISBLANK(B46),"",IF(B46=19,0,36-B46))) ->  | E46: =IF(G46=19,0,IF(ISBLANK(B46),"",IF(B46<18,1,IF(B46=18,2,IF(B46>18,3))))) ->  | F46: =IF(G46=19,3,IF(ISBLANK(B46),"",IF(B46=19,0,IF(D46<18,1,IF(D46=18,2,IF(D46>=20,3)))))) ->  | I46: =IF(ISBLANK(B46),0,B46) -> 0 | J46: =IF(ISBLANK(B46),0,D46) -> 0 | K46: =A46&C46 -> DEDG
A48: CLASSEMENT
A49: EQUIPES | C49: POINTS | D49: Pour | E49: Contre | F49: Diff | G49: CLASST
A50: DB | B50: 14A | C50: 0 | D50: 0 | E50: 0 | F50: 0 | G50: =B59 -> 1 | H50: =IF(AND(G50=1,COUNTIF(rang1,1)>1),COUNTIF(G$50:G50,1),IF(AND(G50=2,COUNTIF(rang1,2)>1),COUNTIF(G$50:G50,2)+3,"")) -> 1
A51: DE | B51: 14B | C51: 0 | D51: 0 | E51: 0 | F51: 0 | G51: 1 | H51: =IF(AND(G51=1,COUNTIF(rang1,1)>1),COUNTIF(G$50:G51,1),IF(AND(G51=2,COUNTIF(rang1,2)>1),COUNTIF(G$50:G51,2)+3,"")) -> 2
A52: DF | B52: 14C | C52: 0 | D52: 0 | E52: 0 | F52: 0 | G52: 1 | H52: =IF(AND(G52=1,COUNTIF(rang1,1)>1),COUNTIF(G$50:G52,1),IF(AND(G52=2,COUNTIF(rang1,2)>1),COUNTIF(G$50:G52,2)+3,"")) -> 3
A53: DG | B53: 14D | C53: 0 | D53: 0 | E53: 0 | F53: 0 | G53: 1 | H53: =IF(AND(G53=1,COUNTIF(rang1,1)>1),COUNTIF(G$50:G53,1),IF(AND(G53=2,COUNTIF(rang1,2)>1),COUNTIF(G$50:G53,2)+3,"")) -> 4
A54: DH | B54: 14E | C54: 0 | D54: 0 | E54: 0 | F54: 0 | G54: 1 | H54: =IF(AND(G54=1,COUNTIF(rang1,1)>1),COUNTIF(G$50:G54,1),IF(AND(G54=2,COUNTIF(rang1,2)>1),COUNTIF(G$50:G54,2)+3,"")) -> 5
A55: DI | B55: 14F | C55: 0 | D55: 0 | E55: 0 | F55: 0 | G55: 1 | H55: =IF(AND(G55=1,COUNTIF(rang1,1)>1),COUNTIF(G$50:G55,1),IF(AND(G55=2,COUNTIF(rang1,2)>1),COUNTIF(G$50:G55,2)+3,"")) -> 6
B57: CLASSEMENT FINAL et DEPARTAGE EX AEQUOS | M57: CLASSEMENT
B58: Rang | C58: Equipes | D58: Pts | E58: diff pts avec exaequo | F58: cumul | G58: departage goalaverage si même cumul | H58: RP | L58: RP | M58: Rang | N58: Equipe | O58: Pts
B59: =RANK(G59,$G$59:$G$64) -> 1 | C59: =INDEX($A$50:$A$55,MATCH(H59,$L$59:$L$64,0)) -> DB | D59: =VLOOKUP(C59,$A$50:$C$55,3,0) -> 0 | E59: =IF(D59=D60,INDEX($J$6:$O$11,MATCH(C59,$I$6:$I$11,0),MATCH(C60,$J$5:$O$5,0)),IF(D59=D58,INDEX($J$6:$O$11,MATCH(C59,$I$6:$I$11,0),MATCH(C58,$J$5:$O$5,0)),0)) -> 0 | F59: =D59+E59/100 -> 0 | G59: =IF(AND(F59<>F58,F59<>F60),F59,F59+VLOOKUP(C59,$A$50:$F$55,6,0)/100) -> 0 | H59: 1 | L59: =RANK(C50,$C$50:$C$55)+COUNTIF($C$50:C50,C50)-1 -> 1 | M59: =B59 -> 1 | N59: DB | O59: =VLOOKUP(N59,$C$59:$D$64,2,0) -> 0
B60: 1 | C60: DE | D60: 0 | E60: =IF(D60=D61,INDEX($J$6:$O$11,MATCH(C60,$I$6:$I$11,0),MATCH(C61,$J$5:$O$5,0)),IF(D60=D59,INDEX($J$6:$O$11,MATCH(C60,$I$6:$I$11,0),MATCH(C59,$J$5:$O$5,0)),0)) -> 0 | F60: 0 | G60: =IF(AND(F60<>F59,F60<>F61),F60,F60+VLOOKUP(C60,$A$50:$F$55,6,0)/100) -> 0 | H60: 2 | L60: =RANK(C51,$C$50:$C$55)+COUNTIF($C$50:C51,C51)-1 -> 2 | M60: 1 | N60: DE | O60: 0
B61: 1 | C61: DF | D61: 0 | E61: =IF(D61=D62,INDEX($J$6:$O$11,MATCH(C61,$I$6:$I$11,0),MATCH(C62,$J$5:$O$5,0)),IF(D61=D60,INDEX($J$6:$O$11,MATCH(C61,$I$6:$I$11,0),MATCH(C60,$J$5:$O$5,0)),0)) -> 0 | F61: 0 | G61: =IF(AND(F61<>F60,F61<>F62),F61,F61+VLOOKUP(C61,$A$50:$F$55,6,0)/100) -> 0 | H61: 3 | L61: =RANK(C52,$C$50:$C$55)+COUNTIF($C$50:C52,C52)-1 -> 3 | M61: 1 | N61: DF | O61: 0
B62: 1 | C62: DG | D62: 0 | E62: =IF(D62=D63,INDEX($J$6:$O$11,MATCH(C62,$I$6:$I$11,0),MATCH(C63,$J$5:$O$5,0)),IF(D62=D61,INDEX($J$6:$O$11,MATCH(C62,$I$6:$I$11,0),MATCH(C61,$J$5:$O$5,0)),0)) -> 0 | F62: 0 | G62: =IF(AND(F62<>F61,F62<>F63),F62,F62+VLOOKUP(C62,$A$50:$F$55,6,0)/100) -> 0 | H62: 4 | L62: =RANK(C53,$C$50:$C$55)+COUNTIF($C$50:C53,C53)-1 -> 4 | M62: 1 | N62: DG | O62: 0
B63: 1 | C63: DH | D63: 0 | E63: =IF(D63=D64,INDEX($J$6:$O$11,MATCH(C63,$I$6:$I$11,0),MATCH(C64,$J$5:$O$5,0)),IF(D63=D62,INDEX($J$6:$O$11,MATCH(C63,$I$6:$I$11,0),MATCH(C62,$J$5:$O$5,0)),0)) -> 0 | F63: 0 | G63: =IF(AND(F63<>F62,F63<>F64),F63,F63+VLOOKUP(C63,$A$50:$F$55,6,0)/100) -> 0 | H63: 5 | L63: =RANK(C54,$C$50:$C$55)+COUNTIF($C$50:C54,C54)-1 -> 5 | M63: 1 | N63: DH | O63: 0
B64: 1 | C64: DI | D64: 0 | E64: =IF(D64=D59,INDEX($J$6:$O$11,MATCH(C64,$I$6:$I$11,0),MATCH(C59,$J$5:$O$5,0)),IF(D64=D63,INDEX($J$6:$O$11,MATCH(C64,$I$6:$I$11,0),MATCH(C63,$J$5:$O$5,0)),0)) -> 0 | F64: 0 | G64: =IF(AND(F64<>F63,F64<>F59),F64,F64+VLOOKUP(C64,$A$50:$F$55,6,0)/100) -> 0 | H64: 6 | L64: =RANK(C55,$C$50:$C$55)+COUNTIF($C$50:C55,C55)-1 -> 6 | M64: 1 | N64: DI | O64: 0

Sheet P15
A2: CHAMPIONNAT DES CLUBS
A4: POULE 15 | I4: Récapitulatif différence match entre 2 équipes
A5: EQUIPES | C5: POINTS | D5: Pour | E5: Contre | F5: Diff | J5: =A6 -> DJ | K5: =A7 -> DK | L5: =A8 -> DL | M5: =A9 -> DM | N5: =A10 -> DN | O5: =A11 -> DO
A6: DJ | B6: 15A | C6: =SUM(E16,E23,E30,E37,F45) -> 0 | D6: =I16+I23+I30+I37+J45 -> 0 | E6: =J16+J23+J30+J37+I45 -> 0 | F6: =D6-E6 -> 0 | I6: =A6 -> DJ | K6: =IF(ISBLANK(B16),0,IFERROR(INDEX($B$15:$B$46,MATCH($I6&K$5,$K$15:$K$46,0))-INDEX($D$15:$D$46,MATCH($I6&K$5,$K$15:$K$46,0)),0-INDEX($J$6:$O$11,MATCH(K$5,$I$6:$I$11,0),MATCH($I6,$J$5:$O$5,0)))) -> 0 | L6: =IF(ISBLANK(B23),0,IFERROR(INDEX($B$15:$B$46,MATCH($I6&L$5,$K$15:$K$46,0))-INDEX($D$15:$D$46,MATCH($I6&L$5,$K$15:$K$46,0)),0-INDEX($J$6:$O$11,MATCH(L$5,$I$6:$I$11,0),MATCH($I6,$J$5:$O$5,0)))) -> 0 | M6: =IF(ISBLANK(B37),0,IFERROR(INDEX($B$15:$B$46,MATCH($I6&M$5,$K$15:$K$46,0))-INDEX($D$15:$D$46,MATCH($I6&M$5,$K$15:$K$46,0)),0-INDEX($J$6:$O$11,MATCH(M$5,$I$6:$I$11,0),MATCH($I6,$J$5:$O$5,0)))) -> 0 | N6: =IF(ISBLANK(B45),0,IFERROR(INDEX($B$15:$B$46,MATCH($I6&N$5,$K$15:$K$46,0))-INDEX($D$15:$D$46,MATCH($I6&N$5,$K$15:$K$46,0)),0-INDEX($J$6:$O$11,MATCH(N$5,$I$6:$I$11,0),MATCH($I6,$J$5:$O$5,0)))) -> 0 | O6: =IF(ISBLANK(B30),0,IFERROR(INDEX($B$15:$B$46,MATCH($I6&O$5,$K$15:$K$46,0))-INDEX($D$15:$D$46,MATCH($I6&O$5,$K$15:$K$46,0)),0-INDEX($J$6:$O$11,MATCH(O$5,$I$6:$I$11,0),MATCH($I6,$J$5:$O$5,0)))) -> 0
A7: DK | B7: 15B | C7: =SUM(F16,E24,F32,E38,E46) -> 0 | D7: =J16+I24+J32+I38+I46 -> 0 | E7: =I16+J24+I32+J38+J46 -> 0 | F7: 0 | I7: DK | J7: =IF(ISBLANK(B16),0,IFERROR(INDEX($B$15:$B$46,MATCH($I7&J$5,$K$15:$K$46,0))-INDEX($D$15:$D$46,MATCH($I7&J$5,$K$15:$K$46,0)),0-INDEX($J$6:$O$11,MATCH(J$5,$I$6:$I$11,0),MATCH($I7,$J$5:$O$5,0)))) -> 0 | L7: =IF(ISBLANK(B32),0,IFERROR(INDEX($B$15:$B$46,MATCH($I7&L$5,$K$15:$K$46,0))-INDEX($D$15:$D$46,MATCH($I7&L$5,$K$15:$K$46,0)),0-INDEX($J$6:$O$11,MATCH(L$5,$I$6:$I$11,0),MATCH($I7,$J$5:$O$5,0)))) -> 0 | M7: =IF(ISBLANK(B46),0,IFERROR(INDEX($B$15:$B$46,MATCH($I7&M$5,$K$15:$K$46,0))-INDEX($D$15:$D$46,MATCH($I7&M$5,$K$15:$K$46,0)),0-INDEX($J$6:$O$11,MATCH(M$5,$I$6:$I$11,0),MATCH($I7,$J$5:$O$5,0)))) -> 0 | N7: =IF(ISBLANK(B24),0,IFERROR(INDEX($B$15:$B$46,MATCH($I7&N$5,$K$15:$K$46,0))-INDEX($D$15:$D$46,MATCH($I7&N$5,$K$15:$K$46,0)),0-INDEX($J$6:$O$11,MATCH(N$5,$I$6:$I$11,0),MATCH($I7,$J$5:$O$5,0)))) -> 0 | O7: =IF(ISBLANK(B38),0,IFERROR(INDEX($B$15:$B$46,MATCH($I7&O$5,$K$15:$K$46,0))-INDEX($D$15:$D$46,MATCH($I7&O$5,$K$15:$K$46,0)),0-INDEX($J$6:$O$11,MATCH(O$5,$I$6:$I$11,0),MATCH($I7,$J$5:$O$5,0)))) -> 0
A8: DL | B8: 15C | C8: =SUM(E17,F23,E32,E39,E44) -> 0 | D8: =I17+J23+I32+I39+I44 -> 0 | E8: =J17+I23+J32+J39+J44 -> 0 | F8: 0 | I8: DL | J8: =IF(ISBLANK(B23),0,IFERROR(INDEX($B$15:$B$46,MATCH($I8&J$5,$K$15:$K$46,0))-INDEX($D$15:$D$46,MATCH($I8&J$5,$K$15:$K$46,0)),0-INDEX($J$6:$O$11,MATCH(J$5,$I$6:$I$11,0),MATCH($I8,$J$5:$O$5,0)))) -> 0 | K8: =IF(ISBLANK(B32),0,IFERROR(INDEX($B$15:$B$46,MATCH($I8&K$5,$K$15:$K$46,0))-INDEX($D$15:$D$46,MATCH($I8&K$5,$K$15:$K$46,0)),0-INDEX($J$6:$O$11,MATCH(K$5,$I$6:$I$11,0),MATCH($I8,$J$5:$O$5,0)))) -> 0 | M8: =IF(ISBLANK(B17),0,IFERROR(INDEX($B$15:$B$46,MATCH($I8&M$5,$K$15:$K$46,0))-INDEX($D$15:$D$46,MATCH($I8&M$5,$K$15:$K$46,0)),0-INDEX($J$6:$O$11,MATCH(M$5,$I$6:$I$11,0),MATCH($I8,$J$5:$O$5,0)))) -> 0 | N8: =IF(ISBLANK(B39),0,IFERROR(INDEX($B$15:$B$46,MATCH($I8&N$5,$K$15:$K$46,0))-INDEX($D$15:$D$46,MATCH($I8&N$5,$K$15:$K$46,0)),0-INDEX($J$6:$O$11,MATCH(N$5,$I$6:$I$11,0),MATCH($I8,$J$5:$O$5,0)))) -> 0 | O8: =IF(ISBLANK(B44),0,IFERROR(INDEX($B$15:$B$46,MATCH($I8&O$5,$K$15:$K$46,0))-INDEX($D$15:$D$46,MATCH($I8&O$5,$K$15:$K$46,0)),0-INDEX($J$6:$O$11,MATCH(O$5,$I$6:$I$11,0),MATCH($I8,$J$5:$O$5,0)))) -> 0
A9: DM | B9: 15D | C9: =SUM(F17,E25,F31,F37,F46) -> 0 | D9: =J17+I25+J31+J37+J46 -> 0 | E9: =I17+J25+I31+I37+I46 -> 0 | F9: 0 | I9: DM | J9: =IF(ISBLANK(B37),0,IFERROR(INDEX($B$15:$B$46,MATCH($I9&J$5,$K$15:$K$46,0))-INDEX($D$15:$D$46,MATCH($I9&J$5,$K$15:$K$46,0)),0-INDEX($J$6:$O$11,MATCH(J$5,$I$6:$I$11,0),MATCH($I9,$J$5:$O$5,0)))) -> 0 | K9: =IF(ISBLANK(B46),0,IFERROR(INDEX($B$15:$B$46,MATCH($I9&K$5,$K$15:$K$46,0))-INDEX($D$15:$D$46,MATCH($I9&K$5,$K$15:$K$46,0)),0-INDEX($J$6:$O$11,MATCH(K$5,$I$6:$I$11,0),MATCH($I9,$J$5:$O$5,0)))) -> 0 | L9: =IF(ISBLANK(B17),0,IFERROR(INDEX($B$15:$B$46,MATCH($I9&L$5,$K$15:$K$46,0))-INDEX($D$15:$D$46,MATCH($I9&L$5,$K$15:$K$46,0)),0-INDEX($J$6:$O$11,MATCH(L$5,$I$6:$I$11,0),MATCH($I9,$J$5:$O$5,0)))) -> 0 | N9: =IF(ISBLANK(B31),0,IFERROR(INDEX($B$15:$B$46,MATCH($I9&N$5,$K$15:$K$46,0))-INDEX($D$15:$D$46,MATCH($I9&N$5,$K$15:$K$46,0)),0-INDEX($J$6:$O$11,MATCH(N$5,$I$6:$I$11,0),MATCH($I9,$J$5:$O$5,0)))) -> 0 | O9: =IF(ISBLANK(B25),0,IFERROR(INDEX($B$15:$B$46,MATCH($I9&O$5,$K$15:$K$46,0))-INDEX($D$15:$D$46,MATCH($I9&O$5,$K$15:$K$46,0)),0-INDEX($J$6:$O$11,MATCH(O$5,$I$6:$I$11,0),MATCH($I9,$J$5:$O$5,0)))) -> 0
A10: DN | B10: 15E | C10: =SUM(E18,F24,E31,F39,E45) -> 0 | D10: =I18+J24+I31+J39+I45 -> 0 | E10: =J18+I24+J31+I39+J45 -> 0 | F10: 0 | I10: DN | J10: =IF(ISBLANK(B45),0,IFERROR(INDEX($B$15:$B$46,MATCH($I10&J$5,$K$15:$K$46,0))-INDEX($D$15:$D$46,MATCH($I10&J$5,$K$15:$K$46,0)),0-INDEX($J$6:$O$11,MATCH(J$5,$I$6:$I$11,0),MATCH($I10,$J$5:$O$5,0)))) -> 0 | K10: =IF(ISBLANK(B24),0,IFERROR(INDEX($B$15:$B$46,MATCH($I10&K$5,$K$15:$K$46,0))-INDEX($D$15:$D$46,MATCH($I10&K$5,$K$15:$K$46,0)),0-INDEX($J$6:$O$11,MATCH(K$5,$I$6:$I$11,0),MATCH($I10,$J$5:$O$5,0)))) -> 0 | L10: =IF(ISBLANK(B39),0,IFERROR(INDEX($B$15:$B$46,MATCH($I10&L$5,$K$15:$K$46,0))-INDEX($D$15:$D$46,MATCH($I10&L$5,$K$15:$K$46,0)),0-INDEX($J$6:$O$11,MATCH(L$5,$I$6:$I$11,0),MATCH($I10,$J$5:$O$5,0)))) -> 0 | M10: =IF(ISBLANK(B31),0,IFERROR(INDEX($B$15:$B$46,MATCH($I10&M$5,$K$15:$K$46,0))-INDEX($D$15:$D$46,MATCH($I10&M$5,$K$15:$K$46,0)),0-INDEX($J$6:$O$11,MATCH(M$5,$I$6:$I$11,0),MATCH($I10,$J$5:$O$5,0)))) -> 0 | O10: =IF(ISBLANK(B18),0,IFERROR(INDEX($B$15:$B$46,MATCH($I10&O$5,$K$15:$K$46,0))-INDEX($D$15:$D$46,MATCH($I10&O$5,$K$15:$K$46,0)),0-INDEX($J$6:$O$11,MATCH(O$5,$I$6:$I$11,0),MATCH($I10,$J$5:$O$5,0)))) -> 0
A11: DO | B11: 15F | C11: =SUM(F18,F25,F30,F38,F44) -> 0 | D11: =J18+J25+J30+J38+J44 -> 0 | E11: =I18+I25+I30+I38+I44 -> 0 | F11: 0 | I11: DO | J11: =IF(ISBLANK(B30),0,IFERROR(INDEX($B$15:$B$46,MATCH($I11&J$5,$K$15:$K$46,0))-INDEX($D$15:$D$46,MATCH($I11&J$5,$K$15:$K$46,0)),0-INDEX($J$6:$O$11,MATCH(J$5,$I$6:$I$11,0),MATCH($I11,$J$5:$O$5,0)))) -> 0 | K11: =IF(ISBLANK(B38),0,IFERROR(INDEX($B$15:$B$46,MATCH($I11&K$5,$K$15:$K$46,0))-INDEX($D$15:$D$46,MATCH($I11&K$5,$K$15:$K$46,0)),0-INDEX($J$6:$O$11,MATCH(K$5,$I$6:$I$11,0),MATCH($I11,$J$5:$O$5,0)))) -> 0 | L11: =IF(ISBLANK(B44),0,IFERROR(INDEX($B$15:$B$46,MATCH($I11&L$5,$K$15:$K$46,0))-INDEX($D$15:$D$46,MATCH($I11&L$5,$K$15:$K$46,0)),0-INDEX($J$6:$O$11,MATCH(L$5,$I$6:$I$11,0),MATCH($I11,$J$5:$O$5,0)))) -> 0 | M11: =IF(ISBLANK(B25),0,IFERROR(INDEX($B$15:$B$46,MATCH($I11&M$5,$K$15:$K$46,0))-INDEX($D$15:$D$46,MATCH($I11&M$5,$K$15:$K$46,0)),0-INDEX($J$6:$O$11,MATCH(M$5,$I$6:$I$11,0),MATCH($I11,$J$5:$O$5,0)))) -> 0 | N11: =IF(ISBLANK(B18),0,IFERROR(INDEX($B$15:$B$46,MATCH($I11&N$5,$K$15:$K$46,0))-INDEX($D$15:$D$46,MATCH($I11&N$5,$K$15:$K$46,0)),0-INDEX($J$6:$O$11,MATCH(N$5,$I$6:$I$11,0),MATCH($I11,$J$5:$O$5,0)))) -> 0
I12: Les concaténations en rouge permettent de remplir par formules le récapitulatif au dessus
A13: 1er MATCH le 15 mai | B13: à | C13: =A6 -> DJ | I13: Ce récap servira à départager les ex aequos
G14: SI forfait éq recevante
A15: Equipes | B15: score | C15: Equipes | D15: score
A16: =$A$6 -> DJ | C16: =$A$7 -> DK | D16: =IF(G16=19,19,IF(ISBLANK(B16),"",IF(B16=19,0,36-B16))) ->  | E16: =IF(G16=19,0,IF(ISBLANK(B16),"",IF(B16<18,1,IF(B16=18,2,IF(B16>18,3))))) ->  | F16: =IF(G16=19,3,IF(ISBLANK(B16),"",IF(B16=19,0,IF(D16<18,1,IF(D16=18,2,IF(D16>=20,3)))))) ->  | I16: =IF(ISBLANK(B16),0,B16) -> 0 | J16: =IF(ISBLANK(B16),0,D16) -> 0 | K16: =A16&C16 -> DJDK
A17: =$A$8 -> DL | C17: =$A$9 -> DM | D17: =IF(G17=19,19,IF(ISBLANK(B17),"",IF(B17=19,0,36-B17))) ->  | E17: =IF(G17=19,0,IF(ISBLANK(B17),"",IF(B17<18,1,IF(B17=18,2,IF(B17>18,3))))) ->  | F17: =IF(G17=19,3,IF(ISBLANK(B17),"",IF(B17=19,0,IF(D17<18,1,IF(D17=18,2,IF(D17>=20,3)))))) ->  | I17: =IF(ISBLANK(B17),0,B17) -> 0 | J17: =IF(ISBLANK(B17),0,D17) -> 0 | K17: =A17&C17 -> DLDM
A18: =$A$10 -> DN | C18: =$A$11 -> DO | D18: =IF(G18=19,19,IF(ISBLANK(B18),"",IF(B18=19,0,36-B18))) ->  | E18: =IF(G18=19,0,IF(ISBLANK(B18),"",IF(B18<18,1,IF(B18=18,2,IF(B18>18,3))))) ->  | F18: =IF(G18=19,3,IF(ISBLANK(B18),"",IF(B18=19,0,IF(D18<18,1,IF(D18=18,2,IF(D18>=20,3)))))) ->  | I18: =IF(ISBLANK(B18),0,B18) -> 0 | J18: =IF(ISBLANK(B18),0,D18) -> 0 | K18: =A18&C18 -> DNDO
A20: 2 éme MATCH le 22 mai | B20: à | C20: =A7 -> DK
G21: SI forfait éq recevante
A22: Equipes | B22: score | C22: Equipes | D22: score
A23: =$A$6 -> DJ | C23: =$A$8 -> DL | D23: =IF(G23=19,19,IF(ISBLANK(B23),"",IF(B23=19,0,36-B23))) ->  | E23: =IF(G23=19,0,IF(ISBLANK(B23),"",IF(B23<18,1,IF(B23=18,2,IF(B23>18,3))))) ->  | F23: =IF(G23=19,3,IF(ISBLANK(B23),"",IF(B23=19,0,IF(D23<18,1,IF(D23=18,2,IF(D23>=20,3)))))) ->  | I23: =IF(ISBLANK(B23),0,B23) -> 0 | J23: =IF(ISBLANK(B23),0,D23) -> 0 | K23: =A23&C23 -> DJDL
A24: =$A$7 -> DK | C24: =$A$10 -> DN | D24: =IF(G24=19,19,IF(ISBLANK(B24),"",IF(B24=19,0,36-B24))) ->  | E24: =IF(G24=19,0,IF(ISBLANK(B24),"",IF(B24<18,1,IF(B24=18,2,IF(B24>18,3))))) ->  | F24: =IF(G24=19,3,IF(ISBLANK(B24),"",IF(B24=19,0,IF(D24<18,1,IF(D24=18,2,IF(D24>=20,3)))))) ->  | I24: =IF(ISBLANK(B24),0,B24) -> 0 | J24: =IF(ISBLANK(B24),0,D24) -> 0 | K24: =A24&C24 -> DKDN
A25: =$A$9 -> DM | C25: =$A$11 -> DO | D25: =IF(G25=19,19,IF(ISBLANK(B25),"",IF(B25=19,0,36-B25))) ->  | E25: =IF(G25=19,0,IF(ISBLANK(B25),"",IF(B25<18,1,IF(B25=18,2,IF(B25>18,3))))) ->  | F25: =IF(G25=19,3,IF(ISBLANK(B25),"",IF(B25=19,0,IF(D25<18,1,IF(D25=18,2,IF(D25>=20,3)))))) ->  | I25: =IF(ISBLANK(B25),0,B25) -> 0 | J25: =IF(ISBLANK(B25),0,D25) -> 0 | K25: =A25&C25 -> DMDO
A27: 3 éme MATCH le 29 mai | B27: à | C27: =A8 -> DL
G28: SI forfait éq recevante
A29: Equipes | B29: score | C29: Equipes | D29: score
A30: =$A$6 -> DJ | C30: =$A$11 -> DO | D30: =IF(G30=19,19,IF(ISBLANK(B30),"",IF(B30=19,0,36-B30))) ->  | E30: =IF(G30=19,0,IF(ISBLANK(B30),"",IF(B30<18,1,IF(B30=18,2,IF(B30>18,3))))) ->  | F30: =IF(G30=19,3,IF(ISBLANK(B30),"",IF(B30=19,0,IF(D30<18,1,IF(D30=18,2,IF(D30>=20,3)))))) ->  | I30: =IF(ISBLANK(B30),0,B30) -> 0 | J30: =IF(ISBLANK(B30),0,D30) -> 0 | K30: =A30&C30 -> DJDO
A31: =$A$10 -> DN | C31: =$A$9 -> DM | D31: =IF(G31=19,19,IF(ISBLANK(B31),"",IF(B31=19,0,36-B31))) ->  | E31: =IF(G31=19,0,IF(ISBLANK(B31),"",IF(B31<18,1,IF(B31=18,2,IF(B31>18,3))))) ->  | F31: =IF(G31=19,3,IF(ISBLANK(B31),"",IF(B31=19,0,IF(D31<18,1,IF(D31=18,2,IF(D31>=20,3)))))) ->  | I31: =IF(ISBLANK(B31),0,B31) -> 0 | J31: =IF(ISBLANK(B31),0,D31) -> 0 | K31: =A31&C31 -> DNDM
A32: =$A$8 -> DL | C32: =$A$7 -> DK | D32: =IF(G32=19,19,IF(ISBLANK(B32),"",IF(B32=19,0,36-B32))) ->  | E32: =IF(G32=19,0,IF(ISBLANK(B32),"",IF(B32<18,1,IF(B32=18,2,IF(B32>18,3))))) ->  | F32: =IF(G32=19,3,IF(ISBLANK(B32),"",IF(B32=19,0,IF(D32<18,1,IF(D32=18,2,IF(D32>=20,3)))))) ->  | I32: =IF(ISBLANK(B32),0,B32) -> 0 | J32: =IF(ISBLANK(B32),0,D32) -> 0 | K32: =A32&C32 -> DLDK
A34: 4 éme MATCH le 5 juin | B34: à | C34: =A9 -> DM
G35: SI forfait éq recevante
A36: Equipes | B36: score | C36: Equipes | D36: score
A37: =A6 -> DJ | C37: =$A$9 -> DM | D37: =IF(G37=19,19,IF(ISBLANK(B37),"",IF(B37=19,0,36-B37))) ->  | E37: =IF(G37=19,0,IF(ISBLANK(B37),"",IF(B37<18,1,IF(B37=18,2,IF(B37>18,3))))) ->  | F37: =IF(G37=19,3,IF(ISBLANK(B37),"",IF(B37=19,0,IF(D37<18,1,IF(D37=18,2,IF(D37>=20,3)))))) ->  | I37: =IF(ISBLANK(B37),0,B37) -> 0 | J37: =IF(ISBLANK(B37),0,D37) -> 0 | K37: =A37&C37 -> DJDM
A38: =$A$7 -> DK | C38: =$A$11 -> DO | D38: =IF(G38=19,19,IF(ISBLANK(B38),"",IF(B38=19,0,36-B38))) ->  | E38: =IF(G38=19,0,IF(ISBLANK(B38),"",IF(B38<18,1,IF(B38=18,2,IF(B38>18,3))))) ->  | F38: =IF(G38=19,3,IF(ISBLANK(B38),"",IF(B38=19,0,IF(D38<18,1,IF(D38=18,2,IF(D38>=20,3)))))) ->  | I38: =IF(ISBLANK(B38),0,B38) -> 0 | J38: =IF(ISBLANK(B38),0,D38) -> 0 | K38: =A38&C38 -> DKDO
A39: =A8 -> DL | C39: =$A$10 -> DN | D39: =IF(G39=19,19,IF(ISBLANK(B39),"",IF(B39=19,0,36-B39))) ->  | E39: =IF(G39=19,0,IF(ISBLANK(B39),"",IF(B39<18,1,IF(B39=18,2,IF(B39>18,3))))) ->  | F39: =IF(G39=19,3,IF(ISBLANK(B39),"",IF(B39=19,0,IF(D39<18,1,IF(D39=18,2,IF(D39>=20,3)))))) ->  | I39: =IF(ISBLANK(B39),0,B39) -> 0 | J39: =IF(ISBLANK(B39),0,D39) -> 0 | K39: =A39&C39 -> DLDN
A41: 5 éme MATCH le 12 juin | B41: à | C41: =A10 -> DN
G42: SI forfait éq recevante
A43: Equipes | B43: score | C43: Equipes | D43: score
A44: =A8 -> DL | C44: =$A$11 -> DO | D44: =IF(G44=19,19,IF(ISBLANK(B44),"",IF(B44=19,0,36-B44))) ->  | E44: =IF(G44=19,0,IF(ISBLANK(B44),"",IF(B44<18,1,IF(B44=18,2,IF(B44>18,3))))) ->  | F44: =IF(G44=19,3,IF(ISBLANK(B44),"",IF(B44=19,0,IF(D44<18,1,IF(D44=18,2,IF(D44>=20,3)))))) ->  | I44: =IF(ISBLANK(B44),0,B44) -> 0 | J44: =IF(ISBLANK(B44),0,D44) -> 0 | K44: =A44&C44 -> DLDO
A45: =$A$10 -> DN | C45: =A6 -> DJ | D45: =IF(G45=19,19,IF(ISBLANK(B45),"",IF(B45=19,0,36-B45))) ->  | E45: =IF(G45=19,0,IF(ISBLANK(B45),"",IF(B45<18,1,IF(B45=18,2,IF(B45>18,3))))) ->  | F45: =IF(G45=19,3,IF(ISBLANK(B45),"",IF(B45=19,0,IF(D45<18,1,IF(D45=18,2,IF(D45>=20,3)))))) ->  | I45: =IF(ISBLANK(B45),0,B45) -> 0 | J45: =IF(ISBLANK(B45),0,D45) -> 0 | K45: =A45&C45 -> DNDJ
A46: =A7 -> DK | C46: =$A$9 -> DM | D46: =IF(G46=19,19,IF(ISBLANK(B46),"",IF(B46=19,0,36-B46))) ->  | E46: =IF(G46=19,0,IF(ISBLANK(B46),"",IF(B46<18,1,IF(B46=18,2,IF(B46>18,3))))) ->  | F46: =IF(G46=19,3,IF(ISBLANK(B46),"",IF(B46=19,0,IF(D46<18,1,IF(D46=18,2,IF(D46>=20,3)))))) ->  | I46: =IF(ISBLANK(B46),0,B46) -> 0 | J46: =IF(ISBLANK(B46),0,D46) -> 0 | K46: =A46&C46 -> DKDM
A48: CLASSEMENT
A49: EQUIPES | C49: POINTS | D49: Pour | E49: Contre | F49: Diff | G49: CLASST
A50: DJ | B50: 15A | C50: 0 | D50: 0 | E50: 0 | F50: 0 | G50: =B59 -> 1 | H50: =IF(AND(G50=1,COUNTIF(rang1,1)>1),COUNTIF(G$50:G50,1),IF(AND(G50=2,COUNTIF(rang1,2)>1),COUNTIF(G$50:G50,2)+3,"")) -> 1
A51: DK | B51: 15B | C51: 0 | D51: 0 | E51: 0 | F51: 0 | G51: 1 | H51: =IF(AND(G51=1,COUNTIF(rang1,1)>1),COUNTIF(G$50:G51,1),IF(AND(G51=2,COUNTIF(rang1,2)>1),COUNTIF(G$50:G51,2)+3,"")) -> 2
A52: DL | B52: 15C | C52: 0 | D52: 0 | E52: 0 | F52: 0 | G52: 1 | H52: =IF(AND(G52=1,COUNTIF(rang1,1)>1),COUNTIF(G$50:G52,1),IF(AND(G52=2,COUNTIF(rang1,2)>1),COUNTIF(G$50:G52,2)+3,"")) -> 3
A53: DM | B53: 15D | C53: 0 | D53: 0 | E53: 0 | F53: 0 | G53: 1 | H53: =IF(AND(G53=1,COUNTIF(rang1,1)>1),COUNTIF(G$50:G53,1),IF(AND(G53=2,COUNTIF(rang1,2)>1),COUNTIF(G$50:G53,2)+3,"")) -> 4
A54: DN | B54: 15E | C54: 0 | D54: 0 | E54: 0 | F54: 0 | G54: 1 | H54: =IF(AND(G54=1,COUNTIF(rang1,1)>1),COUNTIF(G$50:G54,1),IF(AND(G54=2,COUNTIF(rang1,2)>1),COUNTIF(G$50:G54,2)+3,"")) -> 5
A55: DO | B55: 15F | C55: 0 | D55: 0 | E55: 0 | F55: 0 | G55: 1 | H55: =IF(AND(G55=1,COUNTIF(rang1,1)>1),COUNTIF(G$50:G55,1),IF(AND(G55=2,COUNTIF(rang1,2)>1),COUNTIF(G$50:G55,2)+3,"")) -> 6
B57: CLASSEMENT FINAL et DEPARTAGE EX AEQUOS | M57: CLASSEMENT
B58: Rang | C58: Equipes | D58: Pts | E58: diff pts avec exaequo | F58: cumul | G58: departage goalaverage si même cumul | H58: RP | L58: RP | M58: Rang | N58: Equipe | O58: Pts
B59: =RANK(G59,$G$59:$G$64) -> 1 | C59: =INDEX($A$50:$A$55,MATCH(H59,$L$59:$L$64,0)) -> DJ | D59: =VLOOKUP(C59,$A$50:$C$55,3,0) -> 0 | E59: =IF(D59=D60,INDEX($J$6:$O$11,MATCH(C59,$I$6:$I$11,0),MATCH(C60,$J$5:$O$5,0)),IF(D59=D58,INDEX($J$6:$O$11,MATCH(C59,$I$6:$I$11,0),MATCH(C58,$J$5:$O$5,0)),0)) -> 0 | F59: =D59+E59/100 -> 0 | G59: =IF(AND(F59<>F58,F59<>F60),F59,F59+VLOOKUP(C59,$A$50:$F$55,6,0)/100) -> 0 | H59: 1 | L59: =RANK(C50,$C$50:$C$55)+COUNTIF($C$50:C50,C50)-1 -> 1 | M59: =B59 -> 1 | N59: DJ | O59: =VLOOKUP(N59,$C$59:$D$64,2,0) -> 0
B60: 1 | C60: DK | D60: 0 | E60: =IF(D60=D61,INDEX($J$6:$O$11,MATCH(C60,$I$6:$I$11,0),MATCH(C61,$J$5:$O$5,0)),IF(D60=D59,INDEX($J$6:$O$11,MATCH(C60,$I$6:$I$11,0),MATCH(C59,$J$5:$O$5,0)),0)) -> 0 | F60: 0 | G60: =IF(AND(F60<>F59,F60<>F61),F60,F60+VLOOKUP(C60,$A$50:$F$55,6,0)/100) -> 0 | H60: 2 | L60: =RANK(C51,$C$50:$C$55)+COUNTIF($C$50:C51,C51)-1 -> 2 | M60: 1 | N60: DK | O60: 0
B61: 1 | C61: DL | D61: 0 | E61: =IF(D61=D62,INDEX($J$6:$O$11,MATCH(C61,$I$6:$I$11,0),MATCH(C62,$J$5:$O$5,0)),IF(D61=D60,INDEX($J$6:$O$11,MATCH(C61,$I$6:$I$11,0),MATCH(C60,$J$5:$O$5,0)),0)) -> 0 | F61: 0 | G61: =IF(AND(F61<>F60,F61<>F62),F61,F61+VLOOKUP(C61,$A$50:$F$55,6,0)/100) -> 0 | H61: 3 | L61: =RANK(C52,$C$50:$C$55)+COUNTIF($C$50:C52,C52)-1 -> 3 | M61: 1 | N61: DL | O61: 0
B62: 1 | C62: DM | D62: 0 | E62: =IF(D62=D63,INDEX($J$6:$O$11,MATCH(C62,$I$6:$I$11,0),MATCH(C63,$J$5:$O$5,0)),IF(D62=D61,INDEX($J$6:$O$11,MATCH(C62,$I$6:$I$11,0),MATCH(C61,$J$5:$O$5,0)),0)) -> 0 | F62: 0 | G62: =IF(AND(F62<>F61,F62<>F63),F62,F62+VLOOKUP(C62,$A$50:$F$55,6,0)/100) -> 0 | H62: 4 | L62: =RANK(C53,$C$50:$C$55)+COUNTIF($C$50:C53,C53)-1 -> 4 | M62: 1 | N62: DM | O62: 0
B63: 1 | C63: DN | D63: 0 | E63: =IF(D63=D64,INDEX($J$6:$O$11,MATCH(C63,$I$6:$I$11,0),MATCH(C64,$J$5:$O$5,0)),IF(D63=D62,INDEX($J$6:$O$11,MATCH(C63,$I$6:$I$11,0),MATCH(C62,$J$5:$O$5,0)),0)) -> 0 | F63: 0 | G63: =IF(AND(F63<>F62,F63<>F64),F63,F63+VLOOKUP(C63,$A$50:$F$55,6,0)/100) -> 0 | H63: 5 | L63: =RANK(C54,$C$50:$C$55)+COUNTIF($C$50:C54,C54)-1 -> 5 | M63: 1 | N63: DN | O63: 0
B64: 1 | C64: DO | D64: 0 | E64: =IF(D64=D59,INDEX($J$6:$O$11,MATCH(C64,$I$6:$I$11,0),MATCH(C59,$J$5:$O$5,0)),IF(D64=D63,INDEX($J$6:$O$11,MATCH(C64,$I$6:$I$11,0),MATCH(C63,$J$5:$O$5,0)),0)) -> 0 | F64: 0 | G64: =IF(AND(F64<>F63,F64<>F59),F64,F64+VLOOKUP(C64,$A$50:$F$55,6,0)/100) -> 0 | H64: 6 | L64: =RANK(C55,$C$50:$C$55)+COUNTIF($C$50:C55,C55)-1 -> 6 | M64: 1 | N64: DO | O64: 0

Sheet Classt
B1: CLASSEMENT PAR POULES | L1: CLASSEMENT DES 1ers | T1: CLASSEMENT DES 2nds
B2: N°POULES | C2: EQUIPES | D2: N°Poules Equipes | E2: POINTS | F2: Pour | G2: Contre | H2: Diff | I2: RANG | J2: Pts+pour | L2: RANG | M2: EQUIPES | N2: N°Equipes | O2: POINTS | P2: Pour | Q2: Contre | R2: Diff | T2: RANG | U2: EQUIPES | V2: N°Equipes | W2: POINTS | X2: Pour | Y2: Contre | Z2: Diff
A3: PREMIERS | B3: P1 | C3: =INDEX(INDIRECT("'"&$B3&"'!$A$50:$A$55"),MATCH(1,INDIRECT("'"&$B3&"'!$G$50:$G$55"),0)) ->  | D3: =IFERROR(VLOOKUP($C3,INDIRECT("'"&$B3&"'!$A$50:$F$55"),2,0),"") ->  | E3: =IFERROR(VLOOKUP($C3,INDIRECT("'"&$B3&"'!$A$50:$F$55"),3,0),"") ->  | F3: =IFERROR(VLOOKUP($C3,INDIRECT("'"&$B3&"'!$A$50:$F$55"),4,0),"") ->  | G3: =IFERROR(VLOOKUP($C3,INDIRECT("'"&$B3&"'!$A$50:$F$55"),5,0),"") ->  | H3: =IFERROR(VLOOKUP($C3,INDIRECT("'"&$B3&"'!$A$50:$F$55"),6,0),"") ->  | I3: =IFERROR(RANK(J3,$J$3:$J$32)+COUNTIF($J$3:J3,J3)-1,"") ->  | J3: =IFERROR(E3+H3/100+F3/10000,"") ->  | L3: 1 | M3: =IFERROR(INDEX($C$3:$C$32,MATCH(L3,$I$3:$I$32,0)),"") -> AI | N3: =IF(M3="","",VLOOKUP($M3,$C:$H,2,0)) -> 2B | O3: =IF(N3="","",VLOOKUP($M3,$C:$H,3,0)) -> 0 | P3: =IF(O3="","",VLOOKUP($M3,$C:$H,4,0)) -> 0 | Q3: =IF(P3="","",VLOOKUP($M3,$C:$H,5,0)) -> 0 | R3: =IF(Q3="","",VLOOKUP($M3,$C:$H,6,0)) -> 0 | T3: 1 | U3: =IFERROR(INDEX($C$33:$C$62,MATCH(T3,$I$33:$I$62,0)),"") -> AJ | V3: =IF(U3="","",VLOOKUP($U3,$C:$H,2,0)) -> 2C | W3: =IF(V3="","",VLOOKUP($U3,$C:$H,3,0)) -> 0 | X3: =IF(W3="","",VLOOKUP($U3,$C:$H,4,0)) -> 0 | Y3: =IF(X3="","",VLOOKUP($U3,$C:$H,5,0)) -> 0 | Z3: =IF(Y3="","",VLOOKUP($U3,$C:$H,6,0)) -> 0
B4: =B3 -> P1 | C4: =IFERROR(INDEX(INDIRECT("'"&$B4&"'!$A$50:$A$55"),MATCH(2,INDIRECT("'"&$B4&"'!$H$50:$H$55"),0)),"") ->  | I4: =IFERROR(RANK(J4,$J$3:$J$32)+COUNTIF($J$3:J4,J4)-1,"") ->  | J4: =IFERROR(E4+H4/100+F4/10000,"") ->  | L4: 2 | M4: AN | N4: 3A | O4: 0 | P4: 0 | Q4: 0 | R4: 0 | T4: 2 | U4: AR | V4: 3E | W4: 0 | X4: 0 | Y4: 0 | Z4: 0
B5: P2 | C5: =INDEX(INDIRECT("'"&$B5&"'!$A$50:$A$55"),MATCH(1,INDIRECT("'"&$B5&"'!$G$50:$G$55"),0)) -> AI | D5: 2B | E5: 0 | F5: 0 | G5: 0 | H5: 0 | I5: =IFERROR(RANK(J5,$J$3:$J$32)+COUNTIF($J$3:J5,J5)-1,"") -> 1 | J5: 0 | L5: 3 | M5: AO | N5: 3B | O5: 0 | P5: 0 | Q5: 0 | R5: 0 | T5: 3 | U5: AX | V5: 4E | W5: 0 | X5: 0 | Y5: 0 | Z5: 0
B6: =B5 -> P2 | C6: =IFERROR(INDEX(INDIRECT("'"&$B6&"'!$A$50:$A$55"),MATCH(2,INDIRECT("'"&$B6&"'!$H$50:$H$55"),0)),"") ->  | I6: =IFERROR(RANK(J6,$J$3:$J$32)+COUNTIF($J$3:J6,J6)-1,"") ->  | L6: 4 | M6: AT | N6: 4A | O6: 0 | P6: 0 | Q6: 0 | R6: 0 | T6: 4 | U6: BD | V6: 5E | W6: 0 | X6: 0 | Y6: 0 | Z6: 0
B7: P3 | C7: =INDEX(INDIRECT("'"&$B7&"'!$A$50:$A$55"),MATCH(1,INDIRECT("'"&$B7&"'!$G$50:$G$55"),0)) -> AN | D7: 3A | E7: 0 | F7: 0 | G7: 0 | H7: 0 | I7: =IFERROR(RANK(J7,$J$3:$J$32)+COUNTIF($J$3:J7,J7)-1,"") -> 2 | J7: 0 | L7: 5 | M7: AU | N7: 4B | O7: 0 | P7: 0 | Q7: 0 | R7: 0 | T7: 5 | U7: BJ | V7: 6E | W7: 0 | X7: 0 | Y7: 0 | Z7: 0
B8: =B7 -> P3 | C8: =IFERROR(INDEX(INDIRECT("'"&$B8&"'!$A$50:$A$55"),MATCH(2,INDIRECT("'"&$B8&"'!$H$50:$H$55"),0)),"") -> AO | D8: 3B | E8: 0 | F8: 0 | G8: 0 | H8: 0 | I8: =IFERROR(RANK(J8,$J$3:$J$32)+COUNTIF($J$3:J8,J8)-1,"") -> 3 | J8: 0 | L8: 6 | M8: AZ | N8: 5A | O8: 0 | P8: 0 | Q8: 0 | R8: 0 | T8: 6 | U8: BP | V8: 7E | W8: 0 | X8: 0 | Y8: 0 | Z8: 0
B9: P4 | C9: =INDEX(INDIRECT("'"&$B9&"'!$A$50:$A$55"),MATCH(1,INDIRECT("'"&$B9&"'!$G$50:$G$55"),0)) -> AT | D9: 4A | E9: 0 | F9: 0 | G9: 0 | H9: 0 | I9: =IFERROR(RANK(J9,$J$3:$J$32)+COUNTIF($J$3:J9,J9)-1,"") -> 4 | J9: 0 | L9: 7 | M9: BA | N9: 5B | O9: 0 | P9: 0 | Q9: 0 | R9: 0 | T9: 7 | U9: BV | V9: 8E | W9: 0 | X9: 0 | Y9: 0 | Z9: 0
B10: =B9 -> P4 | C10: =IFERROR(INDEX(INDIRECT("'"&$B10&"'!$A$50:$A$55"),MATCH(2,INDIRECT("'"&$B10&"'!$H$50:$H$55"),0)),"") -> AU | D10: 4B | E10: 0 | F10: 0 | G10: 0 | H10: 0 | I10: =IFERROR(RANK(J10,$J$3:$J$32)+COUNTIF($J$3:J10,J10)-1,"") -> 5 | J10: 0 | L10: 8 | M10: BF | N10: 6A | O10: 0 | P10: 0 | Q10: 0 | R10: 0 | T10: 8 | U10: CB | V10: 9E | W10: 0 | X10: 0 | Y10: 0 | Z10: 0
B11: P5 | C11: =INDEX(INDIRECT("'"&$B11&"'!$A$50:$A$55"),MATCH(1,INDIRECT("'"&$B11&"'!$G$50:$G$55"),0)) -> AZ | D11: 5A | E11: 0 | F11: 0 | G11: 0 | H11: 0 | I11: =IFERROR(RANK(J11,$J$3:$J$32)+COUNTIF($J$3:J11,J11)-1,"") -> 6 | J11: 0 | L11: 9 | M11: BG | N11: 6B | O11: 0 | P11: 0 | Q11: 0 | R11: 0 | T11: 9 | U11: CH | V11: 10E | W11: 0 | X11: 0 | Y11: 0 | Z11: 0
B12: =B11 -> P5 | C12: =IFERROR(INDEX(INDIRECT("'"&$B12&"'!$A$50:$A$55"),MATCH(2,INDIRECT("'"&$B12&"'!$H$50:$H$55"),0)),"") -> BA | D12: 5B | E12: 0 | F12: 0 | G12: 0 | H12: 0 | I12: =IFERROR(RANK(J12,$J$3:$J$32)+COUNTIF($J$3:J12,J12)-1,"") -> 7 | J12: 0 | L12: 10 | M12: BL | N12: 7A | O12: 0 | P12: 0 | Q12: 0 | R12: 0 | T12: 10 | U12: CN | V12: 11E | W12: 0 | X12: 0 | Y12: 0 | Z12: 0
B13: P6 | C13: =INDEX(INDIRECT("'"&$B13&"'!$A$50:$A$55"),MATCH(1,INDIRECT("'"&$B13&"'!$G$50:$G$55"),0)) -> BF | D13: 6A | E13: 0 | F13: 0 | G13: 0 | H13: 0 | I13: =IFERROR(RANK(J13,$J$3:$J$32)+COUNTIF($J$3:J13,J13)-1,"") -> 8 | J13: 0 | L13: 11 | M13: BM | N13: 7B | O13: 0 | P13: 0 | Q13: 0 | R13: 0 | T13: 11 | U13: CT | V13: 12E | W13: 0 | X13: 0 | Y13: 0 | Z13: 0
B14: =B13 -> P6 | C14: =IFERROR(INDEX(INDIRECT("'"&$B14&"'!$A$50:$A$55"),MATCH(2,INDIRECT("'"&$B14&"'!$H$50:$H$55"),0)),"") -> BG | D14: 6B | E14: 0 | F14: 0 | G14: 0 | H14: 0 | I14: =IFERROR(RANK(J14,$J$3:$J$32)+COUNTIF($J$3:J14,J14)-1,"") -> 9 | J14: 0 | L14: 12 | M14: BR | N14: 8A | O14: 0 | P14: 0 | Q14: 0 | R14: 0 | T14: 12 | U14: CZ | V14: 13E | W14: 0 | X14: 0 | Y14: 0 | Z14: 0
B15: P7 | C15: =INDEX(INDIRECT("'"&$B15&"'!$A$50:$A$55"),MATCH(1,INDIRECT("'"&$B15&"'!$G$50:$G$55"),0)) -> BL | D15: 7A | E15: 0 | F15: 0 | G15: 0 | H15: 0 | I15: =IFERROR(RANK(J15,$J$3:$J$32)+COUNTIF($J$3:J15,J15)-1,"") -> 10 | J15: 0 | L15: 13 | M15: BS | N15: 8B | O15: 0 | P15: 0 | Q15: 0 | R15: 0 | T15: 13 | U15: DH | V15: 14E | W15: 0 | X15: 0 | Y15: 0 | Z15: 0
B16: =B15 -> P7 | C16: =IFERROR(INDEX(INDIRECT("'"&$B16&"'!$A$50:$A$55"),MATCH(2,INDIRECT("'"&$B16&"'!$H$50:$H$55"),0)),"") -> BM | D16: 7B | E16: 0 | F16: 0 | G16: 0 | H16: 0 | I16: =IFERROR(RANK(J16,$J$3:$J$32)+COUNTIF($J$3:J16,J16)-1,"") -> 11 | J16: 0 | L16: 14 | M16: BX | N16: 9A | O16: 0 | P16: 0 | Q16: 0 | R16: 0 | T16: 14 | U16: DN | V16: 15E | W16: 0 | X16: 0 | Y16: 0 | Z16: 0
B17: P8 | C17: =INDEX(INDIRECT("'"&$B17&"'!$A$50:$A$55"),MATCH(1,INDIRECT("'"&$B17&"'!$G$50:$G$55"),0)) -> BR | D17: 8A | E17: 0 | F17: 0 | G17: 0 | H17: 0 | I17: =IFERROR(RANK(J17,$J$3:$J$32)+COUNTIF($J$3:J17,J17)-1,"") -> 12 | J17: 0 | L17: 15 | M17: BY | N17: 9B | O17: 0 | P17: 0 | Q17: 0 | R17: 0 | T17: 15
B18: =B17 -> P8 | C18: =IFERROR(INDEX(INDIRECT("'"&$B18&"'!$A$50:$A$55"),MATCH(2,INDIRECT("'"&$B18&"'!$H$50:$H$55"),0)),"") -> BS | D18: 8B | E18: 0 | F18: 0 | G18: 0 | H18: 0 | I18: =IFERROR(RANK(J18,$J$3:$J$32)+COUNTIF($J$3:J18,J18)-1,"") -> 13 | J18: 0 | L18: 16 | M18: CD | N18: 10A | O18: 0 | P18: 0 | Q18: 0 | R18: 0 | T18: 16
B19: P9 | C19: =INDEX(INDIRECT("'"&$B19&"'!$A$50:$A$55"),MATCH(1,INDIRECT("'"&$B19&"'!$G$50:$G$55"),0)) -> BX | D19: 9A | E19: 0 | F19: 0 | G19: 0 | H19: 0 | I19: =IFERROR(RANK(J19,$J$3:$J$32)+COUNTIF($J$3:J19,J19)-1,"") -> 14 | J19: 0 | L19: 17 | M19: CE | N19: 10B | O19: 0 | P19: 0 | Q19: 0 | R19: 0 | T19: 17
B20: =B19 -> P9 | C20: =IFERROR(INDEX(INDIRECT("'"&$B20&"'!$A$50:$A$55"),MATCH(2,INDIRECT("'"&$B20&"'!$H$50:$H$55"),0)),"") -> BY | D20: 9B | E20: 0 | F20: 0 | G20: 0 | H20: 0 | I20: =IFERROR(RANK(J20,$J$3:$J$32)+COUNTIF($J$3:J20,J20)-1,"") -> 15 | J20: 0 | L20: 18 | M20: CJ | N20: 11A | O20: 0 | P20: 0 | Q20: 0 | R20: 0 | T20: 18
B21: P10 | C21: =INDEX(INDIRECT("'"&$B21&"'!$A$50:$A$55"),MATCH(1,INDIRECT("'"&$B21&"'!$G$50:$G$55"),0)) -> CD | D21: 10A | E21: 0 | F21: 0 | G21: 0 | H21: 0 | I21: =IFERROR(RANK(J21,$J$3:$J$32)+COUNTIF($J$3:J21,J21)-1,"") -> 16 | J21: 0 | L21: 19 | M21: CK | N21: 11B | O21: 0 | P21: 0 | Q21: 0 | R21: 0 | T21: 19
B22: =B21 -> P10 | C22: =IFERROR(INDEX(INDIRECT("'"&$B22&"'!$A$50:$A$55"),MATCH(2,INDIRECT("'"&$B22&"'!$H$50:$H$55"),0)),"") -> CE | D22: 10B | E22: 0 | F22: 0 | G22: 0 | H22: 0 | I22: =IFERROR(RANK(J22,$J$3:$J$32)+COUNTIF($J$3:J22,J22)-1,"") -> 17 | J22: 0 | L22: 20 | M22: CP | N22: 12A | O22: 0 | P22: 0 | Q22: 0 | R22: 0 | T22: 20
B23: P11 | C23: =INDEX(INDIRECT("'"&$B23&"'!$A$50:$A$55"),MATCH(1,INDIRECT("'"&$B23&"'!$G$50:$G$55"),0)) -> CJ | D23: 11A | E23: 0 | F23: 0 | G23: 0 | H23: 0 | I23: =IFERROR(RANK(J23,$J$3:$J$32)+COUNTIF($J$3:J23,J23)-1,"") -> 18 | J23: 0
B24: =B23 -> P11 | C24: =IFERROR(INDEX(INDIRECT("'"&$B24&"'!$A$50:$A$55"),MATCH(2,INDIRECT("'"&$B24&"'!$H$50:$H$55"),0)),"") -> CK | D24: 11B | E24: 0 | F24: 0 | G24: 0 | H24: 0 | I24: =IFERROR(RANK(J24,$J$3:$J$32)+COUNTIF($J$3:J24,J24)-1,"") -> 19 | J24: 0
B25: P12 | C25: =INDEX(INDIRECT("'"&$B25&"'!$A$50:$A$55"),MATCH(1,INDIRECT("'"&$B25&"'!$G$50:$G$55"),0)) -> CP | D25: 12A | E25: 0 | F25: 0 | G25: 0 | H25: 0 | I25: =IFERROR(RANK(J25,$J$3:$J$32)+COUNTIF($J$3:J25,J25)-1,"") -> 20 | J25: 0
B26: =B25 -> P12 | C26: =IFERROR(INDEX(INDIRECT("'"&$B26&"'!$A$50:$A$55"),MATCH(2,INDIRECT("'"&$B26&"'!$H$50:$H$55"),0)),"") -> CQ | D26: 12B | E26: 0 | F26: 0 | G26: 0 | H26: 0 | I26: =IFERROR(RANK(J26,$J$3:$J$32)+COUNTIF($J$3:J26,J26)-1,"") -> 21 | J26: 0
B27: P13 | C27: =INDEX(INDIRECT("'"&$B27&"'!$A$50:$A$55"),MATCH(1,INDIRECT("'"&$B27&"'!$G$50:$G$55"),0)) -> CV | D27: 13A | E27: 0 | F27: 0 | G27: 0 | H27: 0 | I27: =IFERROR(RANK(J27,$J$3:$J$32)+COUNTIF($J$3:J27,J27)-1,"") -> 22 | J27: 0
B28: =B27 -> P13 | C28: =IFERROR(INDEX(INDIRECT("'"&$B28&"'!$A$50:$A$55"),MATCH(2,INDIRECT("'"&$B28&"'!$H$50:$H$55"),0)),"") -> CW | D28: 13B | E28: 0 | F28: 0 | G28: 0 | H28: 0 | I28: =IFERROR(RANK(J28,$J$3:$J$32)+COUNTIF($J$3:J28,J28)-1,"") -> 23 | J28: 0
B29: P14 | C29: =INDEX(INDIRECT("'"&$B29&"'!$A$50:$A$55"),MATCH(1,INDIRECT("'"&$B29&"'!$G$50:$G$55"),0)) -> DB | D29: 14A | E29: 0 | F29: 0 | G29: 0 | H29: 0 | I29: =IFERROR(RANK(J29,$J$3:$J$32)+COUNTIF($J$3:J29,J29)-1,"") -> 24 | J29: 0
B30: =B29 -> P14 | C30: =IFERROR(INDEX(INDIRECT("'"&$B30&"'!$A$50:$A$55"),MATCH(2,INDIRECT("'"&$B30&"'!$H$50:$H$55"),0)),"") -> DE | D30: 14B | E30: 0 | F30: 0 | G30: 0 | H30: 0 | I30: =IFERROR(RANK(J30,$J$3:$J$32)+COUNTIF($J$3:J30,J30)-1,"") -> 25 | J30: 0
B31: P15 | C31: =INDEX(INDIRECT("'"&$B31&"'!$A$50:$A$55"),MATCH(1,INDIRECT("'"&$B31&"'!$G$50:$G$55"),0)) -> DJ | D31: 15A | E31: 0 | F31: 0 | G31: 0 | H31: 0 | I31: =IFERROR(RANK(J31,$J$3:$J$32)+COUNTIF($J$3:J31,J31)-1,"") -> 26 | J31: 0
B32: =B31 -> P15 | C32: =IFERROR(INDEX(INDIRECT("'"&$B32&"'!$A$50:$A$55"),MATCH(2,INDIRECT("'"&$B32&"'!$H$50:$H$55"),0)),"") -> DK | D32: 15B | E32: 0 | F32: 0 | G32: 0 | H32: 0 | I32: =IFERROR(RANK(J32,$J$3:$J$32)+COUNTIF($J$3:J32,J32)-1,"") -> 27 | J32: 0
A33: SECONDS | B33: P1 | C33: =IFERROR(INDEX(INDIRECT("'"&$B33&"'!$A$50:$A$55"),MATCH(2,INDIRECT("'"&$B33&"'!$G$50:$G$55"),0)),"2 premiers") -> 2 premiers | I33: =IFERROR(RANK(J33,$J$33:$J$62)+COUNTIF($J$33:J33,J33)-1,"") -> 
B34: =B33 -> P1 | C34: =IFERROR(INDEX(INDIRECT("'"&$B34&"'!$A$50:$A$55"),MATCH(5,INDIRECT("'"&$B34&"'!$H$50:$H$55"),0)),"") ->  | I34: =IFERROR(RANK(J34,$J$33:$J$62)+COUNTIF($J$33:J34,J34)-1,"") -> 
B35: P2 | C35: =IFERROR(INDEX(INDIRECT("'"&$B35&"'!$A$50:$A$55"),MATCH(2,INDIRECT("'"&$B35&"'!$G$50:$G$55"),0)),"2 premiers") -> AJ | D35: =IFERROR(VLOOKUP($C35,INDIRECT("'"&$B35&"'!$A$50:$F$55"),2,0),"") -> 2C | E35: =IFERROR(VLOOKUP($C35,INDIRECT("'"&$B35&"'!$A$50:$F$55"),3,0),"") -> 0 | F35: =IFERROR(VLOOKUP($C35,INDIRECT("'"&$B35&"'!$A$50:$F$55"),4,0),"") -> 0 | G35: =IFERROR(VLOOKUP($C35,INDIRECT("'"&$B35&"'!$A$50:$F$55"),5,0),"") -> 0 | H35: =IFERROR(VLOOKUP($C35,INDIRECT("'"&$B35&"'!$A$50:$F$55"),6,0),"") -> 0 | I35: =IFERROR(RANK(J35,$J$33:$J$62)+COUNTIF($J$33:J35,J35)-1,"") -> 1 | J35: 0
B36: =B35 -> P2 | C36: =IFERROR(INDEX(INDIRECT("'"&$B36&"'!$A$50:$A$55"),MATCH(5,INDIRECT("'"&$B36&"'!$H$50:$H$55"),0)),"") ->  | I36: =IFERROR(RANK(J36,$J$33:$J$62)+COUNTIF($J$33:J36,J36)-1,"") -> 
B37: P3 | C37: =IFERROR(INDEX(INDIRECT("'"&$B37&"'!$A$50:$A$55"),MATCH(2,INDIRECT("'"&$B37&"'!$G$50:$G$55"),0)),"2 premiers") -> 2 premiers | I37: =IFERROR(RANK(J37,$J$33:$J$62)+COUNTIF($J$33:J37,J37)-1,"") -> 
B38: =B37 -> P3 | C38: =IFERROR(INDEX(INDIRECT("'"&$B38&"'!$A$50:$A$55"),MATCH(5,INDIRECT("'"&$B38&"'!$H$50:$H$55"),0)),"") -> AR | D38: 3E | E38: 0 | F38: 0 | G38: 0 | H38: 0 | I38: =IFERROR(RANK(J38,$J$33:$J$62)+COUNTIF($J$33:J38,J38)-1,"") -> 2 | J38: 0
B39: P4 | C39: =IFERROR(INDEX(INDIRECT("'"&$B39&"'!$A$50:$A$55"),MATCH(2,INDIRECT("'"&$B39&"'!$G$50:$G$55"),0)),"2 premiers") -> 2 premiers | I39: =IFERROR(RANK(J39,$J$33:$J$62)+COUNTIF($J$33:J39,J39)-1,"") -> 
B40: =B39 -> P4 | C40: =IFERROR(INDEX(INDIRECT("'"&$B40&"'!$A$50:$A$55"),MATCH(5,INDIRECT("'"&$B40&"'!$H$50:$H$55"),0)),"") -> AX | D40: 4E | E40: 0 | F40: 0 | G40: 0 | H40: 0 | I40: =IFERROR(RANK(J40,$J$33:$J$62)+COUNTIF($J$33:J40,J40)-1,"") -> 3 | J40: 0
B41: P5 | C41: =IFERROR(INDEX(INDIRECT("'"&$B41&"'!$A$50:$A$55"),MATCH(2,INDIRECT("'"&$B41&"'!$G$50:$G$55"),0)),"2 premiers") -> 2 premiers | I41: =IFERROR(RANK(J41,$J$33:$J$62)+COUNTIF($J$33:J41,J41)-1,"") -> 
B42: =B41 -> P5 | C42: =IFERROR(INDEX(INDIRECT("'"&$B42&"'!$A$50:$A$55"),MATCH(5,INDIRECT("'"&$B42&"'!$H$50:$H$55"),0)),"") -> BD | D42: 5E | E42: 0 | F42: 0 | G42: 0 | H42: 0 | I42: =IFERROR(RANK(J42,$J$33:$J$62)+COUNTIF($J$33:J42,J42)-1,"") -> 4 | J42: 0
B43: P6 | C43: =IFERROR(INDEX(INDIRECT("'"&$B43&"'!$A$50:$A$55"),MATCH(2,INDIRECT("'"&$B43&"'!$G$50:$G$55"),0)),"2 premiers") -> 2 premiers | I43: =IFERROR(RANK(J43,$J$33:$J$62)+COUNTIF($J$33:J43,J43)-1,"") -> 
B44: =B43 -> P6 | C44: =IFERROR(INDEX(INDIRECT("'"&$B44&"'!$A$50:$A$55"),MATCH(5,INDIRECT("'"&$B44&"'!$H$50:$H$55"),0)),"") -> BJ | D44: 6E | E44: 0 | F44: 0 | G44: 0 | H44: 0 | I44: =IFERROR(RANK(J44,$J$33:$J$62)+COUNTIF($J$33:J44,J44)-1,"") -> 5 | J44: 0
B45: P7 | C45: =IFERROR(INDEX(INDIRECT("'"&$B45&"'!$A$50:$A$55"),MATCH(2,INDIRECT("'"&$B45&"'!$G$50:$G$55"),0)),"2 premiers") -> 2 premiers | I45: =IFERROR(RANK(J45,$J$33:$J$62)+COUNTIF($J$33:J45,J45)-1,"") -> 
B46: =B45 -> P7 | C46: =IFERROR(INDEX(INDIRECT("'"&$B46&"'!$A$50:$A$55"),MATCH(5,INDIRECT("'"&$B46&"'!$H$50:$H$55"),0)),"") -> BP | D46: 7E | E46: 0 | F46: 0 | G46: 0 | H46: 0 | I46: =IFERROR(RANK(J46,$J$33:$J$62)+COUNTIF($J$33:J46,J46)-1,"") -> 6 | J46: 0
B47: P8 | C47: =IFERROR(INDEX(INDIRECT("'"&$B47&"'!$A$50:$A$55"),MATCH(2,INDIRECT("'"&$B47&"'!$G$50:$G$55"),0)),"2 premiers") -> 2 premiers | I47: =IFERROR(RANK(J47,$J$33:$J$62)+COUNTIF($J$33:J47,J47)-1,"") -> 
B48: =B47 -> P8 | C48: =IFERROR(INDEX(INDIRECT("'"&$B48&"'!$A$50:$A$55"),MATCH(5,INDIRECT("'"&$B48&"'!$H$50:$H$55"),0)),"") -> BV | D48: 8E | E48: 0 | F48: 0 | G48: 0 | H48: 0 | I48: =IFERROR(RANK(J48,$J$33:$J$62)+COUNTIF($J$33:J48,J48)-1,"") -> 7 | J48: 0
B49: P9 | C49: =IFERROR(INDEX(INDIRECT("'"&$B49&"'!$A$50:$A$55"),MATCH(2,INDIRECT("'"&$B49&"'!$G$50:$G$55"),0)),"2 premiers") -> 2 premiers | I49: =IFERROR(RANK(J49,$J$33:$J$62)+COUNTIF($J$33:J49,J49)-1,"") -> 
B50: =B49 -> P9 | C50: =IFERROR(INDEX(INDIRECT("'"&$B50&"'!$A$50:$A$55"),MATCH(5,INDIRECT("'"&$B50&"'!$H$50:$H$55"),0)),"") -> CB | D50: 9E | E50: 0 | F50: 0 | G50: 0 | H50: 0 | I50: =IFERROR(RANK(J50,$J$33:$J$62)+COUNTIF($J$33:J50,J50)-1,"") -> 8 | J50: 0
B51: P10 | C51: =IFERROR(INDEX(INDIRECT("'"&$B51&"'!$A$50:$A$55"),MATCH(2,INDIRECT("'"&$B51&"'!$G$50:$G$55"),0)),"2 premiers") -> 2 premiers | I51: =IFERROR(RANK(J51,$J$33:$J$62)+COUNTIF($J$33:J51,J51)-1,"") -> 
B52: =B51 -> P10 | C52: =IFERROR(INDEX(INDIRECT("'"&$B52&"'!$A$50:$A$55"),MATCH(5,INDIRECT("'"&$B52&"'!$H$50:$H$55"),0)),"") -> CH | D52: 10E | E52: 0 | F52: 0 | G52: 0 | H52: 0 | I52: =IFERROR(RANK(J52,$J$33:$J$62)+COUNTIF($J$33:J52,J52)-1,"") -> 9 | J52: 0
B53: P11 | C53: =IFERROR(INDEX(INDIRECT("'"&$B53&"'!$A$50:$A$55"),MATCH(2,INDIRECT("'"&$B53&"'!$G$50:$G$55"),0)),"2 premiers") -> 2 premiers | I53: =IFERROR(RANK(J53,$J$33:$J$62)+COUNTIF($J$33:J53,J53)-1,"") -> 
B54: =B53 -> P11 | C54: =IFERROR(INDEX(INDIRECT("'"&$B54&"'!$A$50:$A$55"),MATCH(5,INDIRECT("'"&$B54&"'!$H$50:$H$55"),0)),"") -> CN | D54: 11E | E54: 0 | F54: 0 | G54: 0 | H54: 0 | I54: =IFERROR(RANK(J54,$J$33:$J$62)+COUNTIF($J$33:J54,J54)-1,"") -> 10 | J54: 0
B55: P12 | C55: =IFERROR(INDEX(INDIRECT("'"&$B55&"'!$A$50:$A$55"),MATCH(2,INDIRECT("'"&$B55&"'!$G$50:$G$55"),0)),"2 premiers") -> 2 premiers | I55: =IFERROR(RANK(J55,$J$33:$J$62)+COUNTIF($J$33:J55,J55)-1,"") -> 
B56: =B55 -> P12 | C56: =IFERROR(INDEX(INDIRECT("'"&$B56&"'!$A$50:$A$55"),MATCH(5,INDIRECT("'"&$B56&"'!$H$50:$H$55"),0)),"") -> CT | D56: 12E | E56: 0 | F56: 0 | G56: 0 | H56: 0 | I56: =IFERROR(RANK(J56,$J$33:$J$62)+COUNTIF($J$33:J56,J56)-1,"") -> 11 | J56: 0
B57: P13 | C57: =IFERROR(INDEX(INDIRECT("'"&$B57&"'!$A$50:$A$55"),MATCH(2,INDIRECT("'"&$B57&"'!$G$50:$G$55"),0)),"2 premiers") -> 2 premiers | I57: =IFERROR(RANK(J57,$J$33:$J$62)+COUNTIF($J$33:J57,J57)-1,"") -> 
B58: =B57 -> P13 | C58: =IFERROR(INDEX(INDIRECT("'"&$B58&"'!$A$50:$A$55"),MATCH(5,INDIRECT("'"&$B58&"'!$H$50:$H$55"),0)),"") -> CZ | D58: 13E | E58: 0 | F58: 0 | G58: 0 | H58: 0 | I58: =IFERROR(RANK(J58,$J$33:$J$62)+COUNTIF($J$33:J58,J58)-1,"") -> 12 | J58: 0
B59: P14 | C59: =IFERROR(INDEX(INDIRECT("'"&$B59&"'!$A$50:$A$55"),MATCH(2,INDIRECT("'"&$B59&"'!$G$50:$G$55"),0)),"2 premiers") -> 2 premiers | I59: =IFERROR(RANK(J59,$J$33:$J$62)+COUNTIF($J$33:J59,J59)-1,"") -> 
B60: =B59 -> P14 | C60: =IFERROR(INDEX(INDIRECT("'"&$B60&"'!$A$50:$A$55"),MATCH(5,INDIRECT("'"&$B60&"'!$H$50:$H$55"),0)),"") -> DH | D60: 14E | E60: 0 | F60: 0 | G60: 0 | H60: 0 | I60: =IFERROR(RANK(J60,$J$33:$J$62)+COUNTIF($J$33:J60,J60)-1,"") -> 13 | J60: 0
B61: P15 | C61: =IFERROR(INDEX(INDIRECT("'"&$B61&"'!$A$50:$A$55"),MATCH(2,INDIRECT("'"&$B61&"'!$G$50:$G$55"),0)),"2 premiers") -> 2 premiers | I61: =IFERROR(RANK(J61,$J$33:$J$62)+COUNTIF($J$33:J61,J61)-1,"") -> 
B62: =B61 -> P15 | C62: =IFERROR(INDEX(INDIRECT("'"&$B62&"'!$A$50:$A$55"),MATCH(5,INDIRECT("'"&$B62&"'!$H$50:$H$55"),0)),"") -> DN | D62: 15E | E62: 0 | F62: 0 | G62: 0 | H62: 0 | I62: =IFERROR(RANK(J62,$J$33:$J$62)+COUNTIF($J$33:J62,J62)-1,"") -> 14 | J62: 0

Sheet Macros
F1: =AND(Classt!O3=Classt!O4,Classt!R3=Classt!R4,Classt!P3=Classt!P4) -> TRUE
F2: =AND(Classt!O5=Classt!O3,Classt!R5=Classt!R3,Classt!P5=Classt!P3) -> TRUE
F3: =AND(Classt!O6=Classt!O3,Classt!R6=Classt!R3,Classt!P6=Classt!P3) -> TRUE
F4: =AND(Classt!O7=Classt!O3,Classt!R7=Classt!R3,Classt!P7=Classt!P3) -> TRUE
